Workbook

Sheet Control
B3: This tool includes default activity data and performs projections through 2050.
B4: Energy consumption projections available at the regional level are downscaled to the state level using the following steps.
A6: 1 | B6: Regional energy consumption projections (from 2022 through 2050) were obtained from the Energy Information Administration’s (EIA) Annual Energy Outlook 2023. This report projects energy consumption by sector (e.g. residential) and fuel type (e.g., motor gasoline) for 9 regions.
A8: 2 | B8: State energy consumption in 2021 from EIA’s State Energy Data 2023 Consumption tables (EIA 2023) was obtained and used to downscale the regional energy consumption estimates. Regional consumption was downscaled by calculating the state's percent consumption (from the State Energy Data) relative to the region. EIA's State Energy Data are available online at http://www.eia.gov/state/seds/.
A10: 3 | B10: Projected regional consumption was disaggregated to state-level estimates by applying the selected state's proportion of consumption in 2021 from EIA’s State Energy Data 2023 Consumption tables (EIA 2023) to the regional energy consumption data.

Sheet Consumption Projs
A1: ="Projected Consumption for "&State&" (Bbtu)" -> Projected Consumption for Virginia (Bbtu) | AY1: 4
C3: Consumption (Billion Btu)
C4: State/Sector/Fuel | D4: 2009 | E4: 2010 | F4: 2011 | G4: 2012 | H4: 2013 | I4: 2014 | J4: 2015 | K4: 2016 | L4: 2017 | M4: 2018 | N4: 2019 | O4: 2020 | P4: 2021 | Q4: 2022 | R4: 2023 | S4: 2024 | T4: 2025 | U4: 2026 | V4: 2027 | W4: 2028 | X4: 2029 | Y4: 2030 | Z4: 2031 | AA4: 2032 | AB4: 2033 | AC4: 2034 | AD4: 2035 | AE4: 2036 | AF4: 2037 | AG4: 2038 | AH4: 2039 | AI4: 2040 | AJ4: 2041 | AK4: 2042 | AL4: 2043 | AM4: 2044 | AN4: 2045 | AO4: 2046 | AP4: 2047 | AQ4: 2048 | AR4: 2049 | AS4: 2050
A5: =StateID -> VA | C5: =State -> Virginia
A6: 3 | B6: 2 | C6: Residential | D6: =SUM(D7:D11) -> 0 | E6: 0 | F6: 0 | G6: 0 | H6: 113236.8512 | I6: 121594.8413 | J6: 107425.6118 | K6: 102592.8048 | L6: 105007.8153 | M6: 120766.2068 | N6: 107277.2274 | O6: 109583.7012 | P6: =SUM(P7:P11) -> 112937.0737 | Q6: 114614.7644 | R6: 124991.8153 | S6: 106677.8445 | T6: 106305.3443 | U6: 106305.3443 | V6: 106185.7242 | W6: 105670.9252 | X6: 105156.1263 | Y6: 104641.3274 | Z6: 104126.5284 | AA6: 103432.5703 | AB6: 103216.5506 | AC6: 102701.7517 | AD6: 102366.1119 | AE6: 102186.9527 | AF6: 101851.313 | AG6: 101336.514 | AH6: 101216.8939 | AI6: 101216.8939 | AJ6: 100702.095 | AK6: 100702.095 | AL6: 100366.4552 | AM6: 100246.8351 | AN6: 100246.8351 | AO6: 99911.19537 | AP6: 100306.3742 | AQ6: 99970.73445 | AR6: 100186.7541 | AS6: 99851.11435
A7: 4 | B7: 3 | C7: Coal | D7: =HLOOKUP($A$60,StatePercentBlock,$A7,FALSE)*HLOOKUP(D$59,INDIRECT(SelectedRegion),$B7,FALSE) -> 0 | E7: 0 | F7: 0 | G7: 0 | H7: 0 | I7: 0 | J7: 0 | K7: 0 | L7: 0 | M7: 0 | N7: 0 | O7: 0 | P7: 0 | Q7: 0 | R7: 0 | S7: 0 | T7: =HLOOKUP($A$60,StatePercentBlock,$A7,FALSE)*HLOOKUP(T$59,INDIRECT(SelectedRegion),$B7,FALSE) -> 0 | U7: 0 | V7: 0 | W7: 0 | X7: 0 | Y7: 0 | Z7: 0 | AA7: 0 | AB7: 0 | AC7: 0 | AD7: 0 | AE7: 0 | AF7: 0 | AG7: 0 | AH7: 0 | AI7: 0 | AJ7: 0 | AK7: 0 | AL7: 0 | AM7: 0 | AN7: 0 | AO7: 0 | AP7: 0 | AQ7: 0 | AR7: 0 | AS7: 0
A8: 5 | B8: 4 | C8: Natural Gas | D8: 0 | E8: 0 | F8: 0 | G8: 0 | H8: 82378.28903 | I8: 91577.93402 | J8: 81001.80901 | K8: 78188.65149 | L8: 75718.04633 | M8: =HLOOKUP($A$60,StatePercentBlock,$A8,FALSE)*HLOOKUP(M$59,INDIRECT(SelectedRegion),$B8,FALSE) -> 89566.15553 | N8: 86021.3119 | O8: 87366.97654 | P8: 88403.23326 | Q8: 89042.11491 | R8: 99970.8252 | S8: 85638.0904 | T8: 85817.24959 | U8: 85817.24959 | V8: 85817.24959 | W8: 85638.0904 | X8: 85458.93122 | Y8: 85279.77203 | Z8: 85100.61285 | AA8: 84742.29448 | AB8: 84742.29448 | AC8: 84563.13529 | AD8: 84563.13529 | AE8: 84383.97611 | AF8: 84383.97611 | AG8: 84204.81692 | AH8: 84204.81692 | AI8: 84204.81692 | AJ8: 84025.65774 | AK8: 84025.65774 | AL8: 84025.65774 | AM8: 84025.65774 | AN8: 84025.65774 | AO8: 84025.65774 | AP8: 84204.81692 | AQ8: 84204.81692 | AR8: 84204.81692 | AS8: 84204.81692
A9: 6 | B9: 5 | C9: Distillate Fuel | D9: 0 | E9: 0 | F9: 0 | G9: 0 | H9: 15378.00681 | I9: 15341.42208 | J9: 12547.22109 | K9: 9834.58056 | L9: 12739.20703 | M9: 15215.89281 | N9: 9882.912685 | O9: 10293.73575 | P9: 11186.20187 | Q9: 11747.39154 | R9: 11411.75178 | S9: 8726.633718 | T9: 8390.993959 | U9: 8390.993959 | V9: 8055.354201 | W9: 7719.714443 | X9: 7384.074684 | Y9: 7048.434926 | Z9: 6712.795167 | AA9: 6377.155409 | AB9: 6377.155409 | AC9: 6041.515651 | AD9: 5705.875892 | AE9: 5705.875892 | AF9: 5370.236134 | AG9: 5034.596376 | AH9: 4698.956617 | AI9: 4698.956617 | AJ9: 4363.316859 | AK9: 4363.316859 | AL9: 4027.6771 | AM9: 3692.037342 | AN9: 3692.037342 | AO9: 3356.397584 | AP9: 3356.397584 | AQ9: 3020.757825 | AR9: 3020.757825 | AS9: 2685.118067
A10: 7 | B10: 6 | C10: Kerosene | D10: 0 | E10: 0 | F10: 0 | G10: 0 | H10: 270.3953488 | I10: 491.4186047 | J10: 431.3023256 | K10: 431.3023256 | L10: 0 | M10: 0 | N10: 0 | O10: 0 | P10: 0 | Q10: 0 | R10: 0 | S10: 0 | T10: 0 | U10: 0 | V10: 0 | W10: 0 | X10: 0 | Y10: 0 | Z10: 0 | AA10: 0 | AB10: 0 | AC10: 0 | AD10: 0 | AE10: 0 | AF10: 0 | AG10: 0 | AH10: 0 | AI10: 0 | AJ10: 0 | AK10: 0 | AL10: 0 | AM10: 0 | AN10: 0 | AO10: 0 | AP10: 0 | AQ10: 0 | AR10: 0 | AS10: 0
A11: 8 | B11: 7 | C11: HGL | D11: 0 | E11: 0 | F11: 0 | G11: 0 | H11: 15210.16 | I11: 14184.06663 | J11: 13445.27941 | K11: 14138.27047 | L11: 16550.56197 | M11: 15984.15843 | N11: 11373.00285 | O11: 11922.98889 | P11: 13347.63853 | Q11: 13825.25799 | R11: 13609.23833 | S11: 12313.12039 | T11: 12097.10074 | U11: 12097.10074 | V11: 12313.12039 | W11: 12313.12039 | X11: 12313.12039 | Y11: 12313.12039 | Z11: 12313.12039 | AA11: 12313.12039 | AB11: 12097.10074 | AC11: 12097.10074 | AD11: 12097.10074 | AE11: 12097.10074 | AF11: 12097.10074 | AG11: 12097.10074 | AH11: 12313.12039 | AI11: 12313.12039 | AJ11: 12313.12039 | AK11: 12313.12039 | AL11: 12313.12039 | AM11: 12529.14005 | AN11: 12529.14005 | AO11: 12529.14005 | AP11: 12745.15971 | AQ11: 12745.15971 | AR11: 12961.17936 | AS11: 12961.17936
A12: 9 | B12: 8 | C12: Electricity Sales (kWh) | D12: 0 | E12: 0 | F12: 0 | G12: 0 | H12: 42902.0263 | I12: 43983.31256 | J12: 44129.79374 | K12: 44340.52805 | L12: 42917.93557 | M12: 45808.0941 | N12: 45494.29386 | O12: 44889.59693 | P12: 46795.70053 | Q12: 47945.22629 | R12: 47981.46607 | S12: 47401.62962 | T12: 47764.0274 | U12: 48126.42518 | V12: 48633.78207 | W12: 49141.13896 | X12: 49539.77652 | Y12: 49902.1743 | Z12: 50192.09253 | AA12: 50482.01075 | AB12: 50699.44942 | AC12: 50880.64831 | AD12: 51243.04609 | AE12: 51677.92342 | AF12: 52076.56098 | AG12: 52438.95876 | AH12: 52801.35654 | AI12: 53236.23388 | AJ12: 53743.59077 | AK12: 54323.42722 | AL12: 54939.50344 | AM12: 55555.57967 | AN12: 56135.41612 | AO12: 56715.25256 | AP12: 57367.56857 | AQ12: 58056.12435 | AR12: 58780.91991 | AS12: 59541.95525
A13: 10 | B13: 9 | C13: Commercial | D13: =SUM(D14:D20) -> 0 | E13: 0 | F13: 0 | G13: 0 | H13: 87916.26852 | I13: 98317.5637 | J13: 90346.68743 | K13: 103653.058 | L13: 103872.0929 | M13: =SUM(M14:M20) -> 107287.6744 | N13: =SUM(N14:N20) -> 109539.4992 | O13: 110246.7688 | P13: =SUM(P14:P20) -> 103562.4251 | Q13: 106862.2542 | R13: 107789.592 | S13: 105818.8695 | T13: 107672.5958 | U13: 109157.64 | V13: 109950.1344 | W13: 110832.658 | X13: 111574.7055 | Y13: 112133.3612 | Z13: 112648.152 | AA13: 113206.8078 | AB13: 113581.1225 | AC13: 113955.4372 | AD13: 114297.5682 | AE13: 114487.5419 | AF13: 114671.883 | AG13: 114861.8566 | AH13: 115191.3572 | AI13: 115197.9391 | AJ13: 115197.9391 | AK13: 115387.9128 | AL13: 115577.8865 | AM13: 116091.7281 | AN13: 116091.7281 | AO13: 116466.0428 | AP13: 116472.6247 | AQ13: 116846.9394 | AR13: 116986.4663 | AS13: 117360.781
A14: 11 | B14: 10 | C14: Coal | D14: =HLOOKUP($A$60,StatePercentBlock,$A14,FALSE)*HLOOKUP(D$59,INDIRECT(SelectedRegion),$B14,FALSE) -> 0 | E14: 0 | F14: 0 | G14: 0 | H14: 913.8434211 | I14: 1061.342763 | J14: 808.5848684 | K14: 719.9822368 | L14: 597.7243421 | M14: 530.0703947 | N14: 510.1519737 | O14: 409.5296053 | P14: 338.0980263 | Q14: 343.4210526 | R14: 343.4210526 | S14: 343.4210526 | T14: =HLOOKUP($A$60,StatePercentBlock,$A14,FALSE)*HLOOKUP(T$59,INDIRECT(SelectedRegion),$B14,FALSE) -> 343.4210526 | U14: 343.4210526 | V14: 343.4210526 | W14: 343.4210526 | X14: 343.4210526 | Y14: 343.4210526 | Z14: 343.4210526 | AA14: 343.4210526 | AB14: 343.4210526 | AC14: 343.4210526 | AD14: 171.7105263 | AE14: 171.7105263 | AF14: 171.7105263 | AG14: 171.7105263 | AH14: 171.7105263 | AI14: 171.7105263 | AJ14: 171.7105263 | AK14: 171.7105263 | AL14: 171.7105263 | AM14: 171.7105263 | AN14: 171.7105263 | AO14: 171.7105263 | AP14: 171.7105263 | AQ14: 171.7105263 | AR14: 171.7105263 | AS14: 171.7105263
A15: 12 | B15: 11 | C15: Natural Gas | D15: 0 | E15: 0 | F15: 0 | G15: 0 | H15: 70433.5674 | I15: 79946.30106 | J15: 71095.35164 | K15: 73681.65606 | L15: 74615.71197 | M15: 77764.99385 | N15: 80596.10313 | O15: 80273.50636 | P15: 76154.77509 | Q15: 78529.27169 | R15: 79266.63574 | S15: 77238.88459 | T15: 78529.27169 | U15: 79450.97675 | V15: 79819.65878 | W15: 80372.68182 | X15: 80741.36385 | Y15: 81110.04587 | Z15: 81478.7279 | AA15: 81847.40993 | AB15: 82031.75094 | AC15: 82216.09195 | AD15: 82400.43297 | AE15: 82400.43297 | AF15: 82584.77398 | AG15: 82584.77398 | AH15: 82584.77398 | AI15: 82584.77398 | AJ15: 82584.77398 | AK15: 82584.77398 | AL15: 82584.77398 | AM15: 82769.11499 | AN15: 82769.11499 | AO15: 82953.45601 | AP15: 82953.45601 | AQ15: 83137.79702 | AR15: 83137.79702 | AS15: 83322.13803
A16: 13 | B16: 12 | C16: Distillate Fuel | D16: 0 | E16: 0 | F16: 0 | G16: 0 | H16: 8894.686316 | I16: 10063.07556 | J16: 10090.58433 | K16: 10781.0545 | L16: 10028.04772 | M16: 10425.27439 | N16: 10133.6814 | O16: 10763.2655 | P16: 9430.557193 | Q16: 9352.982456 | R16: 9352.982456 | S16: 9169.590643 | T16: 9352.982456 | U16: 9536.374269 | V16: 9719.766082 | W16: 9719.766082 | X16: 9903.157895 | Y16: 9903.157895 | Z16: 9719.766082 | AA16: 9719.766082 | AB16: 9719.766082 | AC16: 9719.766082 | AD16: 9719.766082 | AE16: 9719.766082 | AF16: 9719.766082 | AG16: 9719.766082 | AH16: 9719.766082 | AI16: 9536.374269 | AJ16: 9536.374269 | AK16: 9536.374269 | AL16: 9536.374269 | AM16: 9536.374269 | AN16: 9536.374269 | AO16: 9536.374269 | AP16: 9352.982456 | AQ16: 9352.982456 | AR16: 9352.982456 | AS16: 9352.982456
A17: 14 | B17: 13 | C17: Kerosene | D17: 0 | E17: 0 | F17: 0 | G17: 0 | H17: 69.875 | I17: 141.6470588 | J17: 109.0808824 | K17: 105.6029412 | L17: 78.09558824 | M17: 31.61764706 | N17: 74.93382353 | O17: 86 | P17: 84.41911765 | Q17: 0 | R17: 0 | S17: 0 | T17: 0 | U17: 0 | V17: 0 | W17: 0 | X17: 0 | Y17: 0 | Z17: 0 | AA17: 0 | AB17: 0 | AC17: 0 | AD17: 0 | AE17: 0 | AF17: 0 | AG17: 0 | AH17: 0 | AI17: 0 | AJ17: 0 | AK17: 0 | AL17: 0 | AM17: 0 | AN17: 0 | AO17: 0 | AP17: 0 | AQ17: 0 | AR17: =HLOOKUP($A$60,StatePercentBlock,$A17,FALSE)*HLOOKUP(AR$59,INDIRECT(SelectedRegion),$B17,FALSE) -> 0 | AS17: 0
A18: 15 | B18: 14 | C18: HGL | D18: 0 | E18: 0 | F18: 0 | G18: 0 | H18: 6287.749227 | I18: 6114.683194 | J18: 6590.187343 | K18: 5835.041921 | L18: 6261.15291 | M18: 6608.994738 | N18: 6847.221747 | O18: 7069.111018 | P18: 6421.110758 | Q18: 6079.158114 | R18: 6269.131805 | S18: 6649.079187 | T18: 7029.026569 | U18: 7408.973951 | V18: 7788.921333 | W18: 7978.895024 | X18: 8168.868715 | Y18: 8358.842407 | Z18: 8548.816098 | AA18: 8738.789789 | AB18: 8928.76348 | AC18: 9118.737171 | AD18: 9308.710862 | AE18: 9498.684553 | AF18: 9498.684553 | AG18: 9688.658244 | AH18: 9878.631935 | AI18: 10068.60563 | AJ18: 10068.60563 | AK18: 10258.57932 | AL18: 10448.55301 | AM18: 10638.5267 | AN18: 10638.5267 | AO18: 10828.50039 | AP18: 11018.47408 | AQ18: 11208.44777 | AR18: =HLOOKUP($A$60,StatePercentBlock,$A18,FALSE)*HLOOKUP(AR$59,INDIRECT(SelectedRegion),$B18,FALSE) -> 11208.44777 | AS18: 11398.42146
A19: 16 | B19: 15 | C19: Motor Gasoline | D19: 0 | E19: 0 | F19: 0 | G19: 0 | H19: 1298.158269 | I19: 950.73629 | J19: 1617.953921 | K19: 12495.33144 | L19: 12282.9715 | M19: 11900.6678 | N19: 11375.90713 | O19: 11540.96745 | P19: 11133.40938 | Q19: 12557.42091 | R19: 12557.42091 | S19: 12417.89401 | T19: 12417.89401 | U19: 12417.89401 | V19: 12278.36711 | W19: 12417.89401 | X19: 12417.89401 | Y19: 12417.89401 | Z19: 12557.42091 | AA19: 12557.42091 | AB19: 12557.42091 | AC19: 12557.42091 | AD19: 12696.94781 | AE19: 12696.94781 | AF19: 12696.94781 | AG19: 12696.94781 | AH19: 12836.47471 | AI19: 12836.47471 | AJ19: 12836.47471 | AK19: 12836.47471 | AL19: 12836.47471 | AM19: 12976.00161 | AN19: 12976.00161 | AO19: 12976.00161 | AP19: 12976.00161 | AQ19: 12976.00161 | AR19: =HLOOKUP($A$60,StatePercentBlock,$A19,FALSE)*HLOOKUP(AR$59,INDIRECT(SelectedRegion),$B19,FALSE) -> 13115.52851 | AS19: 13115.52851
A20: 17 | B20: 16 | C20: Residual Fuel | D20: 0 | E20: 0 | F20: 0 | G20: 0 | H20: 18.38888889 | I20: 39.77777778 | J20: 34.94444444 | K20: 34.38888889 | L20: 8.388888889 | M20: 26.05555556 | N20: 1.5 | O20: 104.3888889 | P20: 0.05555555556 | Q20: 0 | R20: 0 | S20: 0 | T20: 0 | U20: 0 | V20: 0 | W20: 0 | X20: 0 | Y20: 0 | Z20: 0 | AA20: 0 | AB20: 0 | AC20: 0 | AD20: 0 | AE20: 0 | AF20: 0 | AG20: 0 | AH20: 0 | AI20: 0 | AJ20: 0 | AK20: 0 | AL20: 0 | AM20: 0 | AN20: 0 | AO20: 0 | AP20: 0 | AQ20: 0 | AR20: =HLOOKUP($A$60,StatePercentBlock,$A20,FALSE)*HLOOKUP(AR$59,INDIRECT(SelectedRegion),$B20,FALSE) -> 0 | AS20: 0
A21: 18 | B21: 17 | C21: Electricity Sales (kWh) | D21: 0 | E21: 0 | F21: 0 | G21: 0 | H21: 53603.24543 | I21: 54500.86634 | J21: 55087.37793 | K21: 55505.45223 | L21: 54890.20844 | M21: 55742.59696 | N21: 56125.95318 | O21: 55867.51955 | P21: 55275.12619 | Q21: 56891.8328 | R21: 56267.21981 | S21: 56735.67955 | T21: 56475.42414 | U21: 56527.47522 | V21: 56527.47522 | W21: 57100.03713 | X21: 57620.54795 | Y21: 58089.00769 | Z21: 58609.51851 | AA21: 59077.97825 | AB21: 59390.28474 | AC21: 59702.59124 | AD21: 60066.94881 | AE21: 60431.30639 | AF21: 60743.61288 | AG21: 60951.81721 | AH21: 61160.02154 | AI21: 61472.32803 | AJ21: 61940.78777 | AK21: 62409.24751 | AL21: 62929.75833 | AM21: 63398.21807 | AN21: 63866.67781 | AO21: 64335.13755 | AP21: 64855.64837 | AQ21: 65428.21027 | AR21: =HLOOKUP($A$60,StatePercentBlock,$A21,FALSE)*HLOOKUP(AR$59,INDIRECT(SelectedRegion),$B21,FALSE) -> 66052.82326 | AS21: 66729.48733
A22: 19 | B22: 18 | C22: Industrial | D22: =SUM(D23:D38) -> 0 | E22: 0 | F22: 0 | G22: 0 | H22: 208458.4427 | I22: 177905.9633 | J22: 177500.1596 | K22: 175121.0407 | L22: 182581.6216 | M22: 194168.0421 | N22: 194100.3979 | O22: 190882.248 | P22: =SUM(P23:P38) -> 184307.7946 | Q22: 189966.4759 | R22: 182586.4249 | S22: 183112.6861 | T22: 184165.7155 | U22: 186606.4634 | V22: 187998.7691 | W22: 189129.1738 | X22: 189590.5205 | Y22: 189772.206 | Z22: 190075.9618 | AA22: 190729.0067 | AB22: 191050.5228 | AC22: 191671.7539 | AD22: 192272.9312 | AE22: 192914.2162 | AF22: 193009.6982 | AG22: 193750.7061 | AH22: 194105.7954 | AI22: 194234.7224 | AJ22: 195079.8223 | AK22: 195820.8302 | AL22: 196450.3552 | AM22: 197187.4383 | AN22: 198208.1074 | AO22: 199295.0543 | AP22: 199781.5644 | AQ22: 200370.9817 | AR22: 201247.8954 | AS22: 202288.6183
A23: 20 | B23: 19 | C23: Coking Coal | D23: =HLOOKUP($A$60,StatePercentBlock,$A23,FALSE)*HLOOKUP(D$59,INDIRECT(SelectedRegion),$B23,FALSE) -> 0 | E23: 0 | F23: 0 | G23: 0 | H23: 47962.47432 | I23: 27155.68587 | J23: 27515.04625 | K23: 25709.95596 | L23: 25033.26912 | M23: 28833.49035 | N23: 29050.17222 | O23: 29383.48342 | P23: 24936.17669 | Q23: 28417.29538 | R23: 29009.32236 | S23: 28417.29538 | T23: =HLOOKUP($A$60,StatePercentBlock,$A23,FALSE)*HLOOKUP(T$59,INDIRECT(SelectedRegion),$B23,FALSE) -> 28417.29538 | U23: 28417.29538 | V23: 28417.29538 | W23: 28417.29538 | X23: 28417.29538 | Y23: 28417.29538 | Z23: 28417.29538 | AA23: 28417.29538 | AB23: 28417.29538 | AC23: 28417.29538 | AD23: 28417.29538 | AE23: 28417.29538 | AF23: 27825.26839 | AG23: 27825.26839 | AH23: 27233.2414 | AI23: 26641.21441 | AJ23: 26641.21441 | AK23: 26641.21441 | AL23: 26641.21441 | AM23: 26641.21441 | AN23: 26641.21441 | AO23: 26641.21441 | AP23: 26049.18743 | AQ23: 26049.18743 | AR23: 26049.18743 | AS23: 26049.18743
A24: 22 | B24: 20 | C24: Other Coal | D24: 0 | E24: 0 | F24: 0 | G24: 0 | H24: 28640.95224 | I24: 24713.75978 | J24: 21086.43166 | K24: 17387.69035 | L24: 15191.46832 | M24: 14066.44413 | N24: 11578.17414 | O24: 10544.81463 | P24: 9890.193735 | Q24: 9592.816426 | R24: 8526.947934 | S24: 8349.303186 | T24: 8171.658437 | U24: 8171.658437 | V24: 7994.013688 | W24: 7994.013688 | X24: 7816.36894 | Y24: 7638.724191 | Z24: 7283.434694 | AA24: 7105.789945 | AB24: 6928.145197 | AC24: 6750.500448 | AD24: 6572.855699 | AE24: 6395.210951 | AF24: 6217.566202 | AG24: 6039.921453 | AH24: 5862.276705 | AI24: 5684.631956 | AJ24: 5684.631956 | AK24: 5506.987208 | AL24: 5329.342459 | AM24: 5329.342459 | AN24: 5151.69771 | AO24: 4974.052962 | AP24: 4974.052962 | AQ24: 4796.408213 | AR24: 4796.408213 | AS24: 4618.763464
A25: 23 | B25: 21 | C25: Natural Gas | D25: 0 | E25: 0 | F25: 0 | G25: 0 | H25: 84422.72776 | I25: 82382.45941 | J25: 83023.16324 | K25: 87838.78944 | L25: 92737.61486 | M25: 100082.0776 | N25: 102031.8755 | O25: 101266.0233 | P25: 103680.758 | Q25: 109627.1943 | R25: 105572.1068 | S25: 107389.9046 | T25: 109207.7025 | U25: 111864.484 | V25: 113542.4513 | W25: 114661.0961 | X25: 114940.7573 | Y25: 114940.7573 | Z25: 115360.2491 | AA25: 116059.4021 | AB25: 116199.2327 | AC25: 116758.5552 | AD25: 117178.047 | AE25: 117877.2 | AF25: 118436.5224 | AG25: 118995.8448 | AH25: 119694.9979 | AI25: 120114.4897 | AJ25: 120533.9815 | AK25: 121093.3039 | AL25: 121792.4569 | AM25: 122211.9488 | AN25: 123050.9324 | AO25: 123889.916 | AP25: 124728.8997 | AQ25: 125148.3915 | AR25: 125707.7139 | AS25: 126686.5281
A26: 26 | B26: 22 | C26: Distillate Fuel | D26: 0 | E26: 0 | F26: 0 | G26: 0 | H26: 15640.6183 | I26: 17212.47894 | J26: 15898.8865 | K26: 14216.63267 | L26: 14959.14023 | M26: 15902.99113 | N26: 16454.63299 | O26: 16613.95779 | P26: 14393.67222 | Q26: 12962.0174 | R26: 12745.98378 | S26: 12421.93334 | T26: 12313.91653 | U26: 12097.88291 | V26: 11989.8661 | W26: 11881.84929 | X26: 11881.84929 | Y26: 11881.84929 | Z26: 11881.84929 | AA26: 11773.83247 | AB26: 11773.83247 | AC26: 11773.83247 | AD26: 11773.83247 | AE26: 11773.83247 | AF26: 11881.84929 | AG26: 11881.84929 | AH26: 11989.8661 | AI26: 11989.8661 | AJ26: 12097.88291 | AK26: 12097.88291 | AL26: 12205.89972 | AM26: 12205.89972 | AN26: 12205.89972 | AO26: 12313.91653 | AP26: 12313.91653 | AQ26: 12421.93334 | AR26: 12421.93334 | AS26: 12421.93334
A27: 27 | B27: 23 | C27: Petrochemical Feedstocks
A28: 28 | B28: 24 | C28: Feedstocks, Naphtha less than 401 F | D28: =HLOOKUP($A$60,StatePercentBlock,$A28,FALSE)*HLOOKUP(D$59,INDIRECT(SelectedRegion),$B28,FALSE) -> 0 | E28: 0 | F28: 0 | G28: 0 | H28: 0 | I28: 0 | J28: 0 | K28: 0 | L28: 0 | M28: 0 | N28: 0 | O28: 0 | P28: 0 | Q28: 0 | R28: 0 | S28: 0 | T28: =HLOOKUP($A$60,StatePercentBlock,$A28,FALSE)*HLOOKUP(T$59,INDIRECT(SelectedRegion),$B28,FALSE) -> 0 | U28: 0 | V28: 0 | W28: 0 | X28: 0 | Y28: 0 | Z28: 0 | AA28: 0 | AB28: 0 | AC28: 0 | AD28: 0 | AE28: 0 | AF28: 0 | AG28: 0 | AH28: 0 | AI28: 0 | AJ28: 0 | AK28: 0 | AL28: 0 | AM28: 0 | AN28: 0 | AO28: 0 | AP28: 0 | AQ28: 0 | AR28: 0 | AS28: 0
A29: 29 | B29: 25 | C29: Feedstocks, Other Oils greater than 401 F | D29: 0 | E29: 0 | F29: 0 | G29: 0 | H29: 0 | I29: 0 | J29: 0 | K29: 0 | L29: 0 | M29: 0 | N29: 0 | O29: 0 | P29: 0 | Q29: 0 | R29: 0 | S29: 0 | T29: 0 | U29: 0 | V29: 0 | W29: 0 | X29: 0 | Y29: 0 | Z29: 0 | AA29: 0 | AB29: 0 | AC29: 0 | AD29: 0 | AE29: 0 | AF29: 0 | AG29: 0 | AH29: 0 | AI29: 0 | AJ29: 0 | AK29: 0 | AL29: 0 | AM29: 0 | AN29: 0 | AO29: 0 | AP29: 0 | AQ29: 0 | AR29: 0 | AS29: 0
A30: 31 | B30: 26 | C30: HGL | D30: 0 | E30: 0 | F30: 0 | G30: 0 | H30: 1756.497283 | I30: 1333.880435 | J30: 1451.252717 | K30: 1398.313859 | L30: 2593.173913 | M30: 2872.172554 | N30: 2868.149457 | O30: 3204.940217 | P30: 1957.396739 | Q30: 0 | R30: 0 | S30: 0 | T30: 0 | U30: 0 | V30: 0 | W30: 0 | X30: 0 | Y30: 0 | Z30: 0 | AA30: 0 | AB30: 0 | AC30: 0 | AD30: 0 | AE30: 0 | AF30: 0 | AG30: 0 | AH30: 0 | AI30: 0 | AJ30: 0 | AK30: 0 | AL30: 0 | AM30: 0 | AN30: 0 | AO30: 0 | AP30: 0 | AQ30: 0 | AR30: 0 | AS30: 0
A31: 32 | B31: 27 | C31: Motor Gasoline | D31: 0 | E31: 0 | F31: 0 | G31: 0 | H31: 3182.066219 | I31: 3160.527807 | J31: 2948.733425 | K31: 3563.748725 | L31: 3733.168623 | M31: 3805.665668 | N31: 3820.258723 | O31: 3851.005586 | P31: 3609.322756 | Q31: 4214.037076 | R31: 4214.037076 | S31: 4135.999352 | T31: 4135.999352 | U31: 4135.999352 | V31: 4135.999352 | W31: 4135.999352 | X31: 4135.999352 | Y31: 4135.999352 | Z31: 4135.999352 | AA31: 4135.999352 | AB31: 4135.999352 | AC31: 4135.999352 | AD31: 4135.999352 | AE31: 4135.999352 | AF31: 4214.037076 | AG31: 4214.037076 | AH31: 4292.0748 | AI31: 4292.0748 | AJ31: 4370.112523 | AK31: 4370.112523 | AL31: 4370.112523 | AM31: 4448.150247 | AN31: 4448.150247 | AO31: 4526.187971 | AP31: 4526.187971 | AQ31: 4526.187971 | AR31: 4604.225694 | AS31: 4604.225694
A32: 35 | B32: 28 | C32: Residual Fuel | D32: 0 | E32: 0 | F32: 0 | G32: 0 | H32: 0 | I32: 0 | J32: 0 | K32: 0 | L32: 0 | M32: 0 | N32: 0 | O32: 0 | P32: 0 | Q32: 0 | R32: 0 | S32: 0 | T32: 0 | U32: 0 | V32: 0 | W32: 0 | X32: 0 | Y32: 0 | Z32: 0 | AA32: 0 | AB32: 0 | AC32: 0 | AD32: 0 | AE32: 0 | AF32: 0 | AG32: 0 | AH32: 0 | AI32: 0 | AJ32: 0 | AK32: 0 | AL32: 0 | AM32: 0 | AN32: 0 | AO32: 0 | AP32: 0 | AQ32: 0 | AR32: 0 | AS32: 0
A33: 39 | B33: 29 | C33: Other Petroleum
A34: 40 | B34: 30 | C34: Asphalt and Road Oil | D34: =HLOOKUP($A$60,StatePercentBlock,$A34,FALSE)*HLOOKUP(D$59,INDIRECT(SelectedRegion),$B34,FALSE) -> 0 | E34: 0 | F34: 0 | G34: 0 | H34: 22136.43967 | I34: 18092.21692 | J34: 21084.18542 | K34: 20613.69734 | L34: 23357.04276 | M34: 23580.78379 | N34: 23326.82883 | O34: 21448.03612 | P34: 21301.50846 | Q34: 20735.04673 | R34: 18562.80374 | S34: 18464.06542 | T34: =HLOOKUP($A$60,StatePercentBlock,$A34,FALSE)*HLOOKUP(T$59,INDIRECT(SelectedRegion),$B34,FALSE) -> 18069.11215 | U34: 18069.11215 | V34: 18069.11215 | W34: 18167.85047 | X34: 18464.06542 | Y34: 18760.28037 | Z34: 18957.75701 | AA34: 19155.23364 | AB34: 19451.4486 | AC34: 19648.92523 | AD34: 19945.14019 | AE34: 20043.8785 | AF34: 20142.61682 | AG34: 20438.83178 | AH34: 20636.30841 | AI34: 21031.26168 | AJ34: 21228.73832 | AK34: 21524.95327 | AL34: 21524.95327 | AM34: 21722.42991 | AN34: 22018.64486 | AO34: 22216.1215 | AP34: 22413.59813 | AQ34: 22611.07477 | AR34: 22808.5514 | AS34: 23006.02804
A35: 41 | B35: 31 | C35: Lubricants | D35: 0 | E35: 0 | F35: 0 | G35: 0 | H35: 2007.959112 | I35: 1641.114486 | J35: 1912.510903 | K35: 1869.833723 | L35: 2118.67796 | M35: 2138.973131 | N35: 2115.937305 | O35: 1945.515187 | P35: 1932.22391 | Q35: 1880.841121 | R35: 1683.800623 | S35: 1674.844237 | T35: 1639.018692 | U35: 1639.018692 | V35: 1639.018692 | W35: 1647.975078 | X35: 1674.844237 | Y35: 1701.713396 | Z35: 1719.626168 | AA35: 1737.538941 | AB35: 1764.4081 | AC35: 1782.320872 | AD35: 1809.190031 | AE35: 1818.146417 | AF35: 1827.102804 | AG35: 1853.971963 | AH35: 1871.884735 | AI35: 1907.71028 | AJ35: 1925.623053 | AK35: 1952.492212 | AL35: 1952.492212 | AM35: 1970.404984 | AN35: 1997.274143 | AO35: 2015.186916 | AP35: 2033.099688 | AQ35: 2051.012461 | AR35: 2068.925234 | AS35: =HLOOKUP($A$60,StatePercentBlock,$A35,FALSE)*HLOOKUP(AS$59,INDIRECT(SelectedRegion),$B35,FALSE) -> 2086.838006
A36: 42 | B36: 32 | C36: Petroleum Coke | D36: 0 | E36: 0 | F36: 0 | G36: 0 | H36: 0 | I36: 0 | J36: 0 | K36: 0 | L36: 0 | M36: 0 | N36: 0 | O36: 0 | P36: 0 | Q36: 0 | R36: 0 | S36: 0 | T36: 0 | U36: 0 | V36: 0 | W36: 0 | X36: 0 | Y36: 0 | Z36: 0 | AA36: 0 | AB36: 0 | AC36: 0 | AD36: 0 | AE36: 0 | AF36: 0 | AG36: 0 | AH36: 0 | AI36: 0 | AJ36: 0 | AK36: 0 | AL36: 0 | AM36: 0 | AN36: 0 | AO36: 0 | AP36: 0 | AQ36: 0 | AR36: 0 | AS36: 0
A37: 43 | B37: 33 | C37: Still Gas | D37: 0 | E37: 0 | F37: 0 | G37: 0 | H37: 0 | I37: 0 | J37: 0 | K37: 0 | L37: 0 | M37: 0 | N37: 0 | O37: 0 | P37: 0 | Q37: 0 | R37: 0 | S37: 0 | T37: 0 | U37: 0 | V37: 0 | W37: 0 | X37: 0 | Y37: 0 | Z37: 0 | AA37: 0 | AB37: 0 | AC37: 0 | AD37: 0 | AE37: 0 | AF37: 0 | AG37: 0 | AH37: 0 | AI37: 0 | AJ37: 0 | AK37: 0 | AL37: 0 | AM37: 0 | AN37: 0 | AO37: 0 | AP37: 0 | AQ37: 0 | AR37: 0 | AS37: 0
A38: 44 | B38: 34 | C38: Misc. Petro Products | D38: 0 | E38: 0 | F38: 0 | G38: 0 | H38: 2708.707741 | I38: 2213.839657 | J38: 2579.949491 | K38: 2522.378593 | L38: 2858.065862 | M38: 2885.443754 | N38: 2854.368759 | O38: 2624.471791 | P38: 2606.542051 | Q38: 2537.227414 | R38: 2271.422638 | S38: 2259.340602 | T38: 2211.012461 | U38: 2211.012461 | V38: 2211.012461 | W38: 2223.094496 | X38: 2259.340602 | Y38: 2295.586708 | Z38: 2319.750779 | AA38: 2343.914849 | AB38: 2380.160955 | AC38: 2404.325026 | AD38: 2440.571132 | AE38: 2452.653167 | AF38: 2464.735202 | AG38: 2500.981308 | AH38: 2525.145379 | AI38: 2573.47352 | AJ38: 2597.637591 | AK38: 2633.883697 | AL38: 2633.883697 | AM38: 2658.047767 | AN38: 2694.293873 | AO38: 2718.457944 | AP38: 2742.622015 | AQ38: 2766.786085 | AR38: 2790.950156 | AS38: 2815.114226
A39: 45 | B39: 35 | C39: Electricity Sales (kWh) | D39: 0 | E39: 0 | F39: 0 | G39: 0 | H39: 17810.79131 | I39: 17241.48093 | J39: 16409.1505 | K39: 16229.31064 | L39: 16184.71881 | M39: 16333.78616 | N39: 16426.63231 | O39: 16350.21075 | P39: 16893.54385 | Q39: 17519.56628 | R39: 17519.56628 | S39: 17368.53554 | T39: 17481.8086 | U39: 17746.1124 | V39: 17934.90083 | W39: 18123.68926 | X39: 18199.20463 | Y39: 18274.72 | Z39: 18312.47769 | AA39: 18463.50843 | AB39: 18501.26612 | AC39: 18614.53918 | AD39: 18765.56992 | AE39: 18841.08529 | AF39: 18954.35835 | AG39: 19067.63141 | AH39: 19143.14678 | AI39: 19294.17752 | AJ39: 19445.20827 | AK39: 19596.23901 | AL39: 19709.51207 | AM39: 19785.02744 | AN39: 19860.54281 | AO39: 20011.57356 | AP39: 20162.6043 | AQ39: 20238.11967 | AR39: 20351.39273 | AS39: 20540.18116
A40: 46 | B40: 36 | C40: Transportation | D40: =SUM(D41:D49) -> 0 | E40: 0 | F40: 0 | G40: 0 | H40: 729713.7235 | I40: 731553.3849 | J40: 727430.5012 | K40: 724432.6499 | L40: 715690.9134 | M40: 716888.0488 | N40: 729162.7283 | O40: 730338.6473 | P40: =SUM(P41:P49) -> 749635.8085 | Q40: 799292.756 | R40: 796082.9302 | S40: 783699.5509 | T40: 774901.4509 | U40: 769516.9202 | V40: 764298.8867 | W40: 758495.4421 | X40: 752264.9594 | Y40: 745236.4914 | Z40: 738758.6135 | AA40: 733441.5147 | AB40: 729413.9003 | AC40: 726161.5141 | AD40: 723159.2239 | AE40: 720383.8912 | AF40: 718698.3861 | AG40: 718083.6988 | AH40: 717737.466 | AI40: 718551.3702 | AJ40: 720467.9139 | AK40: 722348.1934 | AL40: 724613.3936 | AM40: 727271.884 | AN40: 730701.0907 | AO40: 734798.8827 | AP40: 740030.3188 | AQ40: 745399.4024 | AR40: 751116.925 | AS40: 757767.2455
A41: 47 | B41: 37 | C41: Natural Gas | D41: =HLOOKUP($A$60,StatePercentBlock,$A41,FALSE)*HLOOKUP(D$59,INDIRECT(SelectedRegion),$B41,FALSE) -> 0 | E41: 0 | F41: 0 | G41: 0 | H41: 7689.381181 | I41: 9073.073082 | J41: 7700.472045 | K41: 10791.30383 | L41: 9692.241882 | M41: 10248.38472 | N41: 11496.53346 | O41: 12237.06191 | P41: 15315.7364 | Q41: 19728.9404 | R41: 16103.08108 | S41: 14290.15142 | T41: =HLOOKUP($A$60,StatePercentBlock,$A41,FALSE)*HLOOKUP(T$59,INDIRECT(SelectedRegion),$B41,FALSE) -> 13756.93682 | U41: 13223.72221 | V41: 12370.57884 | W41: 11624.0784 | X41: 11837.36424 | Y41: 11944.00716 | Z41: 12050.65008 | AA41: 12050.65008 | AB41: 11944.00716 | AC41: 11944.00716 | AD41: 11837.36424 | AE41: 11730.72132 | AF41: 11730.72132 | AG41: 11730.72132 | AH41: 11837.36424 | AI41: 11944.00716 | AJ41: 12263.93592 | AK41: 12477.22177 | AL41: 12477.22177 | AM41: 12477.22177 | AN41: 12583.86469 | AO41: 12690.50761 | AP41: 12903.79345 | AQ41: 13117.07929 | AR41: 13223.72221 | AS41: 13437.00806
A42: 48 | B42: 38 | C42: Distillate Fuel | D42: 0 | E42: 0 | F42: 0 | G42: 0 | H42: 146038.2217 | I42: 154638.7448 | J42: 159354.5923 | K42: 162322.682 | L42: 169242.4568 | M42: 171295.6909 | N42: 178935.1123 | O42: 181304.0471 | P42: 168069.6296 | Q42: 178220.6567 | R42: 175861.1599 | S42: 174760.0614 | T42: 172557.8644 | U42: 170984.8666 | V42: 169254.5689 | W42: 167838.8709 | X42: 166265.873 | Y42: 164692.8752 | Z42: 163119.8773 | AA42: 162176.0786 | AB42: 161389.5797 | AC42: 160445.781 | AD42: 159816.5818 | AE42: 159187.3827 | AF42: 158715.4833 | AG42: 158400.8837 | AH42: 157928.9844 | AI42: 157928.9844 | AJ42: 158086.2842 | AK42: 158086.2842 | AL42: 158086.2842 | AM42: 157928.9844 | AN42: 157928.9844 | AO42: 157771.6846 | AP42: 157771.6846 | AQ42: 157771.6846 | AR42: 157771.6846 | AS42: 158086.2842
A43: 49 | B43: 39 | C43: Jet Fuel, Kerosene | D43: 0 | E43: 0 | F43: 0 | G43: 0 | H43: 86667.54204 | I43: 66467.70177 | J43: 59421.8198 | K43: 51394.94375 | L43: 44715.07455 | M43: 45291.04111 | N43: 44758.6259 | O43: 45212.28575 | P43: 100504.1677 | Q43: 122669.6254 | R43: 131016.9667 | S43: 133013.0701 | T43: 133557.4619 | U43: 135372.1014 | V43: 137186.7408 | W43: 138638.4523 | X43: 139727.236 | Y43: 140634.5557 | Z43: 141541.8754 | AA43: 142812.123 | AB43: 144082.3706 | AC43: 145352.6182 | AD43: 146622.8658 | AE43: 148437.5053 | AF43: 150252.1447 | AG43: 152429.712 | AH43: 154788.7433 | AI43: 157147.7745 | AJ43: 159688.2697 | AK43: 162047.301 | AL43: 164587.7962 | AM43: 167128.2914 | AN43: 169487.3226 | AO43: 171846.3539 | AP43: 174386.8491 | AQ43: 176927.3443 | AR43: 179467.8395 | AS43: 182189.7986
A44: 51 | B44: 40 | C44: HGL | D44: 0 | E44: 0 | F44: 0 | G44: 0 | H44: 413.0923825 | I44: 80.35980551 | J44: 81.79254457 | K44: 74.75526742 | L44: 55.11831442 | M44: 61.43922204 | N44: 62.78768233 | O44: 62.91410049 | P44: 62.57698541 | Q44: 84.27876823 | R44: 84.27876823 | S44: 84.27876823 | T44: 84.27876823 | U44: 84.27876823 | V44: 84.27876823 | W44: 84.27876823 | X44: 84.27876823 | Y44: 84.27876823 | Z44: 84.27876823 | AA44: 84.27876823 | AB44: 84.27876823 | AC44: 84.27876823 | AD44: 126.4181524 | AE44: 126.4181524 | AF44: 126.4181524 | AG44: 126.4181524 | AH44: 126.4181524 | AI44: 126.4181524 | AJ44: 126.4181524 | AK44: 126.4181524 | AL44: 126.4181524 | AM44: 126.4181524 | AN44: 126.4181524 | AO44: 126.4181524 | AP44: 126.4181524 | AQ44: 126.4181524 | AR44: 168.5575365 | AS44: 168.5575365
A45: 52 | B45: 41 | C45: Motor Gasoline | D45: 0 | E45: 0 | F45: 0 | G45: 0 | H45: 462973.6647 | I45: 482079.9642 | J45: 482747.5546 | K45: 476081.0107 | L45: 473493.2376 | M45: 472557.3722 | N45: 477314.7453 | O45: 475691.3306 | P45: 450368.5945 | Q45: 470203.8752 | R45: 465523.86 | S45: 454236.7647 | T45: 447629.6845 | U45: 442536.7268 | V45: 438132.0067 | W45: 433039.049 | X45: 427257.8538 | Y45: 420788.4211 | Z45: 414869.5784 | AA45: 409226.0307 | AB45: 404821.3106 | AC45: 401242.4755 | AD45: 397663.6403 | AE45: 393809.5102 | AF45: 390781.2651 | AG45: 388303.61 | AH45: 385963.6025 | AI45: 384311.8324 | AJ45: 383210.6524 | AK45: 382384.7674 | AL45: 382109.4723 | AM45: 382384.7674 | AN45: 383348.2999 | AO45: 385137.7174 | AP45: 387615.3725 | AQ45: 390230.6751 | AR45: 393258.9202 | AS45: 396837.7553
A46: 53 | B46: 42 | C46: Residual Fuel | D46: 0 | E46: 0 | F46: 0 | G46: 0 | H46: 22183.9591 | I46: 15125.57259 | J46: 14090.91094 | K46: 19660.71166 | L46: 14494.35942 | M46: 13457.3791 | N46: 12647.09331 | O46: 11889.06676 | P46: 11144.95223 | Q46: 4102.261326 | R46: 3210.465386 | S46: 3032.106197 | T46: 3032.106197 | U46: 3032.106197 | V46: 2853.747009 | W46: 2853.747009 | X46: 2675.387821 | Y46: 2675.387821 | Z46: 2675.387821 | AA46: 2675.387821 | AB46: 2675.387821 | AC46: 2675.387821 | AD46: 2675.387821 | AE46: 2675.387821 | AF46: 2675.387821 | AG46: 2675.387821 | AH46: 2675.387821 | AI46: 2675.387821 | AJ46: 2675.387821 | AK46: 2675.387821 | AL46: 2675.387821 | AM46: 2675.387821 | AN46: 2675.387821 | AO46: 2675.387821 | AP46: 2675.387821 | AQ46: 2675.387821 | AR46: 2675.387821 | AS46: 2497.028633
A47: 54 | B47: 43 | C47: Other Petroleum
A48: 55 | B48: 44 | C48: Aviation Gasoline | D48: =HLOOKUP($A$60,StatePercentBlock,$A48,FALSE)*HLOOKUP(D$59,INDIRECT(SelectedRegion),$B48,FALSE) -> 0 | E48: 0 | F48: 0 | G48: 0 | H48: 369.8689013 | I48: 403.4333053 | J48: 398.0439795 | K48: 405.3354203 | L48: 394.5963961 | M48: 392.4565168 | N48: 389.6033443 | O48: 389.0221425 | P48: 411.5437123 | Q48: 422.6922196 | R48: 422.6922196 | S48: 422.6922196 | T48: =HLOOKUP($A$60,StatePercentBlock,$A48,FALSE)*HLOOKUP(T$59,INDIRECT(SelectedRegion),$B48,FALSE) -> 422.6922196 | U48: 422.6922196 | V48: 435.9013515 | W48: 435.9013515 | X48: 435.9013515 | Y48: 435.9013515 | Z48: 435.9013515 | AA48: 435.9013515 | AB48: 435.9013515 | AC48: 435.9013515 | AD48: 435.9013515 | AE48: 435.9013515 | AF48: 435.9013515 | AG48: 435.9013515 | AH48: 435.9013515 | AI48: 435.9013515 | AJ48: 435.9013515 | AK48: 449.1104833 | AL48: 449.1104833 | AM48: 449.1104833 | AN48: 449.1104833 | AO48: 449.1104833 | AP48: 449.1104833 | AQ48: 449.1104833 | AR48: 449.1104833 | AS48: 449.1104833
A49: 56 | B49: 45 | C49: Lubricants | D49: 0 | E49: 0 | F49: 0 | G49: 0 | H49: 3377.993434 | I49: 3684.53539 | J49: 3635.314958 | K49: 3701.907307 | L49: 3603.828358 | M49: 3584.284951 | N49: 3558.227075 | O49: 3552.918989 | P49: 3758.607315 | Q49: 3860.426052 | R49: 3860.426052 | S49: 3860.426052 | T49: 3860.426052 | U49: 3860.426052 | V49: 3981.064366 | W49: 3981.064366 | X49: 3981.064366 | Y49: 3981.064366 | Z49: 3981.064366 | AA49: 3981.064366 | AB49: 3981.064366 | AC49: 3981.064366 | AD49: 3981.064366 | AE49: 3981.064366 | AF49: 3981.064366 | AG49: 3981.064366 | AH49: 3981.064366 | AI49: 3981.064366 | AJ49: 3981.064366 | AK49: 4101.70268 | AL49: 4101.70268 | AM49: 4101.70268 | AN49: 4101.70268 | AO49: 4101.70268 | AP49: 4101.70268 | AQ49: 4101.70268 | AR49: 4101.70268 | AS49: 4101.70268
A50: 57 | B50: 46 | C50: Electricity Sales (kWh) | D50: 0 | E50: 0 | F50: 0 | G50: 0 | H50: 148.312181 | I50: 159.8365721 | J50: 199.8749206 | K50: 205.4985067 | L50: 199.0828663 | M50: 266.1302688 | N50: 306.8814662 | O50: 369.2161452 | P50: 235.279751 | Q50: 316.8217486 | R50: 435.6299043 | S50: 514.8353414 | T50: 633.6434971 | U50: 792.0543714 | V50: 950.4652457 | W50: 1148.478839 | X50: 1386.09515 | Y50: 1623.711461 | Z50: 1861.327773 | AA50: 2059.341366 | AB50: 2296.957677 | AC50: 2534.573988 | AD50: 2772.1903 | AE50: 2970.203893 | AF50: 3207.820204 | AG50: 3405.833797 | AH50: 3603.84739 | AI50: 3801.860983 | AJ50: 3999.874576 | AK50: 4158.28545 | AL50: 4316.696324 | AM50: 4435.50448 | AN50: 4593.915354 | AO50: 4712.72351 | AP50: 4831.531666 | AQ50: 4950.339821 | AR50: 5069.147977 | AS50: 5187.956133
A51: 58 | B51: 47 | C51: Electric Generators | D51: =SUM(D52:D55) -> 0 | E51: 0 | F51: 0 | G51: 0 | H51: 362191.0864 | I51: 410036.1462 | J51: 464356.0368 | K51: 485292.3972 | L51: 469568.9965 | M51: 462886.3743 | N51: 499718.0187 | O51: 493951.0198 | P51: =SUM(P52:P55) -> 461393.6554 | Q51: 467283.3112 | R51: 456758.7318 | S51: 441509.0164 | T51: 411456.7476 | U51: 364671.7833 | V51: 313525.4251 | W51: 283415.0646 | X51: 282221.3418 | Y51: 279174.6911 | Z51: 266323.982 | AA51: 260039.8447 | AB51: 254772.8405 | AC51: 244780.9637 | AD51: 247890.6705 | AE51: 248498.3279 | AF51: 250657.1658 | AG51: 255377.226 | AH51: 260263.106 | AI51: 259629.5032 | AJ51: 263119.5321 | AK51: 266039.0778 | AL51: 267346.6024 | AM51: 245054.1688 | AN51: 246991.3494 | AO51: 245755.7037 | AP51: 240779.1545 | AQ51: 246017.8071 | AR51: 248492.3069 | AS51: 251474.1703
A52: 59 | B52: 48 | C52: Coal | D52: =HLOOKUP($A$60,StatePercentBlock,$A52,FALSE)*HLOOKUP(D$59,INDIRECT(SelectedRegion),$B52,FALSE) -> 0 | E52: 0 | F52: =IF(Scenariocell=4,HLOOKUP($A$60,StatePercentBlock,$A52,FALSE)*HLOOKUP(F$59,INDIRECT(SelectedRegion),$B52,FALSE),VLOOKUP($C52,'CAMD Data'!$B$3:$AQ$6,'Consumption Projs'!F$59-2008,FALSE)) -> 0 | G52: =IF(Scenariocell=4,HLOOKUP($A$60,StatePercentBlock,$A52,FALSE)*HLOOKUP(G$59,INDIRECT(SelectedRegion),$B52,FALSE),VLOOKUP($C52,'CAMD Data'!$B$3:$AQ$6,'Consumption Projs'!G$59-2008,FALSE)) -> 0 | H52: =IF(Scenariocell=4,HLOOKUP($A$60,StatePercentBlock,$A52,FALSE)*HLOOKUP(H$59,INDIRECT(SelectedRegion),$B52,FALSE),VLOOKUP($C52,'CAMD Data'!$B$3:$AQ$6,'Consumption Projs'!H$59-2008,FALSE)) -> 89585.32457 | I52: =IF(Scenariocell=4,HLOOKUP($A$60,StatePercentBlock,$A52,FALSE)*HLOOKUP(I$59,INDIRECT(SelectedRegion),$B52,FALSE),VLOOKUP($C52,'CAMD Data'!$B$3:$AQ$6,'Consumption Projs'!I$59-2008,FALSE)) -> 93548.07157 | J52: =IF(Scenariocell=4,HLOOKUP($A$60,StatePercentBlock,$A52,FALSE)*HLOOKUP(J$59,INDIRECT(SelectedRegion),$B52,FALSE),VLOOKUP($C52,'CAMD Data'!$B$3:$AQ$6,'Consumption Projs'!J$59-2008,FALSE)) -> 78356.74716 | K52: =IF(Scenariocell=4,HLOOKUP($A$60,StatePercentBlock,$A52,FALSE)*HLOOKUP(K$59,INDIRECT(SelectedRegion),$B52,FALSE),VLOOKUP($C52,'CAMD Data'!$B$3:$AQ$6,'Consumption Projs'!K$59-2008,FALSE)) -> 76809.68427 | L52: =IF(Scenariocell=4,HLOOKUP($A$60,StatePercentBlock,$A52,FALSE)*HLOOKUP(L$59,INDIRECT(SelectedRegion),$B52,FALSE),VLOOKUP($C52,'CAMD Data'!$B$3:$AQ$6,'Consumption Projs'!L$59-2008,FALSE)) -> 67920.85801 | M52: =IF(Scenariocell=4,HLOOKUP($A$60,StatePercentBlock,$A52,FALSE)*HLOOKUP(M$59,INDIRECT(SelectedRegion),$B52,FALSE),VLOOKUP($C52,'CAMD Data'!$B$3:$AQ$6,'Consumption Projs'!M$59-2008,FALSE)) -> 57481.81287 | N52: =IF(Scenariocell=4,HLOOKUP($A$60,StatePercentBlock,$A52,FALSE)*HLOOKUP(N$59,INDIRECT(SelectedRegion),$B52,FALSE),VLOOKUP($C52,'CAMD Data'!$B$3:$AQ$6,'Consumption Projs'!N$59-2008,FALSE)) -> 50099.87384 | O52: =IF(Scenariocell=4,HLOOKUP($A$60,StatePercentBlock,$A52,FALSE)*HLOOKUP(O$59,INDIRECT(SelectedRegion),$B52,FALSE),VLOOKUP($C52,'CAMD Data'!$B$3:$AQ$6,'Consumption Projs'!O$59-2008,FALSE)) -> 47654.0501 | P52: =IF(Scenariocell=4,HLOOKUP($A$60,StatePercentBlock,$A52,FALSE)*HLOOKUP(P$59,INDIRECT(SelectedRegion),$B52,FALSE),VLOOKUP($C52,'CAMD Data'!$B$3:$AQ$6,'Consumption Projs'!P$59-2008,FALSE)) -> 66598.62735 | Q52: =IF(Scenariocell=4,HLOOKUP($A$60,StatePercentBlock,$A52,FALSE)*HLOOKUP(Q$59,INDIRECT(SelectedRegion),$B52,FALSE),VLOOKUP($C52,'CAMD Data'!$B$3:$AQ$6,'Consumption Projs'!Q$59-2008,FALSE)) -> 52326.19896 | R52: =IF(Scenariocell=4,HLOOKUP($A$60,StatePercentBlock,$A52,FALSE)*HLOOKUP(R$59,INDIRECT(SelectedRegion),$B52,FALSE),VLOOKUP($C52,'CAMD Data'!$B$3:$AQ$6,'Consumption Projs'!R$59-2008,FALSE)) -> 48759.93812 | S52: =IF(Scenariocell=4,HLOOKUP($A$60,StatePercentBlock,$A52,FALSE)*HLOOKUP(S$59,INDIRECT(SelectedRegion),$B52,FALSE),VLOOKUP($C52,'CAMD Data'!$B$3:$AQ$6,'Consumption Projs'!S$59-2008,FALSE)) -> 52673.3571 | T52: =IF(Scenariocell=4,HLOOKUP($A$60,StatePercentBlock,$A52,FALSE)*HLOOKUP(T$59,INDIRECT(SelectedRegion),$B52,FALSE),VLOOKUP($C52,'CAMD Data'!$B$3:$AQ$6,'Consumption Projs'!T$59-2008,FALSE)) -> 44404.68151 | U52: =IF(Scenariocell=4,HLOOKUP($A$60,StatePercentBlock,$A52,FALSE)*HLOOKUP(U$59,INDIRECT(SelectedRegion),$B52,FALSE),VLOOKUP($C52,'CAMD Data'!$B$3:$AQ$6,'Consumption Projs'!U$59-2008,FALSE)) -> 34684.25372 | V52: =IF(Scenariocell=4,HLOOKUP($A$60,StatePercentBlock,$A52,FALSE)*HLOOKUP(V$59,INDIRECT(SelectedRegion),$B52,FALSE),VLOOKUP($C52,'CAMD Data'!$B$3:$AQ$6,'Consumption Projs'!V$59-2008,FALSE)) -> 28056.68931 | W52: =IF(Scenariocell=4,HLOOKUP($A$60,StatePercentBlock,$A52,FALSE)*HLOOKUP(W$59,INDIRECT(SelectedRegion),$B52,FALSE),VLOOKUP($C52,'CAMD Data'!$B$3:$AQ$6,'Consumption Projs'!W$59-2008,FALSE)) -> 25784.38152 | X52: =IF(Scenariocell=4,HLOOKUP($A$60,StatePercentBlock,$A52,FALSE)*HLOOKUP(X$59,INDIRECT(SelectedRegion),$B52,FALSE),VLOOKUP($C52,'CAMD Data'!$B$3:$AQ$6,'Consumption Projs'!X$59-2008,FALSE)) -> 24301.06948 | Y52: =IF(Scenariocell=4,HLOOKUP($A$60,StatePercentBlock,$A52,FALSE)*HLOOKUP(Y$59,INDIRECT(SelectedRegion),$B52,FALSE),VLOOKUP($C52,'CAMD Data'!$B$3:$AQ$6,'Consumption Projs'!Y$59-2008,FALSE)) -> 25405.66355 | Z52: =IF(Scenariocell=4,HLOOKUP($A$60,StatePercentBlock,$A52,FALSE)*HLOOKUP(Z$59,INDIRECT(SelectedRegion),$B52,FALSE),VLOOKUP($C52,'CAMD Data'!$B$3:$AQ$6,'Consumption Projs'!Z$59-2008,FALSE)) -> 26194.65931 | AA52: =IF(Scenariocell=4,HLOOKUP($A$60,StatePercentBlock,$A52,FALSE)*HLOOKUP(AA$59,INDIRECT(SelectedRegion),$B52,FALSE),VLOOKUP($C52,'CAMD Data'!$B$3:$AQ$6,'Consumption Projs'!AA$59-2008,FALSE)) -> 26888.97558 | AB52: =IF(Scenariocell=4,HLOOKUP($A$60,StatePercentBlock,$A52,FALSE)*HLOOKUP(AB$59,INDIRECT(SelectedRegion),$B52,FALSE),VLOOKUP($C52,'CAMD Data'!$B$3:$AQ$6,'Consumption Projs'!AB$59-2008,FALSE)) -> 27173.01406 | AC52: =IF(Scenariocell=4,HLOOKUP($A$60,StatePercentBlock,$A52,FALSE)*HLOOKUP(AC$59,INDIRECT(SelectedRegion),$B52,FALSE),VLOOKUP($C52,'CAMD Data'!$B$3:$AQ$6,'Consumption Projs'!AC$59-2008,FALSE)) -> 27173.01406 | AD52: =IF(Scenariocell=4,HLOOKUP($A$60,StatePercentBlock,$A52,FALSE)*HLOOKUP(AD$59,INDIRECT(SelectedRegion),$B52,FALSE),VLOOKUP($C52,'CAMD Data'!$B$3:$AQ$6,'Consumption Projs'!AD$59-2008,FALSE)) -> 26952.09524 | AE52: =IF(Scenariocell=4,HLOOKUP($A$60,StatePercentBlock,$A52,FALSE)*HLOOKUP(AE$59,INDIRECT(SelectedRegion),$B52,FALSE),VLOOKUP($C52,'CAMD Data'!$B$3:$AQ$6,'Consumption Projs'!AE$59-2008,FALSE)) -> 25973.7405 | AF52: =IF(Scenariocell=4,HLOOKUP($A$60,StatePercentBlock,$A52,FALSE)*HLOOKUP(AF$59,INDIRECT(SelectedRegion),$B52,FALSE),VLOOKUP($C52,'CAMD Data'!$B$3:$AQ$6,'Consumption Projs'!AF$59-2008,FALSE)) -> 26415.57813 | AG52: =IF(Scenariocell=4,HLOOKUP($A$60,StatePercentBlock,$A52,FALSE)*HLOOKUP(AG$59,INDIRECT(SelectedRegion),$B52,FALSE),VLOOKUP($C52,'CAMD Data'!$B$3:$AQ$6,'Consumption Projs'!AG$59-2008,FALSE)) -> 27646.41152 | AH52: =IF(Scenariocell=4,HLOOKUP($A$60,StatePercentBlock,$A52,FALSE)*HLOOKUP(AH$59,INDIRECT(SelectedRegion),$B52,FALSE),VLOOKUP($C52,'CAMD Data'!$B$3:$AQ$6,'Consumption Projs'!AH$59-2008,FALSE)) -> 27457.05253 | AI52: =IF(Scenariocell=4,HLOOKUP($A$60,StatePercentBlock,$A52,FALSE)*HLOOKUP(AI$59,INDIRECT(SelectedRegion),$B52,FALSE),VLOOKUP($C52,'CAMD Data'!$B$3:$AQ$6,'Consumption Projs'!AI$59-2008,FALSE)) -> 27299.25338 | AJ52: =IF(Scenariocell=4,HLOOKUP($A$60,StatePercentBlock,$A52,FALSE)*HLOOKUP(AJ$59,INDIRECT(SelectedRegion),$B52,FALSE),VLOOKUP($C52,'CAMD Data'!$B$3:$AQ$6,'Consumption Projs'!AJ$59-2008,FALSE)) -> 27141.45423 | AK52: =IF(Scenariocell=4,HLOOKUP($A$60,StatePercentBlock,$A52,FALSE)*HLOOKUP(AK$59,INDIRECT(SelectedRegion),$B52,FALSE),VLOOKUP($C52,'CAMD Data'!$B$3:$AQ$6,'Consumption Projs'!AK$59-2008,FALSE)) -> 26888.97558 | AL52: =IF(Scenariocell=4,HLOOKUP($A$60,StatePercentBlock,$A52,FALSE)*HLOOKUP(AL$59,INDIRECT(SelectedRegion),$B52,FALSE),VLOOKUP($C52,'CAMD Data'!$B$3:$AQ$6,'Consumption Projs'!AL$59-2008,FALSE)) -> 26320.89863 | AM52: =IF(Scenariocell=4,HLOOKUP($A$60,StatePercentBlock,$A52,FALSE)*HLOOKUP(AM$59,INDIRECT(SelectedRegion),$B52,FALSE),VLOOKUP($C52,'CAMD Data'!$B$3:$AQ$6,'Consumption Projs'!AM$59-2008,FALSE)) -> 24963.82592 | AN52: =IF(Scenariocell=4,HLOOKUP($A$60,StatePercentBlock,$A52,FALSE)*HLOOKUP(AN$59,INDIRECT(SelectedRegion),$B52,FALSE),VLOOKUP($C52,'CAMD Data'!$B$3:$AQ$6,'Consumption Projs'!AN$59-2008,FALSE)) -> 24521.9883 | AO52: =IF(Scenariocell=4,HLOOKUP($A$60,StatePercentBlock,$A52,FALSE)*HLOOKUP(AO$59,INDIRECT(SelectedRegion),$B52,FALSE),VLOOKUP($C52,'CAMD Data'!$B$3:$AQ$6,'Consumption Projs'!AO$59-2008,FALSE)) -> 24237.94982 | AP52: =IF(Scenariocell=4,HLOOKUP($A$60,StatePercentBlock,$A52,FALSE)*HLOOKUP(AP$59,INDIRECT(SelectedRegion),$B52,FALSE),VLOOKUP($C52,'CAMD Data'!$B$3:$AQ$6,'Consumption Projs'!AP$59-2008,FALSE)) -> 23543.63355 | AQ52: =IF(Scenariocell=4,HLOOKUP($A$60,StatePercentBlock,$A52,FALSE)*HLOOKUP(AQ$59,INDIRECT(SelectedRegion),$B52,FALSE),VLOOKUP($C52,'CAMD Data'!$B$3:$AQ$6,'Consumption Projs'!AQ$59-2008,FALSE)) -> 22596.83864 | AR52: =IF(Scenariocell=4,HLOOKUP($A$60,StatePercentBlock,$A52,FALSE)*HLOOKUP(AR$59,INDIRECT(SelectedRegion),$B52,FALSE),VLOOKUP($C52,'CAMD Data'!$B$3:$AQ$6,'Consumption Projs'!AR$59-2008,FALSE)) -> 22533.71897 | AS52: =IF(Scenariocell=4,HLOOKUP($A$60,StatePercentBlock,$A52,FALSE)*HLOOKUP(AS$59,INDIRECT(SelectedRegion),$B52,FALSE),VLOOKUP($C52,'CAMD Data'!$B$3:$AQ$6,'Consumption Projs'!AS$59-2008,FALSE)) -> 22502.15914
A53: 60 | B53: 49 | C53: Natural Gas | D53: 0 | E53: 0 | F53: =IF(Scenariocell=4,HLOOKUP($A$60,StatePercentBlock,$A53,FALSE)*HLOOKUP(F$59,INDIRECT(SelectedRegion),$B53,FALSE),VLOOKUP($C53,'CAMD Data'!$B$3:$AQ$6,'Consumption Projs'!F$59-2008,FALSE)) -> 0 | G53: =IF(Scenariocell=4,HLOOKUP($A$60,StatePercentBlock,$A53,FALSE)*HLOOKUP(G$59,INDIRECT(SelectedRegion),$B53,FALSE),VLOOKUP($C53,'CAMD Data'!$B$3:$AQ$6,'Consumption Projs'!G$59-2008,FALSE)) -> 0 | H53: =IF(Scenariocell=4,HLOOKUP($A$60,StatePercentBlock,$A53,FALSE)*HLOOKUP(H$59,INDIRECT(SelectedRegion),$B53,FALSE),VLOOKUP($C53,'CAMD Data'!$B$3:$AQ$6,'Consumption Projs'!H$59-2008,FALSE)) -> 268027.0193 | I53: =IF(Scenariocell=4,HLOOKUP($A$60,StatePercentBlock,$A53,FALSE)*HLOOKUP(I$59,INDIRECT(SelectedRegion),$B53,FALSE),VLOOKUP($C53,'CAMD Data'!$B$3:$AQ$6,'Consumption Projs'!I$59-2008,FALSE)) -> 300747.5609 | J53: =IF(Scenariocell=4,HLOOKUP($A$60,StatePercentBlock,$A53,FALSE)*HLOOKUP(J$59,INDIRECT(SelectedRegion),$B53,FALSE),VLOOKUP($C53,'CAMD Data'!$B$3:$AQ$6,'Consumption Projs'!J$59-2008,FALSE)) -> 369556.6996 | K53: =IF(Scenariocell=4,HLOOKUP($A$60,StatePercentBlock,$A53,FALSE)*HLOOKUP(K$59,INDIRECT(SelectedRegion),$B53,FALSE),VLOOKUP($C53,'CAMD Data'!$B$3:$AQ$6,'Consumption Projs'!K$59-2008,FALSE)) -> 391718.0479 | L53: =IF(Scenariocell=4,HLOOKUP($A$60,StatePercentBlock,$A53,FALSE)*HLOOKUP(L$59,INDIRECT(SelectedRegion),$B53,FALSE),VLOOKUP($C53,'CAMD Data'!$B$3:$AQ$6,'Consumption Projs'!L$59-2008,FALSE)) -> 392679.1713 | M53: =IF(Scenariocell=4,HLOOKUP($A$60,StatePercentBlock,$A53,FALSE)*HLOOKUP(M$59,INDIRECT(SelectedRegion),$B53,FALSE),VLOOKUP($C53,'CAMD Data'!$B$3:$AQ$6,'Consumption Projs'!M$59-2008,FALSE)) -> 400535.7999 | N53: =IF(Scenariocell=4,HLOOKUP($A$60,StatePercentBlock,$A53,FALSE)*HLOOKUP(N$59,INDIRECT(SelectedRegion),$B53,FALSE),VLOOKUP($C53,'CAMD Data'!$B$3:$AQ$6,'Consumption Projs'!N$59-2008,FALSE)) -> 442538.4778 | O53: =IF(Scenariocell=4,HLOOKUP($A$60,StatePercentBlock,$A53,FALSE)*HLOOKUP(O$59,INDIRECT(SelectedRegion),$B53,FALSE),VLOOKUP($C53,'CAMD Data'!$B$3:$AQ$6,'Consumption Projs'!O$59-2008,FALSE)) -> 439323.6311 | P53: =IF(Scenariocell=4,HLOOKUP($A$60,StatePercentBlock,$A53,FALSE)*HLOOKUP(P$59,INDIRECT(SelectedRegion),$B53,FALSE),VLOOKUP($C53,'CAMD Data'!$B$3:$AQ$6,'Consumption Projs'!P$59-2008,FALSE)) -> 390682.6992 | Q53: =IF(Scenariocell=4,HLOOKUP($A$60,StatePercentBlock,$A53,FALSE)*HLOOKUP(Q$59,INDIRECT(SelectedRegion),$B53,FALSE),VLOOKUP($C53,'CAMD Data'!$B$3:$AQ$6,'Consumption Projs'!Q$59-2008,FALSE)) -> 410777.1564 | R53: =IF(Scenariocell=4,HLOOKUP($A$60,StatePercentBlock,$A53,FALSE)*HLOOKUP(R$59,INDIRECT(SelectedRegion),$B53,FALSE),VLOOKUP($C53,'CAMD Data'!$B$3:$AQ$6,'Consumption Projs'!R$59-2008,FALSE)) -> 404274.5064 | S53: =IF(Scenariocell=4,HLOOKUP($A$60,StatePercentBlock,$A53,FALSE)*HLOOKUP(S$59,INDIRECT(SelectedRegion),$B53,FALSE),VLOOKUP($C53,'CAMD Data'!$B$3:$AQ$6,'Consumption Projs'!S$59-2008,FALSE)) -> 384925.1577 | T53: =IF(Scenariocell=4,HLOOKUP($A$60,StatePercentBlock,$A53,FALSE)*HLOOKUP(T$59,INDIRECT(SelectedRegion),$B53,FALSE),VLOOKUP($C53,'CAMD Data'!$B$3:$AQ$6,'Consumption Projs'!T$59-2008,FALSE)) -> 363513.9932 | U53: =IF(Scenariocell=4,HLOOKUP($A$60,StatePercentBlock,$A53,FALSE)*HLOOKUP(U$59,INDIRECT(SelectedRegion),$B53,FALSE),VLOOKUP($C53,'CAMD Data'!$B$3:$AQ$6,'Consumption Projs'!U$59-2008,FALSE)) -> 327194.3141 | V53: =IF(Scenariocell=4,HLOOKUP($A$60,StatePercentBlock,$A53,FALSE)*HLOOKUP(V$59,INDIRECT(SelectedRegion),$B53,FALSE),VLOOKUP($C53,'CAMD Data'!$B$3:$AQ$6,'Consumption Projs'!V$59-2008,FALSE)) -> 283420.3778 | W53: =IF(Scenariocell=4,HLOOKUP($A$60,StatePercentBlock,$A53,FALSE)*HLOOKUP(W$59,INDIRECT(SelectedRegion),$B53,FALSE),VLOOKUP($C53,'CAMD Data'!$B$3:$AQ$6,'Consumption Projs'!W$59-2008,FALSE)) -> 256140.9682 | X53: =IF(Scenariocell=4,HLOOKUP($A$60,StatePercentBlock,$A53,FALSE)*HLOOKUP(X$59,INDIRECT(SelectedRegion),$B53,FALSE),VLOOKUP($C53,'CAMD Data'!$B$3:$AQ$6,'Consumption Projs'!X$59-2008,FALSE)) -> 256616.7718 | Y53: =IF(Scenariocell=4,HLOOKUP($A$60,StatePercentBlock,$A53,FALSE)*HLOOKUP(Y$59,INDIRECT(SelectedRegion),$B53,FALSE),VLOOKUP($C53,'CAMD Data'!$B$3:$AQ$6,'Consumption Projs'!Y$59-2008,FALSE)) -> 252651.7413 | Z53: =IF(Scenariocell=4,HLOOKUP($A$60,StatePercentBlock,$A53,FALSE)*HLOOKUP(Z$59,INDIRECT(SelectedRegion),$B53,FALSE),VLOOKUP($C53,'CAMD Data'!$B$3:$AQ$6,'Consumption Projs'!Z$59-2008,FALSE)) -> 239012.0365 | AA53: =IF(Scenariocell=4,HLOOKUP($A$60,StatePercentBlock,$A53,FALSE)*HLOOKUP(AA$59,INDIRECT(SelectedRegion),$B53,FALSE),VLOOKUP($C53,'CAMD Data'!$B$3:$AQ$6,'Consumption Projs'!AA$59-2008,FALSE)) -> 232033.5829 | AB53: =IF(Scenariocell=4,HLOOKUP($A$60,StatePercentBlock,$A53,FALSE)*HLOOKUP(AB$59,INDIRECT(SelectedRegion),$B53,FALSE),VLOOKUP($C53,'CAMD Data'!$B$3:$AQ$6,'Consumption Projs'!AB$59-2008,FALSE)) -> 226482.5403 | AC53: =IF(Scenariocell=4,HLOOKUP($A$60,StatePercentBlock,$A53,FALSE)*HLOOKUP(AC$59,INDIRECT(SelectedRegion),$B53,FALSE),VLOOKUP($C53,'CAMD Data'!$B$3:$AQ$6,'Consumption Projs'!AC$59-2008,FALSE)) -> 216490.6635 | AD53: =IF(Scenariocell=4,HLOOKUP($A$60,StatePercentBlock,$A53,FALSE)*HLOOKUP(AD$59,INDIRECT(SelectedRegion),$B53,FALSE),VLOOKUP($C53,'CAMD Data'!$B$3:$AQ$6,'Consumption Projs'!AD$59-2008,FALSE)) -> 219821.2891 | AE53: =IF(Scenariocell=4,HLOOKUP($A$60,StatePercentBlock,$A53,FALSE)*HLOOKUP(AE$59,INDIRECT(SelectedRegion),$B53,FALSE),VLOOKUP($C53,'CAMD Data'!$B$3:$AQ$6,'Consumption Projs'!AE$59-2008,FALSE)) -> 221407.3013 | AF53: =IF(Scenariocell=4,HLOOKUP($A$60,StatePercentBlock,$A53,FALSE)*HLOOKUP(AF$59,INDIRECT(SelectedRegion),$B53,FALSE),VLOOKUP($C53,'CAMD Data'!$B$3:$AQ$6,'Consumption Projs'!AF$59-2008,FALSE)) -> 223310.5159 | AG53: =IF(Scenariocell=4,HLOOKUP($A$60,StatePercentBlock,$A53,FALSE)*HLOOKUP(AG$59,INDIRECT(SelectedRegion),$B53,FALSE),VLOOKUP($C53,'CAMD Data'!$B$3:$AQ$6,'Consumption Projs'!AG$59-2008,FALSE)) -> 226799.7427 | AH53: =IF(Scenariocell=4,HLOOKUP($A$60,StatePercentBlock,$A53,FALSE)*HLOOKUP(AH$59,INDIRECT(SelectedRegion),$B53,FALSE),VLOOKUP($C53,'CAMD Data'!$B$3:$AQ$6,'Consumption Projs'!AH$59-2008,FALSE)) -> 231874.9817 | AI53: =IF(Scenariocell=4,HLOOKUP($A$60,StatePercentBlock,$A53,FALSE)*HLOOKUP(AI$59,INDIRECT(SelectedRegion),$B53,FALSE),VLOOKUP($C53,'CAMD Data'!$B$3:$AQ$6,'Consumption Projs'!AI$59-2008,FALSE)) -> 231399.178 | AJ53: =IF(Scenariocell=4,HLOOKUP($A$60,StatePercentBlock,$A53,FALSE)*HLOOKUP(AJ$59,INDIRECT(SelectedRegion),$B53,FALSE),VLOOKUP($C53,'CAMD Data'!$B$3:$AQ$6,'Consumption Projs'!AJ$59-2008,FALSE)) -> 235047.0061 | AK53: =IF(Scenariocell=4,HLOOKUP($A$60,StatePercentBlock,$A53,FALSE)*HLOOKUP(AK$59,INDIRECT(SelectedRegion),$B53,FALSE),VLOOKUP($C53,'CAMD Data'!$B$3:$AQ$6,'Consumption Projs'!AK$59-2008,FALSE)) -> 238219.0304 | AL53: =IF(Scenariocell=4,HLOOKUP($A$60,StatePercentBlock,$A53,FALSE)*HLOOKUP(AL$59,INDIRECT(SelectedRegion),$B53,FALSE),VLOOKUP($C53,'CAMD Data'!$B$3:$AQ$6,'Consumption Projs'!AL$59-2008,FALSE)) -> 240280.8463 | AM53: =IF(Scenariocell=4,HLOOKUP($A$60,StatePercentBlock,$A53,FALSE)*HLOOKUP(AM$59,INDIRECT(SelectedRegion),$B53,FALSE),VLOOKUP($C53,'CAMD Data'!$B$3:$AQ$6,'Consumption Projs'!AM$59-2008,FALSE)) -> 219345.4854 | AN53: =IF(Scenariocell=4,HLOOKUP($A$60,StatePercentBlock,$A53,FALSE)*HLOOKUP(AN$59,INDIRECT(SelectedRegion),$B53,FALSE),VLOOKUP($C53,'CAMD Data'!$B$3:$AQ$6,'Consumption Projs'!AN$59-2008,FALSE)) -> 221724.5037 | AO53: =IF(Scenariocell=4,HLOOKUP($A$60,StatePercentBlock,$A53,FALSE)*HLOOKUP(AO$59,INDIRECT(SelectedRegion),$B53,FALSE),VLOOKUP($C53,'CAMD Data'!$B$3:$AQ$6,'Consumption Projs'!AO$59-2008,FALSE)) -> 220772.8964 | AP53: =IF(Scenariocell=4,HLOOKUP($A$60,StatePercentBlock,$A53,FALSE)*HLOOKUP(AP$59,INDIRECT(SelectedRegion),$B53,FALSE),VLOOKUP($C53,'CAMD Data'!$B$3:$AQ$6,'Consumption Projs'!AP$59-2008,FALSE)) -> 216490.6635 | AQ53: =IF(Scenariocell=4,HLOOKUP($A$60,StatePercentBlock,$A53,FALSE)*HLOOKUP(AQ$59,INDIRECT(SelectedRegion),$B53,FALSE),VLOOKUP($C53,'CAMD Data'!$B$3:$AQ$6,'Consumption Projs'!AQ$59-2008,FALSE)) -> 222676.111 | AR53: =IF(Scenariocell=4,HLOOKUP($A$60,StatePercentBlock,$A53,FALSE)*HLOOKUP(AR$59,INDIRECT(SelectedRegion),$B53,FALSE),VLOOKUP($C53,'CAMD Data'!$B$3:$AQ$6,'Consumption Projs'!AR$59-2008,FALSE)) -> 225213.7305 | AS53: =IF(Scenariocell=4,HLOOKUP($A$60,StatePercentBlock,$A53,FALSE)*HLOOKUP(AS$59,INDIRECT(SelectedRegion),$B53,FALSE),VLOOKUP($C53,'CAMD Data'!$B$3:$AQ$6,'Consumption Projs'!AS$59-2008,FALSE)) -> 228227.1537
A54: 61 | B54: 50 | C54: Distillate Fuel | D54: 0 | E54: 0 | F54: =IF(Scenariocell=4,HLOOKUP($A$60,StatePercentBlock,$A54,FALSE)*HLOOKUP(F$59,INDIRECT(SelectedRegion),$B54,FALSE),VLOOKUP($C54,'CAMD Data'!$B$3:$AQ$6,'Consumption Projs'!F$59-2008,FALSE)) -> 0 | G54: =IF(Scenariocell=4,HLOOKUP($A$60,StatePercentBlock,$A54,FALSE)*HLOOKUP(G$59,INDIRECT(SelectedRegion),$B54,FALSE),VLOOKUP($C54,'CAMD Data'!$B$3:$AQ$6,'Consumption Projs'!G$59-2008,FALSE)) -> 0 | H54: =IF(Scenariocell=4,HLOOKUP($A$60,StatePercentBlock,$A54,FALSE)*HLOOKUP(H$59,INDIRECT(SelectedRegion),$B54,FALSE),VLOOKUP($C54,'CAMD Data'!$B$3:$AQ$6,'Consumption Projs'!H$59-2008,FALSE)) -> 3276.441718 | I54: =IF(Scenariocell=4,HLOOKUP($A$60,StatePercentBlock,$A54,FALSE)*HLOOKUP(I$59,INDIRECT(SelectedRegion),$B54,FALSE),VLOOKUP($C54,'CAMD Data'!$B$3:$AQ$6,'Consumption Projs'!I$59-2008,FALSE)) -> 5068.754962 | J54: =IF(Scenariocell=4,HLOOKUP($A$60,StatePercentBlock,$A54,FALSE)*HLOOKUP(J$59,INDIRECT(SelectedRegion),$B54,FALSE),VLOOKUP($C54,'CAMD Data'!$B$3:$AQ$6,'Consumption Projs'!J$59-2008,FALSE)) -> 3752.219415 | K54: =IF(Scenariocell=4,HLOOKUP($A$60,StatePercentBlock,$A54,FALSE)*HLOOKUP(K$59,INDIRECT(SelectedRegion),$B54,FALSE),VLOOKUP($C54,'CAMD Data'!$B$3:$AQ$6,'Consumption Projs'!K$59-2008,FALSE)) -> 3554.832191 | L54: =IF(Scenariocell=4,HLOOKUP($A$60,StatePercentBlock,$A54,FALSE)*HLOOKUP(L$59,INDIRECT(SelectedRegion),$B54,FALSE),VLOOKUP($C54,'CAMD Data'!$B$3:$AQ$6,'Consumption Projs'!L$59-2008,FALSE)) -> 2603.276795 | M54: =IF(Scenariocell=4,HLOOKUP($A$60,StatePercentBlock,$A54,FALSE)*HLOOKUP(M$59,INDIRECT(SelectedRegion),$B54,FALSE),VLOOKUP($C54,'CAMD Data'!$B$3:$AQ$6,'Consumption Projs'!M$59-2008,FALSE)) -> 3901.37712 | N54: =IF(Scenariocell=4,HLOOKUP($A$60,StatePercentBlock,$A54,FALSE)*HLOOKUP(N$59,INDIRECT(SelectedRegion),$B54,FALSE),VLOOKUP($C54,'CAMD Data'!$B$3:$AQ$6,'Consumption Projs'!N$59-2008,FALSE)) -> 5320.330567 | O54: =IF(Scenariocell=4,HLOOKUP($A$60,StatePercentBlock,$A54,FALSE)*HLOOKUP(O$59,INDIRECT(SelectedRegion),$B54,FALSE),VLOOKUP($C54,'CAMD Data'!$B$3:$AQ$6,'Consumption Projs'!O$59-2008,FALSE)) -> 5214.002165 | P54: =IF(Scenariocell=4,HLOOKUP($A$60,StatePercentBlock,$A54,FALSE)*HLOOKUP(P$59,INDIRECT(SelectedRegion),$B54,FALSE),VLOOKUP($C54,'CAMD Data'!$B$3:$AQ$6,'Consumption Projs'!P$59-2008,FALSE)) -> 4080.887766 | Q54: =IF(Scenariocell=4,HLOOKUP($A$60,StatePercentBlock,$A54,FALSE)*HLOOKUP(Q$59,INDIRECT(SelectedRegion),$B54,FALSE),VLOOKUP($C54,'CAMD Data'!$B$3:$AQ$6,'Consumption Projs'!Q$59-2008,FALSE)) -> 3724.287261 | R54: =IF(Scenariocell=4,HLOOKUP($A$60,StatePercentBlock,$A54,FALSE)*HLOOKUP(R$59,INDIRECT(SelectedRegion),$B54,FALSE),VLOOKUP($C54,'CAMD Data'!$B$3:$AQ$6,'Consumption Projs'!R$59-2008,FALSE)) -> 3724.287261 | S54: =IF(Scenariocell=4,HLOOKUP($A$60,StatePercentBlock,$A54,FALSE)*HLOOKUP(S$59,INDIRECT(SelectedRegion),$B54,FALSE),VLOOKUP($C54,'CAMD Data'!$B$3:$AQ$6,'Consumption Projs'!S$59-2008,FALSE)) -> 3910.501624 | T54: =IF(Scenariocell=4,HLOOKUP($A$60,StatePercentBlock,$A54,FALSE)*HLOOKUP(T$59,INDIRECT(SelectedRegion),$B54,FALSE),VLOOKUP($C54,'CAMD Data'!$B$3:$AQ$6,'Consumption Projs'!T$59-2008,FALSE)) -> 3538.072898 | U54: =IF(Scenariocell=4,HLOOKUP($A$60,StatePercentBlock,$A54,FALSE)*HLOOKUP(U$59,INDIRECT(SelectedRegion),$B54,FALSE),VLOOKUP($C54,'CAMD Data'!$B$3:$AQ$6,'Consumption Projs'!U$59-2008,FALSE)) -> 2793.215446 | V54: =IF(Scenariocell=4,HLOOKUP($A$60,StatePercentBlock,$A54,FALSE)*HLOOKUP(V$59,INDIRECT(SelectedRegion),$B54,FALSE),VLOOKUP($C54,'CAMD Data'!$B$3:$AQ$6,'Consumption Projs'!V$59-2008,FALSE)) -> 2048.357994 | W54: =IF(Scenariocell=4,HLOOKUP($A$60,StatePercentBlock,$A54,FALSE)*HLOOKUP(W$59,INDIRECT(SelectedRegion),$B54,FALSE),VLOOKUP($C54,'CAMD Data'!$B$3:$AQ$6,'Consumption Projs'!W$59-2008,FALSE)) -> 1489.714904 | X54: =IF(Scenariocell=4,HLOOKUP($A$60,StatePercentBlock,$A54,FALSE)*HLOOKUP(X$59,INDIRECT(SelectedRegion),$B54,FALSE),VLOOKUP($C54,'CAMD Data'!$B$3:$AQ$6,'Consumption Projs'!X$59-2008,FALSE)) -> 1303.500541 | Y54: =IF(Scenariocell=4,HLOOKUP($A$60,StatePercentBlock,$A54,FALSE)*HLOOKUP(Y$59,INDIRECT(SelectedRegion),$B54,FALSE),VLOOKUP($C54,'CAMD Data'!$B$3:$AQ$6,'Consumption Projs'!Y$59-2008,FALSE)) -> 1117.286178 | Z54: =IF(Scenariocell=4,HLOOKUP($A$60,StatePercentBlock,$A54,FALSE)*HLOOKUP(Z$59,INDIRECT(SelectedRegion),$B54,FALSE),VLOOKUP($C54,'CAMD Data'!$B$3:$AQ$6,'Consumption Projs'!Z$59-2008,FALSE)) -> 1117.286178 | AA54: =IF(Scenariocell=4,HLOOKUP($A$60,StatePercentBlock,$A54,FALSE)*HLOOKUP(AA$59,INDIRECT(SelectedRegion),$B54,FALSE),VLOOKUP($C54,'CAMD Data'!$B$3:$AQ$6,'Consumption Projs'!AA$59-2008,FALSE)) -> 1117.286178 | AB54: =IF(Scenariocell=4,HLOOKUP($A$60,StatePercentBlock,$A54,FALSE)*HLOOKUP(AB$59,INDIRECT(SelectedRegion),$B54,FALSE),VLOOKUP($C54,'CAMD Data'!$B$3:$AQ$6,'Consumption Projs'!AB$59-2008,FALSE)) -> 1117.286178 | AC54: =IF(Scenariocell=4,HLOOKUP($A$60,StatePercentBlock,$A54,FALSE)*HLOOKUP(AC$59,INDIRECT(SelectedRegion),$B54,FALSE),VLOOKUP($C54,'CAMD Data'!$B$3:$AQ$6,'Consumption Projs'!AC$59-2008,FALSE)) -> 1117.286178 | AD54: =IF(Scenariocell=4,HLOOKUP($A$60,StatePercentBlock,$A54,FALSE)*HLOOKUP(AD$59,INDIRECT(SelectedRegion),$B54,FALSE),VLOOKUP($C54,'CAMD Data'!$B$3:$AQ$6,'Consumption Projs'!AD$59-2008,FALSE)) -> 1117.286178 | AE54: =IF(Scenariocell=4,HLOOKUP($A$60,StatePercentBlock,$A54,FALSE)*HLOOKUP(AE$59,INDIRECT(SelectedRegion),$B54,FALSE),VLOOKUP($C54,'CAMD Data'!$B$3:$AQ$6,'Consumption Projs'!AE$59-2008,FALSE)) -> 1117.286178 | AF54: =IF(Scenariocell=4,HLOOKUP($A$60,StatePercentBlock,$A54,FALSE)*HLOOKUP(AF$59,INDIRECT(SelectedRegion),$B54,FALSE),VLOOKUP($C54,'CAMD Data'!$B$3:$AQ$6,'Consumption Projs'!AF$59-2008,FALSE)) -> 931.0718152 | AG54: =IF(Scenariocell=4,HLOOKUP($A$60,StatePercentBlock,$A54,FALSE)*HLOOKUP(AG$59,INDIRECT(SelectedRegion),$B54,FALSE),VLOOKUP($C54,'CAMD Data'!$B$3:$AQ$6,'Consumption Projs'!AG$59-2008,FALSE)) -> 931.0718152 | AH54: =IF(Scenariocell=4,HLOOKUP($A$60,StatePercentBlock,$A54,FALSE)*HLOOKUP(AH$59,INDIRECT(SelectedRegion),$B54,FALSE),VLOOKUP($C54,'CAMD Data'!$B$3:$AQ$6,'Consumption Projs'!AH$59-2008,FALSE)) -> 931.0718152 | AI54: =IF(Scenariocell=4,HLOOKUP($A$60,StatePercentBlock,$A54,FALSE)*HLOOKUP(AI$59,INDIRECT(SelectedRegion),$B54,FALSE),VLOOKUP($C54,'CAMD Data'!$B$3:$AQ$6,'Consumption Projs'!AI$59-2008,FALSE)) -> 931.0718152 | AJ54: =IF(Scenariocell=4,HLOOKUP($A$60,StatePercentBlock,$A54,FALSE)*HLOOKUP(AJ$59,INDIRECT(SelectedRegion),$B54,FALSE),VLOOKUP($C54,'CAMD Data'!$B$3:$AQ$6,'Consumption Projs'!AJ$59-2008,FALSE)) -> 931.0718152 | AK54: =IF(Scenariocell=4,HLOOKUP($A$60,StatePercentBlock,$A54,FALSE)*HLOOKUP(AK$59,INDIRECT(SelectedRegion),$B54,FALSE),VLOOKUP($C54,'CAMD Data'!$B$3:$AQ$6,'Consumption Projs'!AK$59-2008,FALSE)) -> 931.0718152 | AL54: =IF(Scenariocell=4,HLOOKUP($A$60,StatePercentBlock,$A54,FALSE)*HLOOKUP(AL$59,INDIRECT(SelectedRegion),$B54,FALSE),VLOOKUP($C54,'CAMD Data'!$B$3:$AQ$6,'Consumption Projs'!AL$59-2008,FALSE)) -> 744.8574522 | AM54: =IF(Scenariocell=4,HLOOKUP($A$60,StatePercentBlock,$A54,FALSE)*HLOOKUP(AM$59,INDIRECT(SelectedRegion),$B54,FALSE),VLOOKUP($C54,'CAMD Data'!$B$3:$AQ$6,'Consumption Projs'!AM$59-2008,FALSE)) -> 744.8574522 | AN54: =IF(Scenariocell=4,HLOOKUP($A$60,StatePercentBlock,$A54,FALSE)*HLOOKUP(AN$59,INDIRECT(SelectedRegion),$B54,FALSE),VLOOKUP($C54,'CAMD Data'!$B$3:$AQ$6,'Consumption Projs'!AN$59-2008,FALSE)) -> 744.8574522 | AO54: =IF(Scenariocell=4,HLOOKUP($A$60,StatePercentBlock,$A54,FALSE)*HLOOKUP(AO$59,INDIRECT(SelectedRegion),$B54,FALSE),VLOOKUP($C54,'CAMD Data'!$B$3:$AQ$6,'Consumption Projs'!AO$59-2008,FALSE)) -> 744.8574522 | AP54: =IF(Scenariocell=4,HLOOKUP($A$60,StatePercentBlock,$A54,FALSE)*HLOOKUP(AP$59,INDIRECT(SelectedRegion),$B54,FALSE),VLOOKUP($C54,'CAMD Data'!$B$3:$AQ$6,'Consumption Projs'!AP$59-2008,FALSE)) -> 744.8574522 | AQ54: =IF(Scenariocell=4,HLOOKUP($A$60,StatePercentBlock,$A54,FALSE)*HLOOKUP(AQ$59,INDIRECT(SelectedRegion),$B54,FALSE),VLOOKUP($C54,'CAMD Data'!$B$3:$AQ$6,'Consumption Projs'!AQ$59-2008,FALSE)) -> 744.8574522 | AR54: =IF(Scenariocell=4,HLOOKUP($A$60,StatePercentBlock,$A54,FALSE)*HLOOKUP(AR$59,INDIRECT(SelectedRegion),$B54,FALSE),VLOOKUP($C54,'CAMD Data'!$B$3:$AQ$6,'Consumption Projs'!AR$59-2008,FALSE)) -> 744.8574522 | AS54: =IF(Scenariocell=4,HLOOKUP($A$60,StatePercentBlock,$A54,FALSE)*HLOOKUP(AS$59,INDIRECT(SelectedRegion),$B54,FALSE),VLOOKUP($C54,'CAMD Data'!$B$3:$AQ$6,'Consumption Projs'!AS$59-2008,FALSE)) -> 744.8574522
A55: 63 | B55: 51 | C55: Residual Fuel | D55: 0 | E55: 0 | F55: =IF(Scenariocell=4,HLOOKUP($A$60,StatePercentBlock,$A55,FALSE)*HLOOKUP(F$59,INDIRECT(SelectedRegion),$B55,FALSE),VLOOKUP($C55,'CAMD Data'!$B$3:$AQ$6,'Consumption Projs'!F$59-2008,FALSE)) -> 0 | G55: =IF(Scenariocell=4,HLOOKUP($A$60,StatePercentBlock,$A55,FALSE)*HLOOKUP(G$59,INDIRECT(SelectedRegion),$B55,FALSE),VLOOKUP($C55,'CAMD Data'!$B$3:$AQ$6,'Consumption Projs'!G$59-2008,FALSE)) -> 0 | H55: =IF(Scenariocell=4,HLOOKUP($A$60,StatePercentBlock,$A55,FALSE)*HLOOKUP(H$59,INDIRECT(SelectedRegion),$B55,FALSE),VLOOKUP($C55,'CAMD Data'!$B$3:$AQ$6,'Consumption Projs'!H$59-2008,FALSE)) -> 1302.300872 | I55: =IF(Scenariocell=4,HLOOKUP($A$60,StatePercentBlock,$A55,FALSE)*HLOOKUP(I$59,INDIRECT(SelectedRegion),$B55,FALSE),VLOOKUP($C55,'CAMD Data'!$B$3:$AQ$6,'Consumption Projs'!I$59-2008,FALSE)) -> 10671.75872 | J55: =IF(Scenariocell=4,HLOOKUP($A$60,StatePercentBlock,$A55,FALSE)*HLOOKUP(J$59,INDIRECT(SelectedRegion),$B55,FALSE),VLOOKUP($C55,'CAMD Data'!$B$3:$AQ$6,'Consumption Projs'!J$59-2008,FALSE)) -> 12690.37064 | K55: =IF(Scenariocell=4,HLOOKUP($A$60,StatePercentBlock,$A55,FALSE)*HLOOKUP(K$59,INDIRECT(SelectedRegion),$B55,FALSE),VLOOKUP($C55,'CAMD Data'!$B$3:$AQ$6,'Consumption Projs'!K$59-2008,FALSE)) -> 13209.83285 | L55: =IF(Scenariocell=4,HLOOKUP($A$60,StatePercentBlock,$A55,FALSE)*HLOOKUP(L$59,INDIRECT(SelectedRegion),$B55,FALSE),VLOOKUP($C55,'CAMD Data'!$B$3:$AQ$6,'Consumption Projs'!L$59-2008,FALSE)) -> 6365.690407 | M55: =IF(Scenariocell=4,HLOOKUP($A$60,StatePercentBlock,$A55,FALSE)*HLOOKUP(M$59,INDIRECT(SelectedRegion),$B55,FALSE),VLOOKUP($C55,'CAMD Data'!$B$3:$AQ$6,'Consumption Projs'!M$59-2008,FALSE)) -> 967.3844477 | N55: =IF(Scenariocell=4,HLOOKUP($A$60,StatePercentBlock,$A55,FALSE)*HLOOKUP(N$59,INDIRECT(SelectedRegion),$B55,FALSE),VLOOKUP($C55,'CAMD Data'!$B$3:$AQ$6,'Consumption Projs'!N$59-2008,FALSE)) -> 1759.336483 | O55: =IF(Scenariocell=4,HLOOKUP($A$60,StatePercentBlock,$A55,FALSE)*HLOOKUP(O$59,INDIRECT(SelectedRegion),$B55,FALSE),VLOOKUP($C55,'CAMD Data'!$B$3:$AQ$6,'Consumption Projs'!O$59-2008,FALSE)) -> 1759.336483 | P55: =IF(Scenariocell=4,HLOOKUP($A$60,StatePercentBlock,$A55,FALSE)*HLOOKUP(P$59,INDIRECT(SelectedRegion),$B55,FALSE),VLOOKUP($C55,'CAMD Data'!$B$3:$AQ$6,'Consumption Projs'!P$59-2008,FALSE)) -> 31.44113372 | Q55: =IF(Scenariocell=4,HLOOKUP($A$60,StatePercentBlock,$A55,FALSE)*HLOOKUP(Q$59,INDIRECT(SelectedRegion),$B55,FALSE),VLOOKUP($C55,'CAMD Data'!$B$3:$AQ$6,'Consumption Projs'!Q$59-2008,FALSE)) -> 455.6686047 | R55: =IF(Scenariocell=4,HLOOKUP($A$60,StatePercentBlock,$A55,FALSE)*HLOOKUP(R$59,INDIRECT(SelectedRegion),$B55,FALSE),VLOOKUP($C55,'CAMD Data'!$B$3:$AQ$6,'Consumption Projs'!R$59-2008,FALSE)) -> 0 | S55: =IF(Scenariocell=4,HLOOKUP($A$60,StatePercentBlock,$A55,FALSE)*HLOOKUP(S$59,INDIRECT(SelectedRegion),$B55,FALSE),VLOOKUP($C55,'CAMD Data'!$B$3:$AQ$6,'Consumption Projs'!S$59-2008,FALSE)) -> 0 | T55: =IF(Scenariocell=4,HLOOKUP($A$60,StatePercentBlock,$A55,FALSE)*HLOOKUP(T$59,INDIRECT(SelectedRegion),$B55,FALSE),VLOOKUP($C55,'CAMD Data'!$B$3:$AQ$6,'Consumption Projs'!T$59-2008,FALSE)) -> 0 | U55: =IF(Scenariocell=4,HLOOKUP($A$60,StatePercentBlock,$A55,FALSE)*HLOOKUP(U$59,INDIRECT(SelectedRegion),$B55,FALSE),VLOOKUP($C55,'CAMD Data'!$B$3:$AQ$6,'Consumption Projs'!U$59-2008,FALSE)) -> 0 | V55: =IF(Scenariocell=4,HLOOKUP($A$60,StatePercentBlock,$A55,FALSE)*HLOOKUP(V$59,INDIRECT(SelectedRegion),$B55,FALSE),VLOOKUP($C55,'CAMD Data'!$B$3:$AQ$6,'Consumption Projs'!V$59-2008,FALSE)) -> 0 | W55: =IF(Scenariocell=4,HLOOKUP($A$60,StatePercentBlock,$A55,FALSE)*HLOOKUP(W$59,INDIRECT(SelectedRegion),$B55,FALSE),VLOOKUP($C55,'CAMD Data'!$B$3:$AQ$6,'Consumption Projs'!W$59-2008,FALSE)) -> 0 | X55: =IF(Scenariocell=4,HLOOKUP($A$60,StatePercentBlock,$A55,FALSE)*HLOOKUP(X$59,INDIRECT(SelectedRegion),$B55,FALSE),VLOOKUP($C55,'CAMD Data'!$B$3:$AQ$6,'Consumption Projs'!X$59-2008,FALSE)) -> 0 | Y55: =IF(Scenariocell=4,HLOOKUP($A$60,StatePercentBlock,$A55,FALSE)*HLOOKUP(Y$59,INDIRECT(SelectedRegion),$B55,FALSE),VLOOKUP($C55,'CAMD Data'!$B$3:$AQ$6,'Consumption Projs'!Y$59-2008,FALSE)) -> 0 | Z55: =IF(Scenariocell=4,HLOOKUP($A$60,StatePercentBlock,$A55,FALSE)*HLOOKUP(Z$59,INDIRECT(SelectedRegion),$B55,FALSE),VLOOKUP($C55,'CAMD Data'!$B$3:$AQ$6,'Consumption Projs'!Z$59-2008,FALSE)) -> 0 | AA55: =IF(Scenariocell=4,HLOOKUP($A$60,StatePercentBlock,$A55,FALSE)*HLOOKUP(AA$59,INDIRECT(SelectedRegion),$B55,FALSE),VLOOKUP($C55,'CAMD Data'!$B$3:$AQ$6,'Consumption Projs'!AA$59-2008,FALSE)) -> 0 | AB55: =IF(Scenariocell=4,HLOOKUP($A$60,StatePercentBlock,$A55,FALSE)*HLOOKUP(AB$59,INDIRECT(SelectedRegion),$B55,FALSE),VLOOKUP($C55,'CAMD Data'!$B$3:$AQ$6,'Consumption Projs'!AB$59-2008,FALSE)) -> 0 | AC55: =IF(Scenariocell=4,HLOOKUP($A$60,StatePercentBlock,$A55,FALSE)*HLOOKUP(AC$59,INDIRECT(SelectedRegion),$B55,FALSE),VLOOKUP($C55,'CAMD Data'!$B$3:$AQ$6,'Consumption Projs'!AC$59-2008,FALSE)) -> 0 | AD55: =IF(Scenariocell=4,HLOOKUP($A$60,StatePercentBlock,$A55,FALSE)*HLOOKUP(AD$59,INDIRECT(SelectedRegion),$B55,FALSE),VLOOKUP($C55,'CAMD Data'!$B$3:$AQ$6,'Consumption Projs'!AD$59-2008,FALSE)) -> 0 | AE55: =IF(Scenariocell=4,HLOOKUP($A$60,StatePercentBlock,$A55,FALSE)*HLOOKUP(AE$59,INDIRECT(SelectedRegion),$B55,FALSE),VLOOKUP($C55,'CAMD Data'!$B$3:$AQ$6,'Consumption Projs'!AE$59-2008,FALSE)) -> 0 | AF55: =IF(Scenariocell=4,HLOOKUP($A$60,StatePercentBlock,$A55,FALSE)*HLOOKUP(AF$59,INDIRECT(SelectedRegion),$B55,FALSE),VLOOKUP($C55,'CAMD Data'!$B$3:$AQ$6,'Consumption Projs'!AF$59-2008,FALSE)) -> 0 | AG55: =IF(Scenariocell=4,HLOOKUP($A$60,StatePercentBlock,$A55,FALSE)*HLOOKUP(AG$59,INDIRECT(SelectedRegion),$B55,FALSE),VLOOKUP($C55,'CAMD Data'!$B$3:$AQ$6,'Consumption Projs'!AG$59-2008,FALSE)) -> 0 | AH55: =IF(Scenariocell=4,HLOOKUP($A$60,StatePercentBlock,$A55,FALSE)*HLOOKUP(AH$59,INDIRECT(SelectedRegion),$B55,FALSE),VLOOKUP($C55,'CAMD Data'!$B$3:$AQ$6,'Consumption Projs'!AH$59-2008,FALSE)) -> 0 | AI55: =IF(Scenariocell=4,HLOOKUP($A$60,StatePercentBlock,$A55,FALSE)*HLOOKUP(AI$59,INDIRECT(SelectedRegion),$B55,FALSE),VLOOKUP($C55,'CAMD Data'!$B$3:$AQ$6,'Consumption Projs'!AI$59-2008,FALSE)) -> 0 | AJ55: =IF(Scenariocell=4,HLOOKUP($A$60,StatePercentBlock,$A55,FALSE)*HLOOKUP(AJ$59,INDIRECT(SelectedRegion),$B55,FALSE),VLOOKUP($C55,'CAMD Data'!$B$3:$AQ$6,'Consumption Projs'!AJ$59-2008,FALSE)) -> 0 | AK55: =IF(Scenariocell=4,HLOOKUP($A$60,StatePercentBlock,$A55,FALSE)*HLOOKUP(AK$59,INDIRECT(SelectedRegion),$B55,FALSE),VLOOKUP($C55,'CAMD Data'!$B$3:$AQ$6,'Consumption Projs'!AK$59-2008,FALSE)) -> 0 | AL55: =IF(Scenariocell=4,HLOOKUP($A$60,StatePercentBlock,$A55,FALSE)*HLOOKUP(AL$59,INDIRECT(SelectedRegion),$B55,FALSE),VLOOKUP($C55,'CAMD Data'!$B$3:$AQ$6,'Consumption Projs'!AL$59-2008,FALSE)) -> 0 | AM55: =IF(Scenariocell=4,HLOOKUP($A$60,StatePercentBlock,$A55,FALSE)*HLOOKUP(AM$59,INDIRECT(SelectedRegion),$B55,FALSE),VLOOKUP($C55,'CAMD Data'!$B$3:$AQ$6,'Consumption Projs'!AM$59-2008,FALSE)) -> 0 | AN55: =IF(Scenariocell=4,HLOOKUP($A$60,StatePercentBlock,$A55,FALSE)*HLOOKUP(AN$59,INDIRECT(SelectedRegion),$B55,FALSE),VLOOKUP($C55,'CAMD Data'!$B$3:$AQ$6,'Consumption Projs'!AN$59-2008,FALSE)) -> 0 | AO55: =IF(Scenariocell=4,HLOOKUP($A$60,StatePercentBlock,$A55,FALSE)*HLOOKUP(AO$59,INDIRECT(SelectedRegion),$B55,FALSE),VLOOKUP($C55,'CAMD Data'!$B$3:$AQ$6,'Consumption Projs'!AO$59-2008,FALSE)) -> 0 | AP55: =IF(Scenariocell=4,HLOOKUP($A$60,StatePercentBlock,$A55,FALSE)*HLOOKUP(AP$59,INDIRECT(SelectedRegion),$B55,FALSE),VLOOKUP($C55,'CAMD Data'!$B$3:$AQ$6,'Consumption Projs'!AP$59-2008,FALSE)) -> 0 | AQ55: =IF(Scenariocell=4,HLOOKUP($A$60,StatePercentBlock,$A55,FALSE)*HLOOKUP(AQ$59,INDIRECT(SelectedRegion),$B55,FALSE),VLOOKUP($C55,'CAMD Data'!$B$3:$AQ$6,'Consumption Projs'!AQ$59-2008,FALSE)) -> 0 | AR55: =IF(Scenariocell=4,HLOOKUP($A$60,StatePercentBlock,$A55,FALSE)*HLOOKUP(AR$59,INDIRECT(SelectedRegion),$B55,FALSE),VLOOKUP($C55,'CAMD Data'!$B$3:$AQ$6,'Consumption Projs'!AR$59-2008,FALSE)) -> 0 | AS55: =IF(Scenariocell=4,HLOOKUP($A$60,StatePercentBlock,$A55,FALSE)*HLOOKUP(AS$59,INDIRECT(SelectedRegion),$B55,FALSE),VLOOKUP($C55,'CAMD Data'!$B$3:$AQ$6,'Consumption Projs'!AS$59-2008,FALSE)) -> 0
C56: Note: Bunker fuel consumption not included.
C58: Consumption (Billion Btu)
C59: State/Sector/Fuel | D59: 2009 | E59: 2010 | F59: 2011 | G59: 2012 | H59: 2013 | I59: 2014 | J59: 2015 | K59: 2016 | L59: 2017 | M59: 2018 | N59: 2019 | O59: 2020 | P59: 2021 | Q59: 2022 | R59: 2023 | S59: 2024 | T59: 2025 | U59: 2026 | V59: 2027 | W59: 2028 | X59: 2029 | Y59: 2030 | Z59: 2031 | AA59: 2032 | AB59: 2033 | AC59: 2034 | AD59: 2035 | AE59: 2036 | AF59: 2037 | AG59: 2038 | AH59: 2039 | AI59: 2040 | AJ59: 2041 | AK59: 2042 | AL59: 2043 | AM59: 2044 | AN59: 2045 | AO59: 2046 | AP59: 2047 | AQ59: 2048 | AR59: 2049 | AS59: 2050
A60: =StateID -> VA | C60: =State -> Virginia
A61: 3 | B61: 2 | C61: Residential | D61: =SUM(D62:D66) -> 0 | E61: 0 | F61: 0 | G61: 0 | H61: 113236.8512 | I61: 121594.8413 | J61: 107425.6118 | K61: 102592.8048 | L61: 105007.8153 | M61: 120766.2068 | N61: 107277.2274 | O61: 109583.7012 | P61: =SUM(P62:P66) -> 112937.0737 | Q61: 114614.7644 | R61: 124991.8153 | S61: 106677.8445 | T61: 106305.3443 | U61: 106305.3443 | V61: 106185.7242 | W61: 105670.9252 | X61: 105156.1263 | Y61: =SUM(Y62:Y66) -> 104641.3274 | Z61: 104126.5284 | AA61: 103432.5703 | AB61: 103216.5506 | AC61: 102701.7517 | AD61: 102366.1119 | AE61: 102186.9527 | AF61: 101851.313 | AG61: 101336.514 | AH61: 101216.8939 | AI61: 101216.8939 | AJ61: 100702.095 | AK61: 100702.095 | AL61: 100366.4552 | AM61: 100246.8351 | AN61: 100246.8351 | AO61: 99911.19537 | AP61: 100306.3742 | AQ61: 99970.73445 | AR61: 100186.7541 | AS61: 99851.11435
A62: 4 | B62: 3 | C62: Coal | D62: =HLOOKUP($A$60,StatePercentBlock,$A62,FALSE)*HLOOKUP(D$59,INDIRECT(SelectedRegion),$B62,FALSE) -> 0 | E62: 0 | F62: 0 | G62: 0 | H62: 0 | I62: 0 | J62: 0 | K62: 0 | L62: 0 | M62: 0 | N62: =HLOOKUP($A$60,StatePercentBlock,$A62,FALSE)*HLOOKUP(N$59,INDIRECT(SelectedRegion),$B62,FALSE) -> 0 | O62: 0 | P62: 0 | Q62: 0 | R62: 0 | S62: 0 | T62: 0 | U62: 0 | V62: 0 | W62: 0 | X62: 0 | Y62: 0 | Z62: 0 | AA62: 0 | AB62: 0 | AC62: 0 | AD62: 0 | AE62: 0 | AF62: 0 | AG62: 0 | AH62: 0 | AI62: 0 | AJ62: 0 | AK62: 0 | AL62: 0 | AM62: 0 | AN62: 0 | AO62: 0 | AP62: 0 | AQ62: 0 | AR62: 0 | AS62: 0
A63: 5 | B63: 4 | C63: Natural Gas | D63: 0 | E63: 0 | F63: 0 | G63: 0 | H63: 82378.28903 | I63: 91577.93402 | J63: 81001.80901 | K63: 78188.65149 | L63: 75718.04633 | M63: =HLOOKUP($A$60,StatePercentBlock,$A63,FALSE)*HLOOKUP(M$59,INDIRECT(SelectedRegion),$B63,FALSE) -> 89566.15553 | N63: 86021.3119 | O63: 87366.97654 | P63: 88403.23326 | Q63: 89042.11491 | R63: 99970.8252 | S63: 85638.0904 | T63: 85817.24959 | U63: 85817.24959 | V63: 85817.24959 | W63: 85638.0904 | X63: 85458.93122 | Y63: 85279.77203 | Z63: 85100.61285 | AA63: 84742.29448 | AB63: 84742.29448 | AC63: 84563.13529 | AD63: 84563.13529 | AE63: 84383.97611 | AF63: 84383.97611 | AG63: 84204.81692 | AH63: 84204.81692 | AI63: 84204.81692 | AJ63: 84025.65774 | AK63: 84025.65774 | AL63: 84025.65774 | AM63: 84025.65774 | AN63: 84025.65774 | AO63: 84025.65774 | AP63: 84204.81692 | AQ63: 84204.81692 | AR63: 84204.81692 | AS63: 84204.81692
A64: 6 | B64: 5 | C64: Distillate Fuel | D64: 0 | E64: 0 | F64: 0 | G64: 0 | H64: 15378.00681 | I64: 15341.42208 | J64: 12547.22109 | K64: 9834.58056 | L64: 12739.20703 | M64: 15215.89281 | N64: 9882.912685 | O64: 10293.73575 | P64: 11186.20187 | Q64: 11747.39154 | R64: 11411.75178 | S64: 8726.633718 | T64: 8390.993959 | U64: 8390.993959 | V64: 8055.354201 | W64: 7719.714443 | X64: 7384.074684 | Y64: 7048.434926 | Z64: 6712.795167 | AA64: 6377.155409 | AB64: 6377.155409 | AC64: 6041.515651 | AD64: 5705.875892 | AE64: 5705.875892 | AF64: 5370.236134 | AG64: 5034.596376 | AH64: 4698.956617 | AI64: 4698.956617 | AJ64: 4363.316859 | AK64: 4363.316859 | AL64: 4027.6771 | AM64: 3692.037342 | AN64: 3692.037342 | AO64: 3356.397584 | AP64: 3356.397584 | AQ64: 3020.757825 | AR64: 3020.757825 | AS64: 2685.118067
A65: 7 | B65: 6 | C65: Kerosene | D65: 0 | E65: 0 | F65: 0 | G65: 0 | H65: 270.3953488 | I65: 491.4186047 | J65: 431.3023256 | K65: 431.3023256 | L65: 0 | M65: 0 | N65: 0 | O65: 0 | P65: 0 | Q65: 0 | R65: 0 | S65: 0 | T65: 0 | U65: 0 | V65: 0 | W65: 0 | X65: 0 | Y65: 0 | Z65: 0 | AA65: 0 | AB65: 0 | AC65: 0 | AD65: 0 | AE65: 0 | AF65: 0 | AG65: 0 | AH65: 0 | AI65: 0 | AJ65: 0 | AK65: 0 | AL65: 0 | AM65: 0 | AN65: 0 | AO65: 0 | AP65: 0 | AQ65: 0 | AR65: 0 | AS65: 0
A66: 8 | B66: 7 | C66: HGL | D66: 0 | E66: 0 | F66: 0 | G66: 0 | H66: 15210.16 | I66: 14184.06663 | J66: 13445.27941 | K66: 14138.27047 | L66: 16550.56197 | M66: 15984.15843 | N66: 11373.00285 | O66: 11922.98889 | P66: 13347.63853 | Q66: 13825.25799 | R66: 13609.23833 | S66: 12313.12039 | T66: 12097.10074 | U66: 12097.10074 | V66: 12313.12039 | W66: 12313.12039 | X66: 12313.12039 | Y66: 12313.12039 | Z66: 12313.12039 | AA66: 12313.12039 | AB66: 12097.10074 | AC66: 12097.10074 | AD66: 12097.10074 | AE66: 12097.10074 | AF66: 12097.10074 | AG66: 12097.10074 | AH66: 12313.12039 | AI66: 12313.12039 | AJ66: 12313.12039 | AK66: 12313.12039 | AL66: 12313.12039 | AM66: 12529.14005 | AN66: 12529.14005 | AO66: 12529.14005 | AP66: 12745.15971 | AQ66: 12745.15971 | AR66: 12961.17936 | AS66: 12961.17936
A67: 9 | B67: 8 | C67: Electricity Sales (kWh) | D67: 0 | E67: 0 | F67: 0 | G67: 0 | H67: 42902.0263 | I67: 43983.31256 | J67: 44129.79374 | K67: 44340.52805 | L67: 42917.93557 | M67: 45808.0941 | N67: 45494.29386 | O67: 44889.59693 | P67: 46795.70053 | Q67: 47945.22629 | R67: 47981.46607 | S67: 47401.62962 | T67: 47764.0274 | U67: 48126.42518 | V67: 48633.78207 | W67: 49141.13896 | X67: 49539.77652 | Y67: 49902.1743 | Z67: 50192.09253 | AA67: 50482.01075 | AB67: 50699.44942 | AC67: 50880.64831 | AD67: 51243.04609 | AE67: 51677.92342 | AF67: 52076.56098 | AG67: 52438.95876 | AH67: 52801.35654 | AI67: 53236.23388 | AJ67: 53743.59077 | AK67: 54323.42722 | AL67: 54939.50344 | AM67: 55555.57967 | AN67: 56135.41612 | AO67: 56715.25256 | AP67: 57367.56857 | AQ67: 58056.12435 | AR67: 58780.91991 | AS67: 59541.95525
A68: 10 | B68: 9 | C68: Commercial | D68: =SUM(D69:D75) -> 0 | E68: 0 | F68: 0 | G68: 0 | H68: 87916.26852 | I68: 98317.5637 | J68: 90346.68743 | K68: 103653.058 | L68: 103872.0929 | M68: =SUM(M69:M75) -> 107287.6744 | N68: 109539.4992 | O68: 110246.7688 | P68: =SUM(P69:P75) -> 103562.4251 | Q68: 106862.2542 | R68: 107789.592 | S68: 105818.8695 | T68: 107672.5958 | U68: 109157.64 | V68: 109950.1344 | W68: 110832.658 | X68: 111574.7055 | Y68: =SUM(Y69:Y75) -> 112133.3612 | Z68: 112648.152 | AA68: 113206.8078 | AB68: 113581.1225 | AC68: 113955.4372 | AD68: 114297.5682 | AE68: 114487.5419 | AF68: 114671.883 | AG68: 114861.8566 | AH68: 115191.3572 | AI68: 115197.9391 | AJ68: 115197.9391 | AK68: 115387.9128 | AL68: 115577.8865 | AM68: 116091.7281 | AN68: 116091.7281 | AO68: 116466.0428 | AP68: 116472.6247 | AQ68: 116846.9394 | AR68: 116986.4663 | AS68: 117360.781
A69: 11 | B69: 10 | C69: Coal | D69: =HLOOKUP($A$60,StatePercentBlock,$A69,FALSE)*HLOOKUP(D$59,INDIRECT(SelectedRegion),$B69,FALSE) -> 0 | E69: 0 | F69: 0 | G69: 0 | H69: 913.8434211 | I69: 1061.342763 | J69: 808.5848684 | K69: 719.9822368 | L69: 597.7243421 | M69: 530.0703947 | N69: =HLOOKUP($A$60,StatePercentBlock,$A69,FALSE)*HLOOKUP(N$59,INDIRECT(SelectedRegion),$B69,FALSE) -> 510.1519737 | O69: 409.5296053 | P69: 338.0980263 | Q69: 343.4210526 | R69: 343.4210526 | S69: 343.4210526 | T69: 343.4210526 | U69: 343.4210526 | V69: 343.4210526 | W69: 343.4210526 | X69: 343.4210526 | Y69: 343.4210526 | Z69: 343.4210526 | AA69: 343.4210526 | AB69: 343.4210526 | AC69: 343.4210526 | AD69: 171.7105263 | AE69: 171.7105263 | AF69: 171.7105263 | AG69: 171.7105263 | AH69: 171.7105263 | AI69: 171.7105263 | AJ69: 171.7105263 | AK69: 171.7105263 | AL69: 171.7105263 | AM69: 171.7105263 | AN69: 171.7105263 | AO69: 171.7105263 | AP69: 171.7105263 | AQ69: 171.7105263 | AR69: 171.7105263 | AS69: =HLOOKUP($A$60,StatePercentBlock,$A69,FALSE)*HLOOKUP(AS$59,INDIRECT(SelectedRegion),$B69,FALSE) -> 171.7105263
A70: 12 | B70: 11 | C70: Natural Gas | D70: 0 | E70: 0 | F70: 0 | G70: 0 | H70: 70433.5674 | I70: 79946.30106 | J70: 71095.35164 | K70: 73681.65606 | L70: 74615.71197 | M70: 77764.99385 | N70: 80596.10313 | O70: 80273.50636 | P70: 76154.77509 | Q70: 78529.27169 | R70: 79266.63574 | S70: 77238.88459 | T70: 78529.27169 | U70: 79450.97675 | V70: 79819.65878 | W70: 80372.68182 | X70: 80741.36385 | Y70: 81110.04587 | Z70: 81478.7279 | AA70: 81847.40993 | AB70: 82031.75094 | AC70: 82216.09195 | AD70: 82400.43297 | AE70: 82400.43297 | AF70: 82584.77398 | AG70: 82584.77398 | AH70: 82584.77398 | AI70: 82584.77398 | AJ70: 82584.77398 | AK70: 82584.77398 | AL70: 82584.77398 | AM70: 82769.11499 | AN70: 82769.11499 | AO70: 82953.45601 | AP70: 82953.45601 | AQ70: 83137.79702 | AR70: 83137.79702 | AS70: 83322.13803
A71: 13 | B71: 12 | C71: Distillate Fuel | D71: 0 | E71: 0 | F71: 0 | G71: 0 | H71: 8894.686316 | I71: 10063.07556 | J71: 10090.58433 | K71: 10781.0545 | L71: 10028.04772 | M71: 10425.27439 | N71: 10133.6814 | O71: 10763.2655 | P71: 9430.557193 | Q71: 9352.982456 | R71: 9352.982456 | S71: 9169.590643 | T71: 9352.982456 | U71: 9536.374269 | V71: 9719.766082 | W71: 9719.766082 | X71: 9903.157895 | Y71: 9903.157895 | Z71: 9719.766082 | AA71: 9719.766082 | AB71: 9719.766082 | AC71: 9719.766082 | AD71: 9719.766082 | AE71: 9719.766082 | AF71: 9719.766082 | AG71: 9719.766082 | AH71: 9719.766082 | AI71: 9536.374269 | AJ71: 9536.374269 | AK71: 9536.374269 | AL71: 9536.374269 | AM71: 9536.374269 | AN71: 9536.374269 | AO71: 9536.374269 | AP71: 9352.982456 | AQ71: 9352.982456 | AR71: 9352.982456 | AS71: 9352.982456
A72: 14 | B72: 13 | C72: Kerosene | D72: 0 | E72: 0 | F72: 0 | G72: 0 | H72: 69.875 | I72: 141.6470588 | J72: 109.0808824 | K72: 105.6029412 | L72: 78.09558824 | M72: 31.61764706 | N72: 74.93382353 | O72: 86 | P72: 84.41911765 | Q72: 0 | R72: 0 | S72: 0 | T72: 0 | U72: 0 | V72: 0 | W72: 0 | X72: 0 | Y72: 0 | Z72: 0 | AA72: 0 | AB72: 0 | AC72: 0 | AD72: 0 | AE72: 0 | AF72: 0 | AG72: 0 | AH72: 0 | AI72: 0 | AJ72: 0 | AK72: 0 | AL72: 0 | AM72: 0 | AN72: 0 | AO72: 0 | AP72: 0 | AQ72: 0 | AR72: =HLOOKUP($A$60,StatePercentBlock,$A72,FALSE)*HLOOKUP(AR$59,INDIRECT(SelectedRegion),$B72,FALSE) -> 0 | AS72: 0
A73: 15 | B73: 14 | C73: HGL | D73: 0 | E73: 0 | F73: 0 | G73: 0 | H73: 6287.749227 | I73: 6114.683194 | J73: 6590.187343 | K73: 5835.041921 | L73: 6261.15291 | M73: 6608.994738 | N73: 6847.221747 | O73: 7069.111018 | P73: 6421.110758 | Q73: 6079.158114 | R73: 6269.131805 | S73: 6649.079187 | T73: 7029.026569 | U73: 7408.973951 | V73: 7788.921333 | W73: 7978.895024 | X73: 8168.868715 | Y73: 8358.842407 | Z73: 8548.816098 | AA73: 8738.789789 | AB73: 8928.76348 | AC73: 9118.737171 | AD73: 9308.710862 | AE73: 9498.684553 | AF73: 9498.684553 | AG73: 9688.658244 | AH73: 9878.631935 | AI73: 10068.60563 | AJ73: 10068.60563 | AK73: 10258.57932 | AL73: 10448.55301 | AM73: 10638.5267 | AN73: 10638.5267 | AO73: 10828.50039 | AP73: 11018.47408 | AQ73: 11208.44777 | AR73: =HLOOKUP($A$60,StatePercentBlock,$A73,FALSE)*HLOOKUP(AR$59,INDIRECT(SelectedRegion),$B73,FALSE) -> 11208.44777 | AS73: 11398.42146
A74: 16 | B74: 15 | C74: Motor Gasoline | D74: 0 | E74: 0 | F74: 0 | G74: 0 | H74: 1298.158269 | I74: 950.73629 | J74: 1617.953921 | K74: 12495.33144 | L74: 12282.9715 | M74: 11900.6678 | N74: 11375.90713 | O74: 11540.96745 | P74: 11133.40938 | Q74: 12557.42091 | R74: 12557.42091 | S74: 12417.89401 | T74: 12417.89401 | U74: 12417.89401 | V74: 12278.36711 | W74: 12417.89401 | X74: 12417.89401 | Y74: 12417.89401 | Z74: 12557.42091 | AA74: 12557.42091 | AB74: 12557.42091 | AC74: 12557.42091 | AD74: 12696.94781 | AE74: 12696.94781 | AF74: 12696.94781 | AG74: 12696.94781 | AH74: 12836.47471 | AI74: 12836.47471 | AJ74: 12836.47471 | AK74: 12836.47471 | AL74: 12836.47471 | AM74: 12976.00161 | AN74: 12976.00161 | AO74: 12976.00161 | AP74: 12976.00161 | AQ74: 12976.00161 | AR74: =HLOOKUP($A$60,StatePercentBlock,$A74,FALSE)*HLOOKUP(AR$59,INDIRECT(SelectedRegion),$B74,FALSE) -> 13115.52851 | AS74: 13115.52851
A75: 17 | B75: 16 | C75: Residual Fuel | D75: 0 | E75: 0 | F75: 0 | G75: 0 | H75: 18.38888889 | I75: 39.77777778 | J75: 34.94444444 | K75: 34.38888889 | L75: 8.388888889 | M75: 26.05555556 | N75: 1.5 | O75: 104.3888889 | P75: 0.05555555556 | Q75: 0 | R75: 0 | S75: 0 | T75: 0 | U75: 0 | V75: 0 | W75: 0 | X75: 0 | Y75: 0 | Z75: 0 | AA75: 0 | AB75: 0 | AC75: 0 | AD75: 0 | AE75: 0 | AF75: 0 | AG75: 0 | AH75: 0 | AI75: 0 | AJ75: 0 | AK75: 0 | AL75: 0 | AM75: 0 | AN75: 0 | AO75: 0 | AP75: 0 | AQ75: 0 | AR75: =HLOOKUP($A$60,StatePercentBlock,$A75,FALSE)*HLOOKUP(AR$59,INDIRECT(SelectedRegion),$B75,FALSE) -> 0 | AS75: 0
A76: 18 | B76: 17 | C76: Electricity Sales (kWh) | D76: 0 | E76: 0 | F76: 0 | G76: 0 | H76: 53603.24543 | I76: 54500.86634 | J76: 55087.37793 | K76: 55505.45223 | L76: 54890.20844 | M76: 55742.59696 | N76: 56125.95318 | O76: 55867.51955 | P76: 55275.12619 | Q76: 56891.8328 | R76: 56267.21981 | S76: 56735.67955 | T76: 56475.42414 | U76: 56527.47522 | V76: 56527.47522 | W76: 57100.03713 | X76: 57620.54795 | Y76: 58089.00769 | Z76: 58609.51851 | AA76: 59077.97825 | AB76: 59390.28474 | AC76: 59702.59124 | AD76: 60066.94881 | AE76: 60431.30639 | AF76: 60743.61288 | AG76: 60951.81721 | AH76: 61160.02154 | AI76: 61472.32803 | AJ76: 61940.78777 | AK76: 62409.24751 | AL76: 62929.75833 | AM76: 63398.21807 | AN76: 63866.67781 | AO76: 64335.13755 | AP76: 64855.64837 | AQ76: 65428.21027 | AR76: =HLOOKUP($A$60,StatePercentBlock,$A76,FALSE)*HLOOKUP(AR$59,INDIRECT(SelectedRegion),$B76,FALSE) -> 66052.82326 | AS76: 66729.48733
A77: 19 | B77: 18 | C77: Industrial | D77: =SUM(D78:D93) -> 0 | E77: 0 | F77: 0 | G77: 0 | H77: 208458.4427 | I77: 177905.9633 | J77: 177500.1596 | K77: 175121.0407 | L77: 182581.6216 | M77: 194168.0421 | N77: 194100.3979 | O77: 190882.248 | P77: =SUM(P78:P93) -> 184307.7946 | Q77: 189966.4759 | R77: 182586.4249 | S77: 183112.6861 | T77: 184165.7155 | U77: 186606.4634 | V77: 187998.7691 | W77: 189129.1738 | X77: 189590.5205 | Y77: =SUM(Y78:Y93) -> 189772.206 | Z77: 190075.9618 | AA77: 190729.0067 | AB77: 191050.5228 | AC77: 191671.7539 | AD77: 192272.9312 | AE77: 192914.2162 | AF77: 193009.6982 | AG77: 193750.7061 | AH77: 194105.7954 | AI77: 194234.7224 | AJ77: 195079.8223 | AK77: 195820.8302 | AL77: 196450.3552 | AM77: 197187.4383 | AN77: 198208.1074 | AO77: 199295.0543 | AP77: 199781.5644 | AQ77: 200370.9817 | AR77: 201247.8954 | AS77: 202288.6183
A78: 20 | B78: 19 | C78: Coking Coal | D78: =HLOOKUP($A$60,StatePercentBlock,$A78,FALSE)*HLOOKUP(D$59,INDIRECT(SelectedRegion),$B78,FALSE) -> 0 | E78: 0 | F78: 0 | G78: 0 | H78: 47962.47432 | I78: 27155.68587 | J78: 27515.04625 | K78: 25709.95596 | L78: 25033.26912 | M78: 28833.49035 | N78: =HLOOKUP($A$60,StatePercentBlock,$A78,FALSE)*HLOOKUP(N$59,INDIRECT(SelectedRegion),$B78,FALSE) -> 29050.17222 | O78: 29383.48342 | P78: 24936.17669 | Q78: 28417.29538 | R78: 29009.32236 | S78: 28417.29538 | T78: 28417.29538 | U78: 28417.29538 | V78: 28417.29538 | W78: 28417.29538 | X78: 28417.29538 | Y78: 28417.29538 | Z78: 28417.29538 | AA78: 28417.29538 | AB78: 28417.29538 | AC78: 28417.29538 | AD78: 28417.29538 | AE78: 28417.29538 | AF78: 27825.26839 | AG78: 27825.26839 | AH78: 27233.2414 | AI78: 26641.21441 | AJ78: 26641.21441 | AK78: 26641.21441 | AL78: 26641.21441 | AM78: 26641.21441 | AN78: 26641.21441 | AO78: 26641.21441 | AP78: 26049.18743 | AQ78: 26049.18743 | AR78: 26049.18743 | AS78: 26049.18743
A79: 22 | B79: 20 | C79: Other Coal | D79: 0 | E79: 0 | F79: 0 | G79: 0 | H79: 28640.95224 | I79: 24713.75978 | J79: 21086.43166 | K79: 17387.69035 | L79: 15191.46832 | M79: 14066.44413 | N79: 11578.17414 | O79: 10544.81463 | P79: 9890.193735 | Q79: 9592.816426 | R79: 8526.947934 | S79: 8349.303186 | T79: 8171.658437 | U79: 8171.658437 | V79: 7994.013688 | W79: 7994.013688 | X79: 7816.36894 | Y79: 7638.724191 | Z79: 7283.434694 | AA79: 7105.789945 | AB79: 6928.145197 | AC79: 6750.500448 | AD79: 6572.855699 | AE79: 6395.210951 | AF79: 6217.566202 | AG79: 6039.921453 | AH79: 5862.276705 | AI79: 5684.631956 | AJ79: 5684.631956 | AK79: 5506.987208 | AL79: 5329.342459 | AM79: 5329.342459 | AN79: 5151.69771 | AO79: 4974.052962 | AP79: 4974.052962 | AQ79: 4796.408213 | AR79: 4796.408213 | AS79: 4618.763464
A80: 23 | B80: 21 | C80: Natural Gas | D80: 0 | E80: 0 | F80: 0 | G80: 0 | H80: 84422.72776 | I80: 82382.45941 | J80: 83023.16324 | K80: 87838.78944 | L80: 92737.61486 | M80: 100082.0776 | N80: 102031.8755 | O80: 101266.0233 | P80: 103680.758 | Q80: 109627.1943 | R80: 105572.1068 | S80: 107389.9046 | T80: 109207.7025 | U80: 111864.484 | V80: 113542.4513 | W80: 114661.0961 | X80: 114940.7573 | Y80: 114940.7573 | Z80: 115360.2491 | AA80: 116059.4021 | AB80: 116199.2327 | AC80: 116758.5552 | AD80: 117178.047 | AE80: 117877.2 | AF80: 118436.5224 | AG80: 118995.8448 | AH80: 119694.9979 | AI80: 120114.4897 | AJ80: 120533.9815 | AK80: 121093.3039 | AL80: 121792.4569 | AM80: 122211.9488 | AN80: 123050.9324 | AO80: 123889.916 | AP80: 124728.8997 | AQ80: 125148.3915 | AR80: 125707.7139 | AS80: 126686.5281
A81: 26 | B81: 22 | C81: Distillate Fuel | D81: 0 | E81: 0 | F81: 0 | G81: 0 | H81: 15640.6183 | I81: 17212.47894 | J81: 15898.8865 | K81: 14216.63267 | L81: 14959.14023 | M81: 15902.99113 | N81: 16454.63299 | O81: 16613.95779 | P81: 14393.67222 | Q81: 12962.0174 | R81: 12745.98378 | S81: 12421.93334 | T81: 12313.91653 | U81: 12097.88291 | V81: 11989.8661 | W81: 11881.84929 | X81: 11881.84929 | Y81: 11881.84929 | Z81: 11881.84929 | AA81: 11773.83247 | AB81: 11773.83247 | AC81: 11773.83247 | AD81: 11773.83247 | AE81: 11773.83247 | AF81: 11881.84929 | AG81: 11881.84929 | AH81: 11989.8661 | AI81: 11989.8661 | AJ81: 12097.88291 | AK81: 12097.88291 | AL81: 12205.89972 | AM81: 12205.89972 | AN81: 12205.89972 | AO81: 12313.91653 | AP81: 12313.91653 | AQ81: 12421.93334 | AR81: 12421.93334 | AS81: 12421.93334
A82: 27 | B82: 23 | C82: Petrochemical Feedstocks
A83: 28 | B83: 24 | C83: Feedstocks, Naphtha less than 401 F | D83: =HLOOKUP($A$60,StatePercentBlock,$A83,FALSE)*HLOOKUP(D$59,INDIRECT(SelectedRegion),$B83,FALSE) -> 0 | E83: 0 | F83: 0 | G83: 0 | H83: 0 | I83: 0 | J83: 0 | K83: 0 | L83: 0 | M83: 0 | N83: =HLOOKUP($A$60,StatePercentBlock,$A83,FALSE)*HLOOKUP(N$59,INDIRECT(SelectedRegion),$B83,FALSE) -> 0 | O83: 0 | P83: 0 | Q83: 0 | R83: 0 | S83: 0 | T83: 0 | U83: 0 | V83: 0 | W83: 0 | X83: 0 | Y83: 0 | Z83: 0 | AA83: 0 | AB83: 0 | AC83: 0 | AD83: 0 | AE83: 0 | AF83: 0 | AG83: 0 | AH83: 0 | AI83: 0 | AJ83: 0 | AK83: 0 | AL83: 0 | AM83: 0 | AN83: 0 | AO83: 0 | AP83: 0 | AQ83: 0 | AR83: 0 | AS83: 0
A84: 29 | B84: 25 | C84: Feedstocks, Other Oils greater than 401 F | D84: 0 | E84: 0 | F84: 0 | G84: 0 | H84: 0 | I84: 0 | J84: 0 | K84: 0 | L84: 0 | M84: 0 | N84: 0 | O84: 0 | P84: 0 | Q84: 0 | R84: 0 | S84: 0 | T84: 0 | U84: 0 | V84: 0 | W84: 0 | X84: 0 | Y84: 0 | Z84: 0 | AA84: 0 | AB84: 0 | AC84: 0 | AD84: 0 | AE84: 0 | AF84: 0 | AG84: 0 | AH84: 0 | AI84: 0 | AJ84: 0 | AK84: 0 | AL84: 0 | AM84: 0 | AN84: 0 | AO84: 0 | AP84: 0 | AQ84: 0 | AR84: 0 | AS84: 0
A85: 31 | B85: 26 | C85: HGL | D85: 0 | E85: 0 | F85: 0 | G85: 0 | H85: 1756.497283 | I85: 1333.880435 | J85: 1451.252717 | K85: 1398.313859 | L85: 2593.173913 | M85: 2872.172554 | N85: 2868.149457 | O85: 3204.940217 | P85: 1957.396739 | Q85: 0 | R85: 0 | S85: 0 | T85: 0 | U85: 0 | V85: 0 | W85: 0 | X85: 0 | Y85: 0 | Z85: 0 | AA85: 0 | AB85: 0 | AC85: 0 | AD85: 0 | AE85: 0 | AF85: 0 | AG85: 0 | AH85: 0 | AI85: 0 | AJ85: 0 | AK85: 0 | AL85: 0 | AM85: 0 | AN85: 0 | AO85: 0 | AP85: 0 | AQ85: 0 | AR85: 0 | AS85: 0
A86: 32 | B86: 27 | C86: Motor Gasoline | D86: 0 | E86: 0 | F86: 0 | G86: 0 | H86: 3182.066219 | I86: 3160.527807 | J86: 2948.733425 | K86: 3563.748725 | L86: 3733.168623 | M86: 3805.665668 | N86: 3820.258723 | O86: 3851.005586 | P86: 3609.322756 | Q86: 4214.037076 | R86: 4214.037076 | S86: 4135.999352 | T86: 4135.999352 | U86: 4135.999352 | V86: 4135.999352 | W86: 4135.999352 | X86: 4135.999352 | Y86: 4135.999352 | Z86: 4135.999352 | AA86: 4135.999352 | AB86: 4135.999352 | AC86: 4135.999352 | AD86: 4135.999352 | AE86: 4135.999352 | AF86: 4214.037076 | AG86: 4214.037076 | AH86: 4292.0748 | AI86: 4292.0748 | AJ86: 4370.112523 | AK86: 4370.112523 | AL86: 4370.112523 | AM86: 4448.150247 | AN86: 4448.150247 | AO86: 4526.187971 | AP86: 4526.187971 | AQ86: 4526.187971 | AR86: 4604.225694 | AS86: 4604.225694
A87: 35 | B87: 28 | C87: Residual Fuel | D87: 0 | E87: 0 | F87: 0 | G87: 0 | H87: 0 | I87: 0 | J87: 0 | K87: 0 | L87: 0 | M87: 0 | N87: 0 | O87: 0 | P87: 0 | Q87: 0 | R87: 0 | S87: 0 | T87: 0 | U87: 0 | V87: 0 | W87: 0 | X87: 0 | Y87: 0 | Z87: 0 | AA87: 0 | AB87: 0 | AC87: 0 | AD87: 0 | AE87: 0 | AF87: 0 | AG87: 0 | AH87: 0 | AI87: 0 | AJ87: 0 | AK87: 0 | AL87: 0 | AM87: 0 | AN87: 0 | AO87: 0 | AP87: 0 | AQ87: 0 | AR87: 0 | AS87: 0
A88: 39 | B88: 29 | C88: Other Petroleum
A89: 40 | B89: 30 | C89: Asphalt and Road Oil | D89: =HLOOKUP($A$60,StatePercentBlock,$A89,FALSE)*HLOOKUP(D$59,INDIRECT(SelectedRegion),$B89,FALSE) -> 0 | E89: 0 | F89: 0 | G89: 0 | H89: 22136.43967 | I89: 18092.21692 | J89: 21084.18542 | K89: 20613.69734 | L89: 23357.04276 | M89: 23580.78379 | N89: =HLOOKUP($A$60,StatePercentBlock,$A89,FALSE)*HLOOKUP(N$59,INDIRECT(SelectedRegion),$B89,FALSE) -> 23326.82883 | O89: 21448.03612 | P89: 21301.50846 | Q89: 20735.04673 | R89: 18562.80374 | S89: 18464.06542 | T89: 18069.11215 | U89: 18069.11215 | V89: 18069.11215 | W89: 18167.85047 | X89: 18464.06542 | Y89: 18760.28037 | Z89: 18957.75701 | AA89: 19155.23364 | AB89: 19451.4486 | AC89: 19648.92523 | AD89: 19945.14019 | AE89: 20043.8785 | AF89: 20142.61682 | AG89: 20438.83178 | AH89: 20636.30841 | AI89: 21031.26168 | AJ89: 21228.73832 | AK89: 21524.95327 | AL89: 21524.95327 | AM89: 21722.42991 | AN89: 22018.64486 | AO89: 22216.1215 | AP89: 22413.59813 | AQ89: 22611.07477 | AR89: 22808.5514 | AS89: 23006.02804
A90: 41 | B90: 31 | C90: Lubricants | D90: 0 | E90: 0 | F90: 0 | G90: 0 | H90: 2007.959112 | I90: 1641.114486 | J90: 1912.510903 | K90: 1869.833723 | L90: 2118.67796 | M90: 2138.973131 | N90: 2115.937305 | O90: 1945.515187 | P90: 1932.22391 | Q90: 1880.841121 | R90: 1683.800623 | S90: 1674.844237 | T90: 1639.018692 | U90: 1639.018692 | V90: 1639.018692 | W90: 1647.975078 | X90: 1674.844237 | Y90: 1701.713396 | Z90: 1719.626168 | AA90: 1737.538941 | AB90: 1764.4081 | AC90: 1782.320872 | AD90: 1809.190031 | AE90: 1818.146417 | AF90: 1827.102804 | AG90: 1853.971963 | AH90: 1871.884735 | AI90: 1907.71028 | AJ90: 1925.623053 | AK90: 1952.492212 | AL90: 1952.492212 | AM90: 1970.404984 | AN90: 1997.274143 | AO90: 2015.186916 | AP90: 2033.099688 | AQ90: 2051.012461 | AR90: 2068.925234 | AS90: =HLOOKUP($A$60,StatePercentBlock,$A90,FALSE)*HLOOKUP(AS$59,INDIRECT(SelectedRegion),$B90,FALSE) -> 2086.838006
A91: 42 | B91: 32 | C91: Petroleum Coke | D91: 0 | E91: 0 | F91: 0 | G91: 0 | H91: 0 | I91: 0 | J91: 0 | K91: 0 | L91: 0 | M91: 0 | N91: 0 | O91: 0 | P91: 0 | Q91: 0 | R91: 0 | S91: 0 | T91: 0 | U91: 0 | V91: 0 | W91: 0 | X91: 0 | Y91: 0 | Z91: 0 | AA91: 0 | AB91: 0 | AC91: 0 | AD91: 0 | AE91: 0 | AF91: 0 | AG91: 0 | AH91: 0 | AI91: 0 | AJ91: 0 | AK91: 0 | AL91: 0 | AM91: 0 | AN91: 0 | AO91: 0 | AP91: 0 | AQ91: 0 | AR91: 0 | AS91: 0
A92: 43 | B92: 33 | C92: Still Gas | D92: 0 | E92: 0 | F92: 0 | G92: 0 | H92: 0 | I92: 0 | J92: 0 | K92: 0 | L92: 0 | M92: 0 | N92: 0 | O92: 0 | P92: 0 | Q92: 0 | R92: 0 | S92: 0 | T92: 0 | U92: 0 | V92: 0 | W92: 0 | X92: 0 | Y92: 0 | Z92: 0 | AA92: 0 | AB92: 0 | AC92: 0 | AD92: 0 | AE92: 0 | AF92: 0 | AG92: 0 | AH92: 0 | AI92: 0 | AJ92: 0 | AK92: 0 | AL92: 0 | AM92: 0 | AN92: 0 | AO92: 0 | AP92: 0 | AQ92: 0 | AR92: 0 | AS92: 0
A93: 44 | B93: 34 | C93: Misc. Petro Products | D93: 0 | E93: 0 | F93: 0 | G93: 0 | H93: 2708.707741 | I93: 2213.839657 | J93: 2579.949491 | K93: 2522.378593 | L93: 2858.065862 | M93: 2885.443754 | N93: 2854.368759 | O93: 2624.471791 | P93: 2606.542051 | Q93: 2537.227414 | R93: 2271.422638 | S93: 2259.340602 | T93: 2211.012461 | U93: 2211.012461 | V93: 2211.012461 | W93: 2223.094496 | X93: 2259.340602 | Y93: 2295.586708 | Z93: 2319.750779 | AA93: 2343.914849 | AB93: 2380.160955 | AC93: 2404.325026 | AD93: 2440.571132 | AE93: 2452.653167 | AF93: 2464.735202 | AG93: 2500.981308 | AH93: 2525.145379 | AI93: 2573.47352 | AJ93: 2597.637591 | AK93: 2633.883697 | AL93: 2633.883697 | AM93: 2658.047767 | AN93: 2694.293873 | AO93: 2718.457944 | AP93: 2742.622015 | AQ93: 2766.786085 | AR93: 2790.950156 | AS93: 2815.114226
A94: 45 | B94: 35 | C94: Electricity Sales (kWh) | D94: 0 | E94: 0 | F94: 0 | G94: 0 | H94: 17810.79131 | I94: 17241.48093 | J94: 16409.1505 | K94: 16229.31064 | L94: 16184.71881 | M94: 16333.78616 | N94: 16426.63231 | O94: 16350.21075 | P94: 16893.54385 | Q94: 17519.56628 | R94: 17519.56628 | S94: 17368.53554 | T94: 17481.8086 | U94: 17746.1124 | V94: 17934.90083 | W94: 18123.68926 | X94: 18199.20463 | Y94: 18274.72 | Z94: 18312.47769 | AA94: 18463.50843 | AB94: 18501.26612 | AC94: 18614.53918 | AD94: 18765.56992 | AE94: 18841.08529 | AF94: 18954.35835 | AG94: 19067.63141 | AH94: 19143.14678 | AI94: 19294.17752 | AJ94: 19445.20827 | AK94: 19596.23901 | AL94: 19709.51207 | AM94: 19785.02744 | AN94: 19860.54281 | AO94: 20011.57356 | AP94: 20162.6043 | AQ94: 20238.11967 | AR94: 20351.39273 | AS94: 20540.18116
A95: 46 | B95: 36 | C95: Transportation | D95: =SUM(D96:D104) -> 0 | E95: 0 | F95: 0 | G95: 0 | H95: 729713.7235 | I95: 731553.3849 | J95: 727430.5012 | K95: 724432.6499 | L95: 715690.9134 | M95: 716888.0488 | N95: 729162.7283 | O95: 730338.6473 | P95: =SUM(P96:P104) -> 749635.8085 | Q95: 799292.756 | R95: 796082.9302 | S95: 783699.5509 | T95: 774901.4509 | U95: 769516.9202 | V95: 764298.8867 | W95: 758495.4421 | X95: 752264.9594 | Y95: =SUM(Y96:Y104) -> 745236.4914 | Z95: 738758.6135 | AA95: 733441.5147 | AB95: 729413.9003 | AC95: 726161.5141 | AD95: 723159.2239 | AE95: 720383.8912 | AF95: 718698.3861 | AG95: 718083.6988 | AH95: 717737.466 | AI95: 718551.3702 | AJ95: 720467.9139 | AK95: 722348.1934 | AL95: 724613.3936 | AM95: 727271.884 | AN95: 730701.0907 | AO95: 734798.8827 | AP95: 740030.3188 | AQ95: 745399.4024 | AR95: 751116.925 | AS95: 757767.2455
A96: 47 | B96: 37 | C96: Natural Gas | D96: =HLOOKUP($A$60,StatePercentBlock,$A96,FALSE)*HLOOKUP(D$59,INDIRECT(SelectedRegion),$B96,FALSE) -> 0 | E96: 0 | F96: 0 | G96: 0 | H96: 7689.381181 | I96: 9073.073082 | J96: 7700.472045 | K96: 10791.30383 | L96: 9692.241882 | M96: 10248.38472 | N96: =HLOOKUP($A$60,StatePercentBlock,$A96,FALSE)*HLOOKUP(N$59,INDIRECT(SelectedRegion),$B96,FALSE) -> 11496.53346 | O96: 12237.06191 | P96: 15315.7364 | Q96: 19728.9404 | R96: 16103.08108 | S96: 14290.15142 | T96: 13756.93682 | U96: 13223.72221 | V96: 12370.57884 | W96: 11624.0784 | X96: 11837.36424 | Y96: 11944.00716 | Z96: 12050.65008 | AA96: 12050.65008 | AB96: 11944.00716 | AC96: 11944.00716 | AD96: 11837.36424 | AE96: 11730.72132 | AF96: 11730.72132 | AG96: 11730.72132 | AH96: 11837.36424 | AI96: 11944.00716 | AJ96: 12263.93592 | AK96: 12477.22177 | AL96: 12477.22177 | AM96: 12477.22177 | AN96: 12583.86469 | AO96: 12690.50761 | AP96: 12903.79345 | AQ96: 13117.07929 | AR96: 13223.72221 | AS96: 13437.00806
A97: 48 | B97: 38 | C97: Distillate Fuel | D97: 0 | E97: 0 | F97: 0 | G97: 0 | H97: 146038.2217 | I97: 154638.7448 | J97: 159354.5923 | K97: 162322.682 | L97: 169242.4568 | M97: 171295.6909 | N97: 178935.1123 | O97: 181304.0471 | P97: 168069.6296 | Q97: 178220.6567 | R97: 175861.1599 | S97: 174760.0614 | T97: 172557.8644 | U97: 170984.8666 | V97: 169254.5689 | W97: 167838.8709 | X97: 166265.873 | Y97: 164692.8752 | Z97: 163119.8773 | AA97: 162176.0786 | AB97: 161389.5797 | AC97: 160445.781 | AD97: 159816.5818 | AE97: 159187.3827 | AF97: 158715.4833 | AG97: 158400.8837 | AH97: 157928.9844 | AI97: 157928.9844 | AJ97: 158086.2842 | AK97: 158086.2842 | AL97: 158086.2842 | AM97: 157928.9844 | AN97: 157928.9844 | AO97: 157771.6846 | AP97: 157771.6846 | AQ97: 157771.6846 | AR97: 157771.6846 | AS97: 158086.2842
A98: 49 | B98: 39 | C98: Jet Fuel, Kerosene | D98: 0 | E98: 0 | F98: 0 | G98: 0 | H98: 86667.54204 | I98: 66467.70177 | J98: 59421.8198 | K98: 51394.94375 | L98: 44715.07455 | M98: 45291.04111 | N98: 44758.6259 | O98: 45212.28575 | P98: 100504.1677 | Q98: 122669.6254 | R98: 131016.9667 | S98: 133013.0701 | T98: 133557.4619 | U98: 135372.1014 | V98: 137186.7408 | W98: 138638.4523 | X98: 139727.236 | Y98: 140634.5557 | Z98: 141541.8754 | AA98: 142812.123 | AB98: 144082.3706 | AC98: 145352.6182 | AD98: 146622.8658 | AE98: 148437.5053 | AF98: 150252.1447 | AG98: 152429.712 | AH98: 154788.7433 | AI98: 157147.7745 | AJ98: 159688.2697 | AK98: 162047.301 | AL98: 164587.7962 | AM98: 167128.2914 | AN98: 169487.3226 | AO98: 171846.3539 | AP98: 174386.8491 | AQ98: 176927.3443 | AR98: 179467.8395 | AS98: 182189.7986
A99: 51 | B99: 40 | C99: HGL | D99: 0 | E99: 0 | F99: 0 | G99: 0 | H99: 413.0923825 | I99: 80.35980551 | J99: 81.79254457 | K99: 74.75526742 | L99: 55.11831442 | M99: 61.43922204 | N99: 62.78768233 | O99: 62.91410049 | P99: 62.57698541 | Q99: 84.27876823 | R99: 84.27876823 | S99: 84.27876823 | T99: 84.27876823 | U99: 84.27876823 | V99: 84.27876823 | W99: 84.27876823 | X99: 84.27876823 | Y99: 84.27876823 | Z99: 84.27876823 | AA99: 84.27876823 | AB99: 84.27876823 | AC99: 84.27876823 | AD99: 126.4181524 | AE99: 126.4181524 | AF99: 126.4181524 | AG99: 126.4181524 | AH99: 126.4181524 | AI99: 126.4181524 | AJ99: 126.4181524 | AK99: 126.4181524 | AL99: 126.4181524 | AM99: 126.4181524 | AN99: 126.4181524 | AO99: 126.4181524 | AP99: 126.4181524 | AQ99: 126.4181524 | AR99: 168.5575365 | AS99: 168.5575365
A100: 52 | B100: 41 | C100: Motor Gasoline | D100: 0 | E100: 0 | F100: 0 | G100: 0 | H100: 462973.6647 | I100: 482079.9642 | J100: 482747.5546 | K100: 476081.0107 | L100: 473493.2376 | M100: 472557.3722 | N100: 477314.7453 | O100: 475691.3306 | P100: 450368.5945 | Q100: 470203.8752 | R100: 465523.86 | S100: 454236.7647 | T100: 447629.6845 | U100: 442536.7268 | V100: 438132.0067 | W100: 433039.049 | X100: 427257.8538 | Y100: 420788.4211 | Z100: 414869.5784 | AA100: 409226.0307 | AB100: 404821.3106 | AC100: 401242.4755 | AD100: 397663.6403 | AE100: 393809.5102 | AF100: 390781.2651 | AG100: 388303.61 | AH100: 385963.6025 | AI100: 384311.8324 | AJ100: 383210.6524 | AK100: 382384.7674 | AL100: 382109.4723 | AM100: 382384.7674 | AN100: 383348.2999 | AO100: 385137.7174 | AP100: 387615.3725 | AQ100: 390230.6751 | AR100: 393258.9202 | AS100: 396837.7553
A101: 53 | B101: 42 | C101: Residual Fuel | D101: 0 | E101: 0 | F101: 0 | G101: 0 | H101: 22183.9591 | I101: 15125.57259 | J101: 14090.91094 | K101: 19660.71166 | L101: 14494.35942 | M101: 13457.3791 | N101: 12647.09331 | O101: 11889.06676 | P101: 11144.95223 | Q101: 4102.261326 | R101: 3210.465386 | S101: 3032.106197 | T101: 3032.106197 | U101: 3032.106197 | V101: 2853.747009 | W101: 2853.747009 | X101: 2675.387821 | Y101: 2675.387821 | Z101: 2675.387821 | AA101: 2675.387821 | AB101: 2675.387821 | AC101: 2675.387821 | AD101: 2675.387821 | AE101: 2675.387821 | AF101: 2675.387821 | AG101: 2675.387821 | AH101: 2675.387821 | AI101: 2675.387821 | AJ101: 2675.387821 | AK101: 2675.387821 | AL101: 2675.387821 | AM101: 2675.387821 | AN101: 2675.387821 | AO101: 2675.387821 | AP101: 2675.387821 | AQ101: 2675.387821 | AR101: 2675.387821 | AS101: 2497.028633
A102: 54 | B102: 43 | C102: Other Petroleum
A103: 55 | B103: 44 | C103: Aviation Gasoline | D103: =HLOOKUP($A$60,StatePercentBlock,$A103,FALSE)*HLOOKUP(D$59,INDIRECT(SelectedRegion),$B103,FALSE) -> 0 | E103: 0 | F103: 0 | G103: 0 | H103: 369.8689013 | I103: 403.4333053 | J103: 398.0439795 | K103: 405.3354203 | L103: 394.5963961 | M103: 392.4565168 | N103: =HLOOKUP($A$60,StatePercentBlock,$A103,FALSE)*HLOOKUP(N$59,INDIRECT(SelectedRegion),$B103,FALSE) -> 389.6033443 | O103: 389.0221425 | P103: 411.5437123 | Q103: 422.6922196 | R103: 422.6922196 | S103: 422.6922196 | T103: 422.6922196 | U103: 422.6922196 | V103: 435.9013515 | W103: 435.9013515 | X103: 435.9013515 | Y103: 435.9013515 | Z103: 435.9013515 | AA103: 435.9013515 | AB103: 435.9013515 | AC103: 435.9013515 | AD103: 435.9013515 | AE103: 435.9013515 | AF103: 435.9013515 | AG103: 435.9013515 | AH103: 435.9013515 | AI103: 435.9013515 | AJ103: 435.9013515 | AK103: 449.1104833 | AL103: 449.1104833 | AM103: 449.1104833 | AN103: 449.1104833 | AO103: 449.1104833 | AP103: 449.1104833 | AQ103: 449.1104833 | AR103: 449.1104833 | AS103: 449.1104833
A104: 56 | B104: 45 | C104: Lubricants | D104: 0 | E104: 0 | F104: 0 | G104: 0 | H104: 3377.993434 | I104: 3684.53539 | J104: 3635.314958 | K104: 3701.907307 | L104: 3603.828358 | M104: 3584.284951 | N104: 3558.227075 | O104: 3552.918989 | P104: 3758.607315 | Q104: 3860.426052 | R104: 3860.426052 | S104: 3860.426052 | T104: 3860.426052 | U104: 3860.426052 | V104: 3981.064366 | W104: 3981.064366 | X104: 3981.064366 | Y104: 3981.064366 | Z104: 3981.064366 | AA104: 3981.064366 | AB104: 3981.064366 | AC104: 3981.064366 | AD104: 3981.064366 | AE104: 3981.064366 | AF104: 3981.064366 | AG104: 3981.064366 | AH104: 3981.064366 | AI104: 3981.064366 | AJ104: 3981.064366 | AK104: 4101.70268 | AL104: 4101.70268 | AM104: 4101.70268 | AN104: 4101.70268 | AO104: 4101.70268 | AP104: 4101.70268 | AQ104: 4101.70268 | AR104: 4101.70268 | AS104: 4101.70268
A105: 57 | B105: 46 | C105: Electricity Sales (kWh) | D105: 0 | E105: 0 | F105: 0 | G105: 0 | H105: 148.312181 | I105: 159.8365721 | J105: 199.8749206 | K105: 205.4985067 | L105: 199.0828663 | M105: 266.1302688 | N105: 306.8814662 | O105: 369.2161452 | P105: 235.279751 | Q105: 316.8217486 | R105: 435.6299043 | S105: 514.8353414 | T105: 633.6434971 | U105: 792.0543714 | V105: 950.4652457 | W105: 1148.478839 | X105: 1386.09515 | Y105: 1623.711461 | Z105: 1861.327773 | AA105: 2059.341366 | AB105: 2296.957677 | AC105: 2534.573988 | AD105: 2772.1903 | AE105: 2970.203893 | AF105: 3207.820204 | AG105: 3405.833797 | AH105: 3603.84739 | AI105: 3801.860983 | AJ105: 3999.874576 | AK105: 4158.28545 | AL105: 4316.696324 | AM105: 4435.50448 | AN105: 4593.915354 | AO105: 4712.72351 | AP105: 4831.531666 | AQ105: 4950.339821 | AR105: 5069.147977 | AS105: 5187.956133
A106: 58 | B106: 47 | C106: Electric Generators | D106: =SUM(D107:D110) -> 0 | E106: 0 | F106: 0 | G106: 0 | H106: 362191.0864 | I106: 410036.1462 | J106: 464356.0368 | K106: 485292.3972 | L106: 469568.9965 | M106: 462886.3743 | N106: 499718.0187 | O106: 493951.0198 | P106: =SUM(P107:P110) -> 461393.6554 | Q106: 467283.3112 | R106: 456758.7318 | S106: 441509.0164 | T106: 411456.7476 | U106: 364671.7833 | V106: 313525.4251 | W106: 283415.0646 | X106: 282221.3418 | Y106: =SUM(Y107:Y110) -> 279174.6911 | Z106: 266323.982 | AA106: 260039.8447 | AB106: 254772.8405 | AC106: 244780.9637 | AD106: 247890.6705 | AE106: 248498.3279 | AF106: 250657.1658 | AG106: 255377.226 | AH106: 260263.106 | AI106: 259629.5032 | AJ106: 263119.5321 | AK106: 266039.0778 | AL106: 267346.6024 | AM106: 245054.1688 | AN106: 246991.3494 | AO106: 245755.7037 | AP106: 240779.1545 | AQ106: 246017.8071 | AR106: 248492.3069 | AS106: 251474.1703
A107: 59 | B107: 48 | C107: Coal | D107: =HLOOKUP($A$60,StatePercentBlock,$A107,FALSE)*HLOOKUP(D$59,INDIRECT(SelectedRegion),$B107,FALSE) -> 0 | E107: 0 | F107: =IF(Scenariocell=4,HLOOKUP($A$60,StatePercentBlock,$A107,FALSE)*HLOOKUP(F$59,INDIRECT(SelectedRegion),$B107,FALSE),VLOOKUP($C107,'CAMD Data'!$B$3:$AQ$6,'Consumption Projs'!F$59-2008,FALSE)) -> 0 | G107: =IF(Scenariocell=4,HLOOKUP($A$60,StatePercentBlock,$A107,FALSE)*HLOOKUP(G$59,INDIRECT(SelectedRegion),$B107,FALSE),VLOOKUP($C107,'CAMD Data'!$B$3:$AQ$6,'Consumption Projs'!G$59-2008,FALSE)) -> 0 | H107: =IF(Scenariocell=4,HLOOKUP($A$60,StatePercentBlock,$A107,FALSE)*HLOOKUP(H$59,INDIRECT(SelectedRegion),$B107,FALSE),VLOOKUP($C107,'CAMD Data'!$B$3:$AQ$6,'Consumption Projs'!H$59-2008,FALSE)) -> 89585.32457 | I107: =IF(Scenariocell=4,HLOOKUP($A$60,StatePercentBlock,$A107,FALSE)*HLOOKUP(I$59,INDIRECT(SelectedRegion),$B107,FALSE),VLOOKUP($C107,'CAMD Data'!$B$3:$AQ$6,'Consumption Projs'!I$59-2008,FALSE)) -> 93548.07157 | J107: =IF(Scenariocell=4,HLOOKUP($A$60,StatePercentBlock,$A107,FALSE)*HLOOKUP(J$59,INDIRECT(SelectedRegion),$B107,FALSE),VLOOKUP($C107,'CAMD Data'!$B$3:$AQ$6,'Consumption Projs'!J$59-2008,FALSE)) -> 78356.74716 | K107: =IF(Scenariocell=4,HLOOKUP($A$60,StatePercentBlock,$A107,FALSE)*HLOOKUP(K$59,INDIRECT(SelectedRegion),$B107,FALSE),VLOOKUP($C107,'CAMD Data'!$B$3:$AQ$6,'Consumption Projs'!K$59-2008,FALSE)) -> 76809.68427 | L107: =IF(Scenariocell=4,HLOOKUP($A$60,StatePercentBlock,$A107,FALSE)*HLOOKUP(L$59,INDIRECT(SelectedRegion),$B107,FALSE),VLOOKUP($C107,'CAMD Data'!$B$3:$AQ$6,'Consumption Projs'!L$59-2008,FALSE)) -> 67920.85801 | M107: =IF(Scenariocell=4,HLOOKUP($A$60,StatePercentBlock,$A107,FALSE)*HLOOKUP(M$59,INDIRECT(SelectedRegion),$B107,FALSE),VLOOKUP($C107,'CAMD Data'!$B$3:$AQ$6,'Consumption Projs'!M$59-2008,FALSE)) -> 57481.81287 | N107: =IF(Scenariocell=4,HLOOKUP($A$60,StatePercentBlock,$A107,FALSE)*HLOOKUP(N$59,INDIRECT(SelectedRegion),$B107,FALSE),VLOOKUP($C107,'CAMD Data'!$B$3:$AQ$6,'Consumption Projs'!N$59-2008,FALSE)) -> 50099.87384 | O107: =IF(Scenariocell=4,HLOOKUP($A$60,StatePercentBlock,$A107,FALSE)*HLOOKUP(O$59,INDIRECT(SelectedRegion),$B107,FALSE),VLOOKUP($C107,'CAMD Data'!$B$3:$AQ$6,'Consumption Projs'!O$59-2008,FALSE)) -> 47654.0501 | P107: =IF(Scenariocell=4,HLOOKUP($A$60,StatePercentBlock,$A107,FALSE)*HLOOKUP(P$59,INDIRECT(SelectedRegion),$B107,FALSE),VLOOKUP($C107,'CAMD Data'!$B$3:$AQ$6,'Consumption Projs'!P$59-2008,FALSE)) -> 66598.62735 | Q107: =IF(Scenariocell=4,HLOOKUP($A$60,StatePercentBlock,$A107,FALSE)*HLOOKUP(Q$59,INDIRECT(SelectedRegion),$B107,FALSE),VLOOKUP($C107,'CAMD Data'!$B$3:$AQ$6,'Consumption Projs'!Q$59-2008,FALSE)) -> 52326.19896 | R107: =IF(Scenariocell=4,HLOOKUP($A$60,StatePercentBlock,$A107,FALSE)*HLOOKUP(R$59,INDIRECT(SelectedRegion),$B107,FALSE),VLOOKUP($C107,'CAMD Data'!$B$3:$AQ$6,'Consumption Projs'!R$59-2008,FALSE)) -> 48759.93812 | S107: =IF(Scenariocell=4,HLOOKUP($A$60,StatePercentBlock,$A107,FALSE)*HLOOKUP(S$59,INDIRECT(SelectedRegion),$B107,FALSE),VLOOKUP($C107,'CAMD Data'!$B$3:$AQ$6,'Consumption Projs'!S$59-2008,FALSE)) -> 52673.3571 | T107: =IF(Scenariocell=4,HLOOKUP($A$60,StatePercentBlock,$A107,FALSE)*HLOOKUP(T$59,INDIRECT(SelectedRegion),$B107,FALSE),VLOOKUP($C107,'CAMD Data'!$B$3:$AQ$6,'Consumption Projs'!T$59-2008,FALSE)) -> 44404.68151 | U107: =IF(Scenariocell=4,HLOOKUP($A$60,StatePercentBlock,$A107,FALSE)*HLOOKUP(U$59,INDIRECT(SelectedRegion),$B107,FALSE),VLOOKUP($C107,'CAMD Data'!$B$3:$AQ$6,'Consumption Projs'!U$59-2008,FALSE)) -> 34684.25372 | V107: =IF(Scenariocell=4,HLOOKUP($A$60,StatePercentBlock,$A107,FALSE)*HLOOKUP(V$59,INDIRECT(SelectedRegion),$B107,FALSE),VLOOKUP($C107,'CAMD Data'!$B$3:$AQ$6,'Consumption Projs'!V$59-2008,FALSE)) -> 28056.68931 | W107: =IF(Scenariocell=4,HLOOKUP($A$60,StatePercentBlock,$A107,FALSE)*HLOOKUP(W$59,INDIRECT(SelectedRegion),$B107,FALSE),VLOOKUP($C107,'CAMD Data'!$B$3:$AQ$6,'Consumption Projs'!W$59-2008,FALSE)) -> 25784.38152 | X107: =IF(Scenariocell=4,HLOOKUP($A$60,StatePercentBlock,$A107,FALSE)*HLOOKUP(X$59,INDIRECT(SelectedRegion),$B107,FALSE),VLOOKUP($C107,'CAMD Data'!$B$3:$AQ$6,'Consumption Projs'!X$59-2008,FALSE)) -> 24301.06948 | Y107: =IF(Scenariocell=4,HLOOKUP($A$60,StatePercentBlock,$A107,FALSE)*HLOOKUP(Y$59,INDIRECT(SelectedRegion),$B107,FALSE),VLOOKUP($C107,'CAMD Data'!$B$3:$AQ$6,'Consumption Projs'!Y$59-2008,FALSE)) -> 25405.66355 | Z107: =IF(Scenariocell=4,HLOOKUP($A$60,StatePercentBlock,$A107,FALSE)*HLOOKUP(Z$59,INDIRECT(SelectedRegion),$B107,FALSE),VLOOKUP($C107,'CAMD Data'!$B$3:$AQ$6,'Consumption Projs'!Z$59-2008,FALSE)) -> 26194.65931 | AA107: =IF(Scenariocell=4,HLOOKUP($A$60,StatePercentBlock,$A107,FALSE)*HLOOKUP(AA$59,INDIRECT(SelectedRegion),$B107,FALSE),VLOOKUP($C107,'CAMD Data'!$B$3:$AQ$6,'Consumption Projs'!AA$59-2008,FALSE)) -> 26888.97558 | AB107: =IF(Scenariocell=4,HLOOKUP($A$60,StatePercentBlock,$A107,FALSE)*HLOOKUP(AB$59,INDIRECT(SelectedRegion),$B107,FALSE),VLOOKUP($C107,'CAMD Data'!$B$3:$AQ$6,'Consumption Projs'!AB$59-2008,FALSE)) -> 27173.01406 | AC107: =IF(Scenariocell=4,HLOOKUP($A$60,StatePercentBlock,$A107,FALSE)*HLOOKUP(AC$59,INDIRECT(SelectedRegion),$B107,FALSE),VLOOKUP($C107,'CAMD Data'!$B$3:$AQ$6,'Consumption Projs'!AC$59-2008,FALSE)) -> 27173.01406 | AD107: =IF(Scenariocell=4,HLOOKUP($A$60,StatePercentBlock,$A107,FALSE)*HLOOKUP(AD$59,INDIRECT(SelectedRegion),$B107,FALSE),VLOOKUP($C107,'CAMD Data'!$B$3:$AQ$6,'Consumption Projs'!AD$59-2008,FALSE)) -> 26952.09524 | AE107: =IF(Scenariocell=4,HLOOKUP($A$60,StatePercentBlock,$A107,FALSE)*HLOOKUP(AE$59,INDIRECT(SelectedRegion),$B107,FALSE),VLOOKUP($C107,'CAMD Data'!$B$3:$AQ$6,'Consumption Projs'!AE$59-2008,FALSE)) -> 25973.7405 | AF107: =IF(Scenariocell=4,HLOOKUP($A$60,StatePercentBlock,$A107,FALSE)*HLOOKUP(AF$59,INDIRECT(SelectedRegion),$B107,FALSE),VLOOKUP($C107,'CAMD Data'!$B$3:$AQ$6,'Consumption Projs'!AF$59-2008,FALSE)) -> 26415.57813 | AG107: =IF(Scenariocell=4,HLOOKUP($A$60,StatePercentBlock,$A107,FALSE)*HLOOKUP(AG$59,INDIRECT(SelectedRegion),$B107,FALSE),VLOOKUP($C107,'CAMD Data'!$B$3:$AQ$6,'Consumption Projs'!AG$59-2008,FALSE)) -> 27646.41152 | AH107: =IF(Scenariocell=4,HLOOKUP($A$60,StatePercentBlock,$A107,FALSE)*HLOOKUP(AH$59,INDIRECT(SelectedRegion),$B107,FALSE),VLOOKUP($C107,'CAMD Data'!$B$3:$AQ$6,'Consumption Projs'!AH$59-2008,FALSE)) -> 27457.05253 | AI107: =IF(Scenariocell=4,HLOOKUP($A$60,StatePercentBlock,$A107,FALSE)*HLOOKUP(AI$59,INDIRECT(SelectedRegion),$B107,FALSE),VLOOKUP($C107,'CAMD Data'!$B$3:$AQ$6,'Consumption Projs'!AI$59-2008,FALSE)) -> 27299.25338 | AJ107: =IF(Scenariocell=4,HLOOKUP($A$60,StatePercentBlock,$A107,FALSE)*HLOOKUP(AJ$59,INDIRECT(SelectedRegion),$B107,FALSE),VLOOKUP($C107,'CAMD Data'!$B$3:$AQ$6,'Consumption Projs'!AJ$59-2008,FALSE)) -> 27141.45423 | AK107: =IF(Scenariocell=4,HLOOKUP($A$60,StatePercentBlock,$A107,FALSE)*HLOOKUP(AK$59,INDIRECT(SelectedRegion),$B107,FALSE),VLOOKUP($C107,'CAMD Data'!$B$3:$AQ$6,'Consumption Projs'!AK$59-2008,FALSE)) -> 26888.97558 | AL107: =IF(Scenariocell=4,HLOOKUP($A$60,StatePercentBlock,$A107,FALSE)*HLOOKUP(AL$59,INDIRECT(SelectedRegion),$B107,FALSE),VLOOKUP($C107,'CAMD Data'!$B$3:$AQ$6,'Consumption Projs'!AL$59-2008,FALSE)) -> 26320.89863 | AM107: =IF(Scenariocell=4,HLOOKUP($A$60,StatePercentBlock,$A107,FALSE)*HLOOKUP(AM$59,INDIRECT(SelectedRegion),$B107,FALSE),VLOOKUP($C107,'CAMD Data'!$B$3:$AQ$6,'Consumption Projs'!AM$59-2008,FALSE)) -> 24963.82592 | AN107: =IF(Scenariocell=4,HLOOKUP($A$60,StatePercentBlock,$A107,FALSE)*HLOOKUP(AN$59,INDIRECT(SelectedRegion),$B107,FALSE),VLOOKUP($C107,'CAMD Data'!$B$3:$AQ$6,'Consumption Projs'!AN$59-2008,FALSE)) -> 24521.9883 | AO107: =IF(Scenariocell=4,HLOOKUP($A$60,StatePercentBlock,$A107,FALSE)*HLOOKUP(AO$59,INDIRECT(SelectedRegion),$B107,FALSE),VLOOKUP($C107,'CAMD Data'!$B$3:$AQ$6,'Consumption Projs'!AO$59-2008,FALSE)) -> 24237.94982 | AP107: =IF(Scenariocell=4,HLOOKUP($A$60,StatePercentBlock,$A107,FALSE)*HLOOKUP(AP$59,INDIRECT(SelectedRegion),$B107,FALSE),VLOOKUP($C107,'CAMD Data'!$B$3:$AQ$6,'Consumption Projs'!AP$59-2008,FALSE)) -> 23543.63355 | AQ107: =IF(Scenariocell=4,HLOOKUP($A$60,StatePercentBlock,$A107,FALSE)*HLOOKUP(AQ$59,INDIRECT(SelectedRegion),$B107,FALSE),VLOOKUP($C107,'CAMD Data'!$B$3:$AQ$6,'Consumption Projs'!AQ$59-2008,FALSE)) -> 22596.83864 | AR107: =IF(Scenariocell=4,HLOOKUP($A$60,StatePercentBlock,$A107,FALSE)*HLOOKUP(AR$59,INDIRECT(SelectedRegion),$B107,FALSE),VLOOKUP($C107,'CAMD Data'!$B$3:$AQ$6,'Consumption Projs'!AR$59-2008,FALSE)) -> 22533.71897 | AS107: =IF(Scenariocell=4,HLOOKUP($A$60,StatePercentBlock,$A107,FALSE)*HLOOKUP(AS$59,INDIRECT(SelectedRegion),$B107,FALSE),VLOOKUP($C107,'CAMD Data'!$B$3:$AQ$6,'Consumption Projs'!AS$59-2008,FALSE)) -> 22502.15914
A108: 60 | B108: 49 | C108: Natural Gas | D108: 0 | E108: 0 | F108: =IF(Scenariocell=4,HLOOKUP($A$60,StatePercentBlock,$A108,FALSE)*HLOOKUP(F$59,INDIRECT(SelectedRegion),$B108,FALSE),VLOOKUP($C108,'CAMD Data'!$B$3:$AQ$6,'Consumption Projs'!F$59-2008,FALSE)) -> 0 | G108: =IF(Scenariocell=4,HLOOKUP($A$60,StatePercentBlock,$A108,FALSE)*HLOOKUP(G$59,INDIRECT(SelectedRegion),$B108,FALSE),VLOOKUP($C108,'CAMD Data'!$B$3:$AQ$6,'Consumption Projs'!G$59-2008,FALSE)) -> 0 | H108: =IF(Scenariocell=4,HLOOKUP($A$60,StatePercentBlock,$A108,FALSE)*HLOOKUP(H$59,INDIRECT(SelectedRegion),$B108,FALSE),VLOOKUP($C108,'CAMD Data'!$B$3:$AQ$6,'Consumption Projs'!H$59-2008,FALSE)) -> 268027.0193 | I108: =IF(Scenariocell=4,HLOOKUP($A$60,StatePercentBlock,$A108,FALSE)*HLOOKUP(I$59,INDIRECT(SelectedRegion),$B108,FALSE),VLOOKUP($C108,'CAMD Data'!$B$3:$AQ$6,'Consumption Projs'!I$59-2008,FALSE)) -> 300747.5609 | J108: =IF(Scenariocell=4,HLOOKUP($A$60,StatePercentBlock,$A108,FALSE)*HLOOKUP(J$59,INDIRECT(SelectedRegion),$B108,FALSE),VLOOKUP($C108,'CAMD Data'!$B$3:$AQ$6,'Consumption Projs'!J$59-2008,FALSE)) -> 369556.6996 | K108: =IF(Scenariocell=4,HLOOKUP($A$60,StatePercentBlock,$A108,FALSE)*HLOOKUP(K$59,INDIRECT(SelectedRegion),$B108,FALSE),VLOOKUP($C108,'CAMD Data'!$B$3:$AQ$6,'Consumption Projs'!K$59-2008,FALSE)) -> 391718.0479 | L108: =IF(Scenariocell=4,HLOOKUP($A$60,StatePercentBlock,$A108,FALSE)*HLOOKUP(L$59,INDIRECT(SelectedRegion),$B108,FALSE),VLOOKUP($C108,'CAMD Data'!$B$3:$AQ$6,'Consumption Projs'!L$59-2008,FALSE)) -> 392679.1713 | M108: =IF(Scenariocell=4,HLOOKUP($A$60,StatePercentBlock,$A108,FALSE)*HLOOKUP(M$59,INDIRECT(SelectedRegion),$B108,FALSE),VLOOKUP($C108,'CAMD Data'!$B$3:$AQ$6,'Consumption Projs'!M$59-2008,FALSE)) -> 400535.7999 | N108: =IF(Scenariocell=4,HLOOKUP($A$60,StatePercentBlock,$A108,FALSE)*HLOOKUP(N$59,INDIRECT(SelectedRegion),$B108,FALSE),VLOOKUP($C108,'CAMD Data'!$B$3:$AQ$6,'Consumption Projs'!N$59-2008,FALSE)) -> 442538.4778 | O108: =IF(Scenariocell=4,HLOOKUP($A$60,StatePercentBlock,$A108,FALSE)*HLOOKUP(O$59,INDIRECT(SelectedRegion),$B108,FALSE),VLOOKUP($C108,'CAMD Data'!$B$3:$AQ$6,'Consumption Projs'!O$59-2008,FALSE)) -> 439323.6311 | P108: =IF(Scenariocell=4,HLOOKUP($A$60,StatePercentBlock,$A108,FALSE)*HLOOKUP(P$59,INDIRECT(SelectedRegion),$B108,FALSE),VLOOKUP($C108,'CAMD Data'!$B$3:$AQ$6,'Consumption Projs'!P$59-2008,FALSE)) -> 390682.6992 | Q108: =IF(Scenariocell=4,HLOOKUP($A$60,StatePercentBlock,$A108,FALSE)*HLOOKUP(Q$59,INDIRECT(SelectedRegion),$B108,FALSE),VLOOKUP($C108,'CAMD Data'!$B$3:$AQ$6,'Consumption Projs'!Q$59-2008,FALSE)) -> 410777.1564 | R108: =IF(Scenariocell=4,HLOOKUP($A$60,StatePercentBlock,$A108,FALSE)*HLOOKUP(R$59,INDIRECT(SelectedRegion),$B108,FALSE),VLOOKUP($C108,'CAMD Data'!$B$3:$AQ$6,'Consumption Projs'!R$59-2008,FALSE)) -> 404274.5064 | S108: =IF(Scenariocell=4,HLOOKUP($A$60,StatePercentBlock,$A108,FALSE)*HLOOKUP(S$59,INDIRECT(SelectedRegion),$B108,FALSE),VLOOKUP($C108,'CAMD Data'!$B$3:$AQ$6,'Consumption Projs'!S$59-2008,FALSE)) -> 384925.1577 | T108: =IF(Scenariocell=4,HLOOKUP($A$60,StatePercentBlock,$A108,FALSE)*HLOOKUP(T$59,INDIRECT(SelectedRegion),$B108,FALSE),VLOOKUP($C108,'CAMD Data'!$B$3:$AQ$6,'Consumption Projs'!T$59-2008,FALSE)) -> 363513.9932 | U108: =IF(Scenariocell=4,HLOOKUP($A$60,StatePercentBlock,$A108,FALSE)*HLOOKUP(U$59,INDIRECT(SelectedRegion),$B108,FALSE),VLOOKUP($C108,'CAMD Data'!$B$3:$AQ$6,'Consumption Projs'!U$59-2008,FALSE)) -> 327194.3141 | V108: =IF(Scenariocell=4,HLOOKUP($A$60,StatePercentBlock,$A108,FALSE)*HLOOKUP(V$59,INDIRECT(SelectedRegion),$B108,FALSE),VLOOKUP($C108,'CAMD Data'!$B$3:$AQ$6,'Consumption Projs'!V$59-2008,FALSE)) -> 283420.3778 | W108: =IF(Scenariocell=4,HLOOKUP($A$60,StatePercentBlock,$A108,FALSE)*HLOOKUP(W$59,INDIRECT(SelectedRegion),$B108,FALSE),VLOOKUP($C108,'CAMD Data'!$B$3:$AQ$6,'Consumption Projs'!W$59-2008,FALSE)) -> 256140.9682 | X108: =IF(Scenariocell=4,HLOOKUP($A$60,StatePercentBlock,$A108,FALSE)*HLOOKUP(X$59,INDIRECT(SelectedRegion),$B108,FALSE),VLOOKUP($C108,'CAMD Data'!$B$3:$AQ$6,'Consumption Projs'!X$59-2008,FALSE)) -> 256616.7718 | Y108: =IF(Scenariocell=4,HLOOKUP($A$60,StatePercentBlock,$A108,FALSE)*HLOOKUP(Y$59,INDIRECT(SelectedRegion),$B108,FALSE),VLOOKUP($C108,'CAMD Data'!$B$3:$AQ$6,'Consumption Projs'!Y$59-2008,FALSE)) -> 252651.7413 | Z108: =IF(Scenariocell=4,HLOOKUP($A$60,StatePercentBlock,$A108,FALSE)*HLOOKUP(Z$59,INDIRECT(SelectedRegion),$B108,FALSE),VLOOKUP($C108,'CAMD Data'!$B$3:$AQ$6,'Consumption Projs'!Z$59-2008,FALSE)) -> 239012.0365 | AA108: =IF(Scenariocell=4,HLOOKUP($A$60,StatePercentBlock,$A108,FALSE)*HLOOKUP(AA$59,INDIRECT(SelectedRegion),$B108,FALSE),VLOOKUP($C108,'CAMD Data'!$B$3:$AQ$6,'Consumption Projs'!AA$59-2008,FALSE)) -> 232033.5829 | AB108: =IF(Scenariocell=4,HLOOKUP($A$60,StatePercentBlock,$A108,FALSE)*HLOOKUP(AB$59,INDIRECT(SelectedRegion),$B108,FALSE),VLOOKUP($C108,'CAMD Data'!$B$3:$AQ$6,'Consumption Projs'!AB$59-2008,FALSE)) -> 226482.5403 | AC108: =IF(Scenariocell=4,HLOOKUP($A$60,StatePercentBlock,$A108,FALSE)*HLOOKUP(AC$59,INDIRECT(SelectedRegion),$B108,FALSE),VLOOKUP($C108,'CAMD Data'!$B$3:$AQ$6,'Consumption Projs'!AC$59-2008,FALSE)) -> 216490.6635 | AD108: =IF(Scenariocell=4,HLOOKUP($A$60,StatePercentBlock,$A108,FALSE)*HLOOKUP(AD$59,INDIRECT(SelectedRegion),$B108,FALSE),VLOOKUP($C108,'CAMD Data'!$B$3:$AQ$6,'Consumption Projs'!AD$59-2008,FALSE)) -> 219821.2891 | AE108: =IF(Scenariocell=4,HLOOKUP($A$60,StatePercentBlock,$A108,FALSE)*HLOOKUP(AE$59,INDIRECT(SelectedRegion),$B108,FALSE),VLOOKUP($C108,'CAMD Data'!$B$3:$AQ$6,'Consumption Projs'!AE$59-2008,FALSE)) -> 221407.3013 | AF108: =IF(Scenariocell=4,HLOOKUP($A$60,StatePercentBlock,$A108,FALSE)*HLOOKUP(AF$59,INDIRECT(SelectedRegion),$B108,FALSE),VLOOKUP($C108,'CAMD Data'!$B$3:$AQ$6,'Consumption Projs'!AF$59-2008,FALSE)) -> 223310.5159 | AG108: =IF(Scenariocell=4,HLOOKUP($A$60,StatePercentBlock,$A108,FALSE)*HLOOKUP(AG$59,INDIRECT(SelectedRegion),$B108,FALSE),VLOOKUP($C108,'CAMD Data'!$B$3:$AQ$6,'Consumption Projs'!AG$59-2008,FALSE)) -> 226799.7427 | AH108: =IF(Scenariocell=4,HLOOKUP($A$60,StatePercentBlock,$A108,FALSE)*HLOOKUP(AH$59,INDIRECT(SelectedRegion),$B108,FALSE),VLOOKUP($C108,'CAMD Data'!$B$3:$AQ$6,'Consumption Projs'!AH$59-2008,FALSE)) -> 231874.9817 | AI108: =IF(Scenariocell=4,HLOOKUP($A$60,StatePercentBlock,$A108,FALSE)*HLOOKUP(AI$59,INDIRECT(SelectedRegion),$B108,FALSE),VLOOKUP($C108,'CAMD Data'!$B$3:$AQ$6,'Consumption Projs'!AI$59-2008,FALSE)) -> 231399.178 | AJ108: =IF(Scenariocell=4,HLOOKUP($A$60,StatePercentBlock,$A108,FALSE)*HLOOKUP(AJ$59,INDIRECT(SelectedRegion),$B108,FALSE),VLOOKUP($C108,'CAMD Data'!$B$3:$AQ$6,'Consumption Projs'!AJ$59-2008,FALSE)) -> 235047.0061 | AK108: =IF(Scenariocell=4,HLOOKUP($A$60,StatePercentBlock,$A108,FALSE)*HLOOKUP(AK$59,INDIRECT(SelectedRegion),$B108,FALSE),VLOOKUP($C108,'CAMD Data'!$B$3:$AQ$6,'Consumption Projs'!AK$59-2008,FALSE)) -> 238219.0304 | AL108: =IF(Scenariocell=4,HLOOKUP($A$60,StatePercentBlock,$A108,FALSE)*HLOOKUP(AL$59,INDIRECT(SelectedRegion),$B108,FALSE),VLOOKUP($C108,'CAMD Data'!$B$3:$AQ$6,'Consumption Projs'!AL$59-2008,FALSE)) -> 240280.8463 | AM108: =IF(Scenariocell=4,HLOOKUP($A$60,StatePercentBlock,$A108,FALSE)*HLOOKUP(AM$59,INDIRECT(SelectedRegion),$B108,FALSE),VLOOKUP($C108,'CAMD Data'!$B$3:$AQ$6,'Consumption Projs'!AM$59-2008,FALSE)) -> 219345.4854 | AN108: =IF(Scenariocell=4,HLOOKUP($A$60,StatePercentBlock,$A108,FALSE)*HLOOKUP(AN$59,INDIRECT(SelectedRegion),$B108,FALSE),VLOOKUP($C108,'CAMD Data'!$B$3:$AQ$6,'Consumption Projs'!AN$59-2008,FALSE)) -> 221724.5037 | AO108: =IF(Scenariocell=4,HLOOKUP($A$60,StatePercentBlock,$A108,FALSE)*HLOOKUP(AO$59,INDIRECT(SelectedRegion),$B108,FALSE),VLOOKUP($C108,'CAMD Data'!$B$3:$AQ$6,'Consumption Projs'!AO$59-2008,FALSE)) -> 220772.8964 | AP108: =IF(Scenariocell=4,HLOOKUP($A$60,StatePercentBlock,$A108,FALSE)*HLOOKUP(AP$59,INDIRECT(SelectedRegion),$B108,FALSE),VLOOKUP($C108,'CAMD Data'!$B$3:$AQ$6,'Consumption Projs'!AP$59-2008,FALSE)) -> 216490.6635 | AQ108: =IF(Scenariocell=4,HLOOKUP($A$60,StatePercentBlock,$A108,FALSE)*HLOOKUP(AQ$59,INDIRECT(SelectedRegion),$B108,FALSE),VLOOKUP($C108,'CAMD Data'!$B$3:$AQ$6,'Consumption Projs'!AQ$59-2008,FALSE)) -> 222676.111 | AR108: =IF(Scenariocell=4,HLOOKUP($A$60,StatePercentBlock,$A108,FALSE)*HLOOKUP(AR$59,INDIRECT(SelectedRegion),$B108,FALSE),VLOOKUP($C108,'CAMD Data'!$B$3:$AQ$6,'Consumption Projs'!AR$59-2008,FALSE)) -> 225213.7305 | AS108: =IF(Scenariocell=4,HLOOKUP($A$60,StatePercentBlock,$A108,FALSE)*HLOOKUP(AS$59,INDIRECT(SelectedRegion),$B108,FALSE),VLOOKUP($C108,'CAMD Data'!$B$3:$AQ$6,'Consumption Projs'!AS$59-2008,FALSE)) -> 228227.1537
A109: 61 | B109: 50 | C109: Distillate Fuel | D109: 0 | E109: 0 | F109: =IF(Scenariocell=4,HLOOKUP($A$60,StatePercentBlock,$A109,FALSE)*HLOOKUP(F$59,INDIRECT(SelectedRegion),$B109,FALSE),VLOOKUP($C109,'CAMD Data'!$B$3:$AQ$6,'Consumption Projs'!F$59-2008,FALSE)) -> 0 | G109: =IF(Scenariocell=4,HLOOKUP($A$60,StatePercentBlock,$A109,FALSE)*HLOOKUP(G$59,INDIRECT(SelectedRegion),$B109,FALSE),VLOOKUP($C109,'CAMD Data'!$B$3:$AQ$6,'Consumption Projs'!G$59-2008,FALSE)) -> 0 | H109: =IF(Scenariocell=4,HLOOKUP($A$60,StatePercentBlock,$A109,FALSE)*HLOOKUP(H$59,INDIRECT(SelectedRegion),$B109,FALSE),VLOOKUP($C109,'CAMD Data'!$B$3:$AQ$6,'Consumption Projs'!H$59-2008,FALSE)) -> 3276.441718 | I109: =IF(Scenariocell=4,HLOOKUP($A$60,StatePercentBlock,$A109,FALSE)*HLOOKUP(I$59,INDIRECT(SelectedRegion),$B109,FALSE),VLOOKUP($C109,'CAMD Data'!$B$3:$AQ$6,'Consumption Projs'!I$59-2008,FALSE)) -> 5068.754962 | J109: =IF(Scenariocell=4,HLOOKUP($A$60,StatePercentBlock,$A109,FALSE)*HLOOKUP(J$59,INDIRECT(SelectedRegion),$B109,FALSE),VLOOKUP($C109,'CAMD Data'!$B$3:$AQ$6,'Consumption Projs'!J$59-2008,FALSE)) -> 3752.219415 | K109: =IF(Scenariocell=4,HLOOKUP($A$60,StatePercentBlock,$A109,FALSE)*HLOOKUP(K$59,INDIRECT(SelectedRegion),$B109,FALSE),VLOOKUP($C109,'CAMD Data'!$B$3:$AQ$6,'Consumption Projs'!K$59-2008,FALSE)) -> 3554.832191 | L109: =IF(Scenariocell=4,HLOOKUP($A$60,StatePercentBlock,$A109,FALSE)*HLOOKUP(L$59,INDIRECT(SelectedRegion),$B109,FALSE),VLOOKUP($C109,'CAMD Data'!$B$3:$AQ$6,'Consumption Projs'!L$59-2008,FALSE)) -> 2603.276795 | M109: =IF(Scenariocell=4,HLOOKUP($A$60,StatePercentBlock,$A109,FALSE)*HLOOKUP(M$59,INDIRECT(SelectedRegion),$B109,FALSE),VLOOKUP($C109,'CAMD Data'!$B$3:$AQ$6,'Consumption Projs'!M$59-2008,FALSE)) -> 3901.37712 | N109: =IF(Scenariocell=4,HLOOKUP($A$60,StatePercentBlock,$A109,FALSE)*HLOOKUP(N$59,INDIRECT(SelectedRegion),$B109,FALSE),VLOOKUP($C109,'CAMD Data'!$B$3:$AQ$6,'Consumption Projs'!N$59-2008,FALSE)) -> 5320.330567 | O109: =IF(Scenariocell=4,HLOOKUP($A$60,StatePercentBlock,$A109,FALSE)*HLOOKUP(O$59,INDIRECT(SelectedRegion),$B109,FALSE),VLOOKUP($C109,'CAMD Data'!$B$3:$AQ$6,'Consumption Projs'!O$59-2008,FALSE)) -> 5214.002165 | P109: =IF(Scenariocell=4,HLOOKUP($A$60,StatePercentBlock,$A109,FALSE)*HLOOKUP(P$59,INDIRECT(SelectedRegion),$B109,FALSE),VLOOKUP($C109,'CAMD Data'!$B$3:$AQ$6,'Consumption Projs'!P$59-2008,FALSE)) -> 4080.887766 | Q109: =IF(Scenariocell=4,HLOOKUP($A$60,StatePercentBlock,$A109,FALSE)*HLOOKUP(Q$59,INDIRECT(SelectedRegion),$B109,FALSE),VLOOKUP($C109,'CAMD Data'!$B$3:$AQ$6,'Consumption Projs'!Q$59-2008,FALSE)) -> 3724.287261 | R109: =IF(Scenariocell=4,HLOOKUP($A$60,StatePercentBlock,$A109,FALSE)*HLOOKUP(R$59,INDIRECT(SelectedRegion),$B109,FALSE),VLOOKUP($C109,'CAMD Data'!$B$3:$AQ$6,'Consumption Projs'!R$59-2008,FALSE)) -> 3724.287261 | S109: =IF(Scenariocell=4,HLOOKUP($A$60,StatePercentBlock,$A109,FALSE)*HLOOKUP(S$59,INDIRECT(SelectedRegion),$B109,FALSE),VLOOKUP($C109,'CAMD Data'!$B$3:$AQ$6,'Consumption Projs'!S$59-2008,FALSE)) -> 3910.501624 | T109: =IF(Scenariocell=4,HLOOKUP($A$60,StatePercentBlock,$A109,FALSE)*HLOOKUP(T$59,INDIRECT(SelectedRegion),$B109,FALSE),VLOOKUP($C109,'CAMD Data'!$B$3:$AQ$6,'Consumption Projs'!T$59-2008,FALSE)) -> 3538.072898 | U109: =IF(Scenariocell=4,HLOOKUP($A$60,StatePercentBlock,$A109,FALSE)*HLOOKUP(U$59,INDIRECT(SelectedRegion),$B109,FALSE),VLOOKUP($C109,'CAMD Data'!$B$3:$AQ$6,'Consumption Projs'!U$59-2008,FALSE)) -> 2793.215446 | V109: =IF(Scenariocell=4,HLOOKUP($A$60,StatePercentBlock,$A109,FALSE)*HLOOKUP(V$59,INDIRECT(SelectedRegion),$B109,FALSE),VLOOKUP($C109,'CAMD Data'!$B$3:$AQ$6,'Consumption Projs'!V$59-2008,FALSE)) -> 2048.357994 | W109: =IF(Scenariocell=4,HLOOKUP($A$60,StatePercentBlock,$A109,FALSE)*HLOOKUP(W$59,INDIRECT(SelectedRegion),$B109,FALSE),VLOOKUP($C109,'CAMD Data'!$B$3:$AQ$6,'Consumption Projs'!W$59-2008,FALSE)) -> 1489.714904 | X109: =IF(Scenariocell=4,HLOOKUP($A$60,StatePercentBlock,$A109,FALSE)*HLOOKUP(X$59,INDIRECT(SelectedRegion),$B109,FALSE),VLOOKUP($C109,'CAMD Data'!$B$3:$AQ$6,'Consumption Projs'!X$59-2008,FALSE)) -> 1303.500541 | Y109: =IF(Scenariocell=4,HLOOKUP($A$60,StatePercentBlock,$A109,FALSE)*HLOOKUP(Y$59,INDIRECT(SelectedRegion),$B109,FALSE),VLOOKUP($C109,'CAMD Data'!$B$3:$AQ$6,'Consumption Projs'!Y$59-2008,FALSE)) -> 1117.286178 | Z109: =IF(Scenariocell=4,HLOOKUP($A$60,StatePercentBlock,$A109,FALSE)*HLOOKUP(Z$59,INDIRECT(SelectedRegion),$B109,FALSE),VLOOKUP($C109,'CAMD Data'!$B$3:$AQ$6,'Consumption Projs'!Z$59-2008,FALSE)) -> 1117.286178 | AA109: =IF(Scenariocell=4,HLOOKUP($A$60,StatePercentBlock,$A109,FALSE)*HLOOKUP(AA$59,INDIRECT(SelectedRegion),$B109,FALSE),VLOOKUP($C109,'CAMD Data'!$B$3:$AQ$6,'Consumption Projs'!AA$59-2008,FALSE)) -> 1117.286178 | AB109: =IF(Scenariocell=4,HLOOKUP($A$60,StatePercentBlock,$A109,FALSE)*HLOOKUP(AB$59,INDIRECT(SelectedRegion),$B109,FALSE),VLOOKUP($C109,'CAMD Data'!$B$3:$AQ$6,'Consumption Projs'!AB$59-2008,FALSE)) -> 1117.286178 | AC109: =IF(Scenariocell=4,HLOOKUP($A$60,StatePercentBlock,$A109,FALSE)*HLOOKUP(AC$59,INDIRECT(SelectedRegion),$B109,FALSE),VLOOKUP($C109,'CAMD Data'!$B$3:$AQ$6,'Consumption Projs'!AC$59-2008,FALSE)) -> 1117.286178 | AD109: =IF(Scenariocell=4,HLOOKUP($A$60,StatePercentBlock,$A109,FALSE)*HLOOKUP(AD$59,INDIRECT(SelectedRegion),$B109,FALSE),VLOOKUP($C109,'CAMD Data'!$B$3:$AQ$6,'Consumption Projs'!AD$59-2008,FALSE)) -> 1117.286178 | AE109: =IF(Scenariocell=4,HLOOKUP($A$60,StatePercentBlock,$A109,FALSE)*HLOOKUP(AE$59,INDIRECT(SelectedRegion),$B109,FALSE),VLOOKUP($C109,'CAMD Data'!$B$3:$AQ$6,'Consumption Projs'!AE$59-2008,FALSE)) -> 1117.286178 | AF109: =IF(Scenariocell=4,HLOOKUP($A$60,StatePercentBlock,$A109,FALSE)*HLOOKUP(AF$59,INDIRECT(SelectedRegion),$B109,FALSE),VLOOKUP($C109,'CAMD Data'!$B$3:$AQ$6,'Consumption Projs'!AF$59-2008,FALSE)) -> 931.0718152 | AG109: =IF(Scenariocell=4,HLOOKUP($A$60,StatePercentBlock,$A109,FALSE)*HLOOKUP(AG$59,INDIRECT(SelectedRegion),$B109,FALSE),VLOOKUP($C109,'CAMD Data'!$B$3:$AQ$6,'Consumption Projs'!AG$59-2008,FALSE)) -> 931.0718152 | AH109: =IF(Scenariocell=4,HLOOKUP($A$60,StatePercentBlock,$A109,FALSE)*HLOOKUP(AH$59,INDIRECT(SelectedRegion),$B109,FALSE),VLOOKUP($C109,'CAMD Data'!$B$3:$AQ$6,'Consumption Projs'!AH$59-2008,FALSE)) -> 931.0718152 | AI109: =IF(Scenariocell=4,HLOOKUP($A$60,StatePercentBlock,$A109,FALSE)*HLOOKUP(AI$59,INDIRECT(SelectedRegion),$B109,FALSE),VLOOKUP($C109,'CAMD Data'!$B$3:$AQ$6,'Consumption Projs'!AI$59-2008,FALSE)) -> 931.0718152 | AJ109: =IF(Scenariocell=4,HLOOKUP($A$60,StatePercentBlock,$A109,FALSE)*HLOOKUP(AJ$59,INDIRECT(SelectedRegion),$B109,FALSE),VLOOKUP($C109,'CAMD Data'!$B$3:$AQ$6,'Consumption Projs'!AJ$59-2008,FALSE)) -> 931.0718152 | AK109: =IF(Scenariocell=4,HLOOKUP($A$60,StatePercentBlock,$A109,FALSE)*HLOOKUP(AK$59,INDIRECT(SelectedRegion),$B109,FALSE),VLOOKUP($C109,'CAMD Data'!$B$3:$AQ$6,'Consumption Projs'!AK$59-2008,FALSE)) -> 931.0718152 | AL109: =IF(Scenariocell=4,HLOOKUP($A$60,StatePercentBlock,$A109,FALSE)*HLOOKUP(AL$59,INDIRECT(SelectedRegion),$B109,FALSE),VLOOKUP($C109,'CAMD Data'!$B$3:$AQ$6,'Consumption Projs'!AL$59-2008,FALSE)) -> 744.8574522 | AM109: =IF(Scenariocell=4,HLOOKUP($A$60,StatePercentBlock,$A109,FALSE)*HLOOKUP(AM$59,INDIRECT(SelectedRegion),$B109,FALSE),VLOOKUP($C109,'CAMD Data'!$B$3:$AQ$6,'Consumption Projs'!AM$59-2008,FALSE)) -> 744.8574522 | AN109: =IF(Scenariocell=4,HLOOKUP($A$60,StatePercentBlock,$A109,FALSE)*HLOOKUP(AN$59,INDIRECT(SelectedRegion),$B109,FALSE),VLOOKUP($C109,'CAMD Data'!$B$3:$AQ$6,'Consumption Projs'!AN$59-2008,FALSE)) -> 744.8574522 | AO109: =IF(Scenariocell=4,HLOOKUP($A$60,StatePercentBlock,$A109,FALSE)*HLOOKUP(AO$59,INDIRECT(SelectedRegion),$B109,FALSE),VLOOKUP($C109,'CAMD Data'!$B$3:$AQ$6,'Consumption Projs'!AO$59-2008,FALSE)) -> 744.8574522 | AP109: =IF(Scenariocell=4,HLOOKUP($A$60,StatePercentBlock,$A109,FALSE)*HLOOKUP(AP$59,INDIRECT(SelectedRegion),$B109,FALSE),VLOOKUP($C109,'CAMD Data'!$B$3:$AQ$6,'Consumption Projs'!AP$59-2008,FALSE)) -> 744.8574522 | AQ109: =IF(Scenariocell=4,HLOOKUP($A$60,StatePercentBlock,$A109,FALSE)*HLOOKUP(AQ$59,INDIRECT(SelectedRegion),$B109,FALSE),VLOOKUP($C109,'CAMD Data'!$B$3:$AQ$6,'Consumption Projs'!AQ$59-2008,FALSE)) -> 744.8574522 | AR109: =IF(Scenariocell=4,HLOOKUP($A$60,StatePercentBlock,$A109,FALSE)*HLOOKUP(AR$59,INDIRECT(SelectedRegion),$B109,FALSE),VLOOKUP($C109,'CAMD Data'!$B$3:$AQ$6,'Consumption Projs'!AR$59-2008,FALSE)) -> 744.8574522 | AS109: =IF(Scenariocell=4,HLOOKUP($A$60,StatePercentBlock,$A109,FALSE)*HLOOKUP(AS$59,INDIRECT(SelectedRegion),$B109,FALSE),VLOOKUP($C109,'CAMD Data'!$B$3:$AQ$6,'Consumption Projs'!AS$59-2008,FALSE)) -> 744.8574522
A110: 63 | B110: 51 | C110: Residual Fuel | D110: 0 | E110: 0 | F110: =IF(Scenariocell=4,HLOOKUP($A$60,StatePercentBlock,$A110,FALSE)*HLOOKUP(F$59,INDIRECT(SelectedRegion),$B110,FALSE),VLOOKUP($C110,'CAMD Data'!$B$3:$AQ$6,'Consumption Projs'!F$59-2008,FALSE)) -> 0 | G110: =IF(Scenariocell=4,HLOOKUP($A$60,StatePercentBlock,$A110,FALSE)*HLOOKUP(G$59,INDIRECT(SelectedRegion),$B110,FALSE),VLOOKUP($C110,'CAMD Data'!$B$3:$AQ$6,'Consumption Projs'!G$59-2008,FALSE)) -> 0 | H110: =IF(Scenariocell=4,HLOOKUP($A$60,StatePercentBlock,$A110,FALSE)*HLOOKUP(H$59,INDIRECT(SelectedRegion),$B110,FALSE),VLOOKUP($C110,'CAMD Data'!$B$3:$AQ$6,'Consumption Projs'!H$59-2008,FALSE)) -> 1302.300872 | I110: =IF(Scenariocell=4,HLOOKUP($A$60,StatePercentBlock,$A110,FALSE)*HLOOKUP(I$59,INDIRECT(SelectedRegion),$B110,FALSE),VLOOKUP($C110,'CAMD Data'!$B$3:$AQ$6,'Consumption Projs'!I$59-2008,FALSE)) -> 10671.75872 | J110: =IF(Scenariocell=4,HLOOKUP($A$60,StatePercentBlock,$A110,FALSE)*HLOOKUP(J$59,INDIRECT(SelectedRegion),$B110,FALSE),VLOOKUP($C110,'CAMD Data'!$B$3:$AQ$6,'Consumption Projs'!J$59-2008,FALSE)) -> 12690.37064 | K110: =IF(Scenariocell=4,HLOOKUP($A$60,StatePercentBlock,$A110,FALSE)*HLOOKUP(K$59,INDIRECT(SelectedRegion),$B110,FALSE),VLOOKUP($C110,'CAMD Data'!$B$3:$AQ$6,'Consumption Projs'!K$59-2008,FALSE)) -> 13209.83285 | L110: =IF(Scenariocell=4,HLOOKUP($A$60,StatePercentBlock,$A110,FALSE)*HLOOKUP(L$59,INDIRECT(SelectedRegion),$B110,FALSE),VLOOKUP($C110,'CAMD Data'!$B$3:$AQ$6,'Consumption Projs'!L$59-2008,FALSE)) -> 6365.690407 | M110: =IF(Scenariocell=4,HLOOKUP($A$60,StatePercentBlock,$A110,FALSE)*HLOOKUP(M$59,INDIRECT(SelectedRegion),$B110,FALSE),VLOOKUP($C110,'CAMD Data'!$B$3:$AQ$6,'Consumption Projs'!M$59-2008,FALSE)) -> 967.3844477 | N110: =IF(Scenariocell=4,HLOOKUP($A$60,StatePercentBlock,$A110,FALSE)*HLOOKUP(N$59,INDIRECT(SelectedRegion),$B110,FALSE),VLOOKUP($C110,'CAMD Data'!$B$3:$AQ$6,'Consumption Projs'!N$59-2008,FALSE)) -> 1759.336483 | O110: =IF(Scenariocell=4,HLOOKUP($A$60,StatePercentBlock,$A110,FALSE)*HLOOKUP(O$59,INDIRECT(SelectedRegion),$B110,FALSE),VLOOKUP($C110,'CAMD Data'!$B$3:$AQ$6,'Consumption Projs'!O$59-2008,FALSE)) -> 1759.336483 | P110: =IF(Scenariocell=4,HLOOKUP($A$60,StatePercentBlock,$A110,FALSE)*HLOOKUP(P$59,INDIRECT(SelectedRegion),$B110,FALSE),VLOOKUP($C110,'CAMD Data'!$B$3:$AQ$6,'Consumption Projs'!P$59-2008,FALSE)) -> 31.44113372 | Q110: =IF(Scenariocell=4,HLOOKUP($A$60,StatePercentBlock,$A110,FALSE)*HLOOKUP(Q$59,INDIRECT(SelectedRegion),$B110,FALSE),VLOOKUP($C110,'CAMD Data'!$B$3:$AQ$6,'Consumption Projs'!Q$59-2008,FALSE)) -> 455.6686047 | R110: =IF(Scenariocell=4,HLOOKUP($A$60,StatePercentBlock,$A110,FALSE)*HLOOKUP(R$59,INDIRECT(SelectedRegion),$B110,FALSE),VLOOKUP($C110,'CAMD Data'!$B$3:$AQ$6,'Consumption Projs'!R$59-2008,FALSE)) -> 0 | S110: =IF(Scenariocell=4,HLOOKUP($A$60,StatePercentBlock,$A110,FALSE)*HLOOKUP(S$59,INDIRECT(SelectedRegion),$B110,FALSE),VLOOKUP($C110,'CAMD Data'!$B$3:$AQ$6,'Consumption Projs'!S$59-2008,FALSE)) -> 0 | T110: =IF(Scenariocell=4,HLOOKUP($A$60,StatePercentBlock,$A110,FALSE)*HLOOKUP(T$59,INDIRECT(SelectedRegion),$B110,FALSE),VLOOKUP($C110,'CAMD Data'!$B$3:$AQ$6,'Consumption Projs'!T$59-2008,FALSE)) -> 0 | U110: =IF(Scenariocell=4,HLOOKUP($A$60,StatePercentBlock,$A110,FALSE)*HLOOKUP(U$59,INDIRECT(SelectedRegion),$B110,FALSE),VLOOKUP($C110,'CAMD Data'!$B$3:$AQ$6,'Consumption Projs'!U$59-2008,FALSE)) -> 0 | V110: =IF(Scenariocell=4,HLOOKUP($A$60,StatePercentBlock,$A110,FALSE)*HLOOKUP(V$59,INDIRECT(SelectedRegion),$B110,FALSE),VLOOKUP($C110,'CAMD Data'!$B$3:$AQ$6,'Consumption Projs'!V$59-2008,FALSE)) -> 0 | W110: =IF(Scenariocell=4,HLOOKUP($A$60,StatePercentBlock,$A110,FALSE)*HLOOKUP(W$59,INDIRECT(SelectedRegion),$B110,FALSE),VLOOKUP($C110,'CAMD Data'!$B$3:$AQ$6,'Consumption Projs'!W$59-2008,FALSE)) -> 0 | X110: =IF(Scenariocell=4,HLOOKUP($A$60,StatePercentBlock,$A110,FALSE)*HLOOKUP(X$59,INDIRECT(SelectedRegion),$B110,FALSE),VLOOKUP($C110,'CAMD Data'!$B$3:$AQ$6,'Consumption Projs'!X$59-2008,FALSE)) -> 0 | Y110: =IF(Scenariocell=4,HLOOKUP($A$60,StatePercentBlock,$A110,FALSE)*HLOOKUP(Y$59,INDIRECT(SelectedRegion),$B110,FALSE),VLOOKUP($C110,'CAMD Data'!$B$3:$AQ$6,'Consumption Projs'!Y$59-2008,FALSE)) -> 0 | Z110: =IF(Scenariocell=4,HLOOKUP($A$60,StatePercentBlock,$A110,FALSE)*HLOOKUP(Z$59,INDIRECT(SelectedRegion),$B110,FALSE),VLOOKUP($C110,'CAMD Data'!$B$3:$AQ$6,'Consumption Projs'!Z$59-2008,FALSE)) -> 0 | AA110: =IF(Scenariocell=4,HLOOKUP($A$60,StatePercentBlock,$A110,FALSE)*HLOOKUP(AA$59,INDIRECT(SelectedRegion),$B110,FALSE),VLOOKUP($C110,'CAMD Data'!$B$3:$AQ$6,'Consumption Projs'!AA$59-2008,FALSE)) -> 0 | AB110: =IF(Scenariocell=4,HLOOKUP($A$60,StatePercentBlock,$A110,FALSE)*HLOOKUP(AB$59,INDIRECT(SelectedRegion),$B110,FALSE),VLOOKUP($C110,'CAMD Data'!$B$3:$AQ$6,'Consumption Projs'!AB$59-2008,FALSE)) -> 0 | AC110: =IF(Scenariocell=4,HLOOKUP($A$60,StatePercentBlock,$A110,FALSE)*HLOOKUP(AC$59,INDIRECT(SelectedRegion),$B110,FALSE),VLOOKUP($C110,'CAMD Data'!$B$3:$AQ$6,'Consumption Projs'!AC$59-2008,FALSE)) -> 0 | AD110: =IF(Scenariocell=4,HLOOKUP($A$60,StatePercentBlock,$A110,FALSE)*HLOOKUP(AD$59,INDIRECT(SelectedRegion),$B110,FALSE),VLOOKUP($C110,'CAMD Data'!$B$3:$AQ$6,'Consumption Projs'!AD$59-2008,FALSE)) -> 0 | AE110: =IF(Scenariocell=4,HLOOKUP($A$60,StatePercentBlock,$A110,FALSE)*HLOOKUP(AE$59,INDIRECT(SelectedRegion),$B110,FALSE),VLOOKUP($C110,'CAMD Data'!$B$3:$AQ$6,'Consumption Projs'!AE$59-2008,FALSE)) -> 0 | AF110: =IF(Scenariocell=4,HLOOKUP($A$60,StatePercentBlock,$A110,FALSE)*HLOOKUP(AF$59,INDIRECT(SelectedRegion),$B110,FALSE),VLOOKUP($C110,'CAMD Data'!$B$3:$AQ$6,'Consumption Projs'!AF$59-2008,FALSE)) -> 0 | AG110: =IF(Scenariocell=4,HLOOKUP($A$60,StatePercentBlock,$A110,FALSE)*HLOOKUP(AG$59,INDIRECT(SelectedRegion),$B110,FALSE),VLOOKUP($C110,'CAMD Data'!$B$3:$AQ$6,'Consumption Projs'!AG$59-2008,FALSE)) -> 0 | AH110: =IF(Scenariocell=4,HLOOKUP($A$60,StatePercentBlock,$A110,FALSE)*HLOOKUP(AH$59,INDIRECT(SelectedRegion),$B110,FALSE),VLOOKUP($C110,'CAMD Data'!$B$3:$AQ$6,'Consumption Projs'!AH$59-2008,FALSE)) -> 0 | AI110: =IF(Scenariocell=4,HLOOKUP($A$60,StatePercentBlock,$A110,FALSE)*HLOOKUP(AI$59,INDIRECT(SelectedRegion),$B110,FALSE),VLOOKUP($C110,'CAMD Data'!$B$3:$AQ$6,'Consumption Projs'!AI$59-2008,FALSE)) -> 0 | AJ110: =IF(Scenariocell=4,HLOOKUP($A$60,StatePercentBlock,$A110,FALSE)*HLOOKUP(AJ$59,INDIRECT(SelectedRegion),$B110,FALSE),VLOOKUP($C110,'CAMD Data'!$B$3:$AQ$6,'Consumption Projs'!AJ$59-2008,FALSE)) -> 0 | AK110: =IF(Scenariocell=4,HLOOKUP($A$60,StatePercentBlock,$A110,FALSE)*HLOOKUP(AK$59,INDIRECT(SelectedRegion),$B110,FALSE),VLOOKUP($C110,'CAMD Data'!$B$3:$AQ$6,'Consumption Projs'!AK$59-2008,FALSE)) -> 0 | AL110: =IF(Scenariocell=4,HLOOKUP($A$60,StatePercentBlock,$A110,FALSE)*HLOOKUP(AL$59,INDIRECT(SelectedRegion),$B110,FALSE),VLOOKUP($C110,'CAMD Data'!$B$3:$AQ$6,'Consumption Projs'!AL$59-2008,FALSE)) -> 0 | AM110: =IF(Scenariocell=4,HLOOKUP($A$60,StatePercentBlock,$A110,FALSE)*HLOOKUP(AM$59,INDIRECT(SelectedRegion),$B110,FALSE),VLOOKUP($C110,'CAMD Data'!$B$3:$AQ$6,'Consumption Projs'!AM$59-2008,FALSE)) -> 0 | AN110: =IF(Scenariocell=4,HLOOKUP($A$60,StatePercentBlock,$A110,FALSE)*HLOOKUP(AN$59,INDIRECT(SelectedRegion),$B110,FALSE),VLOOKUP($C110,'CAMD Data'!$B$3:$AQ$6,'Consumption Projs'!AN$59-2008,FALSE)) -> 0 | AO110: =IF(Scenariocell=4,HLOOKUP($A$60,StatePercentBlock,$A110,FALSE)*HLOOKUP(AO$59,INDIRECT(SelectedRegion),$B110,FALSE),VLOOKUP($C110,'CAMD Data'!$B$3:$AQ$6,'Consumption Projs'!AO$59-2008,FALSE)) -> 0 | AP110: =IF(Scenariocell=4,HLOOKUP($A$60,StatePercentBlock,$A110,FALSE)*HLOOKUP(AP$59,INDIRECT(SelectedRegion),$B110,FALSE),VLOOKUP($C110,'CAMD Data'!$B$3:$AQ$6,'Consumption Projs'!AP$59-2008,FALSE)) -> 0 | AQ110: =IF(Scenariocell=4,HLOOKUP($A$60,StatePercentBlock,$A110,FALSE)*HLOOKUP(AQ$59,INDIRECT(SelectedRegion),$B110,FALSE),VLOOKUP($C110,'CAMD Data'!$B$3:$AQ$6,'Consumption Projs'!AQ$59-2008,FALSE)) -> 0 | AR110: =IF(Scenariocell=4,HLOOKUP($A$60,StatePercentBlock,$A110,FALSE)*HLOOKUP(AR$59,INDIRECT(SelectedRegion),$B110,FALSE),VLOOKUP($C110,'CAMD Data'!$B$3:$AQ$6,'Consumption Projs'!AR$59-2008,FALSE)) -> 0 | AS110: =IF(Scenariocell=4,HLOOKUP($A$60,StatePercentBlock,$A110,FALSE)*HLOOKUP(AS$59,INDIRECT(SelectedRegion),$B110,FALSE),VLOOKUP($C110,'CAMD Data'!$B$3:$AQ$6,'Consumption Projs'!AS$59-2008,FALSE)) -> 0
C111: Note: Bunker fuel consumption not included.
G116: Residential
C117: Virginia | D117: =VLOOKUP(State,StateLookup,2,FALSE) -> VA | E117: =VLOOKUP(State,StateLookup,3,FALSE) -> South Atlantic | F117: =VLOOKUP(State,C118:F168,4,FALSE) -> SouthAtlantic | G117: Coal | H117: ='State Consump'!DL8*'Projected Regional'!CK62 -> 0 | I117: =H117-D62 -> 0
C118: Alabama | D118: AL | E118: East South Central | F118: =SUBSTITUTE(E118," ","") -> EastSouthCentral | G118: Natural Gas | H118: ='State Consump'!DL9*'Projected Regional'!CK63 -> 0 | I118: 0 | Q118: 2 | R118: Residential
C119: Alaska | D119: AK | E119: Pacific | F119: =SUBSTITUTE(E119," ","") -> Pacific | G119: Distillate Fuel | H119: ='State Consump'!DL10*'Projected Regional'!CK64 -> 0 | I119: 0 | Q119: 3 | R119: Coal
C120: Arizona | D120: AZ | E120: Mountain | F120: Mountain | G120: Kerosene | H120: ='State Consump'!DL11*'Projected Regional'!CK65 -> 0 | I120: 0 | Q120: 4 | R120: Natural Gas
C121: Arkansas | D121: AR | E121: West South Central | F121: WestSouthCentral | G121: HGL | H121: ='State Consump'!DL12*'Projected Regional'!CK66 -> 0 | I121: 0 | Q121: 5 | R121: Distillate Fuel
C122: California | D122: CA | E122: Pacific | F122: Pacific | G122: Electricity Sales | H122: ='State Consump'!DL13*'Projected Regional'!CK67 -> 0 | I122: 0 | Q122: 6 | R122: Kerosene
C123: Colorado | D123: CO | E123: Mountain | F123: Mountain | G123: Commercial | H123: ='State Consump'!DL14*'Projected Regional'!CK68 -> 0 | I123: 0 | Q123: 7 | R123: HGL
C124: Connecticut | D124: CT | E124: New England | F124: NewEngland | G124: Coal | H124: ='State Consump'!DL15*'Projected Regional'!CK69 -> 0 | I124: 0 | Q124: 8 | R124: Commercial
C125: Delaware | D125: DE | E125: South Atlantic | F125: SouthAtlantic | G125: Natural Gas | H125: ='State Consump'!DL16*'Projected Regional'!CK70 -> 0 | I125: 0 | Q125: 9 | R125: Coal
C126: District of Columbia | D126: DC | E126: South Atlantic | F126: SouthAtlantic | G126: Distillate Fuel | H126: ='State Consump'!DL17*'Projected Regional'!CK71 -> 0 | I126: 0 | Q126: 10 | R126: Natural Gas
C127: Florida | D127: FL | E127: South Atlantic | F127: SouthAtlantic | G127: Kerosene | H127: ='State Consump'!DL18*'Projected Regional'!CK72 -> 0 | I127: 0 | Q127: 11 | R127: Distillate Fuel
C128: Georgia | D128: GA | E128: South Atlantic | F128: SouthAtlantic | G128: HGL | H128: ='State Consump'!DL19*'Projected Regional'!CK73 -> 0 | I128: 0 | Q128: 12 | R128: Kerosene
C129: Hawaii | D129: HI | E129: Pacific | F129: Pacific | G129: Motor Gasoline | H129: ='State Consump'!DL20*'Projected Regional'!CK74 -> 0 | I129: 0 | Q129: 13 | R129: HGL
C130: Idaho | D130: ID | E130: Mountain | F130: Mountain | G130: Residual Fuel | H130: ='State Consump'!DL21*'Projected Regional'!CK75 -> 0 | I130: 0 | Q130: 14 | R130: Motor Gasoline
C131: Illinois | D131: IL | E131: East North Central | F131: EastNorthCentral | G131: Electricity Sales | H131: ='State Consump'!DL22*'Projected Regional'!CK76 -> 0 | I131: 0 | Q131: 15 | R131: Residual Fuel
C132: Indiana | D132: IN | E132: East North Central | F132: EastNorthCentral | G132: Industrial | H132: ='State Consump'!DL23*'Projected Regional'!CK77 -> 0 | I132: 0 | Q132: 16 | R132: Industrial
C133: Iowa | D133: IA | E133: West North Central | F133: WestNorthCentral | G133: Coking Coal | H133: ='State Consump'!DL24*'Projected Regional'!CK78 -> 0 | I133: 0 | Q133: 17 | R133: Coking Coal
C134: Kansas | D134: KS | E134: West North Central | F134: WestNorthCentral | G134: Other Coal | H134: ='State Consump'!DL25*'Projected Regional'!CK79 -> 0 | I134: 0 | Q134: 18 | R134: Independent Power Coal
C135: Kentucky | D135: KY | E135: East South Central | F135: EastSouthCentral | G135: Natural Gas | H135: ='State Consump'!DL27*'Projected Regional'!CK80 -> 0 | I135: 0 | Q135: 19 | R135: Other Coal
C136: Louisiana | D136: LA | E136: West South Central | F136: WestSouthCentral | G136: Distillate Fuel | H136: ='State Consump'!DL28*'Projected Regional'!CK81 -> 0 | I136: 0 | Q136: 20 | R136: Natural Gas
C137: Maine | D137: ME | E137: New England | F137: NewEngland | G137: Petrochemical Feedstocks | H137: ='State Consump'!DL29*'Projected Regional'!CK82 -> 0 | I137: 0 | Q137: 21 | R137: Distillate Fuel
C138: Maryland | D138: MD | E138: South Atlantic | F138: SouthAtlantic | G138: Feedstocks, Naphtha less than 401 F | H138: ='State Consump'!DL30*'Projected Regional'!CK83 -> 0 | I138: 0 | Q138: 22 | R138: Petrochemical Feedstocks
C139: Massachusetts | D139: MA | E139: New England | F139: NewEngland | G139: Feedstocks, Other Oils greater than 401 F | H139: ='State Consump'!DL31*'Projected Regional'!CK84 -> 0 | I139: 0 | Q139: 23 | R139: Feedstocks, Naphtha less than 401 F
C140: Michigan | D140: MI | E140: East North Central | F140: EastNorthCentral | G140: HGL | H140: ='State Consump'!DL32*'Projected Regional'!CK85 -> 0 | I140: 0 | Q140: 24 | R140: Feedstocks, Other Oils greater than 401 F
C141: Minnesota | D141: MN | E141: West North Central | F141: WestNorthCentral | G141: Motor Gasoline | H141: ='State Consump'!DL33*'Projected Regional'!CK86 -> 0 | I141: 0 | Q141: 25 | R141: HGL
C142: Mississippi | D142: MS | E142: East South Central | F142: EastSouthCentral | G142: Residual Fuel | H142: ='State Consump'!DL34*'Projected Regional'!CK87 -> 0 | I142: 0 | Q142: 26 | R142: Motor Gasoline
C143: Missouri | D143: MO | E143: West North Central | F143: WestNorthCentral | G143: Other Petroleum | H143: ='State Consump'!DL35*'Projected Regional'!CK88 -> 0 | I143: 0 | Q143: 27 | R143: Residual Fuel
C144: Montana | D144: MT | E144: Mountain | F144: Mountain | G144: Asphalt and Road Oil | H144: ='State Consump'!DL36*'Projected Regional'!CK89 -> 0 | I144: 0 | Q144: 28 | R144: Other Petroleum
C145: Nebraska | D145: NE | E145: West North Central | F145: WestNorthCentral | G145: Lubricants | H145: ='State Consump'!DL37*'Projected Regional'!CK90 -> 0 | I145: 0 | Q145: 29 | R145: Asphalt and Road Oil
C146: Nevada | D146: NV | E146: Mountain | F146: Mountain | G146: Petroleum Coke | H146: ='State Consump'!DL38*'Projected Regional'!CK91 -> 0 | I146: 0 | Q146: 30 | R146: Lubricants
C147: New Hampshire | D147: NH | E147: New England | F147: NewEngland | G147: Still Gas | H147: ='State Consump'!DL39*'Projected Regional'!CK92 -> 0 | I147: 0 | Q147: 31 | R147: Petroleum Coke
C148: New Jersey | D148: NJ | E148: Middle Atlantic | F148: MiddleAtlantic | G148: Misc. Petro Products | H148: ='State Consump'!DL40*'Projected Regional'!CK93 -> 0 | I148: 0 | Q148: 32 | R148: Still Gas
C149: New Mexico | D149: NM | E149: Mountain | F149: Mountain | G149: Electricity Sales | H149: ='State Consump'!DL41*'Projected Regional'!CK94 -> 0 | I149: 0 | Q149: 33 | R149: Misc. Petro Products
C150: New York | D150: NY | E150: Middle Atlantic | F150: MiddleAtlantic | G150: Transportation | H150: ='State Consump'!DL42*'Projected Regional'!CK95 -> 0 | I150: 0 | Q150: 34 | R150: Transportation
C151: North Carolina | D151: NC | E151: South Atlantic | F151: SouthAtlantic | G151: Natural Gas | H151: ='State Consump'!DL43*'Projected Regional'!CK96 -> 0 | I151: 0 | Q151: 35 | R151: Natural Gas
C152: North Dakota | D152: ND | E152: West North Central | F152: WestNorthCentral | G152: Distillate Fuel | H152: ='State Consump'!DL44*'Projected Regional'!CK97 -> 0 | I152: 0 | Q152: 36 | R152: Distillate Fuel
C153: Ohio | D153: OH | E153: East North Central | F153: EastNorthCentral | G153: Jet Fuel, Kerosene | H153: ='State Consump'!DL45*'Projected Regional'!CK98 -> 0 | I153: 0 | Q153: 37 | R153: Jet Fuel, Kerosene
C154: Oklahoma | D154: OK | E154: West South Central | F154: WestSouthCentral | G154: HGL | H154: ='State Consump'!DL46*'Projected Regional'!CK99 -> 0 | I154: 0 | Q154: 38 | R154: HGL
C155: Oregon | D155: OR | E155: Pacific | F155: Pacific | G155: Motor Gasoline | H155: ='State Consump'!DL47*'Projected Regional'!CK100 -> 0 | I155: 0 | Q155: 39 | R155: Motor Gasoline
C156: Pennsylvania | D156: PA | E156: Middle Atlantic | F156: MiddleAtlantic | G156: Residual Fuel | H156: ='State Consump'!DL48*'Projected Regional'!CK101 -> 0 | I156: 0 | Q156: 40 | R156: Residual Fuel
C157: Rhode Island | D157: RI | E157: New England | F157: NewEngland | G157: Other Petroleum | H157: ='State Consump'!DL49*'Projected Regional'!CK102 -> 0 | I157: 0 | Q157: 41 | R157: Other Petroleum
C158: South Carolina | D158: SC | E158: South Atlantic | F158: SouthAtlantic | G158: Aviation Gasoline | H158: ='State Consump'!DL50*'Projected Regional'!CK103 -> 0 | I158: 0 | Q158: 42 | R158: Aviation Gasoline
C159: South Dakota | D159: SD | E159: West North Central | F159: WestNorthCentral | G159: Lubricants | H159: ='State Consump'!DL51*'Projected Regional'!CK104 -> 0 | I159: 0 | Q159: 43 | R159: Lubricants
C160: Tennessee | D160: TN | E160: East South Central | F160: EastSouthCentral | G160: Electric Generators | H160: ='State Consump'!DL52*'Projected Regional'!CK105 -> 0 | I160: 0 | Q160: 44 | R160: Electric Utilities
C161: Texas | D161: TX | E161: West South Central | F161: WestSouthCentral | G161: Coal | H161: ='State Consump'!DL53*'Projected Regional'!CK106 -> 0 | I161: 0 | Q161: 50 | R161: Coal
C162: Utah | D162: UT | E162: Mountain | F162: Mountain | G162: Natural Gas | H162: ='State Consump'!DL54*'Projected Regional'!CK107 -> 0 | I162: 0 | Q162: 46 | R162: Natural Gas
C163: Vermont | D163: VT | E163: New England | F163: NewEngland | G163: Distillate Fuel | H163: ='State Consump'!DL55*'Projected Regional'!CK108 -> 0 | I163: 0 | Q163: 47 | R163: Distillate Fuel
C164: Virginia | D164: VA | E164: South Atlantic | F164: SouthAtlantic | G164: Residual Fuel | H164: ='State Consump'!DL56*'Projected Regional'!CK109 -> 0 | I164: 0 | Q164: 48 | R164: Residual Fuel
C165: Washington | D165: WA | E165: Pacific | F165: Pacific | G165: Note: Bunker fuel consumption not included.
C166: West Virginia | D166: WV | E166: South Atlantic | F166: SouthAtlantic
C167: Wisconsin | D167: WI | E167: East North Central | F167: EastNorthCentral
C168: Wyoming | D168: WY | E168: Mountain | F168: Mountain

Sheet Factors
A1: Factors and Conversions | F1: Coal CC's by State and Sector
F2: Source: State Energy Data Report, Consumption Estimates, 2020. Energy Information Administration.
A3: Combustion Efficiencies
A4: Fuel | B4: Default Efficiency
A5: Coal | B5: 1 | F5: State | G5: 2020
A6: Natural Gas | B6: 1 | F6: ALCDEIK | G6: 57.59560571
A7: Petroleum | B7: 1 | F7: AKCDEIK | G7: 57.59560571
A8: HGL | B8: 1 | F8: ARCDEIK | G8: 57.59560571
F9: AZCDEIK | G9: 57.59560571
A10: Carbon Contents (lbs Carbon/million Btu) | F10: CACDEIK | G10: 57.59560571
A11: Fuel | B11: Default Carbon Content | C11: Default Efficiency | F11: COCDEIK | G11: 57.59560571
A12: Asphalt and Road Oil | B12: 45.31195389 | C12: =$B$7 -> 1 | F12: CTCDEIK | G12: 57.59560571
A13: Aviation Gasoline | B13: 41.56888669 | C13: 1 | F13: DCCDEIK | G13: 57.59560571
A14: Distillate Fuel | B14: variable by year | C14: 1 | F14: DECDEIK | G14: 57.59560571
A15: Jet Fuel, Kerosene | B15: 43.43181818 | C15: 1 | F15: FLCDEIK | G15: 57.59560571
A16: Jet Fuel, Naphtha | B16: 43.51344284 | C16: 1 | F16: GACDEIK | G16: 57.59560571
A17: Kerosene | B17: 44.01326421 | C17: 1 | F17: HICDEIK | G17: 57.59560571
A18: HGL | B18: 39.36607684 | C18: =B8 -> 1 | F18: IACDEIK | G18: 57.59560571
A19: Lubricants | B19: 44.53190305 | C19: =$B$7 -> 1 | F19: IDCDEIK | G19: 57.59560571
A20: Motor Gasoline | B20: 42.90074116 | C20: 1 | F20: ILCDEIK | G20: 57.59560571
A21: Residual Fuel | B21: 45.1506176 | C21: 1 | F21: INCDEIK | G21: 57.59560571
A22: Misc. Petro Products | B22: 0 | C22: 1 | F22: KSCDEIK | G22: 57.59560571
A23: Naphtha less than 401 F | B23: 40.89713257 | C23: 1 | F23: KYCDEIK | G23: 57.59560571
A24: Other Oils greater than 401 F | B24: 44.4671854 | C24: 1 | F24: LACDEIK | G24: 57.59560571
A25: Pentanes Plus | B25: 40.2122688 | C25: 1 | F25: MACDEIK | G25: 57.59560571
A26: Petroleum Coke | B26: 61.39359661 | C26: 1 | F26: MDCDEIK | G26: 57.59560571
A27: Still Gas | B27: 40.114063 | C27: 1 | F27: MECDEIK | G27: 57.59560571
A28: Special Naphthas | B28: 43.51344284 | C28: 1 | F28: MICDEIK | G28: 57.59560571
A29: Unfinished Oils | B29: 44.77366189 | C29: 1 | F29: MNCDEIK | G29: 57.59560571
A30: Waxes | B30: 43.64211559 | C30: 1 | F30: MOCDEIK | G30: 57.59560571
A31: Coal | B31: variable by year | C31: =$B$5 -> 1 | F31: MSCDEIK | G31: 57.59560571
A32: Coking Coal | B32: variable by year | C32: =$B$5 -> 1 | F32: MTCDEIK | G32: 57.59560571
A33: Other Coal | B33: variable by year | C33: =$B$5 -> 1 | F33: NCCDEIK | G33: 57.59560571
A34: Independent Power Coal | B34: variable by year | C34: =$B$5 -> 1 | F34: NDCDEIK | G34: 57.59560571
A35: Natural Gas | B35: variable by year | C35: =B6 -> 1 | F35: NECDEIK | G35: 57.59560571
A36: Aviation Gasoline Blending Components | B36: 41.6011794 | C36: =$B$7 -> 1 | F36: NHCDEIK | G36: 57.59560571
A37: Motor Gasoline Blending Components | B37: 42.489464 | C37: =$B$7 -> 1 | F37: NJCDEIK | G37: 57.59560571
A38: Crude Oil | B38: 44.77366189 | C38: =$B$7 -> 1 | F38: NMCDEIK | G38: 57.59560571
F39: NVCDEIK | G39: 57.59560571
A40: Storage Factors for the Non-Energy Use of Fossil Fuels (%) | F40: NYCDEIK | G40: 57.59560571
A41: Fuel | B41: Default Storage Factor | F41: OHCDEIK | G41: 57.59560571
A42: Asphalt and Road Oil | B42: 0.9956085223 | F42: OKCDEIK | G42: 57.59560571
A43: Distillate Fuel | B43: 0.5 | F43: ORCDEIK | G43: 57.59560571
A44: HGL | B44: variable by year | F44: PACDEIK | G44: 57.59560571
A45: Lubricants | B45: 0.0918 | F45: RICDEIK | G45: 57.59560571
A46: Residual Fuel | B46: 0.5 | F46: SCCDEIK | G46: 57.59560571
A47: Naphtha less than 401 F | B47: 0.6306711672 | F47: SDCDEIK | G47: 57.59560571
A48: Other Oils greater than 401 F | B48: 0.6306711672 | F48: TNCDEIK | G48: 57.59560571
A49: Misc. Petro Products | B49: 0 | F49: TXCDEIK | G49: 57.59560571
A50: Pentanes Plus | B50: variable by year | F50: USCDEIK | G50: 57.59560571
A51: Petroleum Coke | B51: 0.3 | F51: UTCDEIK | G51: 57.59560571
A52: Still Gas | B52: 0.6169935671 | F52: VACDEIK | G52: 57.59560571
A53: Special Naphthas | B53: 0.6169935671 | F53: VTCDEIK | G53: 57.59560571
A54: Waxes | B54: 0.57825 | F54: WACDEIK | G54: 57.59560571
A55: Coking Coal | B55: 0.1 | F55: WICDEIK | G55: 57.59560571
A56: Natural Gas | B56: variable by year | F56: WVCDEIK | G56: 57.59560571
A57: Motor Gasoline | B57: 0 | F57: WYCDEIK | G57: 57.59560571
A58: Other Coal | B58: 0 | F58: ALCDHCK | G58: 57.79056783
A59: Independent Power Coal | B59: 0 | F59: AKCDHCK | G59: 57.79056783
F60: ARCDHCK | G60: 57.79056783
F61: AZCDHCK | G61: 57.79056783
F62: CACDHCK | G62: 57.79056783
F63: COCDHCK | G63: 57.79056783
F64: CTCDHCK | G64: 57.79056783
F65: DCCDHCK | G65: 57.79056783
A66: National Non-Energy Consumption %'s | B66: 12 | F66: DECDHCK | G66: 57.79056783
B67: 2020 | F67: FLCDHCK | G67: 57.79056783
A68: Industrial Sector | F68: GACDHCK | G68: 57.79056783
A69: Coking Coal | B69: 1 | F69: HICDHCK | G69: 57.79056783
A70: Natural Gas | B70: 0.06688425788 | F70: IACDHCK | G70: 57.79056783
A71: Asphalt and Road Oil | B71: 1 | F71: IDCDHCK | G71: 57.79056783
A72: HGL | B72: 0.9161182011 | F72: ILCDHCK | G72: 57.79056783
A73: Lubricants | B73: 1 | F73: INCDHCK | G73: 57.79056783
A74: Pentanes Plus | B74: 0.4620449382 | F74: KSCDHCK | G74: 57.79056783
A75: Naphtha less than 401 F | B75: 0.928902452 | F75: KYCDHCK | G75: 57.79056783
A76: Other Oils greater than 401 F | B76: 0.9013340822 | F76: LACDHCK | G76: 57.79056783
A77: Still Gas | B77: 0.1035153862 | F77: MACDHCK | G77: 57.79056783
A78: Petroleum Coke | B78: 0 | F78: MDCDHCK | G78: 57.79056783
A79: Special Naphthas | B79: 0.9331772975 | F79: MECDHCK | G79: 57.79056783
A80: Distillate Fuel | B80: 0.006630454396 | F80: MICDHCK | G80: 57.79056783
A81: Residual Fuel | B81: 0 | F81: MNCDHCK | G81: 57.79056783
A82: Waxes | B82: 1 | F82: MOCDHCK | G82: 57.79056783
A83: Misc. Petro Products | B83: 1 | F83: MSCDHCK | G83: 57.79056783
A84: Other Coal | B84: 0.02069158139 | F84: MTCDHCK | G84: 57.79056783
A85: Independent Power Coal | B85: 0.02069158139 | F85: NCCDHCK | G85: 57.79056783
A86: Aviation Gasoline Blending Components | B86: 0 | F86: NDCDHCK | G86: 57.79056783
A87: Crude Oil | B87: 0 | F87: NECDHCK | G87: 57.79056783
A88: Kerosene | B88: 0 | F88: NHCDHCK | G88: 57.79056783
A89: Motor Gasoline | B89: 0 | F89: NJCDHCK | G89: 57.79056783
A90: Motor Gasoline Blending Components | B90: 0 | F90: NMCDHCK | G90: 57.79056783
A91: Unfinished Oils | B91: 0 | F91: NVCDHCK | G91: 57.79056783
A92: Transportation | B92: 2020 | F92: NYCDHCK | G92: 57.79056783
A93: Lubricants | B93: 1 | F93: OHCDHCK | G93: 57.79056783
F94: OKCDHCK | G94: 57.79056783
F95: ORCDHCK | G95: 57.79056783
F96: PACDHCK | G96: 57.79056783
A97: 1 kWh = | B97: 3412.3 | C97: Btu | F97: RICDHCK | G97: 57.79056783
F98: SCCDHCK | G98: 57.79056783
F99: SDCDHCK | G99: 57.79056783
F100: TNCDHCK | G100: 57.79056783
F101: TXCDHCK | G101: 57.79056783
F102: USCDHCK | G102: 57.79056783
F103: UTCDHCK | G103: 57.79056783
F104: VACDHCK | G104: 57.79056783
F105: VTCDHCK | G105: 57.79056783
F106: WACDHCK | G106: 57.79056783
F107: WICDHCK | G107: 57.79056783
F108: WVCDHCK | G108: 57.79056783
F109: WYCDHCK | G109: 57.79056783
F110: ALCDKCK | G110: 56.45038643
F111: AKCDKCK | G111: 56.45038643
F112: ARCDKCK | G112: 56.45038643
F113: AZCDKCK | G113: 56.45038643
F114: CACDKCK | G114: 56.45038643
F115: COCDKCK | G115: 56.45038643
F116: CTCDKCK | G116: 56.45038643
F117: DCCDKCK | G117: 56.45038643
F118: DECDKCK | G118: 56.45038643
F119: FLCDKCK | G119: 56.45038643
F120: GACDKCK | G120: 56.45038643
F121: HICDKCK | G121: 56.45038643
F122: IACDKCK | G122: 56.45038643
F123: IDCDKCK | G123: 56.45038643
F124: ILCDKCK | G124: 56.45038643
F125: INCDKCK | G125: 56.45038643
F126: KSCDKCK | G126: 56.45038643
F127: KYCDKCK | G127: 56.45038643
F128: LACDKCK | G128: 56.45038643
F129: MACDKCK | G129: 56.45038643
F130: MDCDKCK | G130: 56.45038643
F131: MECDKCK | G131: 56.45038643
F132: MICDKCK | G132: 56.45038643
F133: MNCDKCK | G133: 56.45038643
F134: MOCDKCK | G134: 56.45038643
F135: MSCDKCK | G135: 56.45038643
F136: MTCDKCK | G136: 56.45038643
F137: NCCDKCK | G137: 56.45038643
F138: NDCDKCK | G138: 56.45038643
F139: NECDKCK | G139: 56.45038643
F140: NHCDKCK | G140: 56.45038643
F141: NJCDKCK | G141: 56.45038643
F142: NMCDKCK | G142: 56.45038643
F143: NVCDKCK | G143: 56.45038643
F144: NYCDKCK | G144: 56.45038643
F145: OHCDKCK | G145: 56.45038643
F146: OKCDKCK | G146: 56.45038643
F147: ORCDKCK | G147: 56.45038643
F148: PACDKCK | G148: 56.45038643
F149: RICDKCK | G149: 56.45038643
F150: SCCDKCK | G150: 56.45038643
F151: SDCDKCK | G151: 56.45038643
F152: TNCDKCK | G152: 56.45038643
F153: TXCDKCK | G153: 56.45038643
F154: USCDKCK | G154: 56.45038643
F155: UTCDKCK | G155: 56.45038643
F156: VACDKCK | G156: 56.45038643
F157: VTCDKCK | G157: 56.45038643
F158: WACDKCK | G158: 56.45038643
F159: WICDKCK | G159: 56.45038643
F160: WVCDKCK | G160: 56.45038643
F161: WYCDKCK | G161: 56.45038643
F162: ALCDOCK | G162: 57.61271154
F163: AKCDOCK | G163: 57.61271154
F164: ARCDOCK | G164: 57.61271154
F165: AZCDOCK | G165: 57.61271154
F166: CACDOCK | G166: 57.61271154
F167: COCDOCK | G167: 57.61271154
F168: CTCDOCK | G168: 57.61271154
F169: DCCDOCK | G169: 57.61271154
F170: DECDOCK | G170: 57.61271154
F171: FLCDOCK | G171: 57.61271154
F172: GACDOCK | G172: 57.61271154
F173: HICDOCK | G173: 57.61271154
F174: IACDOCK | G174: 57.61271154
F175: IDCDOCK | G175: 57.61271154
F176: ILCDOCK | G176: 57.61271154
F177: INCDOCK | G177: 57.61271154
F178: KSCDOCK | G178: 57.61271154
F179: KYCDOCK | G179: 57.61271154
F180: LACDOCK | G180: 57.61271154
F181: MACDOCK | G181: 57.61271154
F182: MDCDOCK | G182: 57.61271154
F183: MECDOCK | G183: 57.61271154
F184: MICDOCK | G184: 57.61271154
F185: MNCDOCK | G185: 57.61271154
F186: MOCDOCK | G186: 57.61271154
F187: MSCDOCK | G187: 57.61271154
F188: MTCDOCK | G188: 57.61271154
F189: NCCDOCK | G189: 57.61271154
F190: NDCDOCK | G190: 57.61271154
F191: NECDOCK | G191: 57.61271154
F192: NHCDOCK | G192: 57.61271154
F193: NJCDOCK | G193: 57.61271154
F194: NMCDOCK | G194: 57.61271154
F195: NVCDOCK | G195: 57.61271154
F196: NYCDOCK | G196: 57.61271154
F197: OHCDOCK | G197: 57.61271154
F198: OKCDOCK | G198: 57.61271154
F199: ORCDOCK | G199: 57.61271154
F200: PACDOCK | G200: 57.61271154
... 65 more rows

Sheet Projected Regional
A1: Regional Consumption by Year and Region (Bbtu, Unless Otherwise Noted) (Obtained from EIA's Annual Energy Outlook through 2050)
N2: ="" -> 
B3: =1*10^6 -> 1000000 | C3: BBtu/Qbtu
R4: 10^6 BBtu per 1 Quadrillion Btu
K6: New England | L6: New England | M6: New England | N6: New England | P6: New England | BB6: Middle Atlantic | BC6: Middle Atlantic | BE6: Middle Atlantic | BG6: Middle Atlantic | CS6: East North Central | CT6: East North Central | CV6: East North Central | CX6: East North Central | EJ6: West North Central | EK6: West North Central | EM6: West North Central | EO6: West North Central | GA6: South Atlantic | GB6: South Atlantic | GD6: South Atlantic | GF6: South Atlantic
B7: Sector/Fuel Type | C7: 2009 | D7: 2010 | E7: 2011 | F7: 2012 | G7: 2013 | H7: 2014 | I7: 2015 | J7: 2016 | K7: 2017 | L7: 2018 | M7: 2019 | N7: 2020 | O7: 2021 | P7: 2022 | Q7: 2023 | R7: 2024 | S7: 2025 | T7: 2026 | U7: 2027 | V7: 2028 | W7: 2029 | X7: 2030 | Y7: 2031 | Z7: 2032 | AA7: 2033 | AB7: 2034 | AC7: 2035 | AD7: 2036 | AE7: 2037 | AF7: 2038 | AG7: 2039 | AH7: 2040 | AI7: 2041 | AJ7: 2042 | AK7: 2043 | AL7: 2044 | AM7: 2045 | AN7: 2046 | AO7: 2047 | AP7: 2048 | AQ7: 2049 | AR7: 2050 | AT7: 2009 | AU7: 2010 | AV7: 2011 | AW7: 2012 | AX7: 2013 | AY7: 2014 | AZ7: 2015 | BA7: 2016 | BB7: 2017 | BC7: 2018 | BD7: 2019 | BE7: 2020 | BF7: 2021 | BG7: 2022 | BH7: 2023 | BI7: 2024 | BJ7: 2025 | BK7: 2026 | BL7: 2027 | BM7: 2028 | BN7: 2029 | BO7: 2030 | BP7: 2031 | BQ7: 2032 | BR7: 2033 | BS7: 2034 | BT7: 2035 | BU7: 2036 | BV7: 2037 | BW7: 2038 | BX7: 2039 | BY7: 2040 | BZ7: 2041 | CA7: 2042 | CB7: 2043 | CC7: 2044 | CD7: 2045 | CE7: 2046 | CF7: 2047 | CG7: 2048 | CH7: 2049 | CI7: 2050 | CK7: 2009 | CL7: 2010 | CM7: 2011 | CN7: 2012 | CO7: 2013 | CP7: 2014 | CQ7: 2015 | CR7: 2016 | CS7: 2017 | CT7: 2018 | CU7: 2019 | CV7: 2020 | CW7: 2021 | CX7: 2022 | CY7: 2023 | CZ7: 2024 | DA7: 2025 | DB7: 2026 | DC7: 2027 | DD7: 2028 | DE7: 2029 | DF7: 2030 | DG7: 2031 | DH7: 2032 | DI7: 2033 | DJ7: 2034 | DK7: 2035 | DL7: 2036 | DM7: 2037 | DN7: 2038 | DO7: 2039 | DP7: 2040 | DQ7: 2041 | DR7: 2042 | DS7: 2043 | DT7: 2044 | DU7: 2045 | DV7: 2046 | DW7: 2047 | DX7: 2048 | DY7: 2049 | DZ7: 2050 | EB7: 2009 | EC7: 2010 | ED7: 2011 | EE7: 2012 | EF7: 2013 | EG7: 2014 | EH7: 2015 | EI7: 2016 | EJ7: 2017 | EK7: 2018 | EL7: 2019 | EM7: 2020 | EN7: 2021 | EO7: 2022 | EP7: 2023 | EQ7: 2024 | ER7: 2025 | ES7: 2026 | ET7: 2027 | EU7: 2028 | EV7: 2029 | EW7: 2030 | EX7: 2031 | EY7: 2032 | EZ7: 2033 | FA7: 2034 | FB7: 2035 | FC7: 2036 | FD7: 2037 | FE7: 2038 | FF7: 2039 | FG7: 2040 | FH7: 2041 | FI7: 2042 | FJ7: 2043 | FK7: 2044 | FL7: 2045 | FM7: 2046 | FN7: 2047 | FO7: 2048 | FP7: 2049 | FQ7: 2050 | FS7: 2009 | FT7: 2010 | FU7: 2011 | FV7: 2012 | FW7: 2013 | FX7: 2014 | FY7: 2015 | FZ7: 2016 | GA7: 2017 | GB7: 2018 | GC7: 2019 | GD7: 2020 | GE7: 2021 | GF7: 2022 | GG7: 2023 | GH7: 2024 | GI7: 2025 | GJ7: 2026 | GK7: 2027 | GL7: 2028 | GM7: 2029 | GN7: 2030 | GO7: 2031 | GP7: 2032 | GQ7: 2033 | GR7: 2034 | GS7: 2035 | GT7: 2036 | GU7: 2037 | GV7: 2038 | GW7: 2039 | GX7: 2040 | GY7: 2041 | GZ7: 2042 | HA7: 2043 | HB7: 2044 | HC7: 2045 | HD7: 2046 | HE7: 2047 | HF7: 2048 | HG7: 2049 | HH7: 2050
B8: Residential
B9: Coal | G9: ='AEO Consump'!I19*$B$3 -> 0 | H9: ='AEO Consump'!J19*$B$3 -> 0 | I9: ='AEO Consump'!K19*$B$3 -> 0 | J9: ='AEO Consump'!L19*$B$3 -> 0 | K9: ='AEO Consump'!M19*$B$3 -> 0 | L9: ='AEO Consump'!N19*$B$3 -> 0 | M9: ='AEO Consump'!O19*$B$3 -> 0 | N9: ='AEO Consump'!P19*$B$3 -> 0 | O9: ='AEO Consump'!Q19*$B$3 -> 0 | P9: ='AEO Consump'!R19*$B$3 -> 0 | Q9: ='AEO Consump'!S19*$B$3 -> 0 | R9: ='AEO Consump'!T19*$B$3 -> 0 | S9: ='AEO Consump'!U19*$B$3 -> 0 | T9: ='AEO Consump'!V19*$B$3 -> 0 | U9: ='AEO Consump'!W19*$B$3 -> 0 | V9: ='AEO Consump'!X19*$B$3 -> 0 | W9: ='AEO Consump'!Y19*$B$3 -> 0 | X9: ='AEO Consump'!Z19*$B$3 -> 0 | Y9: ='AEO Consump'!AA19*$B$3 -> 0 | Z9: ='AEO Consump'!AB19*$B$3 -> 0 | AA9: ='AEO Consump'!AC19*$B$3 -> 0 | AB9: ='AEO Consump'!AD19*$B$3 -> 0 | AC9: ='AEO Consump'!AE19*$B$3 -> 0 | AD9: ='AEO Consump'!AF19*$B$3 -> 0 | AE9: ='AEO Consump'!AG19*$B$3 -> 0 | AF9: ='AEO Consump'!AH19*$B$3 -> 0 | AG9: ='AEO Consump'!AI19*$B$3 -> 0 | AH9: ='AEO Consump'!AJ19*$B$3 -> 0 | AI9: ='AEO Consump'!AK19*$B$3 -> 0 | AJ9: ='AEO Consump'!AL19*$B$3 -> 0 | AK9: ='AEO Consump'!AM19*$B$3 -> 0 | AL9: ='AEO Consump'!AN19*$B$3 -> 0 | AM9: ='AEO Consump'!AO19*$B$3 -> 0 | AN9: ='AEO Consump'!AP19*$B$3 -> 0 | AO9: ='AEO Consump'!AQ19*$B$3 -> 0 | AP9: ='AEO Consump'!AR19*$B$3 -> 0 | AQ9: ='AEO Consump'!AS19*$B$3 -> 0 | AR9: ='AEO Consump'!AT19*$B$3 -> 0 | AX9: ='AEO Consump'!I162*$B$3 -> 0 | AY9: ='AEO Consump'!J162*$B$3 -> 0 | AZ9: ='AEO Consump'!K162*$B$3 -> 0 | BA9: ='AEO Consump'!L162*$B$3 -> 0 | BB9: ='AEO Consump'!M162*$B$3 -> 0 | BC9: ='AEO Consump'!N162*$B$3 -> 0 | BD9: ='AEO Consump'!O162*$B$3 -> 0 | BE9: ='AEO Consump'!P162*$B$3 -> 0 | BF9: ='AEO Consump'!Q162*$B$3 -> 0 | BG9: ='AEO Consump'!R162*$B$3 -> 0 | BH9: ='AEO Consump'!S162*$B$3 -> 0 | BI9: ='AEO Consump'!T162*$B$3 -> 0 | BJ9: ='AEO Consump'!U162*$B$3 -> 0 | BK9: ='AEO Consump'!V162*$B$3 -> 0 | BL9: ='AEO Consump'!W162*$B$3 -> 0 | BM9: ='AEO Consump'!X162*$B$3 -> 0 | BN9: ='AEO Consump'!Y162*$B$3 -> 0 | BO9: ='AEO Consump'!Z162*$B$3 -> 0 | BP9: ='AEO Consump'!AA162*$B$3 -> 0 | BQ9: ='AEO Consump'!AB162*$B$3 -> 0 | BR9: ='AEO Consump'!AC162*$B$3 -> 0 | BS9: ='AEO Consump'!AD162*$B$3 -> 0 | BT9: ='AEO Consump'!AE162*$B$3 -> 0 | BU9: ='AEO Consump'!AF162*$B$3 -> 0 | BV9: ='AEO Consump'!AG162*$B$3 -> 0 | BW9: ='AEO Consump'!AH162*$B$3 -> 0 | BX9: ='AEO Consump'!AI162*$B$3 -> 0 | BY9: ='AEO Consump'!AJ162*$B$3 -> 0 | BZ9: ='AEO Consump'!AK162*$B$3 -> 0 | CA9: ='AEO Consump'!AL162*$B$3 -> 0 | CB9: ='AEO Consump'!AM162*$B$3 -> 0 | CC9: ='AEO Consump'!AN162*$B$3 -> 0 | CD9: ='AEO Consump'!AO162*$B$3 -> 0 | CE9: ='AEO Consump'!AP162*$B$3 -> 0 | CF9: ='AEO Consump'!AQ162*$B$3 -> 0 | CG9: ='AEO Consump'!AR162*$B$3 -> 0 | CH9: ='AEO Consump'!AS162*$B$3 -> 0 | CI9: ='AEO Consump'!AT162*$B$3 -> 0 | CO9: ='AEO Consump'!I305*$B$3 -> 0 | CP9: ='AEO Consump'!J305*$B$3 -> 0 | CQ9: ='AEO Consump'!K305*$B$3 -> 0 | CR9: ='AEO Consump'!L305*$B$3 -> 0 | CS9: ='AEO Consump'!M305*$B$3 -> 0 | CT9: ='AEO Consump'!N305*$B$3 -> 0 | CU9: ='AEO Consump'!O305*$B$3 -> 0 | CV9: ='AEO Consump'!P305*$B$3 -> 0 | CW9: ='AEO Consump'!Q305*$B$3 -> 0 | CX9: ='AEO Consump'!R305*$B$3 -> 0 | CY9: ='AEO Consump'!S305*$B$3 -> 0 | CZ9: ='AEO Consump'!T305*$B$3 -> 0 | DA9: ='AEO Consump'!U305*$B$3 -> 0 | DB9: ='AEO Consump'!V305*$B$3 -> 0 | DC9: ='AEO Consump'!W305*$B$3 -> 0 | DD9: ='AEO Consump'!X305*$B$3 -> 0 | DE9: ='AEO Consump'!Y305*$B$3 -> 0 | DF9: ='AEO Consump'!Z305*$B$3 -> 0 | DG9: ='AEO Consump'!AA305*$B$3 -> 0 | DH9: ='AEO Consump'!AB305*$B$3 -> 0 | DI9: ='AEO Consump'!AC305*$B$3 -> 0 | DJ9: ='AEO Consump'!AD305*$B$3 -> 0 | DK9: ='AEO Consump'!AE305*$B$3 -> 0 | DL9: ='AEO Consump'!AF305*$B$3 -> 0 | DM9: ='AEO Consump'!AG305*$B$3 -> 0 | DN9: ='AEO Consump'!AH305*$B$3 -> 0 | DO9: ='AEO Consump'!AI305*$B$3 -> 0 | DP9: ='AEO Consump'!AJ305*$B$3 -> 0 | DQ9: ='AEO Consump'!AK305*$B$3 -> 0 | DR9: ='AEO Consump'!AL305*$B$3 -> 0 | DS9: ='AEO Consump'!AM305*$B$3 -> 0 | DT9: ='AEO Consump'!AN305*$B$3 -> 0 | DU9: ='AEO Consump'!AO305*$B$3 -> 0 | DV9: ='AEO Consump'!AP305*$B$3 -> 0 | DW9: ='AEO Consump'!AQ305*$B$3 -> 0 | DX9: ='AEO Consump'!AR305*$B$3 -> 0 | DY9: ='AEO Consump'!AS305*$B$3 -> 0 | DZ9: ='AEO Consump'!AT305*$B$3 -> 0 | EF9: ='AEO Consump'!I451*$B$3 -> 0 | EG9: ='AEO Consump'!J451*$B$3 -> 0 | EH9: ='AEO Consump'!K451*$B$3 -> 0 | EI9: ='AEO Consump'!L451*$B$3 -> 0 | EJ9: ='AEO Consump'!M451*$B$3 -> 0 | EK9: ='AEO Consump'!N451*$B$3 -> 0 | EL9: ='AEO Consump'!O451*$B$3 -> 0 | EM9: ='AEO Consump'!P451*$B$3 -> 0 | EN9: ='AEO Consump'!Q451*$B$3 -> 0 | EO9: ='AEO Consump'!R451*$B$3 -> 0 | EP9: ='AEO Consump'!S451*$B$3 -> 0 | EQ9: ='AEO Consump'!T451*$B$3 -> 0 | ER9: ='AEO Consump'!U451*$B$3 -> 0 | ES9: ='AEO Consump'!V451*$B$3 -> 0 | ET9: ='AEO Consump'!W451*$B$3 -> 0 | EU9: ='AEO Consump'!X451*$B$3 -> 0 | EV9: ='AEO Consump'!Y451*$B$3 -> 0 | EW9: ='AEO Consump'!Z451*$B$3 -> 0 | EX9: ='AEO Consump'!AA451*$B$3 -> 0 | EY9: ='AEO Consump'!AB451*$B$3 -> 0 | EZ9: ='AEO Consump'!AC451*$B$3 -> 0 | FA9: ='AEO Consump'!AD451*$B$3 -> 0 | FB9: ='AEO Consump'!AE451*$B$3 -> 0 | FC9: ='AEO Consump'!AF451*$B$3 -> 0 | FD9: ='AEO Consump'!AG451*$B$3 -> 0 | FE9: ='AEO Consump'!AH451*$B$3 -> 0 | FF9: ='AEO Consump'!AI451*$B$3 -> 0 | FG9: ='AEO Consump'!AJ451*$B$3 -> 0 | FH9: ='AEO Consump'!AK451*$B$3 -> 0 | FI9: ='AEO Consump'!AL451*$B$3 -> 0 | FJ9: ='AEO Consump'!AM451*$B$3 -> 0 | FK9: ='AEO Consump'!AN451*$B$3 -> 0 | FL9: ='AEO Consump'!AO451*$B$3 -> 0 | FM9: ='AEO Consump'!AP451*$B$3 -> 0 | FN9: ='AEO Consump'!AQ451*$B$3 -> 0 | FO9: ='AEO Consump'!AR451*$B$3 -> 0 | FP9: ='AEO Consump'!AS451*$B$3 -> 0 | FQ9: ='AEO Consump'!AT451*$B$3 -> 0 | FW9: ='AEO Consump'!I597*$B$3 -> 0 | FX9: ='AEO Consump'!J597*$B$3 -> 0 | FY9: ='AEO Consump'!K597*$B$3 -> 0 | FZ9: ='AEO Consump'!L597*$B$3 -> 0 | GA9: ='AEO Consump'!M597*$B$3 -> 0 | GB9: ='AEO Consump'!N597*$B$3 -> 0 | GC9: ='AEO Consump'!O597*$B$3 -> 0 | GD9: ='AEO Consump'!P597*$B$3 -> 0 | GE9: ='AEO Consump'!Q597*$B$3 -> 0 | GF9: ='AEO Consump'!R597*$B$3 -> 0 | GG9: ='AEO Consump'!S597*$B$3 -> 0 | GH9: ='AEO Consump'!T597*$B$3 -> 0 | GI9: ='AEO Consump'!U597*$B$3 -> 0 | GJ9: ='AEO Consump'!V597*$B$3 -> 0 | GK9: ='AEO Consump'!W597*$B$3 -> 0 | GL9: ='AEO Consump'!X597*$B$3 -> 0 | GM9: ='AEO Consump'!Y597*$B$3 -> 0 | GN9: ='AEO Consump'!Z597*$B$3 -> 0 | GO9: ='AEO Consump'!AA597*$B$3 -> 0 | GP9: ='AEO Consump'!AB597*$B$3 -> 0 | GQ9: ='AEO Consump'!AC597*$B$3 -> 0 | GR9: ='AEO Consump'!AD597*$B$3 -> 0 | GS9: ='AEO Consump'!AE597*$B$3 -> 0 | GT9: ='AEO Consump'!AF597*$B$3 -> 0 | GU9: ='AEO Consump'!AG597*$B$3 -> 0 | GV9: ='AEO Consump'!AH597*$B$3 -> 0 | GW9: ='AEO Consump'!AI597*$B$3 -> 0 | GX9: ='AEO Consump'!AJ597*$B$3 -> 0 | GY9: ='AEO Consump'!AK597*$B$3 -> 0 | GZ9: ='AEO Consump'!AL597*$B$3 -> 0 | HA9: ='AEO Consump'!AM597*$B$3 -> 0 | HB9: ='AEO Consump'!AN597*$B$3 -> 0 | HC9: ='AEO Consump'!AO597*$B$3 -> 0 | HD9: ='AEO Consump'!AP597*$B$3 -> 0 | HE9: ='AEO Consump'!AQ597*$B$3 -> 0 | HF9: ='AEO Consump'!AR597*$B$3 -> 0 | HG9: ='AEO Consump'!AS597*$B$3 -> 0 | HH9: ='AEO Consump'!AT597*$B$3 -> 0
B10: Natural Gas | G10: ='AEO Consump'!I18*$B$3 -> 224165 | H10: ='AEO Consump'!J18*$B$3 -> 218535 | I10: ='AEO Consump'!K18*$B$3 -> 217217 | J10: ='AEO Consump'!L18*$B$3 -> 195238 | K10: ='AEO Consump'!M18*$B$3 -> 209082 | L10: ='AEO Consump'!N18*$B$3 -> 220264 | M10: ='AEO Consump'!O18*$B$3 -> 216121 | N10: ='AEO Consump'!P18*$B$3 -> 240422 | O10: ='AEO Consump'!Q18*$B$3 -> 223587 | P10: ='AEO Consump'!R18*$B$3 -> 225000 | Q10: ='AEO Consump'!S18*$B$3 -> 237000 | R10: ='AEO Consump'!T18*$B$3 -> 218000 | S10: ='AEO Consump'!U18*$B$3 -> 219000 | T10: ='AEO Consump'!V18*$B$3 -> 219000 | U10: ='AEO Consump'!W18*$B$3 -> 219000 | V10: ='AEO Consump'!X18*$B$3 -> 219000 | W10: ='AEO Consump'!Y18*$B$3 -> 219000 | X10: ='AEO Consump'!Z18*$B$3 -> 219000 | Y10: ='AEO Consump'!AA18*$B$3 -> 219000 | Z10: ='AEO Consump'!AB18*$B$3 -> 219000 | AA10: ='AEO Consump'!AC18*$B$3 -> 220000 | AB10: ='AEO Consump'!AD18*$B$3 -> 220000 | AC10: ='AEO Consump'!AE18*$B$3 -> 221000 | AD10: ='AEO Consump'!AF18*$B$3 -> 222000 | AE10: ='AEO Consump'!AG18*$B$3 -> 223000 | AF10: ='AEO Consump'!AH18*$B$3 -> 224000 | AG10: ='AEO Consump'!AI18*$B$3 -> 225000 | AH10: ='AEO Consump'!AJ18*$B$3 -> 226000 | AI10: ='AEO Consump'!AK18*$B$3 -> 227000 | AJ10: ='AEO Consump'!AL18*$B$3 -> 227000 | AK10: ='AEO Consump'!AM18*$B$3 -> 228000 | AL10: ='AEO Consump'!AN18*$B$3 -> 229000 | AM10: ='AEO Consump'!AO18*$B$3 -> 230000 | AN10: ='AEO Consump'!AP18*$B$3 -> 231000 | AO10: ='AEO Consump'!AQ18*$B$3 -> 231000 | AP10: ='AEO Consump'!AR18*$B$3 -> 232000 | AQ10: ='AEO Consump'!AS18*$B$3 -> 232000 | AR10: ='AEO Consump'!AT18*$B$3 -> 233000 | AX10: ='AEO Consump'!I161*$B$3 -> 889747 | AY10: ='AEO Consump'!J161*$B$3 -> 991618 | AZ10: ='AEO Consump'!K161*$B$3 -> 958441 | BA10: ='AEO Consump'!L161*$B$3 -> 873005 | BB10: ='AEO Consump'!M161*$B$3 -> 905070 | BC10: ='AEO Consump'!N161*$B$3 -> 964387 | BD10: ='AEO Consump'!O161*$B$3 -> 958470 | BE10: ='AEO Consump'!P161*$B$3 -> 1021848 | BF10: ='AEO Consump'!Q161*$B$3 -> 943643 | BG10: ='AEO Consump'!R161*$B$3 -> 963000 | BH10: ='AEO Consump'!S161*$B$3 -> 954000 | BI10: ='AEO Consump'!T161*$B$3 -> 955000 | BJ10: ='AEO Consump'!U161*$B$3 -> 961000 | BK10: ='AEO Consump'!V161*$B$3 -> 965000 | BL10: ='AEO Consump'!W161*$B$3 -> 967000 | BM10: ='AEO Consump'!X161*$B$3 -> 968000 | BN10: ='AEO Consump'!Y161*$B$3 -> 966000 | BO10: ='AEO Consump'!Z161*$B$3 -> 965000 | BP10: ='AEO Consump'!AA161*$B$3 -> 962000 | BQ10: ='AEO Consump'!AB161*$B$3 -> 960000 | BR10: ='AEO Consump'!AC161*$B$3 -> 958000 | BS10: ='AEO Consump'!AD161*$B$3 -> 956000 | BT10: ='AEO Consump'!AE161*$B$3 -> 954000 | BU10: ='AEO Consump'!AF161*$B$3 -> 952000 | BV10: ='AEO Consump'!AG161*$B$3 -> 949000 | BW10: ='AEO Consump'!AH161*$B$3 -> 947000 | BX10: ='AEO Consump'!AI161*$B$3 -> 944000 | BY10: ='AEO Consump'!AJ161*$B$3 -> 942000 | BZ10: ='AEO Consump'!AK161*$B$3 -> 939000 | CA10: ='AEO Consump'!AL161*$B$3 -> 937000 | CB10: ='AEO Consump'!AM161*$B$3 -> 935000 | CC10: ='AEO Consump'!AN161*$B$3 -> 935000 | CD10: ='AEO Consump'!AO161*$B$3 -> 933000 | CE10: ='AEO Consump'!AP161*$B$3 -> 931000 | CF10: ='AEO Consump'!AQ161*$B$3 -> 930000 | CG10: ='AEO Consump'!AR161*$B$3 -> 929000 | CH10: ='AEO Consump'!AS161*$B$3 -> 928000 | CI10: ='AEO Consump'!AT161*$B$3 -> 926000 | CO10: ='AEO Consump'!I304*$B$3 -> 1337162 | CP10: ='AEO Consump'!J304*$B$3 -> 1508570 | CQ10: ='AEO Consump'!K304*$B$3 -> 1308080 | CR10: ='AEO Consump'!L304*$B$3 -> 1231047 | CS10: ='AEO Consump'!M304*$B$3 -> 1234271 | CT10: ='AEO Consump'!N304*$B$3 -> 1335481 | CU10: ='AEO Consump'!O304*$B$3 -> 1398761 | CV10: ='AEO Consump'!P304*$B$3 -> 1355634 | CW10: ='AEO Consump'!Q304*$B$3 -> 1240729 | CX10: ='AEO Consump'!R304*$B$3 -> 1354000 | CY10: ='AEO Consump'!S304*$B$3 -> 1254000 | CZ10: ='AEO Consump'!T304*$B$3 -> 1284000 | DA10: ='AEO Consump'!U304*$B$3 -> 1292000 | DB10: ='AEO Consump'!V304*$B$3 -> 1298000 | DC10: ='AEO Consump'!W304*$B$3 -> 1298000 | DD10: ='AEO Consump'!X304*$B$3 -> 1295000 | DE10: ='AEO Consump'!Y304*$B$3 -> 1288000 | DF10: ='AEO Consump'!Z304*$B$3 -> 1279000 | DG10: ='AEO Consump'!AA304*$B$3 -> 1269000 | DH10: ='AEO Consump'!AB304*$B$3 -> 1259000 | DI10: ='AEO Consump'!AC304*$B$3 -> 1251000 | DJ10: ='AEO Consump'!AD304*$B$3 -> 1243000 | DK10: ='AEO Consump'!AE304*$B$3 -> 1234000 | DL10: ='AEO Consump'!AF304*$B$3 -> 1227000 | DM10: ='AEO Consump'!AG304*$B$3 -> 1220000 | DN10: ='AEO Consump'!AH304*$B$3 -> 1213000 | DO10: ='AEO Consump'!AI304*$B$3 -> 1207000 | DP10: ='AEO Consump'!AJ304*$B$3 -> 1201000 | DQ10: ='AEO Consump'!AK304*$B$3 -> 1195000 | DR10: ='AEO Consump'!AL304*$B$3 -> 1190000 | DS10: ='AEO Consump'!AM304*$B$3 -> 1186000 | DT10: ='AEO Consump'!AN304*$B$3 -> 1182000 | DU10: ='AEO Consump'!AO304*$B$3 -> 1178000 | DV10: ='AEO Consump'!AP304*$B$3 -> 1174000 | DW10: ='AEO Consump'!AQ304*$B$3 -> 1170000 | DX10: ='AEO Consump'!AR304*$B$3 -> 1166000 | DY10: ='AEO Consump'!AS304*$B$3 -> 1162000 | DZ10: ='AEO Consump'!AT304*$B$3 -> 1158000 | EF10: ='AEO Consump'!I450*$B$3 -> 453824 | EG10: ='AEO Consump'!J450*$B$3 -> 494043 | EH10: ='AEO Consump'!K450*$B$3 -> 409843 | EI10: ='AEO Consump'!L450*$B$3 -> 388812 | EJ10: ='AEO Consump'!M450*$B$3 -> 396964 | EK10: ='AEO Consump'!N450*$B$3 -> 448966 | EL10: ='AEO Consump'!O450*$B$3 -> 481585 | EM10: ='AEO Consump'!P450*$B$3 -> 428810 | EN10: ='AEO Consump'!Q450*$B$3 -> 444438 | EO10: ='AEO Consump'!R450*$B$3 -> 467000 | EP10: ='AEO Consump'!S450*$B$3 -> 441000 | EQ10: ='AEO Consump'!T450*$B$3 -> 445000 | ER10: ='AEO Consump'!U450*$B$3 -> 449000 | ES10: ='AEO Consump'!V450*$B$3 -> 452000 | ET10: ='AEO Consump'!W450*$B$3 -> 454000 | EU10: ='AEO Consump'!X450*$B$3 -> 454000 | EV10: ='AEO Consump'!Y450*$B$3 -> 453000 | EW10: ='AEO Consump'!Z450*$B$3 -> 452000 | EX10: ='AEO Consump'!AA450*$B$3 -> 450000 | EY10: ='AEO Consump'!AB450*$B$3 -> 448000 | EZ10: ='AEO Consump'!AC450*$B$3 -> 447000 | FA10: ='AEO Consump'!AD450*$B$3 -> 445000 | FB10: ='AEO Consump'!AE450*$B$3 -> 444000 | FC10: ='AEO Consump'!AF450*$B$3 -> 443000 | FD10: ='AEO Consump'!AG450*$B$3 -> 442000 | FE10: ='AEO Consump'!AH450*$B$3 -> 441000 | FF10: ='AEO Consump'!AI450*$B$3 -> 441000 | FG10: ='AEO Consump'!AJ450*$B$3 -> 441000 | FH10: ='AEO Consump'!AK450*$B$3 -> 441000 | FI10: ='AEO Consump'!AL450*$B$3 -> 441000 | FJ10: ='AEO Consump'!AM450*$B$3 -> 441000 | FK10: ='AEO Consump'!AN450*$B$3 -> 442000 | FL10: ='AEO Consump'!AO450*$B$3 -> 443000 | FM10: ='AEO Consump'!AP450*$B$3 -> 443000 | FN10: ='AEO Consump'!AQ450*$B$3 -> 444000 | FO10: ='AEO Consump'!AR450*$B$3 -> 445000 | FP10: ='AEO Consump'!AS450*$B$3 -> 445000 | FQ10: ='AEO Consump'!AT450*$B$3 -> 446000 | FW10: ='AEO Consump'!I596*$B$3 -> 459805 | FX10: ='AEO Consump'!J596*$B$3 -> 511154 | FY10: ='AEO Consump'!K596*$B$3 -> 452122 | FZ10: ='AEO Consump'!L596*$B$3 -> 436420 | GA10: ='AEO Consump'!M596*$B$3 -> 422630 | GB10: ='AEO Consump'!N596*$B$3 -> 499925 | GC10: ='AEO Consump'!O596*$B$3 -> 480139 | GD10: ='AEO Consump'!P596*$B$3 -> 487650 | GE10: ='AEO Consump'!Q596*$B$3 -> 493434 | GF10: ='AEO Consump'!R596*$B$3 -> 497000 | GG10: ='AEO Consump'!S596*$B$3 -> 558000 | GH10: ='AEO Consump'!T596*$B$3 -> 478000 | GI10: ='AEO Consump'!U596*$B$3 -> 479000 | GJ10: ='AEO Consump'!V596*$B$3 -> 479000 | GK10: ='AEO Consump'!W596*$B$3 -> 479000 | GL10: ='AEO Consump'!X596*$B$3 -> 478000 | GM10: ='AEO Consump'!Y596*$B$3 -> 477000 | GN10: ='AEO Consump'!Z596*$B$3 -> 476000 | GO10: ='AEO Consump'!AA596*$B$3 -> 475000 | GP10: ='AEO Consump'!AB596*$B$3 -> 473000 | GQ10: ='AEO Consump'!AC596*$B$3 -> 473000 | GR10: ='AEO Consump'!AD596*$B$3 -> 472000 | GS10: ='AEO Consump'!AE596*$B$3 -> 472000 | GT10: ='AEO Consump'!AF596*$B$3 -> 471000 | GU10: ='AEO Consump'!AG596*$B$3 -> 471000 | GV10: ='AEO Consump'!AH596*$B$3 -> 470000 | GW10: ='AEO Consump'!AI596*$B$3 -> 470000 | GX10: ='AEO Consump'!AJ596*$B$3 -> 470000 | GY10: ='AEO Consump'!AK596*$B$3 -> 469000 | GZ10: ='AEO Consump'!AL596*$B$3 -> 469000 | HA10: ='AEO Consump'!AM596*$B$3 -> 469000 | HB10: ='AEO Consump'!AN596*$B$3 -> 469000 | HC10: ='AEO Consump'!AO596*$B$3 -> 469000 | HD10: ='AEO Consump'!AP596*$B$3 -> 469000 | HE10: ='AEO Consump'!AQ596*$B$3 -> 470000 | HF10: ='AEO Consump'!AR596*$B$3 -> 470000 | HG10: ='AEO Consump'!AS596*$B$3 -> 470000 | HH10: ='AEO Consump'!AT596*$B$3 -> 470000
B11: Distillate Fuel | G11: ='AEO Consump'!I14*$B$3 -> 221742 | H11: ='AEO Consump'!J14*$B$3 -> 215867 | I11: ='AEO Consump'!K14*$B$3 -> 217894 | J11: ='AEO Consump'!L14*$B$3 -> 166387 | K11: ='AEO Consump'!M14*$B$3 -> 175503 | L11: ='AEO Consump'!N14*$B$3 -> 182302 | M11: ='AEO Consump'!O14*$B$3 -> 197708 | N11: ='AEO Consump'!P14*$B$3 -> 181511 | O11: ='AEO Consump'!Q14*$B$3 -> 175497 | P11: ='AEO Consump'!R14*$B$3 -> 184000 | Q11: ='AEO Consump'!S14*$B$3 -> 188000 | R11: ='AEO Consump'!T14*$B$3 -> 163000 | S11: ='AEO Consump'!U14*$B$3 -> 161000 | T11: ='AEO Consump'!V14*$B$3 -> 158000 | U11: ='AEO Consump'!W14*$B$3 -> 155000 | V11: ='AEO Consump'!X14*$B$3 -> 152000 | W11: ='AEO Consump'!Y14*$B$3 -> 149000 | X11: ='AEO Consump'!Z14*$B$3 -> 146000 | Y11: ='AEO Consump'!AA14*$B$3 -> 143000 | Z11: ='AEO Consump'!AB14*$B$3 -> 140000 | AA11: ='AEO Consump'!AC14*$B$3 -> 138000 | AB11: ='AEO Consump'!AD14*$B$3 -> 135000 | AC11: ='AEO Consump'!AE14*$B$3 -> 133000 | AD11: ='AEO Consump'!AF14*$B$3 -> 130000 | AE11: ='AEO Consump'!AG14*$B$3 -> 128000 | AF11: ='AEO Consump'!AH14*$B$3 -> 126000 | AG11: ='AEO Consump'!AI14*$B$3 -> 124000 | AH11: ='AEO Consump'!AJ14*$B$3 -> 122000 | AI11: ='AEO Consump'!AK14*$B$3 -> 119000 | AJ11: ='AEO Consump'!AL14*$B$3 -> 117000 | AK11: ='AEO Consump'!AM14*$B$3 -> 115000 | AL11: ='AEO Consump'!AN14*$B$3 -> 113000 | AM11: ='AEO Consump'!AO14*$B$3 -> 111000 | AN11: ='AEO Consump'!AP14*$B$3 -> 109000 | AO11: ='AEO Consump'!AQ14*$B$3 -> 107000 | AP11: ='AEO Consump'!AR14*$B$3 -> 106000 | AQ11: ='AEO Consump'!AS14*$B$3 -> 104000 | AR11: ='AEO Consump'!AT14*$B$3 -> 102000 | AX11: ='AEO Consump'!I157*$B$3 -> 228099 | AY11: ='AEO Consump'!J157*$B$3 -> 242033 | AZ11: ='AEO Consump'!K157*$B$3 -> 223289 | BA11: ='AEO Consump'!L157*$B$3 -> 204554 | BB11: ='AEO Consump'!M157*$B$3 -> 230827 | BC11: ='AEO Consump'!N157*$B$3 -> 220022 | BD11: ='AEO Consump'!O157*$B$3 -> 180817 | BE11: ='AEO Consump'!P157*$B$3 -> 173161 | BF11: ='AEO Consump'!Q157*$B$3 -> 175054 | BG11: ='AEO Consump'!R157*$B$3 -> 179000 | BH11: ='AEO Consump'!S157*$B$3 -> 175000 | BI11: ='AEO Consump'!T157*$B$3 -> 152000 | BJ11: ='AEO Consump'!U157*$B$3 -> 150000 | BK11: ='AEO Consump'!V157*$B$3 -> 148000 | BL11: ='AEO Consump'!W157*$B$3 -> 146000 | BM11: ='AEO Consump'!X157*$B$3 -> 143000 | BN11: ='AEO Consump'!Y157*$B$3 -> 141000 | BO11: ='AEO Consump'!Z157*$B$3 -> 139000 | BP11: ='AEO Consump'!AA157*$B$3 -> 136000 | BQ11: ='AEO Consump'!AB157*$B$3 -> 134000 | BR11: ='AEO Consump'!AC157*$B$3 -> 132000 | BS11: ='AEO Consump'!AD157*$B$3 -> 130000 | BT11: ='AEO Consump'!AE157*$B$3 -> 128000 | BU11: ='AEO Consump'!AF157*$B$3 -> 126000 | BV11: ='AEO Consump'!AG157*$B$3 -> 124000 | BW11: ='AEO Consump'!AH157*$B$3 -> 122000 | BX11: ='AEO Consump'!AI157*$B$3 -> 120000 | BY11: ='AEO Consump'!AJ157*$B$3 -> 118000 | BZ11: ='AEO Consump'!AK157*$B$3 -> 116000 | CA11: ='AEO Consump'!AL157*$B$3 -> 114000 | CB11: ='AEO Consump'!AM157*$B$3 -> 113000 | CC11: ='AEO Consump'!AN157*$B$3 -> 111000 | CD11: ='AEO Consump'!AO157*$B$3 -> 109000 | CE11: ='AEO Consump'!AP157*$B$3 -> 107000 | CF11: ='AEO Consump'!AQ157*$B$3 -> 106000 | CG11: ='AEO Consump'!AR157*$B$3 -> 104000 | CH11: ='AEO Consump'!AS157*$B$3 -> 102000 | CI11: ='AEO Consump'!AT157*$B$3 -> 101000 | CO11: ='AEO Consump'!I300*$B$3 -> 22024 | CP11: ='AEO Consump'!J300*$B$3 -> 19347 | CQ11: ='AEO Consump'!K300*$B$3 -> 15256 | CR11: ='AEO Consump'!L300*$B$3 -> 14683 | CS11: ='AEO Consump'!M300*$B$3 -> 17714 | CT11: ='AEO Consump'!N300*$B$3 -> 17738 | CU11: ='AEO Consump'!O300*$B$3 -> 17824 | CV11: ='AEO Consump'!P300*$B$3 -> 16473 | CW11: ='AEO Consump'!Q300*$B$3 -> 14776 | CX11: ='AEO Consump'!R300*$B$3 -> 15000 | CY11: ='AEO Consump'!S300*$B$3 -> 15000 | CZ11: ='AEO Consump'!T300*$B$3 -> 14000 | DA11: ='AEO Consump'!U300*$B$3 -> 14000 | DB11: ='AEO Consump'!V300*$B$3 -> 14000 | DC11: ='AEO Consump'!W300*$B$3 -> 14000 | DD11: ='AEO Consump'!X300*$B$3 -> 14000 | DE11: ='AEO Consump'!Y300*$B$3 -> 14000 | DF11: ='AEO Consump'!Z300*$B$3 -> 14000 | DG11: ='AEO Consump'!AA300*$B$3 -> 14000 | DH11: ='AEO Consump'!AB300*$B$3 -> 14000 | DI11: ='AEO Consump'!AC300*$B$3 -> 14000 | DJ11: ='AEO Consump'!AD300*$B$3 -> 14000 | DK11: ='AEO Consump'!AE300*$B$3 -> 14000 | DL11: ='AEO Consump'!AF300*$B$3 -> 13000 | DM11: ='AEO Consump'!AG300*$B$3 -> 13000 | DN11: ='AEO Consump'!AH300*$B$3 -> 13000 | DO11: ='AEO Consump'!AI300*$B$3 -> 13000 | DP11: ='AEO Consump'!AJ300*$B$3 -> 13000 | DQ11: ='AEO Consump'!AK300*$B$3 -> 13000 | DR11: ='AEO Consump'!AL300*$B$3 -> 13000 | DS11: ='AEO Consump'!AM300*$B$3 -> 13000 | DT11: ='AEO Consump'!AN300*$B$3 -> 13000 | DU11: ='AEO Consump'!AO300*$B$3 -> 13000 | DV11: ='AEO Consump'!AP300*$B$3 -> 13000 | DW11: ='AEO Consump'!AQ300*$B$3 -> 13000 | DX11: ='AEO Consump'!AR300*$B$3 -> 13000 | DY11: ='AEO Consump'!AS300*$B$3 -> 13000 | DZ11: ='AEO Consump'!AT300*$B$3 -> 13000 | EF11: ='AEO Consump'!I446*$B$3 -> 11075 | EG11: ='AEO Consump'!J446*$B$3 -> 8820 | EH11: ='AEO Consump'!K446*$B$3 -> 5680 | EI11: ='AEO Consump'!L446*$B$3 -> 9553 | EJ11: ='AEO Consump'!M446*$B$3 -> 11162 | EK11: ='AEO Consump'!N446*$B$3 -> 9759 | EL11: ='AEO Consump'!O446*$B$3 -> 7661 | EM11: ='AEO Consump'!P446*$B$3 -> 6397 | EN11: ='AEO Consump'!Q446*$B$3 -> 5141 | EO11: ='AEO Consump'!R446*$B$3 -> 5000 | EP11: ='AEO Consump'!S446*$B$3 -> 5000 | EQ11: ='AEO Consump'!T446*$B$3 -> 5000 | ER11: ='AEO Consump'!U446*$B$3 -> 5000 | ES11: ='AEO Consump'!V446*$B$3 -> 5000 | ET11: ='AEO Consump'!W446*$B$3 -> 5000 | EU11: ='AEO Consump'!X446*$B$3 -> 5000 | EV11: ='AEO Consump'!Y446*$B$3 -> 4000 | EW11: ='AEO Consump'!Z446*$B$3 -> 4000 | EX11: ='AEO Consump'!AA446*$B$3 -> 4000 | EY11: ='AEO Consump'!AB446*$B$3 -> 4000 | EZ11: ='AEO Consump'!AC446*$B$3 -> 4000 | FA11: ='AEO Consump'!AD446*$B$3 -> 4000 | FB11: ='AEO Consump'!AE446*$B$3 -> 4000 | FC11: ='AEO Consump'!AF446*$B$3 -> 4000 | FD11: ='AEO Consump'!AG446*$B$3 -> 4000 | FE11: ='AEO Consump'!AH446*$B$3 -> 4000 | FF11: ='AEO Consump'!AI446*$B$3 -> 4000 | FG11: ='AEO Consump'!AJ446*$B$3 -> 4000 | FH11: ='AEO Consump'!AK446*$B$3 -> 4000 | FI11: ='AEO Consump'!AL446*$B$3 -> 4000 | FJ11: ='AEO Consump'!AM446*$B$3 -> 4000 | FK11: ='AEO Consump'!AN446*$B$3 -> 4000 | FL11: ='AEO Consump'!AO446*$B$3 -> 4000 | FM11: ='AEO Consump'!AP446*$B$3 -> 4000 | FN11: ='AEO Consump'!AQ446*$B$3 -> 4000 | FO11: ='AEO Consump'!AR446*$B$3 -> 4000 | FP11: ='AEO Consump'!AS446*$B$3 -> 4000 | FQ11: ='AEO Consump'!AT446*$B$3 -> 4000 | FW11: ='AEO Consump'!I592*$B$3 -> 45817 | FX11: ='AEO Consump'!J592*$B$3 -> 45708 | FY11: ='AEO Consump'!K592*$B$3 -> 37383 | FZ11: ='AEO Consump'!L592*$B$3 -> 29301 | GA11: ='AEO Consump'!M592*$B$3 -> 37955 | GB11: ='AEO Consump'!N592*$B$3 -> 45334 | GC11: ='AEO Consump'!O592*$B$3 -> 29445 | GD11: ='AEO Consump'!P592*$B$3 -> 30669 | GE11: ='AEO Consump'!Q592*$B$3 -> 33328 | GF11: ='AEO Consump'!R592*$B$3 -> 35000 | GG11: ='AEO Consump'!S592*$B$3 -> 34000 | GH11: ='AEO Consump'!T592*$B$3 -> 26000 | GI11: ='AEO Consump'!U592*$B$3 -> 25000 | GJ11: ='AEO Consump'!V592*$B$3 -> 25000 | GK11: ='AEO Consump'!W592*$B$3 -> 24000 | GL11: ='AEO Consump'!X592*$B$3 -> 23000 | GM11: ='AEO Consump'!Y592*$B$3 -> 22000 | GN11: ='AEO Consump'!Z592*$B$3 -> 21000 | GO11: ='AEO Consump'!AA592*$B$3 -> 20000 | GP11: ='AEO Consump'!AB592*$B$3 -> 19000 | GQ11: ='AEO Consump'!AC592*$B$3 -> 19000 | GR11: ='AEO Consump'!AD592*$B$3 -> 18000 | GS11: ='AEO Consump'!AE592*$B$3 -> 17000 | GT11: ='AEO Consump'!AF592*$B$3 -> 17000 | GU11: ='AEO Consump'!AG592*$B$3 -> 16000 | GV11: ='AEO Consump'!AH592*$B$3 -> 15000 | GW11: ='AEO Consump'!AI592*$B$3 -> 14000 | GX11: ='AEO Consump'!AJ592*$B$3 -> 14000 | GY11: ='AEO Consump'!AK592*$B$3 -> 13000 | GZ11: ='AEO Consump'!AL592*$B$3 -> 13000 | HA11: ='AEO Consump'!AM592*$B$3 -> 12000 | HB11: ='AEO Consump'!AN592*$B$3 -> 11000 | HC11: ='AEO Consump'!AO592*$B$3 -> 11000 | HD11: ='AEO Consump'!AP592*$B$3 -> 10000 | HE11: ='AEO Consump'!AQ592*$B$3 -> 10000 | HF11: ='AEO Consump'!AR592*$B$3 -> 9000 | HG11: ='AEO Consump'!AS592*$B$3 -> 9000 | HH11: ='AEO Consump'!AT592*$B$3 -> 8000
B12: Kerosene | G12: ='AEO Consump'!I15*$B$3 -> 1194 | H12: ='AEO Consump'!J15*$B$3 -> 1982 | I12: ='AEO Consump'!K15*$B$3 -> 2321 | J12: ='AEO Consump'!L15*$B$3 -> 2321 | K12: ='AEO Consump'!M15*$B$3 -> 0 | L12: ='AEO Consump'!N15*$B$3 -> 0 | M12: ='AEO Consump'!O15*$B$3 -> 0 | N12: ='AEO Consump'!P15*$B$3 -> 0 | O12: ='AEO Consump'!Q15*$B$3 -> 0 | P12: ='AEO Consump'!R15*$B$3 -> 0 | Q12: ='AEO Consump'!S15*$B$3 -> 0 | R12: ='AEO Consump'!T15*$B$3 -> 0 | S12: ='AEO Consump'!U15*$B$3 -> 0 | T12: ='AEO Consump'!V15*$B$3 -> 0 | U12: ='AEO Consump'!W15*$B$3 -> 0 | V12: ='AEO Consump'!X15*$B$3 -> 0 | W12: ='AEO Consump'!Y15*$B$3 -> 0 | X12: ='AEO Consump'!Z15*$B$3 -> 0 | Y12: ='AEO Consump'!AA15*$B$3 -> 0 | Z12: ='AEO Consump'!AB15*$B$3 -> 0 | AA12: ='AEO Consump'!AC15*$B$3 -> 0 | AB12: ='AEO Consump'!AD15*$B$3 -> 0 | AC12: ='AEO Consump'!AE15*$B$3 -> 0 | AD12: ='AEO Consump'!AF15*$B$3 -> 0 | AE12: ='AEO Consump'!AG15*$B$3 -> 0 | AF12: ='AEO Consump'!AH15*$B$3 -> 0 | AG12: ='AEO Consump'!AI15*$B$3 -> 0 | AH12: ='AEO Consump'!AJ15*$B$3 -> 0 | AI12: ='AEO Consump'!AK15*$B$3 -> 0 | AJ12: ='AEO Consump'!AL15*$B$3 -> 0 | AK12: ='AEO Consump'!AM15*$B$3 -> 0 | AL12: ='AEO Consump'!AN15*$B$3 -> 0 | AM12: ='AEO Consump'!AO15*$B$3 -> 0 | AN12: ='AEO Consump'!AP15*$B$3 -> 0 | AO12: ='AEO Consump'!AQ15*$B$3 -> 0 | AP12: ='AEO Consump'!AR15*$B$3 -> 0 | AQ12: ='AEO Consump'!AS15*$B$3 -> 0 | AR12: ='AEO Consump'!AT15*$B$3 -> 0 | AX12: ='AEO Consump'!I158*$B$3 -> 1991 | AY12: ='AEO Consump'!J158*$B$3 -> 3982 | AZ12: ='AEO Consump'!K158*$B$3 -> 4217 | BA12: ='AEO Consump'!L158*$B$3 -> 4217 | BB12: ='AEO Consump'!M158*$B$3 -> 0 | BC12: ='AEO Consump'!N158*$B$3 -> 0 | BD12: ='AEO Consump'!O158*$B$3 -> 0 | BE12: ='AEO Consump'!P158*$B$3 -> 0 | BF12: ='AEO Consump'!Q158*$B$3 -> 0 | BG12: ='AEO Consump'!R158*$B$3 -> 0 | BH12: ='AEO Consump'!S158*$B$3 -> 0 | BI12: ='AEO Consump'!T158*$B$3 -> 0 | BJ12: ='AEO Consump'!U158*$B$3 -> 0 | BK12: ='AEO Consump'!V158*$B$3 -> 0 | BL12: ='AEO Consump'!W158*$B$3 -> 0 | BM12: ='AEO Consump'!X158*$B$3 -> 0 | BN12: ='AEO Consump'!Y158*$B$3 -> 0 | BO12: ='AEO Consump'!Z158*$B$3 -> 0 | BP12: ='AEO Consump'!AA158*$B$3 -> 0 | BQ12: ='AEO Consump'!AB158*$B$3 -> 0 | BR12: ='AEO Consump'!AC158*$B$3 -> 0 | BS12: ='AEO Consump'!AD158*$B$3 -> 0 | BT12: ='AEO Consump'!AE158*$B$3 -> 0 | BU12: ='AEO Consump'!AF158*$B$3 -> 0 | BV12: ='AEO Consump'!AG158*$B$3 -> 0 | BW12: ='AEO Consump'!AH158*$B$3 -> 0 | BX12: ='AEO Consump'!AI158*$B$3 -> 0 | BY12: ='AEO Consump'!AJ158*$B$3 -> 0 | BZ12: ='AEO Consump'!AK158*$B$3 -> 0 | CA12: ='AEO Consump'!AL158*$B$3 -> 0 | CB12: ='AEO Consump'!AM158*$B$3 -> 0 | CC12: ='AEO Consump'!AN158*$B$3 -> 0 | CD12: ='AEO Consump'!AO158*$B$3 -> 0 | CE12: ='AEO Consump'!AP158*$B$3 -> 0 | CF12: ='AEO Consump'!AQ158*$B$3 -> 0 | CG12: ='AEO Consump'!AR158*$B$3 -> 0 | CH12: ='AEO Consump'!AS158*$B$3 -> 0 | CI12: ='AEO Consump'!AT158*$B$3 -> 0 | CO12: ='AEO Consump'!I301*$B$3 -> 483 | CP12: ='AEO Consump'!J301*$B$3 -> 679 | CQ12: ='AEO Consump'!K301*$B$3 -> 716 | CR12: ='AEO Consump'!L301*$B$3 -> 716 | CS12: ='AEO Consump'!M301*$B$3 -> 0 | CT12: ='AEO Consump'!N301*$B$3 -> 0 | CU12: ='AEO Consump'!O301*$B$3 -> 0 | CV12: ='AEO Consump'!P301*$B$3 -> 0 | CW12: ='AEO Consump'!Q301*$B$3 -> 0 | CX12: ='AEO Consump'!R301*$B$3 -> 0 | CY12: ='AEO Consump'!S301*$B$3 -> 0 | CZ12: ='AEO Consump'!T301*$B$3 -> 0 | DA12: ='AEO Consump'!U301*$B$3 -> 0 | DB12: ='AEO Consump'!V301*$B$3 -> 0 | DC12: ='AEO Consump'!W301*$B$3 -> 0 | DD12: ='AEO Consump'!X301*$B$3 -> 0 | DE12: ='AEO Consump'!Y301*$B$3 -> 0 | DF12: ='AEO Consump'!Z301*$B$3 -> 0 | DG12: ='AEO Consump'!AA301*$B$3 -> 0 | DH12: ='AEO Consump'!AB301*$B$3 -> 0 | DI12: ='AEO Consump'!AC301*$B$3 -> 0 | DJ12: ='AEO Consump'!AD301*$B$3 -> 0 | DK12: ='AEO Consump'!AE301*$B$3 -> 0 | DL12: ='AEO Consump'!AF301*$B$3 -> 0 | DM12: ='AEO Consump'!AG301*$B$3 -> 0 | DN12: ='AEO Consump'!AH301*$B$3 -> 0 | DO12: ='AEO Consump'!AI301*$B$3 -> 0 | DP12: ='AEO Consump'!AJ301*$B$3 -> 0 | DQ12: ='AEO Consump'!AK301*$B$3 -> 0 | DR12: ='AEO Consump'!AL301*$B$3 -> 0 | DS12: ='AEO Consump'!AM301*$B$3 -> 0 | DT12: ='AEO Consump'!AN301*$B$3 -> 0 | DU12: ='AEO Consump'!AO301*$B$3 -> 0 | DV12: ='AEO Consump'!AP301*$B$3 -> 0 | DW12: ='AEO Consump'!AQ301*$B$3 -> 0 | DX12: ='AEO Consump'!AR301*$B$3 -> 0 | DY12: ='AEO Consump'!AS301*$B$3 -> 0 | DZ12: ='AEO Consump'!AT301*$B$3 -> 0 | EF12: ='AEO Consump'!I447*$B$3 -> 68 | EG12: ='AEO Consump'!J447*$B$3 -> 103 | EH12: ='AEO Consump'!K447*$B$3 -> 107 | EI12: ='AEO Consump'!L447*$B$3 -> 107 | EJ12: ='AEO Consump'!M447*$B$3 -> 0 | EK12: ='AEO Consump'!N447*$B$3 -> 0 | EL12: ='AEO Consump'!O447*$B$3 -> 0 | EM12: ='AEO Consump'!P447*$B$3 -> 0 | EN12: ='AEO Consump'!Q447*$B$3 -> 0 | EO12: ='AEO Consump'!R447*$B$3 -> 0 | EP12: ='AEO Consump'!S447*$B$3 -> 0 | EQ12: ='AEO Consump'!T447*$B$3 -> 0 | ER12: ='AEO Consump'!U447*$B$3 -> 0 | ES12: ='AEO Consump'!V447*$B$3 -> 0 | ET12: ='AEO Consump'!W447*$B$3 -> 0 | EU12: ='AEO Consump'!X447*$B$3 -> 0 | EV12: ='AEO Consump'!Y447*$B$3 -> 0 | EW12: ='AEO Consump'!Z447*$B$3 -> 0 | EX12: ='AEO Consump'!AA447*$B$3 -> 0 | EY12: ='AEO Consump'!AB447*$B$3 -> 0 | EZ12: ='AEO Consump'!AC447*$B$3 -> 0 | FA12: ='AEO Consump'!AD447*$B$3 -> 0 | FB12: ='AEO Consump'!AE447*$B$3 -> 0 | FC12: ='AEO Consump'!AF447*$B$3 -> 0 | FD12: ='AEO Consump'!AG447*$B$3 -> 0 | FE12: ='AEO Consump'!AH447*$B$3 -> 0 | FF12: ='AEO Consump'!AI447*$B$3 -> 0 | FG12: ='AEO Consump'!AJ447*$B$3 -> 0 | FH12: ='AEO Consump'!AK447*$B$3 -> 0 | FI12: ='AEO Consump'!AL447*$B$3 -> 0 | FJ12: ='AEO Consump'!AM447*$B$3 -> 0 | FK12: ='AEO Consump'!AN447*$B$3 -> 0 | FL12: ='AEO Consump'!AO447*$B$3 -> 0 | FM12: ='AEO Consump'!AP447*$B$3 -> 0 | FN12: ='AEO Consump'!AQ447*$B$3 -> 0 | FO12: ='AEO Consump'!AR447*$B$3 -> 0 | FP12: ='AEO Consump'!AS447*$B$3 -> 0 | FQ12: ='AEO Consump'!AT447*$B$3 -> 0 | FW12: ='AEO Consump'!I593*$B$3 -> 1057 | FX12: ='AEO Consump'!J593*$B$3 -> 1921 | FY12: ='AEO Consump'!K593*$B$3 -> 1686 | FZ12: ='AEO Consump'!L593*$B$3 -> 1686 | GA12: ='AEO Consump'!M593*$B$3 -> 0 | GB12: ='AEO Consump'!N593*$B$3 -> 0 | GC12: ='AEO Consump'!O593*$B$3 -> 0 | GD12: ='AEO Consump'!P593*$B$3 -> 0 | GE12: ='AEO Consump'!Q593*$B$3 -> 0 | GF12: ='AEO Consump'!R593*$B$3 -> 0 | GG12: ='AEO Consump'!S593*$B$3 -> 0 | GH12: ='AEO Consump'!T593*$B$3 -> 0 | GI12: ='AEO Consump'!U593*$B$3 -> 0 | GJ12: ='AEO Consump'!V593*$B$3 -> 0 | GK12: ='AEO Consump'!W593*$B$3 -> 0 | GL12: ='AEO Consump'!X593*$B$3 -> 0 | GM12: ='AEO Consump'!Y593*$B$3 -> 0 | GN12: ='AEO Consump'!Z593*$B$3 -> 0 | GO12: ='AEO Consump'!AA593*$B$3 -> 0 | GP12: ='AEO Consump'!AB593*$B$3 -> 0 | GQ12: ='AEO Consump'!AC593*$B$3 -> 0 | GR12: ='AEO Consump'!AD593*$B$3 -> 0 | GS12: ='AEO Consump'!AE593*$B$3 -> 0 | GT12: ='AEO Consump'!AF593*$B$3 -> 0 | GU12: ='AEO Consump'!AG593*$B$3 -> 0 | GV12: ='AEO Consump'!AH593*$B$3 -> 0 | GW12: ='AEO Consump'!AI593*$B$3 -> 0 | GX12: ='AEO Consump'!AJ593*$B$3 -> 0 | GY12: ='AEO Consump'!AK593*$B$3 -> 0 | GZ12: ='AEO Consump'!AL593*$B$3 -> 0 | HA12: ='AEO Consump'!AM593*$B$3 -> 0 | HB12: ='AEO Consump'!AN593*$B$3 -> 0 | HC12: ='AEO Consump'!AO593*$B$3 -> 0 | HD12: ='AEO Consump'!AP593*$B$3 -> 0 | HE12: ='AEO Consump'!AQ593*$B$3 -> 0 | HF12: ='AEO Consump'!AR593*$B$3 -> 0 | HG12: ='AEO Consump'!AS593*$B$3 -> 0 | HH12: ='AEO Consump'!AT593*$B$3 -> 0
B13: HGL | G13: ='AEO Consump'!I16*$B$3 -> 34437 | H13: ='AEO Consump'!J16*$B$3 -> 38417 | I13: ='AEO Consump'!K16*$B$3 -> 42873 | J13: ='AEO Consump'!L16*$B$3 -> 21565 | K13: ='AEO Consump'!M16*$B$3 -> 22247 | L13: ='AEO Consump'!N16*$B$3 -> 31291 | M13: ='AEO Consump'!O16*$B$3 -> 43195 | N13: ='AEO Consump'!P16*$B$3 -> 41623 | O13: ='AEO Consump'!Q16*$B$3 -> 41198 | P13: ='AEO Consump'!R16*$B$3 -> 42000 | Q13: ='AEO Consump'!S16*$B$3 -> 42000 | R13: ='AEO Consump'!T16*$B$3 -> 39000 | S13: ='AEO Consump'!U16*$B$3 -> 39000 | T13: ='AEO Consump'!V16*$B$3 -> 39000 | U13: ='AEO Consump'!W16*$B$3 -> 38000 | V13: ='AEO Consump'!X16*$B$3 -> 38000 | W13: ='AEO Consump'!Y16*$B$3 -> 38000 | X13: ='AEO Consump'!Z16*$B$3 -> 38000 | Y13: ='AEO Consump'!AA16*$B$3 -> 38000 | Z13: ='AEO Consump'!AB16*$B$3 -> 37000 | AA13: ='AEO Consump'!AC16*$B$3 -> 37000 | AB13: ='AEO Consump'!AD16*$B$3 -> 37000 | AC13: ='AEO Consump'!AE16*$B$3 -> 36000 | AD13: ='AEO Consump'!AF16*$B$3 -> 36000 | AE13: ='AEO Consump'!AG16*$B$3 -> 36000 | AF13: ='AEO Consump'!AH16*$B$3 -> 36000 | AG13: ='AEO Consump'!AI16*$B$3 -> 36000 | AH13: ='AEO Consump'!AJ16*$B$3 -> 35000 | AI13: ='AEO Consump'!AK16*$B$3 -> 35000 | AJ13: ='AEO Consump'!AL16*$B$3 -> 35000 | AK13: ='AEO Consump'!AM16*$B$3 -> 35000 | AL13: ='AEO Consump'!AN16*$B$3 -> 35000 | AM13: ='AEO Consump'!AO16*$B$3 -> 35000 | AN13: ='AEO Consump'!AP16*$B$3 -> 34000 | AO13: ='AEO Consump'!AQ16*$B$3 -> 34000 | AP13: ='AEO Consump'!AR16*$B$3 -> 34000 | AQ13: ='AEO Consump'!AS16*$B$3 -> 34000 | AR13: ='AEO Consump'!AT16*$B$3 -> 34000 | AX13: ='AEO Consump'!I159*$B$3 -> 45592 | AY13: ='AEO Consump'!J159*$B$3 -> 47567 | AZ13: ='AEO Consump'!K159*$B$3 -> 48674 | BA13: ='AEO Consump'!L159*$B$3 -> 53049 | BB13: ='AEO Consump'!M159*$B$3 -> 57955 | BC13: ='AEO Consump'!N159*$B$3 -> 52737 | BD13: ='AEO Consump'!O159*$B$3 -> 44931 | BE13: ='AEO Consump'!P159*$B$3 -> 43466 | BF13: ='AEO Consump'!Q159*$B$3 -> 48856 | BG13: ='AEO Consump'!R159*$B$3 -> 51000 | BH13: ='AEO Consump'!S159*$B$3 -> 49000 | BI13: ='AEO Consump'!T159*$B$3 -> 45000 | BJ13: ='AEO Consump'!U159*$B$3 -> 44000 | BK13: ='AEO Consump'!V159*$B$3 -> 44000 | BL13: ='AEO Consump'!W159*$B$3 -> 44000 | BM13: ='AEO Consump'!X159*$B$3 -> 44000 | BN13: ='AEO Consump'!Y159*$B$3 -> 43000 | BO13: ='AEO Consump'!Z159*$B$3 -> 43000 | BP13: ='AEO Consump'!AA159*$B$3 -> 43000 | BQ13: ='AEO Consump'!AB159*$B$3 -> 42000 | BR13: ='AEO Consump'!AC159*$B$3 -> 42000 | BS13: ='AEO Consump'!AD159*$B$3 -> 42000 | BT13: ='AEO Consump'!AE159*$B$3 -> 41000 | BU13: ='AEO Consump'!AF159*$B$3 -> 41000 | BV13: ='AEO Consump'!AG159*$B$3 -> 41000 | BW13: ='AEO Consump'!AH159*$B$3 -> 40000 | BX13: ='AEO Consump'!AI159*$B$3 -> 40000 | BY13: ='AEO Consump'!AJ159*$B$3 -> 40000 | BZ13: ='AEO Consump'!AK159*$B$3 -> 40000 | CA13: ='AEO Consump'!AL159*$B$3 -> 40000 | CB13: ='AEO Consump'!AM159*$B$3 -> 40000 | CC13: ='AEO Consump'!AN159*$B$3 -> 40000 | CD13: ='AEO Consump'!AO159*$B$3 -> 39000 | CE13: ='AEO Consump'!AP159*$B$3 -> 39000 | CF13: ='AEO Consump'!AQ159*$B$3 -> 39000 | CG13: ='AEO Consump'!AR159*$B$3 -> 39000 | CH13: ='AEO Consump'!AS159*$B$3 -> 39000 | CI13: ='AEO Consump'!AT159*$B$3 -> 39000 | CO13: ='AEO Consump'!I302*$B$3 -> 117394 | CP13: ='AEO Consump'!J302*$B$3 -> 134125 | CQ13: ='AEO Consump'!K302*$B$3 -> 125270 | CR13: ='AEO Consump'!L302*$B$3 -> 88012 | CS13: ='AEO Consump'!M302*$B$3 -> 98829 | CT13: ='AEO Consump'!N302*$B$3 -> 108621 | CU13: ='AEO Consump'!O302*$B$3 -> 111138 | CV13: ='AEO Consump'!P302*$B$3 -> 106575 | CW13: ='AEO Consump'!Q302*$B$3 -> 109842 | CX13: ='AEO Consump'!R302*$B$3 -> 117000 | CY13: ='AEO Consump'!S302*$B$3 -> 112000 | CZ13: ='AEO Consump'!T302*$B$3 -> 107000 | DA13: ='AEO Consump'!U302*$B$3 -> 106000 | DB13: ='AEO Consump'!V302*$B$3 -> 105000 | DC13: ='AEO Consump'!W302*$B$3 -> 105000 | DD13: ='AEO Consump'!X302*$B$3 -> 105000 | DE13: ='AEO Consump'!Y302*$B$3 -> 104000 | DF13: ='AEO Consump'!Z302*$B$3 -> 103000 | DG13: ='AEO Consump'!AA302*$B$3 -> 103000 | DH13: ='AEO Consump'!AB302*$B$3 -> 102000 | DI13: ='AEO Consump'!AC302*$B$3 -> 102000 | DJ13: ='AEO Consump'!AD302*$B$3 -> 101000 | DK13: ='AEO Consump'!AE302*$B$3 -> 100000 | DL13: ='AEO Consump'!AF302*$B$3 -> 100000 | DM13: ='AEO Consump'!AG302*$B$3 -> 99000 | DN13: ='AEO Consump'!AH302*$B$3 -> 99000 | DO13: ='AEO Consump'!AI302*$B$3 -> 98000 | DP13: ='AEO Consump'!AJ302*$B$3 -> 98000 | DQ13: ='AEO Consump'!AK302*$B$3 -> 98000 | DR13: ='AEO Consump'!AL302*$B$3 -> 97000 | DS13: ='AEO Consump'!AM302*$B$3 -> 97000 | DT13: ='AEO Consump'!AN302*$B$3 -> 97000 | DU13: ='AEO Consump'!AO302*$B$3 -> 97000 | DV13: ='AEO Consump'!AP302*$B$3 -> 96000 | DW13: ='AEO Consump'!AQ302*$B$3 -> 96000 | DX13: ='AEO Consump'!AR302*$B$3 -> 96000 | DY13: ='AEO Consump'!AS302*$B$3 -> 96000 | DZ13: ='AEO Consump'!AT302*$B$3 -> 96000 | EF13: ='AEO Consump'!I448*$B$3 -> 82098 | EG13: ='AEO Consump'!J448*$B$3 -> 83086 | EH13: ='AEO Consump'!K448*$B$3 -> 67412 | EI13: ='AEO Consump'!L448*$B$3 -> 74304 | EJ13: ='AEO Consump'!M448*$B$3 -> 83304 | EK13: ='AEO Consump'!N448*$B$3 -> 85706 | EL13: ='AEO Consump'!O448*$B$3 -> 79651 | EM13: ='AEO Consump'!P448*$B$3 -> 73194 | EN13: ='AEO Consump'!Q448*$B$3 -> 80135 | EO13: ='AEO Consump'!R448*$B$3 -> 86000 | EP13: ='AEO Consump'!S448*$B$3 -> 81000 | EQ13: ='AEO Consump'!T448*$B$3 -> 78000 | ER13: ='AEO Consump'!U448*$B$3 -> 77000 | ES13: ='AEO Consump'!V448*$B$3 -> 76000 | ET13: ='AEO Consump'!W448*$B$3 -> 76000 | EU13: ='AEO Consump'!X448*$B$3 -> 76000 | EV13: ='AEO Consump'!Y448*$B$3 -> 75000 | EW13: ='AEO Consump'!Z448*$B$3 -> 75000 | EX13: ='AEO Consump'!AA448*$B$3 -> 74000 | EY13: ='AEO Consump'!AB448*$B$3 -> 74000 | EZ13: ='AEO Consump'!AC448*$B$3 -> 73000 | FA13: ='AEO Consump'!AD448*$B$3 -> 73000 | FB13: ='AEO Consump'!AE448*$B$3 -> 72000 | FC13: ='AEO Consump'!AF448*$B$3 -> 72000 | FD13: ='AEO Consump'!AG448*$B$3 -> 71000 | FE13: ='AEO Consump'!AH448*$B$3 -> 71000 | FF13: ='AEO Consump'!AI448*$B$3 -> 71000 | FG13: ='AEO Consump'!AJ448*$B$3 -> 70000 | FH13: ='AEO Consump'!AK448*$B$3 -> 70000 | FI13: ='AEO Consump'!AL448*$B$3 -> 70000 | FJ13: ='AEO Consump'!AM448*$B$3 -> 69000 | FK13: ='AEO Consump'!AN448*$B$3 -> 69000 | FL13: ='AEO Consump'!AO448*$B$3 -> 69000 | FM13: ='AEO Consump'!AP448*$B$3 -> 69000 | FN13: ='AEO Consump'!AQ448*$B$3 -> 68000 | FO13: ='AEO Consump'!AR448*$B$3 -> 68000 | FP13: ='AEO Consump'!AS448*$B$3 -> 68000 | FQ13: ='AEO Consump'!AT448*$B$3 -> 68000 | FW13: ='AEO Consump'!I594*$B$3 -> 70411 | FX13: ='AEO Consump'!J594*$B$3 -> 65661 | FY13: ='AEO Consump'!K594*$B$3 -> 62241 | FZ13: ='AEO Consump'!L594*$B$3 -> 65449 | GA13: ='AEO Consump'!M594*$B$3 -> 76616 | GB13: ='AEO Consump'!N594*$B$3 -> 73994 | GC13: ='AEO Consump'!O594*$B$3 -> 52648 | GD13: ='AEO Consump'!P594*$B$3 -> 55194 | GE13: ='AEO Consump'!Q594*$B$3 -> 61789 | GF13: ='AEO Consump'!R594*$B$3 -> 64000 | GG13: ='AEO Consump'!S594*$B$3 -> 63000 | GH13: ='AEO Consump'!T594*$B$3 -> 57000 | GI13: ='AEO Consump'!U594*$B$3 -> 56000 | GJ13: ='AEO Consump'!V594*$B$3 -> 56000 | GK13: ='AEO Consump'!W594*$B$3 -> 57000 | GL13: ='AEO Consump'!X594*$B$3 -> 57000 | GM13: ='AEO Consump'!Y594*$B$3 -> 57000 | GN13: ='AEO Consump'!Z594*$B$3 -> 57000 | GO13: ='AEO Consump'!AA594*$B$3 -> 57000 | GP13: ='AEO Consump'!AB594*$B$3 -> 57000 | GQ13: ='AEO Consump'!AC594*$B$3 -> 56000 | GR13: ='AEO Consump'!AD594*$B$3 -> 56000 | GS13: ='AEO Consump'!AE594*$B$3 -> 56000 | GT13: ='AEO Consump'!AF594*$B$3 -> 56000 | GU13: ='AEO Consump'!AG594*$B$3 -> 56000 | GV13: ='AEO Consump'!AH594*$B$3 -> 56000 | GW13: ='AEO Consump'!AI594*$B$3 -> 57000 | GX13: ='AEO Consump'!AJ594*$B$3 -> 57000 | GY13: ='AEO Consump'!AK594*$B$3 -> 57000 | GZ13: ='AEO Consump'!AL594*$B$3 -> 57000 | HA13: ='AEO Consump'!AM594*$B$3 -> 57000 | HB13: ='AEO Consump'!AN594*$B$3 -> 58000 | HC13: ='AEO Consump'!AO594*$B$3 -> 58000 | HD13: ='AEO Consump'!AP594*$B$3 -> 58000 | HE13: ='AEO Consump'!AQ594*$B$3 -> 59000 | HF13: ='AEO Consump'!AR594*$B$3 -> 59000 | HG13: ='AEO Consump'!AS594*$B$3 -> 60000 | HH13: ='AEO Consump'!AT594*$B$3 -> 60000
B14: Electricity (GWh) | G14: =('AEO Consump'!I21/Btu_kWh)*1000000000 -> 46863.40591 | H14: =('AEO Consump'!J21/Btu_kWh)*1000000000 -> 47207.45538 | I14: =('AEO Consump'!K21/Btu_kWh)*1000000000 -> 47392.96076 | J14: =('AEO Consump'!L21/Btu_kWh)*1000000000 -> 46458.69355 | K14: =('AEO Consump'!M21/Btu_kWh)*1000000000 -> 48454.41491 | L14: =('AEO Consump'!N21/Btu_kWh)*1000000000 -> 49269.70079 | M14: =('AEO Consump'!O21/Btu_kWh)*1000000000 -> 46249.15746 | N14: =('AEO Consump'!P21/Btu_kWh)*1000000000 -> 46357.00261 | O14: =('AEO Consump'!Q21/Btu_kWh)*1000000000 -> 48568.41427 | P14: =('AEO Consump'!R21/Btu_kWh)*1000000000 -> 48354.48231 | Q14: =('AEO Consump'!S21/Btu_kWh)*1000000000 -> 46303.08003 | R14: =('AEO Consump'!T21/Btu_kWh)*1000000000 -> 48354.48231 | S14: =('AEO Consump'!U21/Btu_kWh)*1000000000 -> 48647.53978 | T14: =('AEO Consump'!V21/Btu_kWh)*1000000000 -> 48940.59725 | U14: =('AEO Consump'!W21/Btu_kWh)*1000000000 -> 48940.59725 | V14: =('AEO Consump'!X21/Btu_kWh)*1000000000 -> 49233.65472 | W14: =('AEO Consump'!Y21/Btu_kWh)*1000000000 -> 49233.65472 | X14: =('AEO Consump'!Z21/Btu_kWh)*1000000000 -> 49526.71219 | Y14: =('AEO Consump'!AA21/Btu_kWh)*1000000000 -> 49526.71219 | Z14: =('AEO Consump'!AB21/Btu_kWh)*1000000000 -> 49819.76966 | AA14: =('AEO Consump'!AC21/Btu_kWh)*1000000000 -> 50112.82713 | AB14: =('AEO Consump'!AD21/Btu_kWh)*1000000000 -> 50405.88459 | AC14: =('AEO Consump'!AE21/Btu_kWh)*1000000000 -> 50991.99953 | AD14: =('AEO Consump'!AF21/Btu_kWh)*1000000000 -> 51578.11447 | AE14: =('AEO Consump'!AG21/Btu_kWh)*1000000000 -> 52164.22941 | AF14: =('AEO Consump'!AH21/Btu_kWh)*1000000000 -> 52457.28687 | AG14: =('AEO Consump'!AI21/Btu_kWh)*1000000000 -> 53043.40181 | AH14: =('AEO Consump'!AJ21/Btu_kWh)*1000000000 -> 53922.57422 | AI14: =('AEO Consump'!AK21/Btu_kWh)*1000000000 -> 54508.68915 | AJ14: =('AEO Consump'!AL21/Btu_kWh)*1000000000 -> 55094.80409 | AK14: =('AEO Consump'!AM21/Btu_kWh)*1000000000 -> 55680.91903 | AL14: =('AEO Consump'!AN21/Btu_kWh)*1000000000 -> 56560.09143 | AM14: =('AEO Consump'!AO21/Btu_kWh)*1000000000 -> 57439.26384 | AN14: =('AEO Consump'!AP21/Btu_kWh)*1000000000 -> 58318.43625 | AO14: =('AEO Consump'!AQ21/Btu_kWh)*1000000000 -> 58904.55118 | AP14: =('AEO Consump'!AR21/Btu_kWh)*1000000000 -> 59783.72359 | AQ14: =('AEO Consump'!AS21/Btu_kWh)*1000000000 -> 60662.89599 | AR14: =('AEO Consump'!AT21/Btu_kWh)*1000000000 -> 61835.12587 | AX14: =('AEO Consump'!I164/Btu_kWh)*1000000000 -> 132317.7915 | AY14: =('AEO Consump'!J164/Btu_kWh)*1000000000 -> 132051.1092 | AZ14: =('AEO Consump'!K164/Btu_kWh)*1000000000 -> 134430.7359 | BA14: =('AEO Consump'!L164/Btu_kWh)*1000000000 -> 133394.1916 | BB14: =('AEO Consump'!M164/Btu_kWh)*1000000000 -> 128194.1799 | BC14: =('AEO Consump'!N164/Btu_kWh)*1000000000 -> 136774.0234 | BD14: =('AEO Consump'!O164/Btu_kWh)*1000000000 -> 134005.8025 | BE14: =('AEO Consump'!P164/Btu_kWh)*1000000000 -> 129556.311 | BF14: =('AEO Consump'!Q164/Btu_kWh)*1000000000 -> 139928.2009 | BG14: =('AEO Consump'!R164/Btu_kWh)*1000000000 -> 139202.2976 | BH14: =('AEO Consump'!S164/Btu_kWh)*1000000000 -> 135978.6654 | BI14: =('AEO Consump'!T164/Btu_kWh)*1000000000 -> 138030.0677 | BJ14: =('AEO Consump'!U164/Btu_kWh)*1000000000 -> 137443.9528 | BK14: =('AEO Consump'!V164/Btu_kWh)*1000000000 -> 137150.8953 | BL14: =('AEO Consump'!W164/Btu_kWh)*1000000000 -> 137443.9528 | BM14: =('AEO Consump'!X164/Btu_kWh)*1000000000 -> 137443.9528 | BN14: =('AEO Consump'!Y164/Btu_kWh)*1000000000 -> 137443.9528 | BO14: =('AEO Consump'!Z164/Btu_kWh)*1000000000 -> 137443.9528 | BP14: =('AEO Consump'!AA164/Btu_kWh)*1000000000 -> 137150.8953 | BQ14: =('AEO Consump'!AB164/Btu_kWh)*1000000000 -> 136857.8378 | BR14: =('AEO Consump'!AC164/Btu_kWh)*1000000000 -> 137443.9528 | BS14: =('AEO Consump'!AD164/Btu_kWh)*1000000000 -> 137737.0102 | BT14: =('AEO Consump'!AE164/Btu_kWh)*1000000000 -> 138616.1826 | BU14: =('AEO Consump'!AF164/Btu_kWh)*1000000000 -> 139495.355 | BV14: =('AEO Consump'!AG164/Btu_kWh)*1000000000 -> 140667.5849 | BW14: =('AEO Consump'!AH164/Btu_kWh)*1000000000 -> 141546.7573 | BX14: =('AEO Consump'!AI164/Btu_kWh)*1000000000 -> 142425.9297 | BY14: =('AEO Consump'!AJ164/Btu_kWh)*1000000000 -> 143598.1596 | BZ14: =('AEO Consump'!AK164/Btu_kWh)*1000000000 -> 144477.332 | CA14: =('AEO Consump'!AL164/Btu_kWh)*1000000000 -> 145649.5619 | CB14: =('AEO Consump'!AM164/Btu_kWh)*1000000000 -> 146821.7918 | CC14: =('AEO Consump'!AN164/Btu_kWh)*1000000000 -> 148287.0791 | CD14: =('AEO Consump'!AO164/Btu_kWh)*1000000000 -> 149752.3664 | CE14: =('AEO Consump'!AP164/Btu_kWh)*1000000000 -> 151510.7113 | CF14: =('AEO Consump'!AQ164/Btu_kWh)*1000000000 -> 153269.0561 | CG14: =('AEO Consump'!AR164/Btu_kWh)*1000000000 -> 155027.4009 | CH14: =('AEO Consump'!AS164/Btu_kWh)*1000000000 -> 157078.8032 | CI14: =('AEO Consump'!AT164/Btu_kWh)*1000000000 -> 159130.2054 | CO14: =('AEO Consump'!I307/Btu_kWh)*1000000000 -> 182354.1306 | CP14: =('AEO Consump'!J307/Btu_kWh)*1000000000 -> 187941.8574 | CQ14: =('AEO Consump'!K307/Btu_kWh)*1000000000 -> 182819.799 | CR14: =('AEO Consump'!L307/Btu_kWh)*1000000000 -> 187338.7451 | CS14: =('AEO Consump'!M307/Btu_kWh)*1000000000 -> 179028.2214 | CT14: =('AEO Consump'!N307/Btu_kWh)*1000000000 -> 192830.9351 | CU14: =('AEO Consump'!O307/Btu_kWh)*1000000000 -> 186748.8204 | CV14: =('AEO Consump'!P307/Btu_kWh)*1000000000 -> 179690.8244 | CW14: =('AEO Consump'!Q307/Btu_kWh)*1000000000 -> 194141.1951 | CX14: =('AEO Consump'!R307/Btu_kWh)*1000000000 -> 192831.8143 | CY14: =('AEO Consump'!S307/Btu_kWh)*1000000000 -> 191073.4695 | CZ14: =('AEO Consump'!T307/Btu_kWh)*1000000000 -> 192831.8143 | DA14: =('AEO Consump'!U307/Btu_kWh)*1000000000 -> 194004.0442 | DB14: =('AEO Consump'!V307/Btu_kWh)*1000000000 -> 195176.2741 | DC14: =('AEO Consump'!W307/Btu_kWh)*1000000000 -> 196641.5614 | DD14: =('AEO Consump'!X307/Btu_kWh)*1000000000 -> 197813.7913 | DE14: =('AEO Consump'!Y307/Btu_kWh)*1000000000 -> 198692.9637 | DF14: =('AEO Consump'!Z307/Btu_kWh)*1000000000 -> 199279.0786 | DG14: =('AEO Consump'!AA307/Btu_kWh)*1000000000 -> 199865.1936 | DH14: =('AEO Consump'!AB307/Btu_kWh)*1000000000 -> 200451.3085 | DI14: =('AEO Consump'!AC307/Btu_kWh)*1000000000 -> 201037.4234 | DJ14: =('AEO Consump'!AD307/Btu_kWh)*1000000000 -> 201623.5384 | DK14: =('AEO Consump'!AE307/Btu_kWh)*1000000000 -> 202502.7108 | DL14: =('AEO Consump'!AF307/Btu_kWh)*1000000000 -> 203381.8832 | DM14: =('AEO Consump'!AG307/Btu_kWh)*1000000000 -> 204554.1131 | DN14: =('AEO Consump'!AH307/Btu_kWh)*1000000000 -> 205726.3429 | DO14: =('AEO Consump'!AI307/Btu_kWh)*1000000000 -> 206605.5153 | DP14: =('AEO Consump'!AJ307/Btu_kWh)*1000000000 -> 207484.6877 | DQ14: =('AEO Consump'!AK307/Btu_kWh)*1000000000 -> 208363.8602 | DR14: =('AEO Consump'!AL307/Btu_kWh)*1000000000 -> 209536.09 | DS14: =('AEO Consump'!AM307/Btu_kWh)*1000000000 -> 211001.3774 | DT14: =('AEO Consump'!AN307/Btu_kWh)*1000000000 -> 212466.6647 | DU14: =('AEO Consump'!AO307/Btu_kWh)*1000000000 -> 213931.9521 | DV14: =('AEO Consump'!AP307/Btu_kWh)*1000000000 -> 215690.2969 | DW14: =('AEO Consump'!AQ307/Btu_kWh)*1000000000 -> 217741.6991 | DX14: =('AEO Consump'!AR307/Btu_kWh)*1000000000 -> 220086.1589 | DY14: =('AEO Consump'!AS307/Btu_kWh)*1000000000 -> 222137.5612 | DZ14: =('AEO Consump'!AT307/Btu_kWh)*1000000000 -> 224775.0784 | EF14: =('AEO Consump'!I453/Btu_kWh)*1000000000 -> 102635.7589 | EG14: =('AEO Consump'!J453/Btu_kWh)*1000000000 -> 106899.452 | EH14: =('AEO Consump'!K453/Btu_kWh)*1000000000 -> 101131.4949 | EI14: =('AEO Consump'!L453/Btu_kWh)*1000000000 -> 102246.5786 | EJ14: =('AEO Consump'!M453/Btu_kWh)*1000000000 -> 100985.2592 | EK14: =('AEO Consump'!N453/Btu_kWh)*1000000000 -> 108259.5317 | EL14: =('AEO Consump'!O453/Btu_kWh)*1000000000 -> 105198.8395 | EM14: =('AEO Consump'!P453/Btu_kWh)*1000000000 -> 102740.0873 | EN14: =('AEO Consump'!Q453/Btu_kWh)*1000000000 -> 110904.3753 | EO14: =('AEO Consump'!R453/Btu_kWh)*1000000000 -> 110775.7231 | EP14: =('AEO Consump'!S453/Btu_kWh)*1000000000 -> 108138.2059 | EQ14: =('AEO Consump'!T453/Btu_kWh)*1000000000 -> 110775.7231 | ER14: =('AEO Consump'!U453/Btu_kWh)*1000000000 -> 111361.8381 | ES14: =('AEO Consump'!V453/Btu_kWh)*1000000000 -> 111947.953 | ET14: =('AEO Consump'!W453/Btu_kWh)*1000000000 -> 112827.1254 | EU14: =('AEO Consump'!X453/Btu_kWh)*1000000000 -> 113413.2403 | EV14: =('AEO Consump'!Y453/Btu_kWh)*1000000000 -> 113999.3553 | EW14: =('AEO Consump'!Z453/Btu_kWh)*1000000000 -> 114585.4702 | EX14: =('AEO Consump'!AA453/Btu_kWh)*1000000000 -> 115171.5851 | EY14: =('AEO Consump'!AB453/Btu_kWh)*1000000000 -> 115757.7001 | EZ14: =('AEO Consump'!AC453/Btu_kWh)*1000000000 -> 116343.815 | FA14: =('AEO Consump'!AD453/Btu_kWh)*1000000000 -> 116929.93 | FB14: =('AEO Consump'!AE453/Btu_kWh)*1000000000 -> 117809.1024 | FC14: =('AEO Consump'!AF453/Btu_kWh)*1000000000 -> 118688.2748 | FD14: =('AEO Consump'!AG453/Btu_kWh)*1000000000 -> 119860.5046 | FE14: =('AEO Consump'!AH453/Btu_kWh)*1000000000 -> 120446.6196 | FF14: =('AEO Consump'!AI453/Btu_kWh)*1000000000 -> 121325.792 | FG14: =('AEO Consump'!AJ453/Btu_kWh)*1000000000 -> 121618.8495 | FH14: =('AEO Consump'!AK453/Btu_kWh)*1000000000 -> 122204.9644 | FI14: =('AEO Consump'!AL453/Btu_kWh)*1000000000 -> 123084.1368 | FJ14: =('AEO Consump'!AM453/Btu_kWh)*1000000000 -> 124256.3667 | FK14: =('AEO Consump'!AN453/Btu_kWh)*1000000000 -> 125428.5965 | FL14: =('AEO Consump'!AO453/Btu_kWh)*1000000000 -> 126600.8264 | FM14: =('AEO Consump'!AP453/Btu_kWh)*1000000000 -> 127773.0563 | FN14: =('AEO Consump'!AQ453/Btu_kWh)*1000000000 -> 129238.3436 | FO14: =('AEO Consump'!AR453/Btu_kWh)*1000000000 -> 130410.5735 | FP14: =('AEO Consump'!AS453/Btu_kWh)*1000000000 -> 131875.8609 | FQ14: =('AEO Consump'!AT453/Btu_kWh)*1000000000 -> 133634.2057 | FW14: =('AEO Consump'!I599/Btu_kWh)*1000000000 -> 346932.5675 | FX14: =('AEO Consump'!J599/Btu_kWh)*1000000000 -> 355676.5232 | FY14: =('AEO Consump'!K599/Btu_kWh)*1000000000 -> 356861.0615 | FZ14: =('AEO Consump'!L599/Btu_kWh)*1000000000 -> 358565.1906 | GA14: =('AEO Consump'!M599/Btu_kWh)*1000000000 -> 347061.2197 | GB14: =('AEO Consump'!N599/Btu_kWh)*1000000000 -> 370432.8459 | GC14: =('AEO Consump'!O599/Btu_kWh)*1000000000 -> 367895.2613 | GD14: =('AEO Consump'!P599/Btu_kWh)*1000000000 -> 363005.3043 | GE14: =('AEO Consump'!Q599/Btu_kWh)*1000000000 -> 378419.248 | GF14: =('AEO Consump'!R599/Btu_kWh)*1000000000 -> 387715.0309 | GG14: =('AEO Consump'!S599/Btu_kWh)*1000000000 -> 388008.0884 | GH14: =('AEO Consump'!T599/Btu_kWh)*1000000000 -> 383319.1689 | GI14: =('AEO Consump'!U599/Btu_kWh)*1000000000 -> 386249.7436 | GJ14: =('AEO Consump'!V599/Btu_kWh)*1000000000 -> 389180.3183 | GK14: =('AEO Consump'!W599/Btu_kWh)*1000000000 -> 393283.1228 | GL14: =('AEO Consump'!X599/Btu_kWh)*1000000000 -> 397385.9274 | GM14: =('AEO Consump'!Y599/Btu_kWh)*1000000000 -> 400609.5595 | GN14: =('AEO Consump'!Z599/Btu_kWh)*1000000000 -> 403540.1342 | GO14: =('AEO Consump'!AA599/Btu_kWh)*1000000000 -> 405884.594 | GP14: =('AEO Consump'!AB599/Btu_kWh)*1000000000 -> 408229.0537 | GQ14: =('AEO Consump'!AC599/Btu_kWh)*1000000000 -> 409987.3985 | GR14: =('AEO Consump'!AD599/Btu_kWh)*1000000000 -> 411452.6859 | GS14: =('AEO Consump'!AE599/Btu_kWh)*1000000000 -> 414383.2606 | GT14: =('AEO Consump'!AF599/Btu_kWh)*1000000000 -> 417899.9502 | GU14: =('AEO Consump'!AG599/Btu_kWh)*1000000000 -> 421123.5823 | GV14: =('AEO Consump'!AH599/Btu_kWh)*1000000000 -> 424054.157 | GW14: =('AEO Consump'!AI599/Btu_kWh)*1000000000 -> 426984.7317 | GX14: =('AEO Consump'!AJ599/Btu_kWh)*1000000000 -> 430501.4213 | GY14: =('AEO Consump'!AK599/Btu_kWh)*1000000000 -> 434604.2259 | GZ14: =('AEO Consump'!AL599/Btu_kWh)*1000000000 -> 439293.1454 | HA14: =('AEO Consump'!AM599/Btu_kWh)*1000000000 -> 444275.1224 | HB14: =('AEO Consump'!AN599/Btu_kWh)*1000000000 -> 449257.0993 | HC14: =('AEO Consump'!AO599/Btu_kWh)*1000000000 -> 453946.0188 | HD14: =('AEO Consump'!AP599/Btu_kWh)*1000000000 -> 458634.9383 | HE14: =('AEO Consump'!AQ599/Btu_kWh)*1000000000 -> 463909.9727 | HF14: =('AEO Consump'!AR599/Btu_kWh)*1000000000 -> 469478.0646 | HG14: =('AEO Consump'!AS599/Btu_kWh)*1000000000 -> 475339.214 | HH14: =('AEO Consump'!AT599/Btu_kWh)*1000000000 -> 481493.4209
B15: Commercial
B16: Coal | G16: ='AEO Consump'!I34*$B$3 -> 0 | H16: ='AEO Consump'!J34*$B$3 -> 0 | I16: ='AEO Consump'!K34*$B$3 -> 0 | J16: ='AEO Consump'!L34*$B$3 -> 0 | K16: ='AEO Consump'!M34*$B$3 -> 0 | L16: ='AEO Consump'!N34*$B$3 -> 0 | M16: ='AEO Consump'!O34*$B$3 -> 0 | N16: ='AEO Consump'!P34*$B$3 -> 0 | O16: ='AEO Consump'!Q34*$B$3 -> 0 | P16: ='AEO Consump'!R34*$B$3 -> 0 | Q16: ='AEO Consump'!S34*$B$3 -> 0 | R16: ='AEO Consump'!T34*$B$3 -> 0 | S16: ='AEO Consump'!U34*$B$3 -> 0 | T16: ='AEO Consump'!V34*$B$3 -> 0 | U16: ='AEO Consump'!W34*$B$3 -> 0 | V16: ='AEO Consump'!X34*$B$3 -> 0 | W16: ='AEO Consump'!Y34*$B$3 -> 0 | X16: ='AEO Consump'!Z34*$B$3 -> 0 | Y16: ='AEO Consump'!AA34*$B$3 -> 0 | Z16: ='AEO Consump'!AB34*$B$3 -> 0 | AA16: ='AEO Consump'!AC34*$B$3 -> 0 | AB16: ='AEO Consump'!AD34*$B$3 -> 0 | AC16: ='AEO Consump'!AE34*$B$3 -> 0 | AD16: ='AEO Consump'!AF34*$B$3 -> 0 | AE16: ='AEO Consump'!AG34*$B$3 -> 0 | AF16: ='AEO Consump'!AH34*$B$3 -> 0 | AG16: ='AEO Consump'!AI34*$B$3 -> 0 | AH16: ='AEO Consump'!AJ34*$B$3 -> 0 | AI16: ='AEO Consump'!AK34*$B$3 -> 0 | AJ16: ='AEO Consump'!AL34*$B$3 -> 0 | AK16: ='AEO Consump'!AM34*$B$3 -> 0 | AL16: ='AEO Consump'!AN34*$B$3 -> 0 | AM16: ='AEO Consump'!AO34*$B$3 -> 0 | AN16: ='AEO Consump'!AP34*$B$3 -> 0 | AO16: ='AEO Consump'!AQ34*$B$3 -> 0 | AP16: ='AEO Consump'!AR34*$B$3 -> 0 | AQ16: ='AEO Consump'!AS34*$B$3 -> 0 | AR16: ='AEO Consump'!AT34*$B$3 -> 0 | AX16: ='AEO Consump'!I177*$B$3 -> 3070 | AY16: ='AEO Consump'!J177*$B$3 -> 3885 | AZ16: ='AEO Consump'!K177*$B$3 -> 2406 | BA16: ='AEO Consump'!L177*$B$3 -> 1540 | BB16: ='AEO Consump'!M177*$B$3 -> 887 | BC16: ='AEO Consump'!N177*$B$3 -> 786 | BD16: ='AEO Consump'!O177*$B$3 -> 514 | BE16: ='AEO Consump'!P177*$B$3 -> 413 | BF16: ='AEO Consump'!Q177*$B$3 -> 293 | BG16: ='AEO Consump'!R177*$B$3 -> 0 | BH16: ='AEO Consump'!S177*$B$3 -> 0 | BI16: ='AEO Consump'!T177*$B$3 -> 0 | BJ16: ='AEO Consump'!U177*$B$3 -> 0 | BK16: ='AEO Consump'!V177*$B$3 -> 0 | BL16: ='AEO Consump'!W177*$B$3 -> 0 | BM16: ='AEO Consump'!X177*$B$3 -> 0 | BN16: ='AEO Consump'!Y177*$B$3 -> 0 | BO16: ='AEO Consump'!Z177*$B$3 -> 0 | BP16: ='AEO Consump'!AA177*$B$3 -> 0 | BQ16: ='AEO Consump'!AB177*$B$3 -> 0 | BR16: ='AEO Consump'!AC177*$B$3 -> 0 | BS16: ='AEO Consump'!AD177*$B$3 -> 0 | BT16: ='AEO Consump'!AE177*$B$3 -> 0 | BU16: ='AEO Consump'!AF177*$B$3 -> 0 | BV16: ='AEO Consump'!AG177*$B$3 -> 0 | BW16: ='AEO Consump'!AH177*$B$3 -> 0 | BX16: ='AEO Consump'!AI177*$B$3 -> 0 | BY16: ='AEO Consump'!AJ177*$B$3 -> 0 | BZ16: ='AEO Consump'!AK177*$B$3 -> 0 | CA16: ='AEO Consump'!AL177*$B$3 -> 0 | CB16: ='AEO Consump'!AM177*$B$3 -> 0 | CC16: ='AEO Consump'!AN177*$B$3 -> 0 | CD16: ='AEO Consump'!AO177*$B$3 -> 0 | CE16: ='AEO Consump'!AP177*$B$3 -> 0 | CF16: ='AEO Consump'!AQ177*$B$3 -> 0 | CG16: ='AEO Consump'!AR177*$B$3 -> 0 | CH16: ='AEO Consump'!AS177*$B$3 -> 0 | CI16: ='AEO Consump'!AT177*$B$3 -> 0 | CO16: ='AEO Consump'!I320*$B$3 -> 15739 | CP16: ='AEO Consump'!J320*$B$3 -> 14229 | CQ16: ='AEO Consump'!K320*$B$3 -> 9138 | CR16: ='AEO Consump'!L320*$B$3 -> 5832 | CS16: ='AEO Consump'!M320*$B$3 -> 5159 | CT16: ='AEO Consump'!N320*$B$3 -> 4574 | CU16: ='AEO Consump'!O320*$B$3 -> 3321 | CV16: ='AEO Consump'!P320*$B$3 -> 2667 | CW16: ='AEO Consump'!Q320*$B$3 -> 3712 | CX16: ='AEO Consump'!R320*$B$3 -> 3000 | CY16: ='AEO Consump'!S320*$B$3 -> 4000 | CZ16: ='AEO Consump'!T320*$B$3 -> 4000 | DA16: ='AEO Consump'!U320*$B$3 -> 4000 | DB16: ='AEO Consump'!V320*$B$3 -> 4000 | DC16: ='AEO Consump'!W320*$B$3 -> 4000 | DD16: ='AEO Consump'!X320*$B$3 -> 5000 | DE16: ='AEO Consump'!Y320*$B$3 -> 5000 | DF16: ='AEO Consump'!Z320*$B$3 -> 5000 | DG16: ='AEO Consump'!AA320*$B$3 -> 5000 | DH16: ='AEO Consump'!AB320*$B$3 -> 5000 | DI16: ='AEO Consump'!AC320*$B$3 -> 5000 | DJ16: ='AEO Consump'!AD320*$B$3 -> 5000 | DK16: ='AEO Consump'!AE320*$B$3 -> 5000 | DL16: ='AEO Consump'!AF320*$B$3 -> 5000 | DM16: ='AEO Consump'!AG320*$B$3 -> 5000 | DN16: ='AEO Consump'!AH320*$B$3 -> 5000 | DO16: ='AEO Consump'!AI320*$B$3 -> 5000 | DP16: ='AEO Consump'!AJ320*$B$3 -> 5000 | DQ16: ='AEO Consump'!AK320*$B$3 -> 5000 | DR16: ='AEO Consump'!AL320*$B$3 -> 5000 | DS16: ='AEO Consump'!AM320*$B$3 -> 5000 | DT16: ='AEO Consump'!AN320*$B$3 -> 4000 | DU16: ='AEO Consump'!AO320*$B$3 -> 4000 | DV16: ='AEO Consump'!AP320*$B$3 -> 4000 | DW16: ='AEO Consump'!AQ320*$B$3 -> 4000 | DX16: ='AEO Consump'!AR320*$B$3 -> 4000 | DY16: ='AEO Consump'!AS320*$B$3 -> 4000 | DZ16: ='AEO Consump'!AT320*$B$3 -> 4000 | EF16: ='AEO Consump'!I466*$B$3 -> 7439 | EG16: ='AEO Consump'!J466*$B$3 -> 9832 | EH16: ='AEO Consump'!K466*$B$3 -> 6525 | EI16: ='AEO Consump'!L466*$B$3 -> 5398 | EJ16: ='AEO Consump'!M466*$B$3 -> 4657 | EK16: ='AEO Consump'!N466*$B$3 -> 4130 | EL16: ='AEO Consump'!O466*$B$3 -> 3531 | EM16: ='AEO Consump'!P466*$B$3 -> 2836 | EN16: ='AEO Consump'!Q466*$B$3 -> 3263 | EO16: ='AEO Consump'!R466*$B$3 -> 3000 | EP16: ='AEO Consump'!S466*$B$3 -> 3000 | EQ16: ='AEO Consump'!T466*$B$3 -> 3000 | ER16: ='AEO Consump'!U466*$B$3 -> 3000 | ES16: ='AEO Consump'!V466*$B$3 -> 3000 | ET16: ='AEO Consump'!W466*$B$3 -> 3000 | EU16: ='AEO Consump'!X466*$B$3 -> 3000 | EV16: ='AEO Consump'!Y466*$B$3 -> 3000 | EW16: ='AEO Consump'!Z466*$B$3 -> 3000 | EX16: ='AEO Consump'!AA466*$B$3 -> 3000 | EY16: ='AEO Consump'!AB466*$B$3 -> 3000 | EZ16: ='AEO Consump'!AC466*$B$3 -> 3000 | FA16: ='AEO Consump'!AD466*$B$3 -> 3000 | FB16: ='AEO Consump'!AE466*$B$3 -> 3000 | FC16: ='AEO Consump'!AF466*$B$3 -> 3000 | FD16: ='AEO Consump'!AG466*$B$3 -> 3000 | FE16: ='AEO Consump'!AH466*$B$3 -> 3000 | FF16: ='AEO Consump'!AI466*$B$3 -> 3000 | FG16: ='AEO Consump'!AJ466*$B$3 -> 3000 | FH16: ='AEO Consump'!AK466*$B$3 -> 3000 | FI16: ='AEO Consump'!AL466*$B$3 -> 3000 | FJ16: ='AEO Consump'!AM466*$B$3 -> 3000 | FK16: ='AEO Consump'!AN466*$B$3 -> 3000 | FL16: ='AEO Consump'!AO466*$B$3 -> 3000 | FM16: ='AEO Consump'!AP466*$B$3 -> 3000 | FN16: ='AEO Consump'!AQ466*$B$3 -> 3000 | FO16: ='AEO Consump'!AR466*$B$3 -> 3000 | FP16: ='AEO Consump'!AS466*$B$3 -> 3000 | FQ16: ='AEO Consump'!AT466*$B$3 -> 3000 | FW16: ='AEO Consump'!I612*$B$3 -> 5322 | FX16: ='AEO Consump'!J612*$B$3 -> 6181 | FY16: ='AEO Consump'!K612*$B$3 -> 4709 | FZ16: ='AEO Consump'!L612*$B$3 -> 4193 | GA16: ='AEO Consump'!M612*$B$3 -> 3481 | GB16: ='AEO Consump'!N612*$B$3 -> 3087 | GC16: ='AEO Consump'!O612*$B$3 -> 2971 | GD16: ='AEO Consump'!P612*$B$3 -> 2385 | GE16: ='AEO Consump'!Q612*$B$3 -> 1969 | GF16: ='AEO Consump'!R612*$B$3 -> 2000 | GG16: ='AEO Consump'!S612*$B$3 -> 2000 | GH16: ='AEO Consump'!T612*$B$3 -> 2000 | GI16: ='AEO Consump'!U612*$B$3 -> 2000 | GJ16: ='AEO Consump'!V612*$B$3 -> 2000 | GK16: ='AEO Consump'!W612*$B$3 -> 2000 | GL16: ='AEO Consump'!X612*$B$3 -> 2000 | GM16: ='AEO Consump'!Y612*$B$3 -> 2000 | GN16: ='AEO Consump'!Z612*$B$3 -> 2000 | GO16: ='AEO Consump'!AA612*$B$3 -> 2000 | GP16: ='AEO Consump'!AB612*$B$3 -> 2000 | GQ16: ='AEO Consump'!AC612*$B$3 -> 2000 | GR16: ='AEO Consump'!AD612*$B$3 -> 2000 | GS16: ='AEO Consump'!AE612*$B$3 -> 1000 | GT16: ='AEO Consump'!AF612*$B$3 -> 1000 | GU16: ='AEO Consump'!AG612*$B$3 -> 1000 | GV16: ='AEO Consump'!AH612*$B$3 -> 1000 | GW16: ='AEO Consump'!AI612*$B$3 -> 1000 | GX16: ='AEO Consump'!AJ612*$B$3 -> 1000 | GY16: ='AEO Consump'!AK612*$B$3 -> 1000 | GZ16: ='AEO Consump'!AL612*$B$3 -> 1000 | HA16: ='AEO Consump'!AM612*$B$3 -> 1000 | HB16: ='AEO Consump'!AN612*$B$3 -> 1000 | HC16: ='AEO Consump'!AO612*$B$3 -> 1000 | HD16: ='AEO Consump'!AP612*$B$3 -> 1000 | HE16: ='AEO Consump'!AQ612*$B$3 -> 1000 | HF16: ='AEO Consump'!AR612*$B$3 -> 1000 | HG16: ='AEO Consump'!AS612*$B$3 -> 1000 | HH16: ='AEO Consump'!AT612*$B$3 -> 1000
B17: Natural Gas | G17: ='AEO Consump'!I33*$B$3 -> 164294 | H17: ='AEO Consump'!J33*$B$3 -> 187021 | I17: ='AEO Consump'!K33*$B$3 -> 192847 | J17: ='AEO Consump'!L33*$B$3 -> 193845 | K17: ='AEO Consump'!M33*$B$3 -> 197774 | L17: ='AEO Consump'!N33*$B$3 -> 206122 | M17: ='AEO Consump'!O33*$B$3 -> 224717 | N17: ='AEO Consump'!P33*$B$3 -> 215041 | O17: ='AEO Consump'!Q33*$B$3 -> 206207 | P17: ='AEO Consump'!R33*$B$3 -> 221000 | Q17: ='AEO Consump'!S33*$B$3 -> 245000 | R17: ='AEO Consump'!T33*$B$3 -> 227000 | S17: ='AEO Consump'!U33*$B$3 -> 225000 | T17: ='AEO Consump'!V33*$B$3 -> 224000 | U17: ='AEO Consump'!W33*$B$3 -> 221000 | V17: ='AEO Consump'!X33*$B$3 -> 222000 | W17: ='AEO Consump'!Y33*$B$3 -> 222000 | X17: ='AEO Consump'!Z33*$B$3 -> 223000 | Y17: ='AEO Consump'!AA33*$B$3 -> 224000 | Z17: ='AEO Consump'!AB33*$B$3 -> 225000 | AA17: ='AEO Consump'!AC33*$B$3 -> 226000 | AB17: ='AEO Consump'!AD33*$B$3 -> 226000 | AC17: ='AEO Consump'!AE33*$B$3 -> 227000 | AD17: ='AEO Consump'!AF33*$B$3 -> 227000 | AE17: ='AEO Consump'!AG33*$B$3 -> 227000 | AF17: ='AEO Consump'!AH33*$B$3 -> 227000 | AG17: ='AEO Consump'!AI33*$B$3 -> 228000 | AH17: ='AEO Consump'!AJ33*$B$3 -> 228000 | AI17: ='AEO Consump'!AK33*$B$3 -> 228000 | AJ17: ='AEO Consump'!AL33*$B$3 -> 228000 | AK17: ='AEO Consump'!AM33*$B$3 -> 228000 | AL17: ='AEO Consump'!AN33*$B$3 -> 228000 | AM17: ='AEO Consump'!AO33*$B$3 -> 228000 | AN17: ='AEO Consump'!AP33*$B$3 -> 228000 | AO17: ='AEO Consump'!AQ33*$B$3 -> 228000 | AP17: ='AEO Consump'!AR33*$B$3 -> 228000 | AQ17: ='AEO Consump'!AS33*$B$3 -> 228000 | AR17: ='AEO Consump'!AT33*$B$3 -> 228000 | AX17: ='AEO Consump'!I176*$B$3 -> 669041 | AY17: ='AEO Consump'!J176*$B$3 -> 692304 | AZ17: ='AEO Consump'!K176*$B$3 -> 668991 | BA17: ='AEO Consump'!L176*$B$3 -> 629569 | BB17: ='AEO Consump'!M176*$B$3 -> 628469 | BC17: ='AEO Consump'!N176*$B$3 -> 654994 | BD17: ='AEO Consump'!O176*$B$3 -> 693313 | BE17: ='AEO Consump'!P176*$B$3 -> 674795 | BF17: ='AEO Consump'!Q176*$B$3 -> 638112 | BG17: ='AEO Consump'!R176*$B$3 -> 665000 | BH17: ='AEO Consump'!S176*$B$3 -> 705000 | BI17: ='AEO Consump'!T176*$B$3 -> 675000 | BJ17: ='AEO Consump'!U176*$B$3 -> 663000 | BK17: ='AEO Consump'!V176*$B$3 -> 663000 | BL17: ='AEO Consump'!W176*$B$3 -> 660000 | BM17: ='AEO Consump'!X176*$B$3 -> 670000 | BN17: ='AEO Consump'!Y176*$B$3 -> 674000 | BO17: ='AEO Consump'!Z176*$B$3 -> 678000 | BP17: ='AEO Consump'!AA176*$B$3 -> 681000 | BQ17: ='AEO Consump'!AB176*$B$3 -> 683000 | BR17: ='AEO Consump'!AC176*$B$3 -> 684000 | BS17: ='AEO Consump'!AD176*$B$3 -> 684000 | BT17: ='AEO Consump'!AE176*$B$3 -> 684000 | BU17: ='AEO Consump'!AF176*$B$3 -> 683000 | BV17: ='AEO Consump'!AG176*$B$3 -> 681000 | BW17: ='AEO Consump'!AH176*$B$3 -> 678000 | BX17: ='AEO Consump'!AI176*$B$3 -> 674000 | BY17: ='AEO Consump'!AJ176*$B$3 -> 671000 | BZ17: ='AEO Consump'!AK176*$B$3 -> 668000 | CA17: ='AEO Consump'!AL176*$B$3 -> 665000 | CB17: ='AEO Consump'!AM176*$B$3 -> 663000 | CC17: ='AEO Consump'!AN176*$B$3 -> 662000 | CD17: ='AEO Consump'!AO176*$B$3 -> 659000 | CE17: ='AEO Consump'!AP176*$B$3 -> 657000 | CF17: ='AEO Consump'!AQ176*$B$3 -> 656000 | CG17: ='AEO Consump'!AR176*$B$3 -> 656000 | CH17: ='AEO Consump'!AS176*$B$3 -> 656000 | CI17: ='AEO Consump'!AT176*$B$3 -> 653000 | CO17: ='AEO Consump'!I319*$B$3 -> 730924 | CP17: ='AEO Consump'!J319*$B$3 -> 840771 | CQ17: ='AEO Consump'!K319*$B$3 -> 743180 | CR17: ='AEO Consump'!L319*$B$3 -> 712880 | CS17: ='AEO Consump'!M319*$B$3 -> 729425 | CT17: ='AEO Consump'!N319*$B$3 -> 760212 | CU17: ='AEO Consump'!O319*$B$3 -> 810087 | CV17: ='AEO Consump'!P319*$B$3 -> 791031 | CW17: ='AEO Consump'!Q319*$B$3 -> 780870 | CX17: ='AEO Consump'!R319*$B$3 -> 829000 | CY17: ='AEO Consump'!S319*$B$3 -> 793000 | CZ17: ='AEO Consump'!T319*$B$3 -> 770000 | DA17: ='AEO Consump'!U319*$B$3 -> 786000 | DB17: ='AEO Consump'!V319*$B$3 -> 798000 | DC17: ='AEO Consump'!W319*$B$3 -> 805000 | DD17: ='AEO Consump'!X319*$B$3 -> 812000 | DE17: ='AEO Consump'!Y319*$B$3 -> 814000 | DF17: ='AEO Consump'!Z319*$B$3 -> 814000 | DG17: ='AEO Consump'!AA319*$B$3 -> 814000 | DH17: ='AEO Consump'!AB319*$B$3 -> 813000 | DI17: ='AEO Consump'!AC319*$B$3 -> 810000 | DJ17: ='AEO Consump'!AD319*$B$3 -> 808000 | DK17: ='AEO Consump'!AE319*$B$3 -> 804000 | DL17: ='AEO Consump'!AF319*$B$3 -> 802000 | DM17: ='AEO Consump'!AG319*$B$3 -> 799000 | DN17: ='AEO Consump'!AH319*$B$3 -> 795000 | DO17: ='AEO Consump'!AI319*$B$3 -> 792000 | DP17: ='AEO Consump'!AJ319*$B$3 -> 788000 | DQ17: ='AEO Consump'!AK319*$B$3 -> 784000 | DR17: ='AEO Consump'!AL319*$B$3 -> 781000 | DS17: ='AEO Consump'!AM319*$B$3 -> 779000 | DT17: ='AEO Consump'!AN319*$B$3 -> 777000 | DU17: ='AEO Consump'!AO319*$B$3 -> 776000 | DV17: ='AEO Consump'!AP319*$B$3 -> 774000 | DW17: ='AEO Consump'!AQ319*$B$3 -> 772000 | DX17: ='AEO Consump'!AR319*$B$3 -> 770000 | DY17: ='AEO Consump'!AS319*$B$3 -> 768000 | DZ17: ='AEO Consump'!AT319*$B$3 -> 766000 | EF17: ='AEO Consump'!I465*$B$3 -> 302025 | EG17: ='AEO Consump'!J465*$B$3 -> 341288 | EH17: ='AEO Consump'!K465*$B$3 -> 309044 | EI17: ='AEO Consump'!L465*$B$3 -> 290053 | EJ17: ='AEO Consump'!M465*$B$3 -> 299181 | EK17: ='AEO Consump'!N465*$B$3 -> 311808 | EL17: ='AEO Consump'!O465*$B$3 -> 337335 | EM17: ='AEO Consump'!P465*$B$3 -> 329485 | EN17: ='AEO Consump'!Q465*$B$3 -> 335653 | EO17: ='AEO Consump'!R465*$B$3 -> 354000 | EP17: ='AEO Consump'!S465*$B$3 -> 335000 | EQ17: ='AEO Consump'!T465*$B$3 -> 328000 | ER17: ='AEO Consump'!U465*$B$3 -> 335000 | ES17: ='AEO Consump'!V465*$B$3 -> 341000 | ET17: ='AEO Consump'!W465*$B$3 -> 344000 | EU17: ='AEO Consump'!X465*$B$3 -> 346000 | EV17: ='AEO Consump'!Y465*$B$3 -> 347000 | EW17: ='AEO Consump'!Z465*$B$3 -> 347000 | EX17: ='AEO Consump'!AA465*$B$3 -> 348000 | EY17: ='AEO Consump'!AB465*$B$3 -> 348000 | EZ17: ='AEO Consump'!AC465*$B$3 -> 347000 | FA17: ='AEO Consump'!AD465*$B$3 -> 346000 | FB17: ='AEO Consump'!AE465*$B$3 -> 345000 | FC17: ='AEO Consump'!AF465*$B$3 -> 345000 | FD17: ='AEO Consump'!AG465*$B$3 -> 344000 | FE17: ='AEO Consump'!AH465*$B$3 -> 344000 | FF17: ='AEO Consump'!AI465*$B$3 -> 343000 | FG17: ='AEO Consump'!AJ465*$B$3 -> 342000 | FH17: ='AEO Consump'!AK465*$B$3 -> 342000 | FI17: ='AEO Consump'!AL465*$B$3 -> 341000 | FJ17: ='AEO Consump'!AM465*$B$3 -> 341000 | FK17: ='AEO Consump'!AN465*$B$3 -> 341000 | FL17: ='AEO Consump'!AO465*$B$3 -> 341000 | FM17: ='AEO Consump'!AP465*$B$3 -> 341000 | FN17: ='AEO Consump'!AQ465*$B$3 -> 340000 | FO17: ='AEO Consump'!AR465*$B$3 -> 340000 | FP17: ='AEO Consump'!AS465*$B$3 -> 340000 | FQ17: ='AEO Consump'!AT465*$B$3 -> 340000 | FW17: ='AEO Consump'!I611*$B$3 -> 382083 | FX17: ='AEO Consump'!J611*$B$3 -> 433687 | FY17: ='AEO Consump'!K611*$B$3 -> 385673 | FZ17: ='AEO Consump'!L611*$B$3 -> 399703 | GA17: ='AEO Consump'!M611*$B$3 -> 404770 | GB17: ='AEO Consump'!N611*$B$3 -> 421854 | GC17: ='AEO Consump'!O611*$B$3 -> 437212 | GD17: ='AEO Consump'!P611*$B$3 -> 435462 | GE17: ='AEO Consump'!Q611*$B$3 -> 413119 | GF17: ='AEO Consump'!R611*$B$3 -> 426000 | GG17: ='AEO Consump'!S611*$B$3 -> 430000 | GH17: ='AEO Consump'!T611*$B$3 -> 419000 | GI17: ='AEO Consump'!U611*$B$3 -> 426000 | GJ17: ='AEO Consump'!V611*$B$3 -> 431000 | GK17: ='AEO Consump'!W611*$B$3 -> 433000 | GL17: ='AEO Consump'!X611*$B$3 -> 436000 | GM17: ='AEO Consump'!Y611*$B$3 -> 438000 | GN17: ='AEO Consump'!Z611*$B$3 -> 440000 | GO17: ='AEO Consump'!AA611*$B$3 -> 442000 | GP17: ='AEO Consump'!AB611*$B$3 -> 444000 | GQ17: ='AEO Consump'!AC611*$B$3 -> 445000 | GR17: ='AEO Consump'!AD611*$B$3 -> 446000 | GS17: ='AEO Consump'!AE611*$B$3 -> 447000 | GT17: ='AEO Consump'!AF611*$B$3 -> 447000 | GU17: ='AEO Consump'!AG611*$B$3 -> 448000 | GV17: ='AEO Consump'!AH611*$B$3 -> 448000 | GW17: ='AEO Consump'!AI611*$B$3 -> 448000 | GX17: ='AEO Consump'!AJ611*$B$3 -> 448000 | GY17: ='AEO Consump'!AK611*$B$3 -> 448000 | GZ17: ='AEO Consump'!AL611*$B$3 -> 448000 | HA17: ='AEO Consump'!AM611*$B$3 -> 448000 | HB17: ='AEO Consump'!AN611*$B$3 -> 449000 | HC17: ='AEO Consump'!AO611*$B$3 -> 449000 | HD17: ='AEO Consump'!AP611*$B$3 -> 450000 | HE17: ='AEO Consump'!AQ611*$B$3 -> 450000 | HF17: ='AEO Consump'!AR611*$B$3 -> 451000 | HG17: ='AEO Consump'!AS611*$B$3 -> 451000 | HH17: ='AEO Consump'!AT611*$B$3 -> 452000
B18: Distillate Fuel | G18: ='AEO Consump'!I27*$B$3 -> 53856 | H18: ='AEO Consump'!J27*$B$3 -> 46783 | I18: ='AEO Consump'!K27*$B$3 -> 50996 | J18: ='AEO Consump'!L27*$B$3 -> 46197 | K18: ='AEO Consump'!M27*$B$3 -> 36173 | L18: ='AEO Consump'!N27*$B$3 -> 41203 | M18: ='AEO Consump'!O27*$B$3 -> 38062 | N18: ='AEO Consump'!P27*$B$3 -> 31789 | O18: ='AEO Consump'!Q27*$B$3 -> 34923 | P18: ='AEO Consump'!R27*$B$3 -> 32000 | Q18: ='AEO Consump'!S27*$B$3 -> 31000 | R18: ='AEO Consump'!T27*$B$3 -> 24000 | S18: ='AEO Consump'!U27*$B$3 -> 23000 | T18: ='AEO Consump'!V27*$B$3 -> 21000 | U18: ='AEO Consump'!W27*$B$3 -> 19000 | V18: ='AEO Consump'!X27*$B$3 -> 19000 | W18: ='AEO Consump'!Y27*$B$3 -> 18000 | X18: ='AEO Consump'!Z27*$B$3 -> 17000 | Y18: ='AEO Consump'!AA27*$B$3 -> 17000 | Z18: ='AEO Consump'!AB27*$B$3 -> 16000 | AA18: ='AEO Consump'!AC27*$B$3 -> 15000 | AB18: ='AEO Consump'!AD27*$B$3 -> 15000 | AC18: ='AEO Consump'!AE27*$B$3 -> 14000 | AD18: ='AEO Consump'!AF27*$B$3 -> 13000 | AE18: ='AEO Consump'!AG27*$B$3 -> 12000 | AF18: ='AEO Consump'!AH27*$B$3 -> 11000 | AG18: ='AEO Consump'!AI27*$B$3 -> 10000 | AH18: ='AEO Consump'!AJ27*$B$3 -> 9000 | AI18: ='AEO Consump'!AK27*$B$3 -> 9000 | AJ18: ='AEO Consump'!AL27*$B$3 -> 8000 | AK18: ='AEO Consump'!AM27*$B$3 -> 7000 | AL18: ='AEO Consump'!AN27*$B$3 -> 6000 | AM18: ='AEO Consump'!AO27*$B$3 -> 5000 | AN18: ='AEO Consump'!AP27*$B$3 -> 4000 | AO18: ='AEO Consump'!AQ27*$B$3 -> 4000 | AP18: ='AEO Consump'!AR27*$B$3 -> 3000 | AQ18: ='AEO Consump'!AS27*$B$3 -> 2000 | AR18: ='AEO Consump'!AT27*$B$3 -> 1000 | AX18: ='AEO Consump'!I170*$B$3 -> 86461 | AY18: ='AEO Consump'!J170*$B$3 -> 89813 | AZ18: ='AEO Consump'!K170*$B$3 -> 77547 | BA18: ='AEO Consump'!L170*$B$3 -> 82992 | BB18: ='AEO Consump'!M170*$B$3 -> 72332 | BC18: ='AEO Consump'!N170*$B$3 -> 80076 | BD18: ='AEO Consump'!O170*$B$3 -> 75729 | BE18: ='AEO Consump'!P170*$B$3 -> 70007 | BF18: ='AEO Consump'!Q170*$B$3 -> 74709 | BG18: ='AEO Consump'!R170*$B$3 -> 63000 | BH18: ='AEO Consump'!S170*$B$3 -> 61000 | BI18: ='AEO Consump'!T170*$B$3 -> 53000 | BJ18: ='AEO Consump'!U170*$B$3 -> 53000 | BK18: ='AEO Consump'!V170*$B$3 -> 54000 | BL18: ='AEO Consump'!W170*$B$3 -> 54000 | BM18: ='AEO Consump'!X170*$B$3 -> 54000 | BN18: ='AEO Consump'!Y170*$B$3 -> 53000 | BO18: ='AEO Consump'!Z170*$B$3 -> 53000 | BP18: ='AEO Consump'!AA170*$B$3 -> 52000 | BQ18: ='AEO Consump'!AB170*$B$3 -> 51000 | BR18: ='AEO Consump'!AC170*$B$3 -> 51000 | BS18: ='AEO Consump'!AD170*$B$3 -> 50000 | BT18: ='AEO Consump'!AE170*$B$3 -> 49000 | BU18: ='AEO Consump'!AF170*$B$3 -> 48000 | BV18: ='AEO Consump'!AG170*$B$3 -> 47000 | BW18: ='AEO Consump'!AH170*$B$3 -> 46000 | BX18: ='AEO Consump'!AI170*$B$3 -> 45000 | BY18: ='AEO Consump'!AJ170*$B$3 -> 44000 | BZ18: ='AEO Consump'!AK170*$B$3 -> 43000 | CA18: ='AEO Consump'!AL170*$B$3 -> 42000 | CB18: ='AEO Consump'!AM170*$B$3 -> 41000 | CC18: ='AEO Consump'!AN170*$B$3 -> 40000 | CD18: ='AEO Consump'!AO170*$B$3 -> 39000 | CE18: ='AEO Consump'!AP170*$B$3 -> 38000 | CF18: ='AEO Consump'!AQ170*$B$3 -> 37000 | CG18: ='AEO Consump'!AR170*$B$3 -> 36000 | CH18: ='AEO Consump'!AS170*$B$3 -> 35000 | CI18: ='AEO Consump'!AT170*$B$3 -> 34000 | CO18: ='AEO Consump'!I313*$B$3 -> 31303 | CP18: ='AEO Consump'!J313*$B$3 -> 36946 | CQ18: ='AEO Consump'!K313*$B$3 -> 32562 | CR18: ='AEO Consump'!L313*$B$3 -> 34387 | CS18: ='AEO Consump'!M313*$B$3 -> 34078 | CT18: ='AEO Consump'!N313*$B$3 -> 35008 | CU18: ='AEO Consump'!O313*$B$3 -> 36120 | CV18: ='AEO Consump'!P313*$B$3 -> 37284 | CW18: ='AEO Consump'!Q313*$B$3 -> 34605 | CX18: ='AEO Consump'!R313*$B$3 -> 33000 | CY18: ='AEO Consump'!S313*$B$3 -> 32000 | CZ18: ='AEO Consump'!T313*$B$3 -> 32000 | DA18: ='AEO Consump'!U313*$B$3 -> 33000 | DB18: ='AEO Consump'!V313*$B$3 -> 34000 | DC18: ='AEO Consump'!W313*$B$3 -> 34000 | DD18: ='AEO Consump'!X313*$B$3 -> 34000 | DE18: ='AEO Consump'!Y313*$B$3 -> 35000 | DF18: ='AEO Consump'!Z313*$B$3 -> 35000 | DG18: ='AEO Consump'!AA313*$B$3 -> 35000 | DH18: ='AEO Consump'!AB313*$B$3 -> 34000 | DI18: ='AEO Consump'!AC313*$B$3 -> 34000 | DJ18: ='AEO Consump'!AD313*$B$3 -> 34000 | DK18: ='AEO Consump'!AE313*$B$3 -> 34000 | DL18: ='AEO Consump'!AF313*$B$3 -> 34000 | DM18: ='AEO Consump'!AG313*$B$3 -> 34000 | DN18: ='AEO Consump'!AH313*$B$3 -> 34000 | DO18: ='AEO Consump'!AI313*$B$3 -> 33000 | DP18: ='AEO Consump'!AJ313*$B$3 -> 33000 | DQ18: ='AEO Consump'!AK313*$B$3 -> 33000 | DR18: ='AEO Consump'!AL313*$B$3 -> 33000 | DS18: ='AEO Consump'!AM313*$B$3 -> 33000 | DT18: ='AEO Consump'!AN313*$B$3 -> 33000 | DU18: ='AEO Consump'!AO313*$B$3 -> 33000 | DV18: ='AEO Consump'!AP313*$B$3 -> 33000 | DW18: ='AEO Consump'!AQ313*$B$3 -> 32000 | DX18: ='AEO Consump'!AR313*$B$3 -> 32000 | DY18: ='AEO Consump'!AS313*$B$3 -> 32000 | DZ18: ='AEO Consump'!AT313*$B$3 -> 32000 | EF18: ='AEO Consump'!I459*$B$3 -> 20966 | EG18: ='AEO Consump'!J459*$B$3 -> 28719 | EH18: ='AEO Consump'!K459*$B$3 -> 26883 | EI18: ='AEO Consump'!L459*$B$3 -> 23291 | EJ18: ='AEO Consump'!M459*$B$3 -> 22418 | EK18: ='AEO Consump'!N459*$B$3 -> 25578 | EL18: ='AEO Consump'!O459*$B$3 -> 24738 | EM18: ='AEO Consump'!P459*$B$3 -> 25682 | EN18: ='AEO Consump'!Q459*$B$3 -> 20879 | EO18: ='AEO Consump'!R459*$B$3 -> 22000 | EP18: ='AEO Consump'!S459*$B$3 -> 21000 | EQ18: ='AEO Consump'!T459*$B$3 -> 22000 | ER18: ='AEO Consump'!U459*$B$3 -> 22000 | ES18: ='AEO Consump'!V459*$B$3 -> 22000 | ET18: ='AEO Consump'!W459*$B$3 -> 23000 | EU18: ='AEO Consump'!X459*$B$3 -> 23000 | EV18: ='AEO Consump'!Y459*$B$3 -> 23000 | EW18: ='AEO Consump'!Z459*$B$3 -> 23000 | EX18: ='AEO Consump'!AA459*$B$3 -> 23000 | EY18: ='AEO Consump'!AB459*$B$3 -> 23000 | EZ18: ='AEO Consump'!AC459*$B$3 -> 23000 | FA18: ='AEO Consump'!AD459*$B$3 -> 23000 | FB18: ='AEO Consump'!AE459*$B$3 -> 23000 | FC18: ='AEO Consump'!AF459*$B$3 -> 23000 | FD18: ='AEO Consump'!AG459*$B$3 -> 23000 | FE18: ='AEO Consump'!AH459*$B$3 -> 23000 | FF18: ='AEO Consump'!AI459*$B$3 -> 23000 | FG18: ='AEO Consump'!AJ459*$B$3 -> 23000 | FH18: ='AEO Consump'!AK459*$B$3 -> 23000 | FI18: ='AEO Consump'!AL459*$B$3 -> 23000 | FJ18: ='AEO Consump'!AM459*$B$3 -> 23000 | FK18: ='AEO Consump'!AN459*$B$3 -> 23000 | FL18: ='AEO Consump'!AO459*$B$3 -> 22000 | FM18: ='AEO Consump'!AP459*$B$3 -> 22000 | FN18: ='AEO Consump'!AQ459*$B$3 -> 22000 | FO18: ='AEO Consump'!AR459*$B$3 -> 22000 | FP18: ='AEO Consump'!AS459*$B$3 -> 22000 | FQ18: ='AEO Consump'!AT459*$B$3 -> 22000 | FW18: ='AEO Consump'!I605*$B$3 -> 48501 | FX18: ='AEO Consump'!J605*$B$3 -> 54872 | FY18: ='AEO Consump'!K605*$B$3 -> 55022 | FZ18: ='AEO Consump'!L605*$B$3 -> 58787 | GA18: ='AEO Consump'!M605*$B$3 -> 54681 | GB18: ='AEO Consump'!N605*$B$3 -> 56847 | GC18: ='AEO Consump'!O605*$B$3 -> 55257 | GD18: ='AEO Consump'!P605*$B$3 -> 58690 | GE18: ='AEO Consump'!Q605*$B$3 -> 51423 | GF18: ='AEO Consump'!R605*$B$3 -> 51000 | GG18: ='AEO Consump'!S605*$B$3 -> 51000 | GH18: ='AEO Consump'!T605*$B$3 -> 50000 | GI18: ='AEO Consump'!U605*$B$3 -> 51000 | GJ18: ='AEO Consump'!V605*$B$3 -> 52000 | GK18: ='AEO Consump'!W605*$B$3 -> 53000 | GL18: ='AEO Consump'!X605*$B$3 -> 53000 | GM18: ='AEO Consump'!Y605*$B$3 -> 54000 | GN18: ='AEO Consump'!Z605*$B$3 -> 54000 | GO18: ='AEO Consump'!AA605*$B$3 -> 53000 | GP18: ='AEO Consump'!AB605*$B$3 -> 53000 | GQ18: ='AEO Consump'!AC605*$B$3 -> 53000 | GR18: ='AEO Consump'!AD605*$B$3 -> 53000 | GS18: ='AEO Consump'!AE605*$B$3 -> 53000 | GT18: ='AEO Consump'!AF605*$B$3 -> 53000 | GU18: ='AEO Consump'!AG605*$B$3 -> 53000 | GV18: ='AEO Consump'!AH605*$B$3 -> 53000 | GW18: ='AEO Consump'!AI605*$B$3 -> 53000 | GX18: ='AEO Consump'!AJ605*$B$3 -> 52000 | GY18: ='AEO Consump'!AK605*$B$3 -> 52000 | GZ18: ='AEO Consump'!AL605*$B$3 -> 52000 | HA18: ='AEO Consump'!AM605*$B$3 -> 52000 | HB18: ='AEO Consump'!AN605*$B$3 -> 52000 | HC18: ='AEO Consump'!AO605*$B$3 -> 52000 | HD18: ='AEO Consump'!AP605*$B$3 -> 52000 | HE18: ='AEO Consump'!AQ605*$B$3 -> 51000 | HF18: ='AEO Consump'!AR605*$B$3 -> 51000 | HG18: ='AEO Consump'!AS605*$B$3 -> 51000 | HH18: ='AEO Consump'!AT605*$B$3 -> 51000
B19: Kerosene | G19: ='AEO Consump'!I29*$B$3 -> 107 | H19: ='AEO Consump'!J29*$B$3 -> 295 | I19: ='AEO Consump'!K29*$B$3 -> 272 | J19: ='AEO Consump'!L29*$B$3 -> 350 | K19: ='AEO Consump'!M29*$B$3 -> 192 | L19: ='AEO Consump'!N29*$B$3 -> 151 | M19: ='AEO Consump'!O29*$B$3 -> 340 | N19: ='AEO Consump'!P29*$B$3 -> 337 | O19: ='AEO Consump'!Q29*$B$3 -> 420 | P19: ='AEO Consump'!R29*$B$3 -> 0 | Q19: ='AEO Consump'!S29*$B$3 -> 0 | R19: ='AEO Consump'!T29*$B$3 -> 0 | S19: ='AEO Consump'!U29*$B$3 -> 0 | T19: ='AEO Consump'!V29*$B$3 -> 0 | U19: ='AEO Consump'!W29*$B$3 -> 0 | V19: ='AEO Consump'!X29*$B$3 -> 0 | W19: ='AEO Consump'!Y29*$B$3 -> 0 | X19: ='AEO Consump'!Z29*$B$3 -> 0 | Y19: ='AEO Consump'!AA29*$B$3 -> 0 | Z19: ='AEO Consump'!AB29*$B$3 -> 0 | AA19: ='AEO Consump'!AC29*$B$3 -> 0 | AB19: ='AEO Consump'!AD29*$B$3 -> 0 | AC19: ='AEO Consump'!AE29*$B$3 -> 0 | AD19: ='AEO Consump'!AF29*$B$3 -> 0 | AE19: ='AEO Consump'!AG29*$B$3 -> 0 | AF19: ='AEO Consump'!AH29*$B$3 -> 0 | AG19: ='AEO Consump'!AI29*$B$3 -> 0 | AH19: ='AEO Consump'!AJ29*$B$3 -> 0 | AI19: ='AEO Consump'!AK29*$B$3 -> 0 | AJ19: ='AEO Consump'!AL29*$B$3 -> 0 | AK19: ='AEO Consump'!AM29*$B$3 -> 0 | AL19: ='AEO Consump'!AN29*$B$3 -> 0 | AM19: ='AEO Consump'!AO29*$B$3 -> 0 | AN19: ='AEO Consump'!AP29*$B$3 -> 0 | AO19: ='AEO Consump'!AQ29*$B$3 -> 0 | AP19: ='AEO Consump'!AR29*$B$3 -> 0 | AQ19: ='AEO Consump'!AS29*$B$3 -> 0 | AR19: ='AEO Consump'!AT29*$B$3 -> 0 | AX19: ='AEO Consump'!I172*$B$3 -> 302 | AY19: ='AEO Consump'!J172*$B$3 -> 397 | AZ19: ='AEO Consump'!K172*$B$3 -> 377 | BA19: ='AEO Consump'!L172*$B$3 -> 343 | BB19: ='AEO Consump'!M172*$B$3 -> 300 | BC19: ='AEO Consump'!N172*$B$3 -> 0 | BD19: ='AEO Consump'!O172*$B$3 -> 408 | BE19: ='AEO Consump'!P172*$B$3 -> 424 | BF19: ='AEO Consump'!Q172*$B$3 -> 694 | BG19: ='AEO Consump'!R172*$B$3 -> 0 | BH19: ='AEO Consump'!S172*$B$3 -> 0 | BI19: ='AEO Consump'!T172*$B$3 -> 0 | BJ19: ='AEO Consump'!U172*$B$3 -> 0 | BK19: ='AEO Consump'!V172*$B$3 -> 0 | BL19: ='AEO Consump'!W172*$B$3 -> 0 | BM19: ='AEO Consump'!X172*$B$3 -> 0 | BN19: ='AEO Consump'!Y172*$B$3 -> 0 | BO19: ='AEO Consump'!Z172*$B$3 -> 0 | BP19: ='AEO Consump'!AA172*$B$3 -> 0 | BQ19: ='AEO Consump'!AB172*$B$3 -> 0 | BR19: ='AEO Consump'!AC172*$B$3 -> 0 | BS19: ='AEO Consump'!AD172*$B$3 -> 0 | BT19: ='AEO Consump'!AE172*$B$3 -> 0 | BU19: ='AEO Consump'!AF172*$B$3 -> 0 | BV19: ='AEO Consump'!AG172*$B$3 -> 0 | BW19: ='AEO Consump'!AH172*$B$3 -> 0 | BX19: ='AEO Consump'!AI172*$B$3 -> 0 | BY19: ='AEO Consump'!AJ172*$B$3 -> 0 | BZ19: ='AEO Consump'!AK172*$B$3 -> 0 | CA19: ='AEO Consump'!AL172*$B$3 -> 0 | CB19: ='AEO Consump'!AM172*$B$3 -> 0 | CC19: ='AEO Consump'!AN172*$B$3 -> 0 | CD19: ='AEO Consump'!AO172*$B$3 -> 0 | CE19: ='AEO Consump'!AP172*$B$3 -> 0 | CF19: ='AEO Consump'!AQ172*$B$3 -> 0 | CG19: ='AEO Consump'!AR172*$B$3 -> 0 | CH19: ='AEO Consump'!AS172*$B$3 -> 0 | CI19: ='AEO Consump'!AT172*$B$3 -> 0 | CO19: ='AEO Consump'!I315*$B$3 -> 100 | CP19: ='AEO Consump'!J315*$B$3 -> 198 | CQ19: ='AEO Consump'!K315*$B$3 -> 184 | CR19: ='AEO Consump'!L315*$B$3 -> 201 | CS19: ='AEO Consump'!M315*$B$3 -> 140 | CT19: ='AEO Consump'!N315*$B$3 -> 0 | CU19: ='AEO Consump'!O315*$B$3 -> 212 | CV19: ='AEO Consump'!P315*$B$3 -> 229 | CW19: ='AEO Consump'!Q315*$B$3 -> 202 | CX19: ='AEO Consump'!R315*$B$3 -> 0 | CY19: ='AEO Consump'!S315*$B$3 -> 0 | CZ19: ='AEO Consump'!T315*$B$3 -> 0 | DA19: ='AEO Consump'!U315*$B$3 -> 0 | DB19: ='AEO Consump'!V315*$B$3 -> 0 | DC19: ='AEO Consump'!W315*$B$3 -> 0 | DD19: ='AEO Consump'!X315*$B$3 -> 0 | DE19: ='AEO Consump'!Y315*$B$3 -> 0 | DF19: ='AEO Consump'!Z315*$B$3 -> 0 | DG19: ='AEO Consump'!AA315*$B$3 -> 0 | DH19: ='AEO Consump'!AB315*$B$3 -> 0 | DI19: ='AEO Consump'!AC315*$B$3 -> 0 | DJ19: ='AEO Consump'!AD315*$B$3 -> 0 | DK19: ='AEO Consump'!AE315*$B$3 -> 0 | DL19: ='AEO Consump'!AF315*$B$3 -> 0 | DM19: ='AEO Consump'!AG315*$B$3 -> 0 | DN19: ='AEO Consump'!AH315*$B$3 -> 0 | DO19: ='AEO Consump'!AI315*$B$3 -> 0 | DP19: ='AEO Consump'!AJ315*$B$3 -> 0 | DQ19: ='AEO Consump'!AK315*$B$3 -> 0 | DR19: ='AEO Consump'!AL315*$B$3 -> 0 | DS19: ='AEO Consump'!AM315*$B$3 -> 0 | DT19: ='AEO Consump'!AN315*$B$3 -> 0 | DU19: ='AEO Consump'!AO315*$B$3 -> 0 | DV19: ='AEO Consump'!AP315*$B$3 -> 0 | DW19: ='AEO Consump'!AQ315*$B$3 -> 0 | DX19: ='AEO Consump'!AR315*$B$3 -> 0 | DY19: ='AEO Consump'!AS315*$B$3 -> 0 | DZ19: ='AEO Consump'!AT315*$B$3 -> 0 | EF19: ='AEO Consump'!I461*$B$3 -> 29 | EG19: ='AEO Consump'!J461*$B$3 -> 69 | EH19: ='AEO Consump'!K461*$B$3 -> 34 | EI19: ='AEO Consump'!L461*$B$3 -> 32 | EJ19: ='AEO Consump'!M461*$B$3 -> 25 | EK19: ='AEO Consump'!N461*$B$3 -> 0 | EL19: ='AEO Consump'!O461*$B$3 -> 30 | EM19: ='AEO Consump'!P461*$B$3 -> 32 | EN19: ='AEO Consump'!Q461*$B$3 -> 39 | EO19: ='AEO Consump'!R461*$B$3 -> 0 | EP19: ='AEO Consump'!S461*$B$3 -> 0 | EQ19: ='AEO Consump'!T461*$B$3 -> 0 | ER19: ='AEO Consump'!U461*$B$3 -> 0 | ES19: ='AEO Consump'!V461*$B$3 -> 0 | ET19: ='AEO Consump'!W461*$B$3 -> 0 | EU19: ='AEO Consump'!X461*$B$3 -> 0 | EV19: ='AEO Consump'!Y461*$B$3 -> 0 | EW19: ='AEO Consump'!Z461*$B$3 -> 0 | EX19: ='AEO Consump'!AA461*$B$3 -> 0 | EY19: ='AEO Consump'!AB461*$B$3 -> 0 | EZ19: ='AEO Consump'!AC461*$B$3 -> 0 | FA19: ='AEO Consump'!AD461*$B$3 -> 0 | FB19: ='AEO Consump'!AE461*$B$3 -> 0 | FC19: ='AEO Consump'!AF461*$B$3 -> 0 | FD19: ='AEO Consump'!AG461*$B$3 -> 0 | FE19: ='AEO Consump'!AH461*$B$3 -> 0 | FF19: ='AEO Consump'!AI461*$B$3 -> 0 | FG19: ='AEO Consump'!AJ461*$B$3 -> 0 | FH19: ='AEO Consump'!AK461*$B$3 -> 0 | FI19: ='AEO Consump'!AL461*$B$3 -> 0 | FJ19: ='AEO Consump'!AM461*$B$3 -> 0 | FK19: ='AEO Consump'!AN461*$B$3 -> 0 | FL19: ='AEO Consump'!AO461*$B$3 -> 0 | FM19: ='AEO Consump'!AP461*$B$3 -> 0 | FN19: ='AEO Consump'!AQ461*$B$3 -> 0 | FO19: ='AEO Consump'!AR461*$B$3 -> 0 | FP19: ='AEO Consump'!AS461*$B$3 -> 0 | FQ19: ='AEO Consump'!AT461*$B$3 -> 0 | FW19: ='AEO Consump'!I607*$B$3 -> 221 | FX19: ='AEO Consump'!J607*$B$3 -> 448 | FY19: ='AEO Consump'!K607*$B$3 -> 345 | FZ19: ='AEO Consump'!L607*$B$3 -> 334 | GA19: ='AEO Consump'!M607*$B$3 -> 247 | GB19: ='AEO Consump'!N607*$B$3 -> 100 | GC19: ='AEO Consump'!O607*$B$3 -> 237 | GD19: ='AEO Consump'!P607*$B$3 -> 272 | GE19: ='AEO Consump'!Q607*$B$3 -> 267 | GF19: ='AEO Consump'!R607*$B$3 -> 0 | GG19: ='AEO Consump'!S607*$B$3 -> 0 | GH19: ='AEO Consump'!T607*$B$3 -> 0 | GI19: ='AEO Consump'!U607*$B$3 -> 0 | GJ19: ='AEO Consump'!V607*$B$3 -> 0 | GK19: ='AEO Consump'!W607*$B$3 -> 0 | GL19: ='AEO Consump'!X607*$B$3 -> 0 | GM19: ='AEO Consump'!Y607*$B$3 -> 0 | GN19: ='AEO Consump'!Z607*$B$3 -> 0 | GO19: ='AEO Consump'!AA607*$B$3 -> 0 | GP19: ='AEO Consump'!AB607*$B$3 -> 0 | GQ19: ='AEO Consump'!AC607*$B$3 -> 0 | GR19: ='AEO Consump'!AD607*$B$3 -> 0 | GS19: ='AEO Consump'!AE607*$B$3 -> 0 | GT19: ='AEO Consump'!AF607*$B$3 -> 0 | GU19: ='AEO Consump'!AG607*$B$3 -> 0 | GV19: ='AEO Consump'!AH607*$B$3 -> 0 | GW19: ='AEO Consump'!AI607*$B$3 -> 0 | GX19: ='AEO Consump'!AJ607*$B$3 -> 0 | GY19: ='AEO Consump'!AK607*$B$3 -> 0 | GZ19: ='AEO Consump'!AL607*$B$3 -> 0 | HA19: ='AEO Consump'!AM607*$B$3 -> 0 | HB19: ='AEO Consump'!AN607*$B$3 -> 0 | HC19: ='AEO Consump'!AO607*$B$3 -> 0 | HD19: ='AEO Consump'!AP607*$B$3 -> 0 | HE19: ='AEO Consump'!AQ607*$B$3 -> 0 | HF19: ='AEO Consump'!AR607*$B$3 -> 0 | HG19: ='AEO Consump'!AS607*$B$3 -> 0 | HH19: ='AEO Consump'!AT607*$B$3 -> 0
B20: HGL | G20: ='AEO Consump'!I30*$B$3 -> 19234 | H20: ='AEO Consump'!J30*$B$3 -> 23226 | I20: ='AEO Consump'!K30*$B$3 -> 19425 | J20: ='AEO Consump'!L30*$B$3 -> 21527 | K20: ='AEO Consump'!M30*$B$3 -> 21587 | L20: ='AEO Consump'!N30*$B$3 -> 23327 | M20: ='AEO Consump'!O30*$B$3 -> 18786 | N20: ='AEO Consump'!P30*$B$3 -> 19909 | O20: ='AEO Consump'!Q30*$B$3 -> 21671 | P20: ='AEO Consump'!R30*$B$3 -> 21000 | Q20: ='AEO Consump'!S30*$B$3 -> 21000 | R20: ='AEO Consump'!T30*$B$3 -> 22000 | S20: ='AEO Consump'!U30*$B$3 -> 22000 | T20: ='AEO Consump'!V30*$B$3 -> 22000 | U20: ='AEO Consump'!W30*$B$3 -> 22000 | V20: ='AEO Consump'!X30*$B$3 -> 22000 | W20: ='AEO Consump'!Y30*$B$3 -> 22000 | X20: ='AEO Consump'!Z30*$B$3 -> 22000 | Y20: ='AEO Consump'!AA30*$B$3 -> 22000 | Z20: ='AEO Consump'!AB30*$B$3 -> 22000 | AA20: ='AEO Consump'!AC30*$B$3 -> 22000 | AB20: ='AEO Consump'!AD30*$B$3 -> 22000 | AC20: ='AEO Consump'!AE30*$B$3 -> 23000 | AD20: ='AEO Consump'!AF30*$B$3 -> 23000 | AE20: ='AEO Consump'!AG30*$B$3 -> 23000 | AF20: ='AEO Consump'!AH30*$B$3 -> 23000 | AG20: ='AEO Consump'!AI30*$B$3 -> 23000 | AH20: ='AEO Consump'!AJ30*$B$3 -> 23000 | AI20: ='AEO Consump'!AK30*$B$3 -> 23000 | AJ20: ='AEO Consump'!AL30*$B$3 -> 23000 | AK20: ='AEO Consump'!AM30*$B$3 -> 23000 | AL20: ='AEO Consump'!AN30*$B$3 -> 23000 | AM20: ='AEO Consump'!AO30*$B$3 -> 23000 | AN20: ='AEO Consump'!AP30*$B$3 -> 23000 | AO20: ='AEO Consump'!AQ30*$B$3 -> 23000 | AP20: ='AEO Consump'!AR30*$B$3 -> 23000 | AQ20: ='AEO Consump'!AS30*$B$3 -> 23000 | AR20: ='AEO Consump'!AT30*$B$3 -> 23000 | AX20: ='AEO Consump'!I173*$B$3 -> 16679 | AY20: ='AEO Consump'!J173*$B$3 -> 15610 | AZ20: ='AEO Consump'!K173*$B$3 -> 13426 | BA20: ='AEO Consump'!L173*$B$3 -> 14514 | BB20: ='AEO Consump'!M173*$B$3 -> 17475 | BC20: ='AEO Consump'!N173*$B$3 -> 16949 | BD20: ='AEO Consump'!O173*$B$3 -> 16898 | BE20: ='AEO Consump'!P173*$B$3 -> 17044 | BF20: ='AEO Consump'!Q173*$B$3 -> 17242 | BG20: ='AEO Consump'!R173*$B$3 -> 18000 | BH20: ='AEO Consump'!S173*$B$3 -> 18000 | BI20: ='AEO Consump'!T173*$B$3 -> 18000 | BJ20: ='AEO Consump'!U173*$B$3 -> 18000 | BK20: ='AEO Consump'!V173*$B$3 -> 18000 | BL20: ='AEO Consump'!W173*$B$3 -> 19000 | BM20: ='AEO Consump'!X173*$B$3 -> 19000 | BN20: ='AEO Consump'!Y173*$B$3 -> 19000 | BO20: ='AEO Consump'!Z173*$B$3 -> 19000 | BP20: ='AEO Consump'!AA173*$B$3 -> 19000 | BQ20: ='AEO Consump'!AB173*$B$3 -> 19000 | BR20: ='AEO Consump'!AC173*$B$3 -> 19000 | BS20: ='AEO Consump'!AD173*$B$3 -> 19000 | BT20: ='AEO Consump'!AE173*$B$3 -> 19000 | BU20: ='AEO Consump'!AF173*$B$3 -> 19000 | BV20: ='AEO Consump'!AG173*$B$3 -> 19000 | BW20: ='AEO Consump'!AH173*$B$3 -> 19000 | BX20: ='AEO Consump'!AI173*$B$3 -> 20000 | BY20: ='AEO Consump'!AJ173*$B$3 -> 20000 | BZ20: ='AEO Consump'!AK173*$B$3 -> 20000 | CA20: ='AEO Consump'!AL173*$B$3 -> 20000 | CB20: ='AEO Consump'!AM173*$B$3 -> 20000 | CC20: ='AEO Consump'!AN173*$B$3 -> 20000 | CD20: ='AEO Consump'!AO173*$B$3 -> 20000 | CE20: ='AEO Consump'!AP173*$B$3 -> 20000 | CF20: ='AEO Consump'!AQ173*$B$3 -> 20000 | CG20: ='AEO Consump'!AR173*$B$3 -> 20000 | CH20: ='AEO Consump'!AS173*$B$3 -> 20000 | CI20: ='AEO Consump'!AT173*$B$3 -> 20000 | CO20: ='AEO Consump'!I316*$B$3 -> 16432 | CP20: ='AEO Consump'!J316*$B$3 -> 17338 | CQ20: ='AEO Consump'!K316*$B$3 -> 16261 | CR20: ='AEO Consump'!L316*$B$3 -> 13515 | CS20: ='AEO Consump'!M316*$B$3 -> 15140 | CT20: ='AEO Consump'!N316*$B$3 -> 15895 | CU20: ='AEO Consump'!O316*$B$3 -> 18860 | CV20: ='AEO Consump'!P316*$B$3 -> 18679 | CW20: ='AEO Consump'!Q316*$B$3 -> 22080 | CX20: ='AEO Consump'!R316*$B$3 -> 24000 | CY20: ='AEO Consump'!S316*$B$3 -> 24000 | CZ20: ='AEO Consump'!T316*$B$3 -> 24000 | DA20: ='AEO Consump'!U316*$B$3 -> 24000 | DB20: ='AEO Consump'!V316*$B$3 -> 24000 | DC20: ='AEO Consump'!W316*$B$3 -> 24000 | DD20: ='AEO Consump'!X316*$B$3 -> 24000 | DE20: ='AEO Consump'!Y316*$B$3 -> 24000 | DF20: ='AEO Consump'!Z316*$B$3 -> 24000 | DG20: ='AEO Consump'!AA316*$B$3 -> 24000 | DH20: ='AEO Consump'!AB316*$B$3 -> 25000 | DI20: ='AEO Consump'!AC316*$B$3 -> 25000 | DJ20: ='AEO Consump'!AD316*$B$3 -> 25000 | DK20: ='AEO Consump'!AE316*$B$3 -> 25000 | DL20: ='AEO Consump'!AF316*$B$3 -> 25000 | DM20: ='AEO Consump'!AG316*$B$3 -> 25000 | DN20: ='AEO Consump'!AH316*$B$3 -> 25000 | DO20: ='AEO Consump'!AI316*$B$3 -> 25000 | DP20: ='AEO Consump'!AJ316*$B$3 -> 25000 | DQ20: ='AEO Consump'!AK316*$B$3 -> 26000 | DR20: ='AEO Consump'!AL316*$B$3 -> 26000 | DS20: ='AEO Consump'!AM316*$B$3 -> 26000 | DT20: ='AEO Consump'!AN316*$B$3 -> 26000 | DU20: ='AEO Consump'!AO316*$B$3 -> 26000 | DV20: ='AEO Consump'!AP316*$B$3 -> 26000 | DW20: ='AEO Consump'!AQ316*$B$3 -> 26000 | DX20: ='AEO Consump'!AR316*$B$3 -> 26000 | DY20: ='AEO Consump'!AS316*$B$3 -> 26000 | DZ20: ='AEO Consump'!AT316*$B$3 -> 26000 | EF20: ='AEO Consump'!I462*$B$3 -> 14653 | EG20: ='AEO Consump'!J462*$B$3 -> 16099 | EH20: ='AEO Consump'!K462*$B$3 -> 17136 | EI20: ='AEO Consump'!L462*$B$3 -> 13729 | EJ20: ='AEO Consump'!M462*$B$3 -> 14407 | EK20: ='AEO Consump'!N462*$B$3 -> 15690 | EL20: ='AEO Consump'!O462*$B$3 -> 17109 | EM20: ='AEO Consump'!P462*$B$3 -> 17158 | EN20: ='AEO Consump'!Q462*$B$3 -> 19026 | EO20: ='AEO Consump'!R462*$B$3 -> 22000 | EP20: ='AEO Consump'!S462*$B$3 -> 22000 | EQ20: ='AEO Consump'!T462*$B$3 -> 22000 | ER20: ='AEO Consump'!U462*$B$3 -> 22000 | ES20: ='AEO Consump'!V462*$B$3 -> 22000 | ET20: ='AEO Consump'!W462*$B$3 -> 22000 | EU20: ='AEO Consump'!X462*$B$3 -> 22000 | EV20: ='AEO Consump'!Y462*$B$3 -> 22000 | EW20: ='AEO Consump'!Z462*$B$3 -> 22000 | EX20: ='AEO Consump'!AA462*$B$3 -> 23000 | EY20: ='AEO Consump'!AB462*$B$3 -> 23000 | EZ20: ='AEO Consump'!AC462*$B$3 -> 23000 | FA20: ='AEO Consump'!AD462*$B$3 -> 23000 | FB20: ='AEO Consump'!AE462*$B$3 -> 23000 | FC20: ='AEO Consump'!AF462*$B$3 -> 23000 | FD20: ='AEO Consump'!AG462*$B$3 -> 24000 | FE20: ='AEO Consump'!AH462*$B$3 -> 24000 | FF20: ='AEO Consump'!AI462*$B$3 -> 24000 | FG20: ='AEO Consump'!AJ462*$B$3 -> 24000 | FH20: ='AEO Consump'!AK462*$B$3 -> 24000 | FI20: ='AEO Consump'!AL462*$B$3 -> 24000 | FJ20: ='AEO Consump'!AM462*$B$3 -> 24000 | FK20: ='AEO Consump'!AN462*$B$3 -> 24000 | FL20: ='AEO Consump'!AO462*$B$3 -> 25000 | FM20: ='AEO Consump'!AP462*$B$3 -> 25000 | FN20: ='AEO Consump'!AQ462*$B$3 -> 25000 | FO20: ='AEO Consump'!AR462*$B$3 -> 25000 | FP20: ='AEO Consump'!AS462*$B$3 -> 25000 | FQ20: ='AEO Consump'!AT462*$B$3 -> 25000 | FW20: ='AEO Consump'!I608*$B$3 -> 33098 | FX20: ='AEO Consump'!J608*$B$3 -> 32187 | FY20: ='AEO Consump'!K608*$B$3 -> 34690 | FZ20: ='AEO Consump'!L608*$B$3 -> 30715 | GA20: ='AEO Consump'!M608*$B$3 -> 32958 | GB20: ='AEO Consump'!N608*$B$3 -> 34789 | GC20: ='AEO Consump'!O608*$B$3 -> 36043 | GD20: ='AEO Consump'!P608*$B$3 -> 37211 | GE20: ='AEO Consump'!Q608*$B$3 -> 33800 | GF20: ='AEO Consump'!R608*$B$3 -> 32000 | GG20: ='AEO Consump'!S608*$B$3 -> 33000 | GH20: ='AEO Consump'!T608*$B$3 -> 35000 | GI20: ='AEO Consump'!U608*$B$3 -> 37000 | GJ20: ='AEO Consump'!V608*$B$3 -> 39000 | GK20: ='AEO Consump'!W608*$B$3 -> 41000 | GL20: ='AEO Consump'!X608*$B$3 -> 42000 | GM20: ='AEO Consump'!Y608*$B$3 -> 43000 | GN20: ='AEO Consump'!Z608*$B$3 -> 44000 | GO20: ='AEO Consump'!AA608*$B$3 -> 45000 | GP20: ='AEO Consump'!AB608*$B$3 -> 46000 | GQ20: ='AEO Consump'!AC608*$B$3 -> 47000 | GR20: ='AEO Consump'!AD608*$B$3 -> 48000 | GS20: ='AEO Consump'!AE608*$B$3 -> 49000 | GT20: ='AEO Consump'!AF608*$B$3 -> 50000 | GU20: ='AEO Consump'!AG608*$B$3 -> 50000 | GV20: ='AEO Consump'!AH608*$B$3 -> 51000 | GW20: ='AEO Consump'!AI608*$B$3 -> 52000 | GX20: ='AEO Consump'!AJ608*$B$3 -> 53000 | GY20: ='AEO Consump'!AK608*$B$3 -> 53000 | GZ20: ='AEO Consump'!AL608*$B$3 -> 54000 | HA20: ='AEO Consump'!AM608*$B$3 -> 55000 | HB20: ='AEO Consump'!AN608*$B$3 -> 56000 | HC20: ='AEO Consump'!AO608*$B$3 -> 56000 | HD20: ='AEO Consump'!AP608*$B$3 -> 57000 | HE20: ='AEO Consump'!AQ608*$B$3 -> 58000 | HF20: ='AEO Consump'!AR608*$B$3 -> 59000 | HG20: ='AEO Consump'!AS608*$B$3 -> 59000 | HH20: ='AEO Consump'!AT608*$B$3 -> 60000
B21: Motor Gasoline | G21: ='AEO Consump'!I31*$B$3 -> 1449 | H21: ='AEO Consump'!J31*$B$3 -> 975 | I21: ='AEO Consump'!K31*$B$3 -> 1790 | J21: ='AEO Consump'!L31*$B$3 -> 17040 | K21: ='AEO Consump'!M31*$B$3 -> 16610 | L21: ='AEO Consump'!N31*$B$3 -> 16169 | M21: ='AEO Consump'!O31*$B$3 -> 16536 | N21: ='AEO Consump'!P31*$B$3 -> 16622 | O21: ='AEO Consump'!Q31*$B$3 -> 15971 | P21: ='AEO Consump'!R31*$B$3 -> 18000 | Q21: ='AEO Consump'!S31*$B$3 -> 18000 | R21: ='AEO Consump'!T31*$B$3 -> 18000 | S21: ='AEO Consump'!U31*$B$3 -> 18000 | T21: ='AEO Consump'!V31*$B$3 -> 18000 | U21: ='AEO Consump'!W31*$B$3 -> 18000 | V21: ='AEO Consump'!X31*$B$3 -> 18000 | W21: ='AEO Consump'!Y31*$B$3 -> 18000 | X21: ='AEO Consump'!Z31*$B$3 -> 18000 | Y21: ='AEO Consump'!AA31*$B$3 -> 18000 | Z21: ='AEO Consump'!AB31*$B$3 -> 18000 | AA21: ='AEO Consump'!AC31*$B$3 -> 18000 | AB21: ='AEO Consump'!AD31*$B$3 -> 18000 | AC21: ='AEO Consump'!AE31*$B$3 -> 18000 | AD21: ='AEO Consump'!AF31*$B$3 -> 18000 | AE21: ='AEO Consump'!AG31*$B$3 -> 18000 | AF21: ='AEO Consump'!AH31*$B$3 -> 18000 | AG21: ='AEO Consump'!AI31*$B$3 -> 18000 | AH21: ='AEO Consump'!AJ31*$B$3 -> 18000 | AI21: ='AEO Consump'!AK31*$B$3 -> 18000 | AJ21: ='AEO Consump'!AL31*$B$3 -> 18000 | AK21: ='AEO Consump'!AM31*$B$3 -> 18000 | AL21: ='AEO Consump'!AN31*$B$3 -> 18000 | AM21: ='AEO Consump'!AO31*$B$3 -> 18000 | AN21: ='AEO Consump'!AP31*$B$3 -> 18000 | AO21: ='AEO Consump'!AQ31*$B$3 -> 18000 | AP21: ='AEO Consump'!AR31*$B$3 -> 18000 | AQ21: ='AEO Consump'!AS31*$B$3 -> 18000 | AR21: ='AEO Consump'!AT31*$B$3 -> 18000 | AX21: ='AEO Consump'!I174*$B$3 -> 1967 | AY21: ='AEO Consump'!J174*$B$3 -> 1831 | AZ21: ='AEO Consump'!K174*$B$3 -> 4562 | BA21: ='AEO Consump'!L174*$B$3 -> 41326 | BB21: ='AEO Consump'!M174*$B$3 -> 40587 | BC21: ='AEO Consump'!N174*$B$3 -> 39094 | BD21: ='AEO Consump'!O174*$B$3 -> 40619 | BE21: ='AEO Consump'!P174*$B$3 -> 40656 | BF21: ='AEO Consump'!Q174*$B$3 -> 39251 | BG21: ='AEO Consump'!R174*$B$3 -> 44000 | BH21: ='AEO Consump'!S174*$B$3 -> 44000 | BI21: ='AEO Consump'!T174*$B$3 -> 44000 | BJ21: ='AEO Consump'!U174*$B$3 -> 44000 | BK21: ='AEO Consump'!V174*$B$3 -> 43000 | BL21: ='AEO Consump'!W174*$B$3 -> 43000 | BM21: ='AEO Consump'!X174*$B$3 -> 43000 | BN21: ='AEO Consump'!Y174*$B$3 -> 43000 | BO21: ='AEO Consump'!Z174*$B$3 -> 43000 | BP21: ='AEO Consump'!AA174*$B$3 -> 43000 | BQ21: ='AEO Consump'!AB174*$B$3 -> 43000 | BR21: ='AEO Consump'!AC174*$B$3 -> 43000 | BS21: ='AEO Consump'!AD174*$B$3 -> 43000 | BT21: ='AEO Consump'!AE174*$B$3 -> 43000 | BU21: ='AEO Consump'!AF174*$B$3 -> 43000 | BV21: ='AEO Consump'!AG174*$B$3 -> 43000 | BW21: ='AEO Consump'!AH174*$B$3 -> 43000 | BX21: ='AEO Consump'!AI174*$B$3 -> 43000 | BY21: ='AEO Consump'!AJ174*$B$3 -> 43000 | BZ21: ='AEO Consump'!AK174*$B$3 -> 43000 | CA21: ='AEO Consump'!AL174*$B$3 -> 43000 | CB21: ='AEO Consump'!AM174*$B$3 -> 43000 | CC21: ='AEO Consump'!AN174*$B$3 -> 43000 | CD21: ='AEO Consump'!AO174*$B$3 -> 43000 | CE21: ='AEO Consump'!AP174*$B$3 -> 43000 | CF21: ='AEO Consump'!AQ174*$B$3 -> 43000 | CG21: ='AEO Consump'!AR174*$B$3 -> 43000 | CH21: ='AEO Consump'!AS174*$B$3 -> 43000 | CI21: ='AEO Consump'!AT174*$B$3 -> 43000 | CO21: ='AEO Consump'!I317*$B$3 -> 5294 | CP21: ='AEO Consump'!J317*$B$3 -> 5077 | CQ21: ='AEO Consump'!K317*$B$3 -> 18884 | CR21: ='AEO Consump'!L317*$B$3 -> 53381 | CS21: ='AEO Consump'!M317*$B$3 -> 52516 | CT21: ='AEO Consump'!N317*$B$3 -> 51972 | CU21: ='AEO Consump'!O317*$B$3 -> 51874 | CV21: ='AEO Consump'!P317*$B$3 -> 52172 | CW21: ='AEO Consump'!Q317*$B$3 -> 50497 | CX21: ='AEO Consump'!R317*$B$3 -> 57000 | CY21: ='AEO Consump'!S317*$B$3 -> 57000 | CZ21: ='AEO Consump'!T317*$B$3 -> 57000 | DA21: ='AEO Consump'!U317*$B$3 -> 56000 | DB21: ='AEO Consump'!V317*$B$3 -> 56000 | DC21: ='AEO Consump'!W317*$B$3 -> 55000 | DD21: ='AEO Consump'!X317*$B$3 -> 56000 | DE21: ='AEO Consump'!Y317*$B$3 -> 56000 | DF21: ='AEO Consump'!Z317*$B$3 -> 56000 | DG21: ='AEO Consump'!AA317*$B$3 -> 56000 | DH21: ='AEO Consump'!AB317*$B$3 -> 56000 | DI21: ='AEO Consump'!AC317*$B$3 -> 56000 | DJ21: ='AEO Consump'!AD317*$B$3 -> 56000 | DK21: ='AEO Consump'!AE317*$B$3 -> 56000 | DL21: ='AEO Consump'!AF317*$B$3 -> 56000 | DM21: ='AEO Consump'!AG317*$B$3 -> 56000 | DN21: ='AEO Consump'!AH317*$B$3 -> 56000 | DO21: ='AEO Consump'!AI317*$B$3 -> 56000 | DP21: ='AEO Consump'!AJ317*$B$3 -> 56000 | DQ21: ='AEO Consump'!AK317*$B$3 -> 56000 | DR21: ='AEO Consump'!AL317*$B$3 -> 56000 | DS21: ='AEO Consump'!AM317*$B$3 -> 56000 | DT21: ='AEO Consump'!AN317*$B$3 -> 56000 | DU21: ='AEO Consump'!AO317*$B$3 -> 56000 | DV21: ='AEO Consump'!AP317*$B$3 -> 56000 | DW21: ='AEO Consump'!AQ317*$B$3 -> 57000 | DX21: ='AEO Consump'!AR317*$B$3 -> 56000 | DY21: ='AEO Consump'!AS317*$B$3 -> 57000 | DZ21: ='AEO Consump'!AT317*$B$3 -> 57000 | EF21: ='AEO Consump'!I463*$B$3 -> 14010 | EG21: ='AEO Consump'!J463*$B$3 -> 15124 | EH21: ='AEO Consump'!K463*$B$3 -> 12520 | EI21: ='AEO Consump'!L463*$B$3 -> 34696 | EJ21: ='AEO Consump'!M463*$B$3 -> 23577 | EK21: ='AEO Consump'!N463*$B$3 -> 27161 | EL21: ='AEO Consump'!O463*$B$3 -> 20589 | EM21: ='AEO Consump'!P463*$B$3 -> 20945 | EN21: ='AEO Consump'!Q463*$B$3 -> 19952 | EO21: ='AEO Consump'!R463*$B$3 -> 23000 | EP21: ='AEO Consump'!S463*$B$3 -> 22000 | EQ21: ='AEO Consump'!T463*$B$3 -> 22000 | ER21: ='AEO Consump'!U463*$B$3 -> 22000 | ES21: ='AEO Consump'!V463*$B$3 -> 22000 | ET21: ='AEO Consump'!W463*$B$3 -> 22000 | EU21: ='AEO Consump'!X463*$B$3 -> 22000 | EV21: ='AEO Consump'!Y463*$B$3 -> 22000 | EW21: ='AEO Consump'!Z463*$B$3 -> 22000 | EX21: ='AEO Consump'!AA463*$B$3 -> 22000 | EY21: ='AEO Consump'!AB463*$B$3 -> 22000 | EZ21: ='AEO Consump'!AC463*$B$3 -> 22000 | FA21: ='AEO Consump'!AD463*$B$3 -> 22000 | FB21: ='AEO Consump'!AE463*$B$3 -> 22000 | FC21: ='AEO Consump'!AF463*$B$3 -> 22000 | FD21: ='AEO Consump'!AG463*$B$3 -> 22000 | FE21: ='AEO Consump'!AH463*$B$3 -> 22000 | FF21: ='AEO Consump'!AI463*$B$3 -> 22000 | FG21: ='AEO Consump'!AJ463*$B$3 -> 22000 | FH21: ='AEO Consump'!AK463*$B$3 -> 22000 | FI21: ='AEO Consump'!AL463*$B$3 -> 22000 | FJ21: ='AEO Consump'!AM463*$B$3 -> 22000 | FK21: ='AEO Consump'!AN463*$B$3 -> 22000 | FL21: ='AEO Consump'!AO463*$B$3 -> 22000 | FM21: ='AEO Consump'!AP463*$B$3 -> 22000 | FN21: ='AEO Consump'!AQ463*$B$3 -> 22000 | FO21: ='AEO Consump'!AR463*$B$3 -> 22000 | FP21: ='AEO Consump'!AS463*$B$3 -> 22000 | FQ21: ='AEO Consump'!AT463*$B$3 -> 22000 | FW21: ='AEO Consump'!I609*$B$3 -> 9304 | FX21: ='AEO Consump'!J609*$B$3 -> 6814 | FY21: ='AEO Consump'!K609*$B$3 -> 11596 | FZ21: ='AEO Consump'!L609*$B$3 -> 89555 | GA21: ='AEO Consump'!M609*$B$3 -> 88033 | GB21: ='AEO Consump'!N609*$B$3 -> 85293 | GC21: ='AEO Consump'!O609*$B$3 -> 81532 | GD21: ='AEO Consump'!P609*$B$3 -> 82715 | GE21: ='AEO Consump'!Q609*$B$3 -> 79794 | GF21: ='AEO Consump'!R609*$B$3 -> 90000 | GG21: ='AEO Consump'!S609*$B$3 -> 90000 | GH21: ='AEO Consump'!T609*$B$3 -> 89000 | GI21: ='AEO Consump'!U609*$B$3 -> 89000 | GJ21: ='AEO Consump'!V609*$B$3 -> 89000 | GK21: ='AEO Consump'!W609*$B$3 -> 88000 | GL21: ='AEO Consump'!X609*$B$3 -> 89000 | GM21: ='AEO Consump'!Y609*$B$3 -> 89000 | GN21: ='AEO Consump'!Z609*$B$3 -> 89000 | GO21: ='AEO Consump'!AA609*$B$3 -> 90000 | GP21: ='AEO Consump'!AB609*$B$3 -> 90000 | GQ21: ='AEO Consump'!AC609*$B$3 -> 90000 | GR21: ='AEO Consump'!AD609*$B$3 -> 90000 | GS21: ='AEO Consump'!AE609*$B$3 -> 91000 | GT21: ='AEO Consump'!AF609*$B$3 -> 91000 | GU21: ='AEO Consump'!AG609*$B$3 -> 91000 | GV21: ='AEO Consump'!AH609*$B$3 -> 91000 | GW21: ='AEO Consump'!AI609*$B$3 -> 92000 | GX21: ='AEO Consump'!AJ609*$B$3 -> 92000 | GY21: ='AEO Consump'!AK609*$B$3 -> 92000 | GZ21: ='AEO Consump'!AL609*$B$3 -> 92000 | HA21: ='AEO Consump'!AM609*$B$3 -> 92000 | HB21: ='AEO Consump'!AN609*$B$3 -> 93000 | HC21: ='AEO Consump'!AO609*$B$3 -> 93000 | HD21: ='AEO Consump'!AP609*$B$3 -> 93000 | HE21: ='AEO Consump'!AQ609*$B$3 -> 93000 | HF21: ='AEO Consump'!AR609*$B$3 -> 93000 | HG21: ='AEO Consump'!AS609*$B$3 -> 94000 | HH21: ='AEO Consump'!AT609*$B$3 -> 94000
B22: Residual Fuel | G22: ='AEO Consump'!I28*$B$3 -> 4115 | H22: ='AEO Consump'!J28*$B$3 -> 3218 | I22: ='AEO Consump'!K28*$B$3 -> 1648 | J22: ='AEO Consump'!L28*$B$3 -> 1378 | K22: ='AEO Consump'!M28*$B$3 -> 2103 | L22: ='AEO Consump'!N28*$B$3 -> 3976 | M22: ='AEO Consump'!O28*$B$3 -> 985 | N22: ='AEO Consump'!P28*$B$3 -> 2318 | O22: ='AEO Consump'!Q28*$B$3 -> 1123 | P22: ='AEO Consump'!R28*$B$3 -> 1000 | Q22: ='AEO Consump'!S28*$B$3 -> 2000 | R22: ='AEO Consump'!T28*$B$3 -> 2000 | S22: ='AEO Consump'!U28*$B$3 -> 1000 | T22: ='AEO Consump'!V28*$B$3 -> 1000 | U22: ='AEO Consump'!W28*$B$3 -> 1000 | V22: ='AEO Consump'!X28*$B$3 -> 1000 | W22: ='AEO Consump'!Y28*$B$3 -> 1000 | X22: ='AEO Consump'!Z28*$B$3 -> 1000 | Y22: ='AEO Consump'!AA28*$B$3 -> 1000 | Z22: ='AEO Consump'!AB28*$B$3 -> 1000 | AA22: ='AEO Consump'!AC28*$B$3 -> 1000 | AB22: ='AEO Consump'!AD28*$B$3 -> 1000 | AC22: ='AEO Consump'!AE28*$B$3 -> 1000 | AD22: ='AEO Consump'!AF28*$B$3 -> 1000 | AE22: ='AEO Consump'!AG28*$B$3 -> 1000 | AF22: ='AEO Consump'!AH28*$B$3 -> 1000 | AG22: ='AEO Consump'!AI28*$B$3 -> 1000 | AH22: ='AEO Consump'!AJ28*$B$3 -> 1000 | AI22: ='AEO Consump'!AK28*$B$3 -> 1000 | AJ22: ='AEO Consump'!AL28*$B$3 -> 1000 | AK22: ='AEO Consump'!AM28*$B$3 -> 1000 | AL22: ='AEO Consump'!AN28*$B$3 -> 1000 | AM22: ='AEO Consump'!AO28*$B$3 -> 1000 | AN22: ='AEO Consump'!AP28*$B$3 -> 1000 | AO22: ='AEO Consump'!AQ28*$B$3 -> 1000 | AP22: ='AEO Consump'!AR28*$B$3 -> 1000 | AQ22: ='AEO Consump'!AS28*$B$3 -> 1000 | AR22: ='AEO Consump'!AT28*$B$3 -> 1000 | AX22: ='AEO Consump'!I171*$B$3 -> 38889 | AY22: ='AEO Consump'!J171*$B$3 -> 13783 | AZ22: ='AEO Consump'!K171*$B$3 -> 4794 | BA22: ='AEO Consump'!L171*$B$3 -> 3319 | BB22: ='AEO Consump'!M171*$B$3 -> 2288 | BC22: ='AEO Consump'!N171*$B$3 -> 12628 | BD22: ='AEO Consump'!O171*$B$3 -> 912 | BE22: ='AEO Consump'!P171*$B$3 -> 2588 | BF22: ='AEO Consump'!Q171*$B$3 -> 548 | BG22: ='AEO Consump'!R171*$B$3 -> 0 | BH22: ='AEO Consump'!S171*$B$3 -> 1000 | BI22: ='AEO Consump'!T171*$B$3 -> 1000 | BJ22: ='AEO Consump'!U171*$B$3 -> 1000 | BK22: ='AEO Consump'!V171*$B$3 -> 1000 | BL22: ='AEO Consump'!W171*$B$3 -> 1000 | BM22: ='AEO Consump'!X171*$B$3 -> 0 | BN22: ='AEO Consump'!Y171*$B$3 -> 0 | BO22: ='AEO Consump'!Z171*$B$3 -> 0 | BP22: ='AEO Consump'!AA171*$B$3 -> 1000 | BQ22: ='AEO Consump'!AB171*$B$3 -> 1000 | BR22: ='AEO Consump'!AC171*$B$3 -> 1000 | BS22: ='AEO Consump'!AD171*$B$3 -> 1000 | BT22: ='AEO Consump'!AE171*$B$3 -> 1000 | BU22: ='AEO Consump'!AF171*$B$3 -> 1000 | BV22: ='AEO Consump'!AG171*$B$3 -> 1000 | BW22: ='AEO Consump'!AH171*$B$3 -> 1000 | BX22: ='AEO Consump'!AI171*$B$3 -> 1000 | BY22: ='AEO Consump'!AJ171*$B$3 -> 1000 | BZ22: ='AEO Consump'!AK171*$B$3 -> 1000 | CA22: ='AEO Consump'!AL171*$B$3 -> 1000 | CB22: ='AEO Consump'!AM171*$B$3 -> 1000 | CC22: ='AEO Consump'!AN171*$B$3 -> 1000 | CD22: ='AEO Consump'!AO171*$B$3 -> 1000 | CE22: ='AEO Consump'!AP171*$B$3 -> 1000 | CF22: ='AEO Consump'!AQ171*$B$3 -> 1000 | CG22: ='AEO Consump'!AR171*$B$3 -> 1000 | CH22: ='AEO Consump'!AS171*$B$3 -> 1000 | CI22: ='AEO Consump'!AT171*$B$3 -> 1000 | CO22: ='AEO Consump'!I314*$B$3 -> 731 | CP22: ='AEO Consump'!J314*$B$3 -> 205 | CQ22: ='AEO Consump'!K314*$B$3 -> 251 | CR22: ='AEO Consump'!L314*$B$3 -> 279 | CS22: ='AEO Consump'!M314*$B$3 -> 2 | CT22: ='AEO Consump'!N314*$B$3 -> 0 | CU22: ='AEO Consump'!O314*$B$3 -> 2 | CV22: ='AEO Consump'!P314*$B$3 -> 934 | CW22: ='AEO Consump'!Q314*$B$3 -> 4 | CX22: ='AEO Consump'!R314*$B$3 -> 0 | CY22: ='AEO Consump'!S314*$B$3 -> 0 | CZ22: ='AEO Consump'!T314*$B$3 -> 0 | DA22: ='AEO Consump'!U314*$B$3 -> 0 | DB22: ='AEO Consump'!V314*$B$3 -> 0 | DC22: ='AEO Consump'!W314*$B$3 -> 0 | DD22: ='AEO Consump'!X314*$B$3 -> 0 | DE22: ='AEO Consump'!Y314*$B$3 -> 0 | DF22: ='AEO Consump'!Z314*$B$3 -> 0 | DG22: ='AEO Consump'!AA314*$B$3 -> 0 | DH22: ='AEO Consump'!AB314*$B$3 -> 0 | DI22: ='AEO Consump'!AC314*$B$3 -> 0 | DJ22: ='AEO Consump'!AD314*$B$3 -> 0 | DK22: ='AEO Consump'!AE314*$B$3 -> 0 | DL22: ='AEO Consump'!AF314*$B$3 -> 0 | DM22: ='AEO Consump'!AG314*$B$3 -> 0 | DN22: ='AEO Consump'!AH314*$B$3 -> 0 | DO22: ='AEO Consump'!AI314*$B$3 -> 0 | DP22: ='AEO Consump'!AJ314*$B$3 -> 0 | DQ22: ='AEO Consump'!AK314*$B$3 -> 0 | DR22: ='AEO Consump'!AL314*$B$3 -> 0 | DS22: ='AEO Consump'!AM314*$B$3 -> 0 | DT22: ='AEO Consump'!AN314*$B$3 -> 0 | DU22: ='AEO Consump'!AO314*$B$3 -> 0 | DV22: ='AEO Consump'!AP314*$B$3 -> 0 | DW22: ='AEO Consump'!AQ314*$B$3 -> 0 | DX22: ='AEO Consump'!AR314*$B$3 -> 0 | DY22: ='AEO Consump'!AS314*$B$3 -> 0 | DZ22: ='AEO Consump'!AT314*$B$3 -> 0 | EF22: ='AEO Consump'!I460*$B$3 -> 1096 | EG22: ='AEO Consump'!J460*$B$3 -> 367 | EH22: ='AEO Consump'!K460*$B$3 -> 281 | EI22: ='AEO Consump'!L460*$B$3 -> 298 | EJ22: ='AEO Consump'!M460*$B$3 -> 344 | EK22: ='AEO Consump'!N460*$B$3 -> 472 | EL22: ='AEO Consump'!O460*$B$3 -> 273 | EM22: ='AEO Consump'!P460*$B$3 -> 444 | EN22: ='AEO Consump'!Q460*$B$3 -> 224 | EO22: ='AEO Consump'!R460*$B$3 -> 0 | EP22: ='AEO Consump'!S460*$B$3 -> 0 | EQ22: ='AEO Consump'!T460*$B$3 -> 0 | ER22: ='AEO Consump'!U460*$B$3 -> 0 | ES22: ='AEO Consump'!V460*$B$3 -> 0 | ET22: ='AEO Consump'!W460*$B$3 -> 0 | EU22: ='AEO Consump'!X460*$B$3 -> 0 | EV22: ='AEO Consump'!Y460*$B$3 -> 0 | EW22: ='AEO Consump'!Z460*$B$3 -> 0 | EX22: ='AEO Consump'!AA460*$B$3 -> 0 | EY22: ='AEO Consump'!AB460*$B$3 -> 0 | EZ22: ='AEO Consump'!AC460*$B$3 -> 0 | FA22: ='AEO Consump'!AD460*$B$3 -> 0 | FB22: ='AEO Consump'!AE460*$B$3 -> 0 | FC22: ='AEO Consump'!AF460*$B$3 -> 0 | FD22: ='AEO Consump'!AG460*$B$3 -> 0 | FE22: ='AEO Consump'!AH460*$B$3 -> 0 | FF22: ='AEO Consump'!AI460*$B$3 -> 0 | FG22: ='AEO Consump'!AJ460*$B$3 -> 0 | FH22: ='AEO Consump'!AK460*$B$3 -> 0 | FI22: ='AEO Consump'!AL460*$B$3 -> 0 | FJ22: ='AEO Consump'!AM460*$B$3 -> 0 | FK22: ='AEO Consump'!AN460*$B$3 -> 0 | FL22: ='AEO Consump'!AO460*$B$3 -> 0 | FM22: ='AEO Consump'!AP460*$B$3 -> 0 | FN22: ='AEO Consump'!AQ460*$B$3 -> 0 | FO22: ='AEO Consump'!AR460*$B$3 -> 0 | FP22: ='AEO Consump'!AS460*$B$3 -> 0 | FQ22: ='AEO Consump'!AT460*$B$3 -> 0 | FW22: ='AEO Consump'!I606*$B$3 -> 331 | FX22: ='AEO Consump'!J606*$B$3 -> 716 | FY22: ='AEO Consump'!K606*$B$3 -> 629 | FZ22: ='AEO Consump'!L606*$B$3 -> 619 | GA22: ='AEO Consump'!M606*$B$3 -> 151 | GB22: ='AEO Consump'!N606*$B$3 -> 469 | GC22: ='AEO Consump'!O606*$B$3 -> 27 | GD22: ='AEO Consump'!P606*$B$3 -> 1879 | GE22: ='AEO Consump'!Q606*$B$3 -> 1 | GF22: ='AEO Consump'!R606*$B$3 -> 0 | GG22: ='AEO Consump'!S606*$B$3 -> 0 | GH22: ='AEO Consump'!T606*$B$3 -> 0 | GI22: ='AEO Consump'!U606*$B$3 -> 0 | GJ22: ='AEO Consump'!V606*$B$3 -> 0 | GK22: ='AEO Consump'!W606*$B$3 -> 0 | GL22: ='AEO Consump'!X606*$B$3 -> 0 | GM22: ='AEO Consump'!Y606*$B$3 -> 0 | GN22: ='AEO Consump'!Z606*$B$3 -> 0 | GO22: ='AEO Consump'!AA606*$B$3 -> 0 | GP22: ='AEO Consump'!AB606*$B$3 -> 0 | GQ22: ='AEO Consump'!AC606*$B$3 -> 0 | GR22: ='AEO Consump'!AD606*$B$3 -> 0 | GS22: ='AEO Consump'!AE606*$B$3 -> 0 | GT22: ='AEO Consump'!AF606*$B$3 -> 0 | GU22: ='AEO Consump'!AG606*$B$3 -> 0 | GV22: ='AEO Consump'!AH606*$B$3 -> 0 | GW22: ='AEO Consump'!AI606*$B$3 -> 0 | GX22: ='AEO Consump'!AJ606*$B$3 -> 0 | GY22: ='AEO Consump'!AK606*$B$3 -> 0 | GZ22: ='AEO Consump'!AL606*$B$3 -> 0 | HA22: ='AEO Consump'!AM606*$B$3 -> 0 | HB22: ='AEO Consump'!AN606*$B$3 -> 0 | HC22: ='AEO Consump'!AO606*$B$3 -> 0 | HD22: ='AEO Consump'!AP606*$B$3 -> 0 | HE22: ='AEO Consump'!AQ606*$B$3 -> 0 | HF22: ='AEO Consump'!AR606*$B$3 -> 0 | HG22: ='AEO Consump'!AS606*$B$3 -> 0 | HH22: ='AEO Consump'!AT606*$B$3 -> 0
B23: Electricity (GWh) | G23: =('AEO Consump'!I36/Btu_kWh)*1000000000 -> 44679.54166 | H23: =('AEO Consump'!J36/Btu_kWh)*1000000000 -> 53102.30636 | I23: =('AEO Consump'!K36/Btu_kWh)*1000000000 -> 53153.59142 | J23: =('AEO Consump'!L36/Btu_kWh)*1000000000 -> 52341.23612 | K23: =('AEO Consump'!M36/Btu_kWh)*1000000000 -> 56849.92527 | L23: =('AEO Consump'!N36/Btu_kWh)*1000000000 -> 54192.18709 | M23: =('AEO Consump'!O36/Btu_kWh)*1000000000 -> 51138.82132 | N23: =('AEO Consump'!P36/Btu_kWh)*1000000000 -> 50458.34188 | O23: =('AEO Consump'!Q36/Btu_kWh)*1000000000 -> 48573.6893 | P23: =('AEO Consump'!R36/Btu_kWh)*1000000000 -> 48354.48231 | Q23: =('AEO Consump'!S36/Btu_kWh)*1000000000 -> 47475.30991 | R23: =('AEO Consump'!T36/Btu_kWh)*1000000000 -> 46889.19497 | S23: =('AEO Consump'!U36/Btu_kWh)*1000000000 -> 45716.9651 | T23: =('AEO Consump'!V36/Btu_kWh)*1000000000 -> 45423.90763 | U23: =('AEO Consump'!W36/Btu_kWh)*1000000000 -> 44837.79269 | V23: =('AEO Consump'!X36/Btu_kWh)*1000000000 -> 44837.79269 | W23: =('AEO Consump'!Y36/Btu_kWh)*1000000000 -> 44837.79269 | X23: =('AEO Consump'!Z36/Btu_kWh)*1000000000 -> 44837.79269 | Y23: =('AEO Consump'!AA36/Btu_kWh)*1000000000 -> 44837.79269 | Z23: =('AEO Consump'!AB36/Btu_kWh)*1000000000 -> 44837.79269 | AA23: =('AEO Consump'!AC36/Btu_kWh)*1000000000 -> 44837.79269 | AB23: =('AEO Consump'!AD36/Btu_kWh)*1000000000 -> 44251.67775 | AC23: =('AEO Consump'!AE36/Btu_kWh)*1000000000 -> 44251.67775 | AD23: =('AEO Consump'!AF36/Btu_kWh)*1000000000 -> 43665.56282 | AE23: =('AEO Consump'!AG36/Btu_kWh)*1000000000 -> 43665.56282 | AF23: =('AEO Consump'!AH36/Btu_kWh)*1000000000 -> 43372.50535 | AG23: =('AEO Consump'!AI36/Btu_kWh)*1000000000 -> 43372.50535 | AH23: =('AEO Consump'!AJ36/Btu_kWh)*1000000000 -> 43372.50535 | AI23: =('AEO Consump'!AK36/Btu_kWh)*1000000000 -> 43079.44788 | AJ23: =('AEO Consump'!AL36/Btu_kWh)*1000000000 -> 43372.50535 | AK23: =('AEO Consump'!AM36/Btu_kWh)*1000000000 -> 43372.50535 | AL23: =('AEO Consump'!AN36/Btu_kWh)*1000000000 -> 43665.56282 | AM23: =('AEO Consump'!AO36/Btu_kWh)*1000000000 -> 43958.62029 | AN23: =('AEO Consump'!AP36/Btu_kWh)*1000000000 -> 43958.62029 | AO23: =('AEO Consump'!AQ36/Btu_kWh)*1000000000 -> 43958.62029 | AP23: =('AEO Consump'!AR36/Btu_kWh)*1000000000 -> 44251.67775 | AQ23: =('AEO Consump'!AS36/Btu_kWh)*1000000000 -> 44544.73522 | AR23: =('AEO Consump'!AT36/Btu_kWh)*1000000000 -> 44837.79269 | AX23: =('AEO Consump'!I179/Btu_kWh)*1000000000 -> 156627.4947 | AY23: =('AEO Consump'!J179/Btu_kWh)*1000000000 -> 158028.8955 | AZ23: =('AEO Consump'!K179/Btu_kWh)*1000000000 -> 158986.0212 | BA23: =('AEO Consump'!L179/Btu_kWh)*1000000000 -> 157959.7339 | BB23: =('AEO Consump'!M179/Btu_kWh)*1000000000 -> 155123.2307 | BC23: =('AEO Consump'!N179/Btu_kWh)*1000000000 -> 157850.1304 | BD23: =('AEO Consump'!O179/Btu_kWh)*1000000000 -> 154767.1658 | BE23: =('AEO Consump'!P179/Btu_kWh)*1000000000 -> 155900.7121 | BF23: =('AEO Consump'!Q179/Btu_kWh)*1000000000 -> 142352.3723 | BG23: =('AEO Consump'!R179/Btu_kWh)*1000000000 -> 144770.3895 | BH23: =('AEO Consump'!S179/Btu_kWh)*1000000000 -> 140081.47 | BI23: =('AEO Consump'!T179/Btu_kWh)*1000000000 -> 140960.6424 | BJ23: =('AEO Consump'!U179/Btu_kWh)*1000000000 -> 140374.5274 | BK23: =('AEO Consump'!V179/Btu_kWh)*1000000000 -> 140374.5274 | BL23: =('AEO Consump'!W179/Btu_kWh)*1000000000 -> 140081.47 | BM23: =('AEO Consump'!X179/Btu_kWh)*1000000000 -> 140081.47 | BN23: =('AEO Consump'!Y179/Btu_kWh)*1000000000 -> 140081.47 | BO23: =('AEO Consump'!Z179/Btu_kWh)*1000000000 -> 140374.5274 | BP23: =('AEO Consump'!AA179/Btu_kWh)*1000000000 -> 140667.5849 | BQ23: =('AEO Consump'!AB179/Btu_kWh)*1000000000 -> 140667.5849 | BR23: =('AEO Consump'!AC179/Btu_kWh)*1000000000 -> 140667.5849 | BS23: =('AEO Consump'!AD179/Btu_kWh)*1000000000 -> 140667.5849 | BT23: =('AEO Consump'!AE179/Btu_kWh)*1000000000 -> 140374.5274 | BU23: =('AEO Consump'!AF179/Btu_kWh)*1000000000 -> 140667.5849 | BV23: =('AEO Consump'!AG179/Btu_kWh)*1000000000 -> 140667.5849 | BW23: =('AEO Consump'!AH179/Btu_kWh)*1000000000 -> 140667.5849 | BX23: =('AEO Consump'!AI179/Btu_kWh)*1000000000 -> 140081.47 | BY23: =('AEO Consump'!AJ179/Btu_kWh)*1000000000 -> 140081.47 | BZ23: =('AEO Consump'!AK179/Btu_kWh)*1000000000 -> 140374.5274 | CA23: =('AEO Consump'!AL179/Btu_kWh)*1000000000 -> 140667.5849 | CB23: =('AEO Consump'!AM179/Btu_kWh)*1000000000 -> 141253.6999 | CC23: =('AEO Consump'!AN179/Btu_kWh)*1000000000 -> 141839.8148 | CD23: =('AEO Consump'!AO179/Btu_kWh)*1000000000 -> 143012.0447 | CE23: =('AEO Consump'!AP179/Btu_kWh)*1000000000 -> 143891.2171 | CF23: =('AEO Consump'!AQ179/Btu_kWh)*1000000000 -> 145356.5044 | CG23: =('AEO Consump'!AR179/Btu_kWh)*1000000000 -> 146528.7343 | CH23: =('AEO Consump'!AS179/Btu_kWh)*1000000000 -> 148287.0791 | CI23: =('AEO Consump'!AT179/Btu_kWh)*1000000000 -> 150045.4239 | CO23: =('AEO Consump'!I322/Btu_kWh)*1000000000 -> 180675.7905 | CP23: =('AEO Consump'!J322/Btu_kWh)*1000000000 -> 182844.1227 | CQ23: =('AEO Consump'!K322/Btu_kWh)*1000000000 -> 183703.3672 | CR23: =('AEO Consump'!L322/Btu_kWh)*1000000000 -> 185934.4137 | CS23: =('AEO Consump'!M322/Btu_kWh)*1000000000 -> 181913.6653 | CT23: =('AEO Consump'!N322/Btu_kWh)*1000000000 -> 185876.0953 | CU23: =('AEO Consump'!O322/Btu_kWh)*1000000000 -> 182571.8723 | CV23: =('AEO Consump'!P322/Btu_kWh)*1000000000 -> 183087.9465 | CW23: =('AEO Consump'!Q322/Btu_kWh)*1000000000 -> 174874.1318 | CX23: =('AEO Consump'!R322/Btu_kWh)*1000000000 -> 173783.0789 | CY23: =('AEO Consump'!S322/Btu_kWh)*1000000000 -> 170852.5042 | CZ23: =('AEO Consump'!T322/Btu_kWh)*1000000000 -> 171731.6766 | DA23: =('AEO Consump'!U322/Btu_kWh)*1000000000 -> 172610.849 | DB23: =('AEO Consump'!V322/Btu_kWh)*1000000000 -> 172903.9065 | DC23: =('AEO Consump'!W322/Btu_kWh)*1000000000 -> 173196.9639 | DD23: =('AEO Consump'!X322/Btu_kWh)*1000000000 -> 173783.0789 | DE23: =('AEO Consump'!Y322/Btu_kWh)*1000000000 -> 173783.0789 | DF23: =('AEO Consump'!Z322/Btu_kWh)*1000000000 -> 174076.1363 | DG23: =('AEO Consump'!AA322/Btu_kWh)*1000000000 -> 174369.1938 | DH23: =('AEO Consump'!AB322/Btu_kWh)*1000000000 -> 174662.2513 | DI23: =('AEO Consump'!AC322/Btu_kWh)*1000000000 -> 174955.3087 | DJ23: =('AEO Consump'!AD322/Btu_kWh)*1000000000 -> 174662.2513 | DK23: =('AEO Consump'!AE322/Btu_kWh)*1000000000 -> 174955.3087 | DL23: =('AEO Consump'!AF322/Btu_kWh)*1000000000 -> 174662.2513 | DM23: =('AEO Consump'!AG322/Btu_kWh)*1000000000 -> 174662.2513 | DN23: =('AEO Consump'!AH322/Btu_kWh)*1000000000 -> 174369.1938 | DO23: =('AEO Consump'!AI322/Btu_kWh)*1000000000 -> 174076.1363 | DP23: =('AEO Consump'!AJ322/Btu_kWh)*1000000000 -> 173783.0789 | DQ23: =('AEO Consump'!AK322/Btu_kWh)*1000000000 -> 173783.0789 | DR23: =('AEO Consump'!AL322/Btu_kWh)*1000000000 -> 173783.0789 | DS23: =('AEO Consump'!AM322/Btu_kWh)*1000000000 -> 174076.1363 | DT23: =('AEO Consump'!AN322/Btu_kWh)*1000000000 -> 174369.1938 | DU23: =('AEO Consump'!AO322/Btu_kWh)*1000000000 -> 174662.2513 | DV23: =('AEO Consump'!AP322/Btu_kWh)*1000000000 -> 174955.3087 | DW23: =('AEO Consump'!AQ322/Btu_kWh)*1000000000 -> 175834.4811 | DX23: =('AEO Consump'!AR322/Btu_kWh)*1000000000 -> 176420.5961 | DY23: =('AEO Consump'!AS322/Btu_kWh)*1000000000 -> 177299.7685 | DZ23: =('AEO Consump'!AT322/Btu_kWh)*1000000000 -> 178178.9409 | EF23: =('AEO Consump'!I468/Btu_kWh)*1000000000 -> 99191.16139 | EG23: =('AEO Consump'!J468/Btu_kWh)*1000000000 -> 100707.4407 | EH23: =('AEO Consump'!K468/Btu_kWh)*1000000000 -> 102245.4063 | EI23: =('AEO Consump'!L468/Btu_kWh)*1000000000 -> 102632.2422 | EJ23: =('AEO Consump'!M468/Btu_kWh)*1000000000 -> 101553.7907 | EK23: =('AEO Consump'!N468/Btu_kWh)*1000000000 -> 104023.679 | EL23: =('AEO Consump'!O468/Btu_kWh)*1000000000 -> 102471.3536 | EM23: =('AEO Consump'!P468/Btu_kWh)*1000000000 -> 102506.5205 | EN23: =('AEO Consump'!Q468/Btu_kWh)*1000000000 -> 99825.63081 | EO23: =('AEO Consump'!R468/Btu_kWh)*1000000000 -> 99932.59678 | EP23: =('AEO Consump'!S468/Btu_kWh)*1000000000 -> 98760.36691 | EQ23: =('AEO Consump'!T468/Btu_kWh)*1000000000 -> 99639.53931 | ER23: =('AEO Consump'!U468/Btu_kWh)*1000000000 -> 100225.6543 | ES23: =('AEO Consump'!V468/Btu_kWh)*1000000000 -> 100518.7117 | ET23: =('AEO Consump'!W468/Btu_kWh)*1000000000 -> 100811.7692 | EU23: =('AEO Consump'!X468/Btu_kWh)*1000000000 -> 101104.8267 | EV23: =('AEO Consump'!Y468/Btu_kWh)*1000000000 -> 101397.8841 | EW23: =('AEO Consump'!Z468/Btu_kWh)*1000000000 -> 101983.9991 | EX23: =('AEO Consump'!AA468/Btu_kWh)*1000000000 -> 102570.114 | EY23: =('AEO Consump'!AB468/Btu_kWh)*1000000000 -> 103449.2864 | EZ23: =('AEO Consump'!AC468/Btu_kWh)*1000000000 -> 104035.4013 | FA23: =('AEO Consump'!AD468/Btu_kWh)*1000000000 -> 104914.5737 | FB23: =('AEO Consump'!AE468/Btu_kWh)*1000000000 -> 105500.6887 | FC23: =('AEO Consump'!AF468/Btu_kWh)*1000000000 -> 106086.8036 | FD23: =('AEO Consump'!AG468/Btu_kWh)*1000000000 -> 106672.9186 | FE23: =('AEO Consump'!AH468/Btu_kWh)*1000000000 -> 106965.976 | FF23: =('AEO Consump'!AI468/Btu_kWh)*1000000000 -> 107259.0335 | FG23: =('AEO Consump'!AJ468/Btu_kWh)*1000000000 -> 107259.0335 | FH23: =('AEO Consump'!AK468/Btu_kWh)*1000000000 -> 107552.091 | FI23: =('AEO Consump'!AL468/Btu_kWh)*1000000000 -> 108138.2059 | FJ23: =('AEO Consump'!AM468/Btu_kWh)*1000000000 -> 108724.3208 | FK23: =('AEO Consump'!AN468/Btu_kWh)*1000000000 -> 109603.4932 | FL23: =('AEO Consump'!AO468/Btu_kWh)*1000000000 -> 110189.6082 | FM23: =('AEO Consump'!AP468/Btu_kWh)*1000000000 -> 111068.7806 | FN23: =('AEO Consump'!AQ468/Btu_kWh)*1000000000 -> 111947.953 | FO23: =('AEO Consump'!AR468/Btu_kWh)*1000000000 -> 112827.1254 | FP23: =('AEO Consump'!AS468/Btu_kWh)*1000000000 -> 113706.2978 | FQ23: =('AEO Consump'!AT468/Btu_kWh)*1000000000 -> 114585.4702 | FW23: =('AEO Consump'!I614/Btu_kWh)*1000000000 -> 301796.4423 | FX23: =('AEO Consump'!J614/Btu_kWh)*1000000000 -> 306850.2183 | FY23: =('AEO Consump'!K614/Btu_kWh)*1000000000 -> 310152.3899 | FZ23: =('AEO Consump'!L614/Btu_kWh)*1000000000 -> 312506.2275 | GA23: =('AEO Consump'!M614/Btu_kWh)*1000000000 -> 309042.2882 | GB23: =('AEO Consump'!N614/Btu_kWh)*1000000000 -> 313841.3973 | GC23: =('AEO Consump'!O614/Btu_kWh)*1000000000 -> 315999.7656 | GD23: =('AEO Consump'!P614/Btu_kWh)*1000000000 -> 314544.7352 | GE23: =('AEO Consump'!Q614/Btu_kWh)*1000000000 -> 311209.4482 | GF23: =('AEO Consump'!R614/Btu_kWh)*1000000000 -> 320311.8131 | GG23: =('AEO Consump'!S614/Btu_kWh)*1000000000 -> 316795.1235 | GH23: =('AEO Consump'!T614/Btu_kWh)*1000000000 -> 319432.6407 | GI23: =('AEO Consump'!U614/Btu_kWh)*1000000000 -> 317967.3534 | GJ23: =('AEO Consump'!V614/Btu_kWh)*1000000000 -> 318260.4109 | GK23: =('AEO Consump'!W614/Btu_kWh)*1000000000 -> 318260.4109 | GL23: =('AEO Consump'!X614/Btu_kWh)*1000000000 -> 321484.043 | GM23: =('AEO Consump'!Y614/Btu_kWh)*1000000000 -> 324414.6177 | GN23: =('AEO Consump'!Z614/Btu_kWh)*1000000000 -> 327052.1349 | GO23: =('AEO Consump'!AA614/Btu_kWh)*1000000000 -> 329982.7096 | GP23: =('AEO Consump'!AB614/Btu_kWh)*1000000000 -> 332620.2268 | GQ23: =('AEO Consump'!AC614/Btu_kWh)*1000000000 -> 334378.5716 | GR23: =('AEO Consump'!AD614/Btu_kWh)*1000000000 -> 336136.9164 | GS23: =('AEO Consump'!AE614/Btu_kWh)*1000000000 -> 338188.3187 | GT23: =('AEO Consump'!AF614/Btu_kWh)*1000000000 -> 340239.721 | GU23: =('AEO Consump'!AG614/Btu_kWh)*1000000000 -> 341998.0658 | GV23: =('AEO Consump'!AH614/Btu_kWh)*1000000000 -> 343170.2957 | GW23: =('AEO Consump'!AI614/Btu_kWh)*1000000000 -> 344342.5256 | GX23: =('AEO Consump'!AJ614/Btu_kWh)*1000000000 -> 346100.8704 | GY23: =('AEO Consump'!AK614/Btu_kWh)*1000000000 -> 348738.3876 | GZ23: =('AEO Consump'!AL614/Btu_kWh)*1000000000 -> 351375.9048 | HA23: =('AEO Consump'!AM614/Btu_kWh)*1000000000 -> 354306.4795 | HB23: =('AEO Consump'!AN614/Btu_kWh)*1000000000 -> 356943.9967 | HC23: =('AEO Consump'!AO614/Btu_kWh)*1000000000 -> 359581.5139 | HD23: =('AEO Consump'!AP614/Btu_kWh)*1000000000 -> 362219.0312 | HE23: =('AEO Consump'!AQ614/Btu_kWh)*1000000000 -> 365149.6058 | HF23: =('AEO Consump'!AR614/Btu_kWh)*1000000000 -> 368373.238 | HG23: =('AEO Consump'!AS614/Btu_kWh)*1000000000 -> 371889.9276 | HH23: =('AEO Consump'!AT614/Btu_kWh)*1000000000 -> 375699.6747
B24: Industrial
B25: Coking Coal | G25: =('AEO Consump'!I52+'AEO Consump'!I54)*$B$3 -> 0 | H25: =('AEO Consump'!J52+'AEO Consump'!J54)*$B$3 -> 0 | I25: =('AEO Consump'!K52+'AEO Consump'!K54)*$B$3 -> 0 | J25: =('AEO Consump'!L52+'AEO Consump'!L54)*$B$3 -> 0 | K25: =('AEO Consump'!M52+'AEO Consump'!M54)*$B$3 -> 0 | L25: =('AEO Consump'!N52+'AEO Consump'!N54)*$B$3 -> 0 | M25: =('AEO Consump'!O52+'AEO Consump'!O54)*$B$3 -> 0 | N25: =('AEO Consump'!P52+'AEO Consump'!P54)*$B$3 -> 0 | O25: =('AEO Consump'!Q52+'AEO Consump'!Q54)*$B$3 -> 0 | P25: =('AEO Consump'!R52+'AEO Consump'!R54)*$B$3 -> 0 | Q25: =('AEO Consump'!S52+'AEO Consump'!S54)*$B$3 -> 0 | R25: =('AEO Consump'!T52+'AEO Consump'!T54)*$B$3 -> 0 | S25: =('AEO Consump'!U52+'AEO Consump'!U54)*$B$3 -> 0 | T25: =('AEO Consump'!V52+'AEO Consump'!V54)*$B$3 -> 0 | U25: =('AEO Consump'!W52+'AEO Consump'!W54)*$B$3 -> 0 | V25: =('AEO Consump'!X52+'AEO Consump'!X54)*$B$3 -> 0 | W25: =('AEO Consump'!Y52+'AEO Consump'!Y54)*$B$3 -> 0 | X25: =('AEO Consump'!Z52+'AEO Consump'!Z54)*$B$3 -> 0 | Y25: =('AEO Consump'!AA52+'AEO Consump'!AA54)*$B$3 -> 0 | Z25: =('AEO Consump'!AB52+'AEO Consump'!AB54)*$B$3 -> 0 | AA25: =('AEO Consump'!AC52+'AEO Consump'!AC54)*$B$3 -> 0 | AB25: =('AEO Consump'!AD52+'AEO Consump'!AD54)*$B$3 -> 0 | AC25: =('AEO Consump'!AE52+'AEO Consump'!AE54)*$B$3 -> 0 | AD25: =('AEO Consump'!AF52+'AEO Consump'!AF54)*$B$3 -> 0 | AE25: =('AEO Consump'!AG52+'AEO Consump'!AG54)*$B$3 -> 0 | AF25: =('AEO Consump'!AH52+'AEO Consump'!AH54)*$B$3 -> 0 | AG25: =('AEO Consump'!AI52+'AEO Consump'!AI54)*$B$3 -> 0 | AH25: =('AEO Consump'!AJ52+'AEO Consump'!AJ54)*$B$3 -> 0 | AI25: =('AEO Consump'!AK52+'AEO Consump'!AK54)*$B$3 -> 0 | AJ25: =('AEO Consump'!AL52+'AEO Consump'!AL54)*$B$3 -> 0 | AK25: =('AEO Consump'!AM52+'AEO Consump'!AM54)*$B$3 -> 0 | AL25: =('AEO Consump'!AN52+'AEO Consump'!AN54)*$B$3 -> 0 | AM25: =('AEO Consump'!AO52+'AEO Consump'!AO54)*$B$3 -> 0 | AN25: =('AEO Consump'!AP52+'AEO Consump'!AP54)*$B$3 -> 0 | AO25: =('AEO Consump'!AQ52+'AEO Consump'!AQ54)*$B$3 -> 0 | AP25: =('AEO Consump'!AR52+'AEO Consump'!AR54)*$B$3 -> 0 | AQ25: =('AEO Consump'!AS52+'AEO Consump'!AS54)*$B$3 -> 0 | AR25: =('AEO Consump'!AT52+'AEO Consump'!AT54)*$B$3 -> 0 | AX25: =('AEO Consump'!I195+'AEO Consump'!I197)*$B$3 -> 138926 | AY25: =('AEO Consump'!J195+'AEO Consump'!J197)*$B$3 -> 164783 | AZ25: =('AEO Consump'!K195+'AEO Consump'!K197)*$B$3 -> 168613 | BA25: =('AEO Consump'!L195+'AEO Consump'!L197)*$B$3 -> 165886 | BB25: =('AEO Consump'!M195+'AEO Consump'!M197)*$B$3 -> 135169 | BC25: =('AEO Consump'!N195+'AEO Consump'!N197)*$B$3 -> 171265 | BD25: =('AEO Consump'!O195+'AEO Consump'!O197)*$B$3 -> 190348 | BE25: =('AEO Consump'!P195+'AEO Consump'!P197)*$B$3 -> 177336 | BF25: =('AEO Consump'!Q195+'AEO Consump'!Q197)*$B$3 -> 145321 | BG25: =('AEO Consump'!R195+'AEO Consump'!R197)*$B$3 -> 104000 | BH25: =('AEO Consump'!S195+'AEO Consump'!S197)*$B$3 -> 108000 | BI25: =('AEO Consump'!T195+'AEO Consump'!T197)*$B$3 -> 107000 | BJ25: =('AEO Consump'!U195+'AEO Consump'!U197)*$B$3 -> 104000 | BK25: =('AEO Consump'!V195+'AEO Consump'!V197)*$B$3 -> 102000 | BL25: =('AEO Consump'!W195+'AEO Consump'!W197)*$B$3 -> 102000 | BM25: =('AEO Consump'!X195+'AEO Consump'!X197)*$B$3 -> 102000 | BN25: =('AEO Consump'!Y195+'AEO Consump'!Y197)*$B$3 -> 102000 | BO25: =('AEO Consump'!Z195+'AEO Consump'!Z197)*$B$3 -> 101000 | BP25: =('AEO Consump'!AA195+'AEO Consump'!AA197)*$B$3 -> 100000 | BQ25: =('AEO Consump'!AB195+'AEO Consump'!AB197)*$B$3 -> 101000 | BR25: =('AEO Consump'!AC195+'AEO Consump'!AC197)*$B$3 -> 100000 | BS25: =('AEO Consump'!AD195+'AEO Consump'!AD197)*$B$3 -> 100000 | BT25: =('AEO Consump'!AE195+'AEO Consump'!AE197)*$B$3 -> 99000 | BU25: =('AEO Consump'!AF195+'AEO Consump'!AF197)*$B$3 -> 99000 | BV25: =('AEO Consump'!AG195+'AEO Consump'!AG197)*$B$3 -> 98000 | BW25: =('AEO Consump'!AH195+'AEO Consump'!AH197)*$B$3 -> 95000 | BX25: =('AEO Consump'!AI195+'AEO Consump'!AI197)*$B$3 -> 92000 | BY25: =('AEO Consump'!AJ195+'AEO Consump'!AJ197)*$B$3 -> 90000 | BZ25: =('AEO Consump'!AK195+'AEO Consump'!AK197)*$B$3 -> 89000 | CA25: =('AEO Consump'!AL195+'AEO Consump'!AL197)*$B$3 -> 89000 | CB25: =('AEO Consump'!AM195+'AEO Consump'!AM197)*$B$3 -> 89000 | CC25: =('AEO Consump'!AN195+'AEO Consump'!AN197)*$B$3 -> 89000 | CD25: =('AEO Consump'!AO195+'AEO Consump'!AO197)*$B$3 -> 88000 | CE25: =('AEO Consump'!AP195+'AEO Consump'!AP197)*$B$3 -> 88000 | CF25: =('AEO Consump'!AQ195+'AEO Consump'!AQ197)*$B$3 -> 87000 | CG25: =('AEO Consump'!AR195+'AEO Consump'!AR197)*$B$3 -> 86000 | CH25: =('AEO Consump'!AS195+'AEO Consump'!AS197)*$B$3 -> 86000 | CI25: =('AEO Consump'!AT195+'AEO Consump'!AT197)*$B$3 -> 86000 | CO25: =('AEO Consump'!I338+'AEO Consump'!I340)*$B$3 -> 284886 | CP25: =('AEO Consump'!J338+'AEO Consump'!J340)*$B$3 -> 317277 | CQ25: =('AEO Consump'!K338+'AEO Consump'!K340)*$B$3 -> 289087 | CR25: =('AEO Consump'!L338+'AEO Consump'!L340)*$B$3 -> 211052 | CS25: =('AEO Consump'!M338+'AEO Consump'!M340)*$B$3 -> 263554 | CT25: =('AEO Consump'!N338+'AEO Consump'!N340)*$B$3 -> 275671 | CU25: =('AEO Consump'!O338+'AEO Consump'!O340)*$B$3 -> 299320 | CV25: =('AEO Consump'!P338+'AEO Consump'!P340)*$B$3 -> 307108 | CW25: =('AEO Consump'!Q338+'AEO Consump'!Q340)*$B$3 -> 239900 | CX25: =('AEO Consump'!R338+'AEO Consump'!R340)*$B$3 -> 230000 | CY25: =('AEO Consump'!S338+'AEO Consump'!S340)*$B$3 -> 240000 | CZ25: =('AEO Consump'!T338+'AEO Consump'!T340)*$B$3 -> 257000 | DA25: =('AEO Consump'!U338+'AEO Consump'!U340)*$B$3 -> 258000 | DB25: =('AEO Consump'!V338+'AEO Consump'!V340)*$B$3 -> 265000 | DC25: =('AEO Consump'!W338+'AEO Consump'!W340)*$B$3 -> 268000 | DD25: =('AEO Consump'!X338+'AEO Consump'!X340)*$B$3 -> 268000 | DE25: =('AEO Consump'!Y338+'AEO Consump'!Y340)*$B$3 -> 267000 | DF25: =('AEO Consump'!Z338+'AEO Consump'!Z340)*$B$3 -> 264000 | DG25: =('AEO Consump'!AA338+'AEO Consump'!AA340)*$B$3 -> 262000 | DH25: =('AEO Consump'!AB338+'AEO Consump'!AB340)*$B$3 -> 262000 | DI25: =('AEO Consump'!AC338+'AEO Consump'!AC340)*$B$3 -> 259000 | DJ25: =('AEO Consump'!AD338+'AEO Consump'!AD340)*$B$3 -> 257000 | DK25: =('AEO Consump'!AE338+'AEO Consump'!AE340)*$B$3 -> 255000 | DL25: =('AEO Consump'!AF338+'AEO Consump'!AF340)*$B$3 -> 253000 | DM25: =('AEO Consump'!AG338+'AEO Consump'!AG340)*$B$3 -> 253000 | DN25: =('AEO Consump'!AH338+'AEO Consump'!AH340)*$B$3 -> 251000 | DO25: =('AEO Consump'!AI338+'AEO Consump'!AI340)*$B$3 -> 248000 | DP25: =('AEO Consump'!AJ338+'AEO Consump'!AJ340)*$B$3 -> 246000 | DQ25: =('AEO Consump'!AK338+'AEO Consump'!AK340)*$B$3 -> 245000 | DR25: =('AEO Consump'!AL338+'AEO Consump'!AL340)*$B$3 -> 244000 | DS25: =('AEO Consump'!AM338+'AEO Consump'!AM340)*$B$3 -> 243000 | DT25: =('AEO Consump'!AN338+'AEO Consump'!AN340)*$B$3 -> 240000 | DU25: =('AEO Consump'!AO338+'AEO Consump'!AO340)*$B$3 -> 237000 | DV25: =('AEO Consump'!AP338+'AEO Consump'!AP340)*$B$3 -> 235000 | DW25: =('AEO Consump'!AQ338+'AEO Consump'!AQ340)*$B$3 -> 234000 | DX25: =('AEO Consump'!AR338+'AEO Consump'!AR340)*$B$3 -> 231000 | DY25: =('AEO Consump'!AS338+'AEO Consump'!AS340)*$B$3 -> 229000 | DZ25: =('AEO Consump'!AT338+'AEO Consump'!AT340)*$B$3 -> 229000 | EF25: =('AEO Consump'!I484+'AEO Consump'!I486)*$B$3 -> 0 | EG25: =('AEO Consump'!J484+'AEO Consump'!J486)*$B$3 -> 0 | EH25: =('AEO Consump'!K484+'AEO Consump'!K486)*$B$3 -> 0 | EI25: =('AEO Consump'!L484+'AEO Consump'!L486)*$B$3 -> 0 | EJ25: =('AEO Consump'!M484+'AEO Consump'!M486)*$B$3 -> 0 | EK25: =('AEO Consump'!N484+'AEO Consump'!N486)*$B$3 -> 0 | EL25: =('AEO Consump'!O484+'AEO Consump'!O486)*$B$3 -> 0 | EM25: =('AEO Consump'!P484+'AEO Consump'!P486)*$B$3 -> 0 | EN25: =('AEO Consump'!Q484+'AEO Consump'!Q486)*$B$3 -> -358 | EO25: =('AEO Consump'!R484+'AEO Consump'!R486)*$B$3 -> -1000 | EP25: =('AEO Consump'!S484+'AEO Consump'!S486)*$B$3 -> -1000 | EQ25: =('AEO Consump'!T484+'AEO Consump'!T486)*$B$3 -> 0 | ER25: =('AEO Consump'!U484+'AEO Consump'!U486)*$B$3 -> 0 | ES25: =('AEO Consump'!V484+'AEO Consump'!V486)*$B$3 -> 0 | ET25: =('AEO Consump'!W484+'AEO Consump'!W486)*$B$3 -> 0 | EU25: =('AEO Consump'!X484+'AEO Consump'!X486)*$B$3 -> 0 | EV25: =('AEO Consump'!Y484+'AEO Consump'!Y486)*$B$3 -> 0 | EW25: =('AEO Consump'!Z484+'AEO Consump'!Z486)*$B$3 -> 0 | EX25: =('AEO Consump'!AA484+'AEO Consump'!AA486)*$B$3 -> 0 | EY25: =('AEO Consump'!AB484+'AEO Consump'!AB486)*$B$3 -> 0 | EZ25: =('AEO Consump'!AC484+'AEO Consump'!AC486)*$B$3 -> 0 | FA25: =('AEO Consump'!AD484+'AEO Consump'!AD486)*$B$3 -> 0 | FB25: =('AEO Consump'!AE484+'AEO Consump'!AE486)*$B$3 -> 0 | FC25: =('AEO Consump'!AF484+'AEO Consump'!AF486)*$B$3 -> 0 | FD25: =('AEO Consump'!AG484+'AEO Consump'!AG486)*$B$3 -> 0 | FE25: =('AEO Consump'!AH484+'AEO Consump'!AH486)*$B$3 -> 0 | FF25: =('AEO Consump'!AI484+'AEO Consump'!AI486)*$B$3 -> 0 | FG25: =('AEO Consump'!AJ484+'AEO Consump'!AJ486)*$B$3 -> 0 | FH25: =('AEO Consump'!AK484+'AEO Consump'!AK486)*$B$3 -> 0 | FI25: =('AEO Consump'!AL484+'AEO Consump'!AL486)*$B$3 -> 0 | FJ25: =('AEO Consump'!AM484+'AEO Consump'!AM486)*$B$3 -> 0 | FK25: =('AEO Consump'!AN484+'AEO Consump'!AN486)*$B$3 -> 0 | FL25: =('AEO Consump'!AO484+'AEO Consump'!AO486)*$B$3 -> 0 | FM25: =('AEO Consump'!AP484+'AEO Consump'!AP486)*$B$3 -> 0 | FN25: =('AEO Consump'!AQ484+'AEO Consump'!AQ486)*$B$3 -> 0 | FO25: =('AEO Consump'!AR484+'AEO Consump'!AR486)*$B$3 -> 0 | FP25: =('AEO Consump'!AS484+'AEO Consump'!AS486)*$B$3 -> 0 | FQ25: =('AEO Consump'!AT484+'AEO Consump'!AT486)*$B$3 -> 0 | FW25: =('AEO Consump'!I630+'AEO Consump'!I632)*$B$3 -> 81014 | FX25: =('AEO Consump'!J630+'AEO Consump'!J632)*$B$3 -> 45869 | FY25: =('AEO Consump'!K630+'AEO Consump'!K632)*$B$3 -> 46476 | FZ25: =('AEO Consump'!L630+'AEO Consump'!L632)*$B$3 -> 43427 | GA25: =('AEO Consump'!M630+'AEO Consump'!M632)*$B$3 -> 42284 | GB25: =('AEO Consump'!N630+'AEO Consump'!N632)*$B$3 -> 48703 | GC25: =('AEO Consump'!O630+'AEO Consump'!O632)*$B$3 -> 49069 | GD25: =('AEO Consump'!P630+'AEO Consump'!P632)*$B$3 -> 49632 | GE25: =('AEO Consump'!Q630+'AEO Consump'!Q632)*$B$3 -> 42120 | GF25: =('AEO Consump'!R630+'AEO Consump'!R632)*$B$3 -> 48000 | GG25: =('AEO Consump'!S630+'AEO Consump'!S632)*$B$3 -> 49000 | GH25: =('AEO Consump'!T630+'AEO Consump'!T632)*$B$3 -> 48000 | GI25: =('AEO Consump'!U630+'AEO Consump'!U632)*$B$3 -> 48000 | GJ25: =('AEO Consump'!V630+'AEO Consump'!V632)*$B$3 -> 48000 | GK25: =('AEO Consump'!W630+'AEO Consump'!W632)*$B$3 -> 48000 | GL25: =('AEO Consump'!X630+'AEO Consump'!X632)*$B$3 -> 48000 | GM25: =('AEO Consump'!Y630+'AEO Consump'!Y632)*$B$3 -> 48000 | GN25: =('AEO Consump'!Z630+'AEO Consump'!Z632)*$B$3 -> 48000 | GO25: =('AEO Consump'!AA630+'AEO Consump'!AA632)*$B$3 -> 48000 | GP25: =('AEO Consump'!AB630+'AEO Consump'!AB632)*$B$3 -> 48000 | GQ25: =('AEO Consump'!AC630+'AEO Consump'!AC632)*$B$3 -> 48000 | GR25: =('AEO Consump'!AD630+'AEO Consump'!AD632)*$B$3 -> 48000 | GS25: =('AEO Consump'!AE630+'AEO Consump'!AE632)*$B$3 -> 48000 | GT25: =('AEO Consump'!AF630+'AEO Consump'!AF632)*$B$3 -> 48000 | GU25: =('AEO Consump'!AG630+'AEO Consump'!AG632)*$B$3 -> 47000 | GV25: =('AEO Consump'!AH630+'AEO Consump'!AH632)*$B$3 -> 47000 | GW25: =('AEO Consump'!AI630+'AEO Consump'!AI632)*$B$3 -> 46000 | GX25: =('AEO Consump'!AJ630+'AEO Consump'!AJ632)*$B$3 -> 45000 | GY25: =('AEO Consump'!AK630+'AEO Consump'!AK632)*$B$3 -> 45000 | GZ25: =('AEO Consump'!AL630+'AEO Consump'!AL632)*$B$3 -> 45000 | HA25: =('AEO Consump'!AM630+'AEO Consump'!AM632)*$B$3 -> 45000 | HB25: =('AEO Consump'!AN630+'AEO Consump'!AN632)*$B$3 -> 45000 | HC25: =('AEO Consump'!AO630+'AEO Consump'!AO632)*$B$3 -> 45000 | HD25: =('AEO Consump'!AP630+'AEO Consump'!AP632)*$B$3 -> 45000 | HE25: =('AEO Consump'!AQ630+'AEO Consump'!AQ632)*$B$3 -> 44000 | HF25: =('AEO Consump'!AR630+'AEO Consump'!AR632)*$B$3 -> 44000 | HG25: =('AEO Consump'!AS630+'AEO Consump'!AS632)*$B$3 -> 44000 | HH25: =('AEO Consump'!AT630+'AEO Consump'!AT632)*$B$3 -> 44000
B26: Other Coal | G26: ='AEO Consump'!I53*$B$3 -> 1783 | H26: ='AEO Consump'!J53*$B$3 -> 2268 | I26: ='AEO Consump'!K53*$B$3 -> 2030 | J26: ='AEO Consump'!L53*$B$3 -> 1645 | K26: ='AEO Consump'!M53*$B$3 -> 489 | L26: ='AEO Consump'!N53*$B$3 -> 465 | M26: ='AEO Consump'!O53*$B$3 -> 467 | N26: ='AEO Consump'!P53*$B$3 -> 408 | O26: ='AEO Consump'!Q53*$B$3 -> 479 | P26: ='AEO Consump'!R53*$B$3 -> 0 | Q26: ='AEO Consump'!S53*$B$3 -> 0 | R26: ='AEO Consump'!T53*$B$3 -> 0 | S26: ='AEO Consump'!U53*$B$3 -> 0 | T26: ='AEO Consump'!V53*$B$3 -> 0 | U26: ='AEO Consump'!W53*$B$3 -> 0 | V26: ='AEO Consump'!X53*$B$3 -> 0 | W26: ='AEO Consump'!Y53*$B$3 -> 0 | X26: ='AEO Consump'!Z53*$B$3 -> 0 | Y26: ='AEO Consump'!AA53*$B$3 -> 0 | Z26: ='AEO Consump'!AB53*$B$3 -> 0 | AA26: ='AEO Consump'!AC53*$B$3 -> 0 | AB26: ='AEO Consump'!AD53*$B$3 -> 0 | AC26: ='AEO Consump'!AE53*$B$3 -> 0 | AD26: ='AEO Consump'!AF53*$B$3 -> 0 | AE26: ='AEO Consump'!AG53*$B$3 -> 0 | AF26: ='AEO Consump'!AH53*$B$3 -> 0 | AG26: ='AEO Consump'!AI53*$B$3 -> 0 | AH26: ='AEO Consump'!AJ53*$B$3 -> 0 | AI26: ='AEO Consump'!AK53*$B$3 -> 0 | AJ26: ='AEO Consump'!AL53*$B$3 -> 0 | AK26: ='AEO Consump'!AM53*$B$3 -> 0 | AL26: ='AEO Consump'!AN53*$B$3 -> 0 | AM26: ='AEO Consump'!AO53*$B$3 -> 0 | AN26: ='AEO Consump'!AP53*$B$3 -> 0 | AO26: ='AEO Consump'!AQ53*$B$3 -> 0 | AP26: ='AEO Consump'!AR53*$B$3 -> 0 | AQ26: ='AEO Consump'!AS53*$B$3 -> 0 | AR26: ='AEO Consump'!AT53*$B$3 -> 0 | AX26: ='AEO Consump'!I196*$B$3 -> 54554 | AY26: ='AEO Consump'!J196*$B$3 -> 54835 | AZ26: ='AEO Consump'!K196*$B$3 -> 44785 | BA26: ='AEO Consump'!L196*$B$3 -> 42295 | BB26: ='AEO Consump'!M196*$B$3 -> 37316 | BC26: ='AEO Consump'!N196*$B$3 -> 35507 | BD26: ='AEO Consump'!O196*$B$3 -> 22495 | BE26: ='AEO Consump'!P196*$B$3 -> 19638 | BF26: ='AEO Consump'!Q196*$B$3 -> 19276 | BG26: ='AEO Consump'!R196*$B$3 -> 16000 | BH26: ='AEO Consump'!S196*$B$3 -> 14000 | BI26: ='AEO Consump'!T196*$B$3 -> 14000 | BJ26: ='AEO Consump'!U196*$B$3 -> 13000 | BK26: ='AEO Consump'!V196*$B$3 -> 13000 | BL26: ='AEO Consump'!W196*$B$3 -> 13000 | BM26: ='AEO Consump'!X196*$B$3 -> 13000 | BN26: ='AEO Consump'!Y196*$B$3 -> 12000 | BO26: ='AEO Consump'!Z196*$B$3 -> 12000 | BP26: ='AEO Consump'!AA196*$B$3 -> 12000 | BQ26: ='AEO Consump'!AB196*$B$3 -> 11000 | BR26: ='AEO Consump'!AC196*$B$3 -> 11000 | BS26: ='AEO Consump'!AD196*$B$3 -> 11000 | BT26: ='AEO Consump'!AE196*$B$3 -> 10000 | BU26: ='AEO Consump'!AF196*$B$3 -> 10000 | BV26: ='AEO Consump'!AG196*$B$3 -> 10000 | BW26: ='AEO Consump'!AH196*$B$3 -> 10000 | BX26: ='AEO Consump'!AI196*$B$3 -> 9000 | BY26: ='AEO Consump'!AJ196*$B$3 -> 9000 | BZ26: ='AEO Consump'!AK196*$B$3 -> 9000 | CA26: ='AEO Consump'!AL196*$B$3 -> 9000 | CB26: ='AEO Consump'!AM196*$B$3 -> 8000 | CC26: ='AEO Consump'!AN196*$B$3 -> 8000 | CD26: ='AEO Consump'!AO196*$B$3 -> 8000 | CE26: ='AEO Consump'!AP196*$B$3 -> 8000 | CF26: ='AEO Consump'!AQ196*$B$3 -> 8000 | CG26: ='AEO Consump'!AR196*$B$3 -> 7000 | CH26: ='AEO Consump'!AS196*$B$3 -> 7000 | CI26: ='AEO Consump'!AT196*$B$3 -> 7000 | CO26: ='AEO Consump'!I339*$B$3 -> 249732 | CP26: ='AEO Consump'!J339*$B$3 -> 209725 | CQ26: ='AEO Consump'!K339*$B$3 -> 176418 | CR26: ='AEO Consump'!L339*$B$3 -> 143998 | CS26: ='AEO Consump'!M339*$B$3 -> 153645 | CT26: ='AEO Consump'!N339*$B$3 -> 141715 | CU26: ='AEO Consump'!O339*$B$3 -> 133035 | CV26: ='AEO Consump'!P339*$B$3 -> 121685 | CW26: ='AEO Consump'!Q339*$B$3 -> 119769 | CX26: ='AEO Consump'!R339*$B$3 -> 113000 | CY26: ='AEO Consump'!S339*$B$3 -> 103000 | CZ26: ='AEO Consump'!T339*$B$3 -> 95000 | DA26: ='AEO Consump'!U339*$B$3 -> 94000 | DB26: ='AEO Consump'!V339*$B$3 -> 94000 | DC26: ='AEO Consump'!W339*$B$3 -> 94000 | DD26: ='AEO Consump'!X339*$B$3 -> 93000 | DE26: ='AEO Consump'!Y339*$B$3 -> 92000 | DF26: ='AEO Consump'!Z339*$B$3 -> 91000 | DG26: ='AEO Consump'!AA339*$B$3 -> 90000 | DH26: ='AEO Consump'!AB339*$B$3 -> 89000 | DI26: ='AEO Consump'!AC339*$B$3 -> 87000 | DJ26: ='AEO Consump'!AD339*$B$3 -> 86000 | DK26: ='AEO Consump'!AE339*$B$3 -> 85000 | DL26: ='AEO Consump'!AF339*$B$3 -> 83000 | DM26: ='AEO Consump'!AG339*$B$3 -> 82000 | DN26: ='AEO Consump'!AH339*$B$3 -> 80000 | DO26: ='AEO Consump'!AI339*$B$3 -> 79000 | DP26: ='AEO Consump'!AJ339*$B$3 -> 78000 | DQ26: ='AEO Consump'!AK339*$B$3 -> 77000 | DR26: ='AEO Consump'!AL339*$B$3 -> 76000 | DS26: ='AEO Consump'!AM339*$B$3 -> 75000 | DT26: ='AEO Consump'!AN339*$B$3 -> 74000 | DU26: ='AEO Consump'!AO339*$B$3 -> 73000 | DV26: ='AEO Consump'!AP339*$B$3 -> 77000 | DW26: ='AEO Consump'!AQ339*$B$3 -> 81000 | DX26: ='AEO Consump'!AR339*$B$3 -> 80000 | DY26: ='AEO Consump'!AS339*$B$3 -> 79000 | DZ26: ='AEO Consump'!AT339*$B$3 -> 78000 | EF26: ='AEO Consump'!I485*$B$3 -> 169390 | EG26: ='AEO Consump'!J485*$B$3 -> 178404 | EH26: ='AEO Consump'!K485*$B$3 -> 151181 | EI26: ='AEO Consump'!L485*$B$3 -> 136812 | EJ26: ='AEO Consump'!M485*$B$3 -> 138681 | EK26: ='AEO Consump'!N485*$B$3 -> 120734 | EL26: ='AEO Consump'!O485*$B$3 -> 124196 | EM26: ='AEO Consump'!P485*$B$3 -> 106013 | EN26: ='AEO Consump'!Q485*$B$3 -> 114852 | EO26: ='AEO Consump'!R485*$B$3 -> 116000 | EP26: ='AEO Consump'!S485*$B$3 -> 100000 | EQ26: ='AEO Consump'!T485*$B$3 -> 83000 | ER26: ='AEO Consump'!U485*$B$3 -> 83000 | ES26: ='AEO Consump'!V485*$B$3 -> 84000 | ET26: ='AEO Consump'!W485*$B$3 -> 85000 | EU26: ='AEO Consump'!X485*$B$3 -> 85000 | EV26: ='AEO Consump'!Y485*$B$3 -> 83000 | EW26: ='AEO Consump'!Z485*$B$3 -> 81000 | EX26: ='AEO Consump'!AA485*$B$3 -> 80000 | EY26: ='AEO Consump'!AB485*$B$3 -> 78000 | EZ26: ='AEO Consump'!AC485*$B$3 -> 76000 | FA26: ='AEO Consump'!AD485*$B$3 -> 74000 | FB26: ='AEO Consump'!AE485*$B$3 -> 72000 | FC26: ='AEO Consump'!AF485*$B$3 -> 70000 | FD26: ='AEO Consump'!AG485*$B$3 -> 67000 | FE26: ='AEO Consump'!AH485*$B$3 -> 65000 | FF26: ='AEO Consump'!AI485*$B$3 -> 63000 | FG26: ='AEO Consump'!AJ485*$B$3 -> 62000 | FH26: ='AEO Consump'!AK485*$B$3 -> 61000 | FI26: ='AEO Consump'!AL485*$B$3 -> 59000 | FJ26: ='AEO Consump'!AM485*$B$3 -> 57000 | FK26: ='AEO Consump'!AN485*$B$3 -> 56000 | FL26: ='AEO Consump'!AO485*$B$3 -> 54000 | FM26: ='AEO Consump'!AP485*$B$3 -> 54000 | FN26: ='AEO Consump'!AQ485*$B$3 -> 54000 | FO26: ='AEO Consump'!AR485*$B$3 -> 56000 | FP26: ='AEO Consump'!AS485*$B$3 -> 56000 | FQ26: ='AEO Consump'!AT485*$B$3 -> 55000 | FW26: ='AEO Consump'!I631*$B$3 -> 161226 | FX26: ='AEO Consump'!J631*$B$3 -> 139119 | FY26: ='AEO Consump'!K631*$B$3 -> 118700 | FZ26: ='AEO Consump'!L631*$B$3 -> 97879 | GA26: ='AEO Consump'!M631*$B$3 -> 85516 | GB26: ='AEO Consump'!N631*$B$3 -> 79183 | GC26: ='AEO Consump'!O631*$B$3 -> 65176 | GD26: ='AEO Consump'!P631*$B$3 -> 59359 | GE26: ='AEO Consump'!Q631*$B$3 -> 55674 | GF26: ='AEO Consump'!R631*$B$3 -> 54000 | GG26: ='AEO Consump'!S631*$B$3 -> 48000 | GH26: ='AEO Consump'!T631*$B$3 -> 47000 | GI26: ='AEO Consump'!U631*$B$3 -> 46000 | GJ26: ='AEO Consump'!V631*$B$3 -> 46000 | GK26: ='AEO Consump'!W631*$B$3 -> 45000 | GL26: ='AEO Consump'!X631*$B$3 -> 45000 | GM26: ='AEO Consump'!Y631*$B$3 -> 44000 | GN26: ='AEO Consump'!Z631*$B$3 -> 43000 | GO26: ='AEO Consump'!AA631*$B$3 -> 41000 | GP26: ='AEO Consump'!AB631*$B$3 -> 40000 | GQ26: ='AEO Consump'!AC631*$B$3 -> 39000 | GR26: ='AEO Consump'!AD631*$B$3 -> 38000 | GS26: ='AEO Consump'!AE631*$B$3 -> 37000 | GT26: ='AEO Consump'!AF631*$B$3 -> 36000 | GU26: ='AEO Consump'!AG631*$B$3 -> 35000 | GV26: ='AEO Consump'!AH631*$B$3 -> 34000 | GW26: ='AEO Consump'!AI631*$B$3 -> 33000 | GX26: ='AEO Consump'!AJ631*$B$3 -> 32000 | GY26: ='AEO Consump'!AK631*$B$3 -> 32000 | GZ26: ='AEO Consump'!AL631*$B$3 -> 31000 | HA26: ='AEO Consump'!AM631*$B$3 -> 30000 | HB26: ='AEO Consump'!AN631*$B$3 -> 30000 | HC26: ='AEO Consump'!AO631*$B$3 -> 29000 | HD26: ='AEO Consump'!AP631*$B$3 -> 28000 | HE26: ='AEO Consump'!AQ631*$B$3 -> 28000 | HF26: ='AEO Consump'!AR631*$B$3 -> 27000 | HG26: ='AEO Consump'!AS631*$B$3 -> 27000 | HH26: ='AEO Consump'!AT631*$B$3 -> 26000
